Workbook

Sheet Übersicht
D1: Kreisrundenwettkampf | J1: Saison | K1: 2019/2020 | M1: 1. Kreisliga | P1: Schützen
C3: Wettkampftag: | D3: 15.09. | E3: 06.10. | F3: 20.10. | G3: 10.11. | H3: 24.11. | I3: 08.12. | J3: Hinrunde | L3: 19.01. | M3: 02.02. | N3: 16.02. | O3: 01.03. | P3: 15.03. | Q3: 29.03. | R3: Rückrunde | T3: Serie komplett
A4: Pos. | B4: Verein / Gruppe | D4: Lahn | E4: Lorup | F4: Sögel | G4: Neubörger | H4: Börgermoor | I4: Esterwegne | J4: Schnitt | K4: Gesamt | L4: =D4 -> Lahn | M4: Lorup | N4: Sögel | O4: Neubörger | P4: Börgermoor | Q4: Esterwegne | R4: Schnitt | S4: Gesamt | T4: Schnitt | U4: Gesamt | V4: Differenz
A6: 1 | B6: ='Übersicht Gruppen'!B2 -> Sögel I | D6: ='Übersicht Gruppen'!C2 -> 937.5 | E6: ='Übersicht Gruppen'!D2 -> 941.2 | F6: ='Übersicht Gruppen'!E2 -> 943.4 | G6: ='Übersicht Gruppen'!F2 -> 942.5 | H6: ='Übersicht Gruppen'!G2 -> 945.7 | I6: ='Übersicht Gruppen'!H2 -> 944.8 | J6: ='Übersicht Gruppen'!I2 -> 942.52 | K6: =SUM(D6:I6) -> 5,655.1 | L6: ='Übersicht Gruppen'!K2 -> 945.2 | M6: ='Übersicht Gruppen'!L2 -> 944.7 | N6: ='Übersicht Gruppen'!M2 -> 946.7 | O6: ='Übersicht Gruppen'!N2 -> 943.9 | P6: ='Übersicht Gruppen'!O2 -> 939.3 | Q6: ='Übersicht Gruppen'!P2 -> 0.0 | R6: =IF(Formelhilfe!O2=0,0,'Übersicht Gruppen'!Q2) -> 943.96 | S6: =SUM(L6:Q6) -> 4,719.8 | T6: ='Übersicht Gruppen'!S2 -> 943.17 | U6: =SUM(S6+K6) -> 10,374.9
A7: 2 | B7: ='Übersicht Gruppen'!B3 -> Lahn II | D7: ='Übersicht Gruppen'!C3 -> 939.5 | E7: ='Übersicht Gruppen'!D3 -> 942.2 | F7: ='Übersicht Gruppen'!E3 -> 939.1 | G7: ='Übersicht Gruppen'!F3 -> 938.5 | H7: ='Übersicht Gruppen'!G3 -> 943.7 | I7: ='Übersicht Gruppen'!H3 -> 939.5 | J7: ='Übersicht Gruppen'!I3 -> 940.42 | K7: 5,642.5 | L7: ='Übersicht Gruppen'!K3 -> 941.9 | M7: ='Übersicht Gruppen'!L3 -> 938.9 | N7: ='Übersicht Gruppen'!M3 -> 946.1 | O7: ='Übersicht Gruppen'!N3 -> 943.6 | P7: ='Übersicht Gruppen'!O3 -> 944.8 | Q7: ='Übersicht Gruppen'!P3 -> 0.0 | R7: =IF(Formelhilfe!O3=0,0,'Übersicht Gruppen'!Q3) -> 943.06 | S7: 4,715.3 | T7: ='Übersicht Gruppen'!S3 -> 941.62 | U7: 10,357.8 | V7: =(U6-U7)*-1 -> -17.1
A8: 3 | B8: ='Übersicht Gruppen'!B4 -> Börgermoor I | D8: ='Übersicht Gruppen'!C4 -> 931.7 | E8: ='Übersicht Gruppen'!D4 -> 944.5 | F8: ='Übersicht Gruppen'!E4 -> 943.4 | G8: ='Übersicht Gruppen'!F4 -> 944.5 | H8: ='Übersicht Gruppen'!G4 -> 943.2 | I8: ='Übersicht Gruppen'!H4 -> 938.6 | J8: ='Übersicht Gruppen'!I4 -> 940.98 | K8: 5,645.9 | L8: ='Übersicht Gruppen'!K4 -> 943.1 | M8: ='Übersicht Gruppen'!L4 -> 941.1 | N8: ='Übersicht Gruppen'!M4 -> 944.3 | O8: ='Übersicht Gruppen'!N4 -> 940.1 | P8: ='Übersicht Gruppen'!O4 -> 942.8 | Q8: ='Übersicht Gruppen'!P4 -> 0.0 | R8: =IF(Formelhilfe!O4=0,0,'Übersicht Gruppen'!Q4) -> 942.28 | S8: 4,711.4 | T8: ='Übersicht Gruppen'!S4 -> 941.57 | U8: 10,357.3 | V8: =(U7-U8)*-1 -> -0.5
A9: 4 | B9: ='Übersicht Gruppen'!B5 -> Neubörger I | D9: ='Übersicht Gruppen'!C5 -> 942.3 | E9: ='Übersicht Gruppen'!D5 -> 931.1 | F9: ='Übersicht Gruppen'!E5 -> 939.5 | G9: ='Übersicht Gruppen'!F5 -> 933.6 | H9: ='Übersicht Gruppen'!G5 -> 939.6 | I9: ='Übersicht Gruppen'!H5 -> 936.7 | J9: ='Übersicht Gruppen'!I5 -> 937.13 | K9: 5,622.8 | L9: ='Übersicht Gruppen'!K5 -> 941.6 | M9: ='Übersicht Gruppen'!L5 -> 940.2 | N9: ='Übersicht Gruppen'!M5 -> 944.1 | O9: ='Übersicht Gruppen'!N5 -> 942.2 | P9: ='Übersicht Gruppen'!O5 -> 937.3 | Q9: ='Übersicht Gruppen'!P5 -> 0.0 | R9: =IF(Formelhilfe!O5=0,0,'Übersicht Gruppen'!Q5) -> 941.08 | S9: 4,705.4 | T9: ='Übersicht Gruppen'!S5 -> 938.93 | U9: 10,328.2 | V9: =(U8-U9)*-1 -> -29.1
A10: 5 | B10: ='Übersicht Gruppen'!B6 -> Lorup IV | D10: ='Übersicht Gruppen'!C6 -> 935.2 | E10: ='Übersicht Gruppen'!D6 -> 931.1 | F10: ='Übersicht Gruppen'!E6 -> 932.3 | G10: ='Übersicht Gruppen'!F6 -> 933.8 | H10: ='Übersicht Gruppen'!G6 -> 937.7 | I10: ='Übersicht Gruppen'!H6 -> 939.1 | J10: ='Übersicht Gruppen'!I6 -> 934.87 | K10: 5,609.2 | L10: ='Übersicht Gruppen'!K6 -> 938.0 | M10: ='Übersicht Gruppen'!L6 -> 936.2 | N10: ='Übersicht Gruppen'!M6 -> 934.8 | O10: ='Übersicht Gruppen'!N6 -> 938.6 | P10: ='Übersicht Gruppen'!O6 -> 940.3 | Q10: ='Übersicht Gruppen'!P6 -> 0.0 | R10: =IF(Formelhilfe!O6=0,0,'Übersicht Gruppen'!Q6) -> 937.58 | S10: 4,687.9 | T10: ='Übersicht Gruppen'!S6 -> 936.10 | U10: 10,297.1 | V10: =(U9-U10)*-1 -> -31.1
A11: 6 | B11: ='Übersicht Gruppen'!B7 -> Esterwegen I | D11: ='Übersicht Gruppen'!C7 -> 934.4 | E11: ='Übersicht Gruppen'!D7 -> 933.4 | F11: ='Übersicht Gruppen'!E7 -> 925.2 | G11: ='Übersicht Gruppen'!F7 -> 933.3 | H11: ='Übersicht Gruppen'!G7 -> 934.3 | I11: ='Übersicht Gruppen'!H7 -> 931.7 | J11: ='Übersicht Gruppen'!I7 -> 932.05 | K11: 5,592.3 | L11: ='Übersicht Gruppen'!K7 -> 939.7 | M11: ='Übersicht Gruppen'!L7 -> 933.2 | N11: ='Übersicht Gruppen'!M7 -> 933.2 | O11: ='Übersicht Gruppen'!N7 -> 939.9 | P11: ='Übersicht Gruppen'!O7 -> 937.8 | Q11: ='Übersicht Gruppen'!P7 -> 0.0 | R11: =IF(Formelhilfe!O7=0,0,'Übersicht Gruppen'!Q7) -> 936.76 | S11: 4,683.8 | T11: ='Übersicht Gruppen'!S7 -> 934.19 | U11: 10,276.1 | V11: =(U10-U11)*-1 -> -21.0
C13: Schnitt: | D13: =AVERAGE(D6:D11) -> 936.8 | E13: =AVERAGE(E6:E11) -> 937.3 | F13: 937.2 | G13: 937.7 | H13: 940.7 | I13: 938.4 | J13: 937.99 | K13: =SUM(K6:K11)/6 -> 5,628.0 | L13: 941.6 | M13: 939.1 | N13: 941.5 | O13: 941.4 | P13: 940.4 | Q13: 0.0 | R13: 940.79 | S13: 4703.9 | T13: 939.26 | U13: 10,331.9
J15: Hinrunde | R15: Rückrunde | T15: Serie komplett | V15: Differenz
A16: Pos. | B16: Vorname Name | C16: Verein / Gruppe | J16: Schnitt | K16: Gesamt | R16: Schnitt | S16: Gesamt | T16: Schnitt | U16: Gesamt
A17: 1 | B17: ='Übersicht Schützen'!A2 -> Kohnen Stefan | C17: ='Übersicht Schützen'!B2 -> Börgermoor I | D17: ='Übersicht Schützen'!C2 -> 311.6 | E17: ='Übersicht Schützen'!D2 -> 315.6 | F17: ='Übersicht Schützen'!E2 -> 318.6 | G17: ='Übersicht Schützen'!F2 -> 317.2 | H17: ='Übersicht Schützen'!G2 -> 316.6 | I17: ='Übersicht Schützen'!H2 -> 315.5 | J17: ='Übersicht Schützen'!I2 -> 315.85 | K17: =SUM(D17:I17) -> 1,895.1 | L17: ='Übersicht Schützen'!L2 -> 317.7 | M17: ='Übersicht Schützen'!M2 -> 316.2 | N17: ='Übersicht Schützen'!N2 -> 316.3 | O17: ='Übersicht Schützen'!O2 -> 317.4 | P17: ='Übersicht Schützen'!P2 -> 316.7 | Q17: ='Übersicht Schützen'!Q2 -> 0.0 | R17: =IF(Formelhilfe!O9=0,0,'Übersicht Schützen'!R2) -> 316.86 | S17: =SUM(L17:Q17) -> 1,584.3 | T17: ='Übersicht Schützen'!U2 -> 316.31 | U17: =SUM(K17+S17) -> 3,479.4
A18: 2 | B18: ='Übersicht Schützen'!A3 -> Robben-Schlagge Ralf | C18: ='Übersicht Schützen'!B3 -> Lahn II | D18: ='Übersicht Schützen'!C3 -> 316.0 | E18: ='Übersicht Schützen'!D3 -> 314.1 | F18: ='Übersicht Schützen'!E3 -> 314.3 | G18: ='Übersicht Schützen'!F3 -> 315.2 | H18: ='Übersicht Schützen'!G3 -> 314.3 | I18: ='Übersicht Schützen'!H3 -> 317.7 | J18: ='Übersicht Schützen'!I3 -> 315.27 | K18: =SUM(D18:I18) -> 1,891.6 | L18: ='Übersicht Schützen'!L3 -> 315.5 | M18: ='Übersicht Schützen'!M3 -> 313.8 | N18: ='Übersicht Schützen'!N3 -> 316.0 | O18: ='Übersicht Schützen'!O3 -> 315.2 | P18: ='Übersicht Schützen'!P3 -> 316.9 | Q18: ='Übersicht Schützen'!Q3 -> 0.0 | R18: =IF(Formelhilfe!O10=0,0,'Übersicht Schützen'!R3) -> 315.48 | S18: =SUM(L18:Q18) -> 1,577.4 | T18: ='Übersicht Schützen'!U3 -> 315.36 | U18: =SUM(K18+S18) -> 3,469.0 | V18: =(U17-U18)*-1 -> -10.4
A19: 3 | B19: ='Übersicht Schützen'!A4 -> Tharner Karl-Heinz | C19: ='Übersicht Schützen'!B4 -> Sögel I | D19: ='Übersicht Schützen'!C4 -> 312.6 | E19: ='Übersicht Schützen'!D4 -> 313.8 | F19: ='Übersicht Schützen'!E4 -> 317.4 | G19: ='Übersicht Schützen'!F4 -> 315.0 | H19: ='Übersicht Schützen'!G4 -> 316.7 | I19: ='Übersicht Schützen'!H4 -> 310.8 | J19: ='Übersicht Schützen'!I4 -> 314.38 | K19: =SUM(D19:I19) -> 1,886.3 | L19: ='Übersicht Schützen'!L4 -> 315.0 | M19: ='Übersicht Schützen'!M4 -> 316.5 | N19: ='Übersicht Schützen'!N4 -> 317.7 | O19: ='Übersicht Schützen'!O4 -> 316.1 | P19: ='Übersicht Schützen'!P4 -> 310.5 | Q19: ='Übersicht Schützen'!Q4 -> 0.0 | R19: =IF(Formelhilfe!O11=0,0,'Übersicht Schützen'!R4) -> 315.16 | S19: 1,575.8 | T19: ='Übersicht Schützen'!U4 -> 314.74 | U19: 3,462.1 | V19: =(U18-U19)*-1 -> -6.9
A20: 4 | B20: ='Übersicht Schützen'!A5 -> Antons Klaus | C20: ='Übersicht Schützen'!B5 -> Neubörger I | D20: ='Übersicht Schützen'!C5 -> 315.0 | E20: ='Übersicht Schützen'!D5 -> 312.4 | F20: ='Übersicht Schützen'!E5 -> 313.9 | G20: ='Übersicht Schützen'!F5 -> 314.2 | H20: ='Übersicht Schützen'!G5 -> 313.1 | I20: ='Übersicht Schützen'!H5 -> 312.8 | J20: ='Übersicht Schützen'!I5 -> 313.57 | K20: 1,881.4 | L20: ='Übersicht Schützen'!L5 -> 317.0 | M20: ='Übersicht Schützen'!M5 -> 314.6 | N20: ='Übersicht Schützen'!N5 -> 315.7 | O20: ='Übersicht Schützen'!O5 -> 314.2 | P20: ='Übersicht Schützen'!P5 -> 315.1 | Q20: ='Übersicht Schützen'!Q5 -> 0.0 | R20: =IF(Formelhilfe!O12=0,0,'Übersicht Schützen'!R5) -> 315.32 | S20: 1,576.6 | T20: ='Übersicht Schützen'!U5 -> 314.36 | U20: 3,458.0 | V20: -4.1
A21: 5 | B21: ='Übersicht Schützen'!A6 -> Thien Markus | C21: ='Übersicht Schützen'!B6 -> Lahn II | D21: ='Übersicht Schützen'!C6 -> 312.6 | E21: ='Übersicht Schützen'!D6 -> 313.0 | F21: ='Übersicht Schützen'!E6 -> 313.3 | G21: ='Übersicht Schützen'!F6 -> 311.7 | H21: ='Übersicht Schützen'!G6 -> 315.9 | I21: ='Übersicht Schützen'!H6 -> 311.2 | J21: ='Übersicht Schützen'!I6 -> 312.95 | K21: 1,877.7 | L21: ='Übersicht Schützen'!L6 -> 314.6 | M21: ='Übersicht Schützen'!M6 -> 313.0 | N21: ='Übersicht Schützen'!N6 -> 316.6 | O21: ='Übersicht Schützen'!O6 -> 315.5 | P21: ='Übersicht Schützen'!P6 -> 314.9 | Q21: ='Übersicht Schützen'!Q6 -> 0.0 | R21: 314.92 | S21: 1,574.6 | T21: ='Übersicht Schützen'!U6 -> 313.85 | U21: 3,452.3 | V21: -5.7
A22: 6 | B22: ='Übersicht Schützen'!A7 -> Runde Norbert | C22: ='Übersicht Schützen'!B7 -> Neubörger I | D22: ='Übersicht Schützen'!C7 -> 316.3 | E22: ='Übersicht Schützen'!D7 -> 311.6 | F22: ='Übersicht Schützen'!E7 -> 313.3 | G22: ='Übersicht Schützen'!F7 -> 313.9 | H22: ='Übersicht Schützen'!G7 -> 314.2 | I22: ='Übersicht Schützen'!H7 -> 312.7 | J22: ='Übersicht Schützen'!I7 -> 313.67 | K22: 1,882.0 | L22: ='Übersicht Schützen'!L7 -> 314.4 | M22: ='Übersicht Schützen'!M7 -> 314.3 | N22: ='Übersicht Schützen'!N7 -> 313.4 | O22: ='Übersicht Schützen'!O7 -> 313.9 | P22: ='Übersicht Schützen'!P7 -> 313.9 | Q22: ='Übersicht Schützen'!Q7 -> 0.0 | R22: 313.98 | S22: 1,569.9 | T22: ='Übersicht Schützen'!U7 -> 313.81 | U22: 3,451.9 | V22: -0.4
A23: 7 | B23: ='Übersicht Schützen'!A8 -> Wester Markus | C23: ='Übersicht Schützen'!B8 -> Sögel I | D23: ='Übersicht Schützen'!C8 -> 315.7 | E23: ='Übersicht Schützen'!D8 -> 316.0 | F23: ='Übersicht Schützen'!E8 -> 314.0 | G23: ='Übersicht Schützen'!F8 -> 312.5 | H23: ='Übersicht Schützen'!G8 -> 313.9 | I23: ='Übersicht Schützen'!H8 -> 316.8 | J23: ='Übersicht Schützen'!I8 -> 314.82 | K23: 1,888.9 | L23: ='Übersicht Schützen'!L8 -> 314.2 | M23: ='Übersicht Schützen'!M8 -> 301.9 | N23: ='Übersicht Schützen'!N8 -> 311.9 | O23: ='Übersicht Schützen'!O8 -> 316.8 | P23: ='Übersicht Schützen'!P8 -> 314.2 | Q23: ='Übersicht Schützen'!Q8 -> 0.0 | R23: =IF(Formelhilfe!O15=0,0,'Übersicht Schützen'!R8) -> 311.80 | S23: 1,559.0 | T23: ='Übersicht Schützen'!U8 -> 313.45 | U23: 3,447.9 | V23: -4.0
A24: 8 | B24: ='Übersicht Schützen'!A9 -> Segbers Bernard | C24: ='Übersicht Schützen'!B9 -> Börgermoor I | D24: ='Übersicht Schützen'!C9 -> 307.9 | E24: ='Übersicht Schützen'!D9 -> 311.3 | F24: ='Übersicht Schützen'!E9 -> 311.7 | G24: ='Übersicht Schützen'!F9 -> 315.7 | H24: ='Übersicht Schützen'!G9 -> 314.4 | I24: ='Übersicht Schützen'!H9 -> 313.4 | J24: ='Übersicht Schützen'!I9 -> 312.40 | K24: 1,874.4 | L24: ='Übersicht Schützen'!L9 -> 312.8 | M24: ='Übersicht Schützen'!M9 -> 312.4 | N24: ='Übersicht Schützen'!N9 -> 314.5 | O24: ='Übersicht Schützen'!O9 -> 312.1 | P24: ='Übersicht Schützen'!P9 -> 313.2 | Q24: ='Übersicht Schützen'!Q9 -> 0.0 | R24: =IF(Formelhilfe!O16=0,0,'Übersicht Schützen'!R9) -> 313.00 | S24: 1,565.0 | T24: ='Übersicht Schützen'!U9 -> 312.67 | U24: 3,439.4 | V24: -8.5
A25: 9 | B25: ='Übersicht Schützen'!A10 -> Pölking Thomas | C25: ='Übersicht Schützen'!B10 -> Lorup IV | D25: ='Übersicht Schützen'!C10 -> 314.2 | E25: ='Übersicht Schützen'!D10 -> 307.4 | F25: ='Übersicht Schützen'!E10 -> 312.9 | G25: ='Übersicht Schützen'!F10 -> 313.1 | H25: ='Übersicht Schützen'!G10 -> 314.9 | I25: ='Übersicht Schützen'!H10 -> 311.8 | J25: ='Übersicht Schützen'!I10 -> 312.38 | K25: 1,874.3 | L25: ='Übersicht Schützen'!L10 -> 310.8 | M25: ='Übersicht Schützen'!M10 -> 312.3 | N25: ='Übersicht Schützen'!N10 -> 312.3 | O25: ='Übersicht Schützen'!O10 -> 313.7 | P25: ='Übersicht Schützen'!P10 -> 315.2 | Q25: ='Übersicht Schützen'!Q10 -> 0.0 | R25: =IF(Formelhilfe!O17=0,0,'Übersicht Schützen'!R10) -> 312.86 | S25: 1,564.3 | T25: ='Übersicht Schützen'!U10 -> 312.60 | U25: 3,438.6 | V25: -0.8
A26: 10 | B26: ='Übersicht Schützen'!A11 -> Thomes Bernhard | C26: ='Übersicht Schützen'!B11 -> Esterwegen I | D26: ='Übersicht Schützen'!C11 -> 308.1 | E26: ='Übersicht Schützen'!D11 -> 314.4 | F26: ='Übersicht Schützen'!E11 -> 311.0 | G26: ='Übersicht Schützen'!F11 -> 310.3 | H26: ='Übersicht Schützen'!G11 -> 314.3 | I26: ='Übersicht Schützen'!H11 -> 312.4 | J26: ='Übersicht Schützen'!I11 -> 311.75 | K26: 1,870.5 | L26: ='Übersicht Schützen'!L11 -> 314.9 | M26: ='Übersicht Schützen'!M11 -> 313.6 | N26: ='Übersicht Schützen'!N11 -> 309.9 | O26: ='Übersicht Schützen'!O11 -> 314.2 | P26: ='Übersicht Schützen'!P11 -> 315.4 | Q26: ='Übersicht Schützen'!Q11 -> 0.0 | R26: =IF(Formelhilfe!O18=0,0,'Übersicht Schützen'!R11) -> 313.60 | S26: 1,568.0 | T26: ='Übersicht Schützen'!U11 -> 312.59 | U26: 3,438.5 | V26: -0.1
A27: 11 | B27: ='Übersicht Schützen'!A12 -> Olliges Jürgen | C27: ='Übersicht Schützen'!B12 -> Lorup IV | D27: ='Übersicht Schützen'!C12 -> 310.6 | E27: ='Übersicht Schützen'!D12 -> 312.6 | F27: ='Übersicht Schützen'!E12 -> 310.8 | G27: ='Übersicht Schützen'!F12 -> 308.4 | H27: ='Übersicht Schützen'!G12 -> 313.1 | I27: ='Übersicht Schützen'!H12 -> 312.7 | J27: ='Übersicht Schützen'!I12 -> 311.37 | K27: 1,868.2 | L27: ='Übersicht Schützen'!L12 -> 313.2 | M27: ='Übersicht Schützen'!M12 -> 313.5 | N27: ='Übersicht Schützen'!N12 -> 310.4 | O27: ='Übersicht Schützen'!O12 -> 314.0 | P27: ='Übersicht Schützen'!P12 -> 311.4 | Q27: ='Übersicht Schützen'!Q12 -> 0.0 | R27: 312.50 | S27: 1,562.5 | T27: ='Übersicht Schützen'!U12 -> 311.88 | U27: 3,430.7 | V27: -7.8
A28: 12 | B28: ='Übersicht Schützen'!A13 -> Dobelmann Werner | C28: ='Übersicht Schützen'!B13 -> Börgermoor I | D28: ='Übersicht Schützen'!C13 -> 311.1 | E28: ='Übersicht Schützen'!D13 -> 315.1 | F28: ='Übersicht Schützen'!E13 -> 311.9 | G28: ='Übersicht Schützen'!F13 -> 308.1 | H28: ='Übersicht Schützen'!G13 -> 312.2 | I28: ='Übersicht Schützen'!H13 -> 309.4 | J28: ='Übersicht Schützen'!I13 -> 311.30 | K28: 1,867.8 | L28: ='Übersicht Schützen'!L13 -> 311.0 | M28: ='Übersicht Schützen'!M13 -> 312.5 | N28: ='Übersicht Schützen'!N13 -> 313.5 | O28: ='Übersicht Schützen'!O13 -> 310.6 | P28: ='Übersicht Schützen'!P13 -> 312.9 | Q28: ='Übersicht Schützen'!Q13 -> 0.0 | R28: 312.10 | S28: 1,560.5 | T28: ='Übersicht Schützen'!U13 -> 311.66 | U28: 3,428.3 | V28: -2.4
A29: 13 | B29: ='Übersicht Schützen'!A14 -> Klawitter Gerd | C29: ='Übersicht Schützen'!B14 -> Lorup IV | D29: ='Übersicht Schützen'!C14 -> 309.4 | E29: ='Übersicht Schützen'!D14 -> 309.0 | F29: ='Übersicht Schützen'!E14 -> 308.6 | G29: ='Übersicht Schützen'!F14 -> 312.2 | H29: ='Übersicht Schützen'!G14 -> 308.3 | I29: ='Übersicht Schützen'!H14 -> 314.6 | J29: ='Übersicht Schützen'!I14 -> 310.35 | K29: 1,862.1 | L29: ='Übersicht Schützen'!L14 -> 314.0 | M29: ='Übersicht Schützen'!M14 -> 310.4 | N29: ='Übersicht Schützen'!N14 -> 312.1 | O29: ='Übersicht Schützen'!O14 -> 310.9 | P29: ='Übersicht Schützen'!P14 -> 313.7 | Q29: ='Übersicht Schützen'!Q14 -> 0.0 | R29: =IF(Formelhilfe!O21=0,0,'Übersicht Schützen'!R14) -> 312.22 | S29: 1,561.1 | T29: ='Übersicht Schützen'!U14 -> 311.20 | U29: 3,423.2 | V29: -5.1
A30: 14 | B30: ='Übersicht Schützen'!A15 -> Thyen Udo | C30: ='Übersicht Schützen'!B15 -> Lahn II | D30: ='Übersicht Schützen'!C15 -> 310.9 | E30: ='Übersicht Schützen'!D15 -> 314.0 | F30: ='Übersicht Schützen'!E15 -> 311.5 | G30: ='Übersicht Schützen'!F15 -> 311.6 | H30: ='Übersicht Schützen'!G15 -> 313.5 | I30: ='Übersicht Schützen'!H15 -> 310.6 | J30: ='Übersicht Schützen'!I15 -> 312.02 | K30: 1,872.1 | L30: ='Übersicht Schützen'!L15 -> 311.4 | M30: ='Übersicht Schützen'!M15 -> 312.1 | N30: ='Übersicht Schützen'!N15 -> 313.5 | O30: ='Übersicht Schützen'!O15 -> 306.0 | P30: ='Übersicht Schützen'!P15 -> 307.1 | Q30: ='Übersicht Schützen'!Q15 -> 0.0 | R30: =IF(Formelhilfe!O22=0,0,'Übersicht Schützen'!R15) -> 310.02 | S30: 1,550.1 | T30: ='Übersicht Schützen'!U15 -> 311.11 | U30: 3,422.2 | V30: -1.0
A31: 15 | B31: ='Übersicht Schützen'!A16 -> Dödtmann Ludger | C31: ='Übersicht Schützen'!B16 -> Sögel I | D31: ='Übersicht Schützen'!C16 -> 308.8 | E31: ='Übersicht Schützen'!D16 -> 308.7 | F31: ='Übersicht Schützen'!E16 -> 311.5 | G31: ='Übersicht Schützen'!F16 -> 310.4 | H31: ='Übersicht Schützen'!G16 -> 311.9 | I31: ='Übersicht Schützen'!H16 -> 310.0 | J31: ='Übersicht Schützen'!I16 -> 310.22 | K31: 1,861.3 | L31: ='Übersicht Schützen'!L16 -> 311.6 | M31: ='Übersicht Schützen'!M16 -> 312.2 | N31: ='Übersicht Schützen'!N16 -> 308.8 | O31: ='Übersicht Schützen'!O16 -> 309.8 | P31: ='Übersicht Schützen'!P16 -> 310.8 | Q31: ='Übersicht Schützen'!Q16 -> 0.0 | R31: =IF(Formelhilfe!O23=0,0,'Übersicht Schützen'!R16) -> 310.64 | S31: 1,553.2 | T31: ='Übersicht Schützen'!U16 -> 310.41 | U31: 3,414.5 | V31: -7.7
A32: 16 | B32: ='Übersicht Schützen'!A17 -> Banedt Olaf | C32: ='Übersicht Schützen'!B17 -> Lahn II | D32: ='Übersicht Schützen'!C17 -> 310.1 | E32: ='Übersicht Schützen'!D17 -> 314.1 | F32: ='Übersicht Schützen'!E17 -> 309.5 | G32: ='Übersicht Schützen'!F17 -> 307.9 | H32: ='Übersicht Schützen'!G17 -> 307.9 | I32: ='Übersicht Schützen'!H17 -> 308.5 | J32: ='Übersicht Schützen'!I17 -> 309.67 | K32: 1,858.0 | L32: ='Übersicht Schützen'!L17 -> 311.8 | M32: ='Übersicht Schützen'!M17 -> 308.2 | N32: ='Übersicht Schützen'!N17 -> 309.3 | O32: ='Übersicht Schützen'!O17 -> 312.9 | P32: ='Übersicht Schützen'!P17 -> 313.0 | Q32: ='Übersicht Schützen'!Q17 -> 0.0 | R32: =IF(Formelhilfe!O24=0,0,'Übersicht Schützen'!R17) -> 311.04 | S32: 1,555.2 | T32: ='Übersicht Schützen'!U17 -> 310.29 | U32: 3,413.2 | V32: -1.3
A33: 17 | B33: ='Übersicht Schützen'!A18 -> Hunfeld Anton | C33: ='Übersicht Schützen'!B18 -> Neubörger I | D33: ='Übersicht Schützen'!C18 -> 309.6 | E33: ='Übersicht Schützen'!D18 -> 304.4 | F33: ='Übersicht Schützen'!E18 -> 312.3 | G33: ='Übersicht Schützen'!F18 -> 305.5 | H33: ='Übersicht Schützen'!G18 -> 312.3 | I33: ='Übersicht Schützen'!H18 -> 311.2 | J33: ='Übersicht Schützen'!I18 -> 309.22 | K33: 1,855.3 | L33: ='Übersicht Schützen'!L18 -> 308.5 | M33: ='Übersicht Schützen'!M18 -> 311.3 | N33: ='Übersicht Schützen'!N18 -> 315.0 | O33: ='Übersicht Schützen'!O18 -> 314.1 | P33: ='Übersicht Schützen'!P18 -> 308.3 | Q33: ='Übersicht Schützen'!Q18 -> 0.0 | R33: =IF(Formelhilfe!O25=0,0,'Übersicht Schützen'!R18) -> 311.44 | S33: 1,557.2 | T33: ='Übersicht Schützen'!U18 -> 310.23 | U33: 3,412.5 | V33: -0.7
A34: 18 | B34: ='Übersicht Schützen'!A19 -> Lindemann Marco | C34: ='Übersicht Schützen'!B19 -> Esterwegen I | D34: ='Übersicht Schützen'!C19 -> 312.9 | E34: ='Übersicht Schützen'!D19 -> 309.3 | F34: ='Übersicht Schützen'!E19 -> 306.3 | G34: ='Übersicht Schützen'!F19 -> 310.5 | H34: ='Übersicht Schützen'!G19 -> 311.5 | I34: ='Übersicht Schützen'!H19 -> 311.3 | J34: ='Übersicht Schützen'!I19 -> 310.30 | K34: 1,861.8 | L34: ='Übersicht Schützen'!L19 -> 312.1 | M34: ='Übersicht Schützen'!M19 -> 306.4 | N34: ='Übersicht Schützen'!N19 -> 306.0 | O34: ='Übersicht Schützen'!O19 -> 311.9 | P34: ='Übersicht Schützen'!P19 -> 312.2 | Q34: ='Übersicht Schützen'!Q19 -> 0.0 | R34: 309.72 | S34: 1,548.6 | T34: ='Übersicht Schützen'!U19 -> 310.04 | U34: 3,410.4 | V34: -2.1
A35: 19 | B35: ='Übersicht Schützen'!A20 -> Terborg Michael | C35: ='Übersicht Schützen'!B20 -> Sögel I | D35: ='Übersicht Schützen'!C20 -> 309.2 | E35: ='Übersicht Schützen'!D20 -> 311.4 | F35: ='Übersicht Schützen'!E20 -> 310.1 | G35: ='Übersicht Schützen'!F20 -> 311.4 | H35: ='Übersicht Schützen'!G20 -> 302.3 | I35: ='Übersicht Schützen'!H20 -> 308.7 | J35: ='Übersicht Schützen'!I20 -> 308.85 | K35: 1,853.1 | L35: ='Übersicht Schützen'!L20 -> 307.1 | M35: ='Übersicht Schützen'!M20 -> 312.0 | N35: ='Übersicht Schützen'!N20 -> 309.1 | O35: ='Übersicht Schützen'!O20 -> 308.7 | P35: ='Übersicht Schützen'!P20 -> 310.4 | Q35: ='Übersicht Schützen'!Q20 -> 0.0 | R35: =IF(Formelhilfe!O27=0,0,'Übersicht Schützen'!R20) -> 309.46 | S35: 1,547.3 | T35: ='Übersicht Schützen'!U20 -> 309.13 | U35: 3,400.4 | V35: -10.0
A36: 20 | B36: ='Übersicht Schützen'!A21 -> Schulte Matthias | C36: ='Übersicht Schützen'!B21 -> Esterwegen I | D36: ='Übersicht Schützen'!C21 -> 308.0 | E36: ='Übersicht Schützen'!D21 -> 308.9 | F36: ='Übersicht Schützen'!E21 -> 307.9 | G36: ='Übersicht Schützen'!F21 -> 306.6 | H36: ='Übersicht Schützen'!G21 -> 306.3 | I36: ='Übersicht Schützen'!H21 -> 308.0 | J36: ='Übersicht Schützen'!I21 -> 307.62 | K36: 1,845.7 | L36: ='Übersicht Schützen'!L21 -> 311.5 | M36: ='Übersicht Schützen'!M21 -> 307.0 | N36: ='Übersicht Schützen'!N21 -> 312.2 | O36: ='Übersicht Schützen'!O21 -> 313.8 | P36: ='Übersicht Schützen'!P21 -> 310.2 | Q36: ='Übersicht Schützen'!Q21 -> 0.0 | R36: =IF(Formelhilfe!O28=0,0,'Übersicht Schützen'!R21) -> 310.94 | S36: 1,554.7 | T36: ='Übersicht Schützen'!U21 -> 309.13 | U36: 3,400.4 | V36: 0.0
A37: 21 | B37: ='Übersicht Schützen'!A22 -> Albers Helmut | C37: ='Übersicht Schützen'!B22 -> Lorup IV | D37: ='Übersicht Schützen'!C22 -> 310.4 | E37: ='Übersicht Schützen'!D22 -> 309.5 | F37: ='Übersicht Schützen'!E22 -> 307.1 | G37: ='Übersicht Schützen'!F22 -> 308.5 | H37: ='Übersicht Schützen'!G22 -> 309.7 | I37: ='Übersicht Schützen'!H22 -> 310.2 | J37: ='Übersicht Schützen'!I22 -> 309.23 | K37: 1,855.4 | L37: ='Übersicht Schützen'!L22 -> 306.2 | M37: ='Übersicht Schützen'!M22 -> 306.2 | N37: ='Übersicht Schützen'!N22 -> 310.0 | O37: ='Übersicht Schützen'!O22 -> 307.2 | P37: ='Übersicht Schützen'!P22 -> 310.4 | Q37: ='Übersicht Schützen'!Q22 -> 0.0 | R37: =IF(Formelhilfe!O29=0,0,'Übersicht Schützen'!R22) -> 308.00 | S37: 1,540.0 | T37: ='Übersicht Schützen'!U22 -> 308.67 | U37: 3,395.4 | V37: -5.0
A38: 22 | B38: ='Übersicht Schützen'!A23 -> Schnieders Willi | C38: ='Übersicht Schützen'!B23 -> Neubörger I | D38: ='Übersicht Schützen'!C23 -> 311.0 | E38: ='Übersicht Schützen'!D23 -> 307.1 | F38: ='Übersicht Schützen'!E23 -> 306.6 | G38: ='Übersicht Schützen'!F23 -> 303.5 | H38: ='Übersicht Schützen'!G23 -> 300.7 | I38: ='Übersicht Schützen'!H23 -> 298.4 | J38: ='Übersicht Schützen'!I23 -> 304.55 | K38: 1,827.3 | L38: ='Übersicht Schützen'!L23 -> 299.9 | M38: ='Übersicht Schützen'!M23 -> 301.3 | N38: ='Übersicht Schützen'!N23 -> 302.8 | O38: ='Übersicht Schützen'!O23 -> 297.0 | P38: ='Übersicht Schützen'!P23 -> 296.4 | Q38: ='Übersicht Schützen'!Q23 -> 0.0 | R38: =IF(Formelhilfe!O30=0,0,'Übersicht Schützen'!R23) -> 299.48 | S38: 1,497.4 | T38: ='Übersicht Schützen'!U23 -> 302.25 | U38: 3,324.7 | V38: -70.7
A39: 23 | B39: ='Übersicht Schützen'!A24 -> Sunder Ferdi | C39: ='Übersicht Schützen'!B24 -> Sögel I | D39: ='Übersicht Schützen'!C24 -> 0.0 | E39: ='Übersicht Schützen'!D24 -> 309.1 | F39: ='Übersicht Schützen'!E24 -> 312.0 | G39: ='Übersicht Schützen'!F24 -> 315.0 | H39: ='Übersicht Schützen'!G24 -> 315.1 | I39: ='Übersicht Schützen'!H24 -> 317.2 | J39: ='Übersicht Schützen'!I24 -> 313.68 | K39: 1,568.4 | L39: ='Übersicht Schützen'!L24 -> 316.0 | M39: ='Übersicht Schützen'!M24 -> 316.2 | N39: ='Übersicht Schützen'!N24 -> 317.1 | O39: ='Übersicht Schützen'!O24 -> 311.0 | P39: ='Übersicht Schützen'!P24 -> 314.6 | Q39: ='Übersicht Schützen'!Q24 -> 0.0 | R39: =IF(Formelhilfe!O31=0,0,'Übersicht Schützen'!R24) -> 314.98 | S39: 1,574.9 | T39: ='Übersicht Schützen'!U24 -> 314.33 | U39: 3,143.3 | V39: -181.4
A40: 24 | B40: ='Übersicht Schützen'!A25 -> Middendorf Peter | C40: ='Übersicht Schützen'!B25 -> Esterwegen I | D40: ='Übersicht Schützen'!C25 -> 313.4 | E40: ='Übersicht Schützen'!D25 -> 309.7 | F40: ='Übersicht Schützen'!E25 -> 0.0 | G40: ='Übersicht Schützen'!F25 -> 312.5 | H40: ='Übersicht Schützen'!G25 -> 308.5 | I40: ='Übersicht Schützen'!H25 -> 303.8 | J40: ='Übersicht Schützen'!I25 -> 309.58 | K40: 1,547.9 | L40: ='Übersicht Schützen'!L25 -> 312.7 | M40: ='Übersicht Schützen'!M25 -> 312.6 | N40: ='Übersicht Schützen'!N25 -> 311.1 | O40: ='Übersicht Schützen'!O25 -> 311.9 | P40: ='Übersicht Schützen'!P25 -> 308.5 | Q40: ='Übersicht Schützen'!Q25 -> 0.0 | R40: 311.36 | S40: 1,556.8 | T40: ='Übersicht Schützen'!U25 -> 310.47 | U40: 3,104.7 | V40: -38.6
A41: 25 | B41: ='Übersicht Schützen'!A26 -> Großmann Martin | C41: ='Übersicht Schützen'!B26 -> Börgermoor I | D41: ='Übersicht Schützen'!C26 -> 309.0 | E41: ='Übersicht Schützen'!D26 -> 313.8 | F41: ='Übersicht Schützen'!E26 -> 312.9 | G41: ='Übersicht Schützen'!F26 -> 311.6 | H41: ='Übersicht Schützen'!G26 -> 308.2 | I41: ='Übersicht Schützen'!H26 -> 309.7 | J41: ='Übersicht Schützen'!I26 -> 310.87 | K41: 1,865.2 | L41: ='Übersicht Schützen'!L26 -> 312.6 | M41: ='Übersicht Schützen'!M26 -> 0.0 | N41: ='Übersicht Schützen'!N26 -> 0.0 | O41: ='Übersicht Schützen'!O26 -> 309.5 | P41: ='Übersicht Schützen'!P26 -> 308.7 | Q41: ='Übersicht Schützen'!Q26 -> 0.0 | R41: =IF(Formelhilfe!O33=0,0,'Übersicht Schützen'!R26) -> 310.27 | S41: 930.8 | T41: ='Übersicht Schützen'!U26 -> 310.67 | U41: 2,796.0 | V41: -308.7
A42: 26 | B42: ='Übersicht Schützen'!A27 -> Voss Helmut | C42: ='Übersicht Schützen'!B27 -> Neubörger I | D42: ='Übersicht Schützen'!C27 -> 309.9 | E42: ='Übersicht Schützen'!D27 -> 308.4 | F42: ='Übersicht Schützen'!E27 -> 307.7 | G42: ='Übersicht Schützen'!F27 -> 0.0 | H42: ='Übersicht Schützen'!G27 -> 303.2 | I42: ='Übersicht Schützen'!H27 -> 0.0 | J42: ='Übersicht Schützen'!I27 -> 307.30 | K42: 1,229.2 | L42: ='Übersicht Schützen'!L27 -> 310.2 | M42: ='Übersicht Schützen'!M27 -> 303.8 | N42: ='Übersicht Schützen'!N27 -> 0.0 | O42: ='Übersicht Schützen'!O27 -> 309.0 | P42: ='Übersicht Schützen'!P27 -> 306.5 | Q42: ='Übersicht Schützen'!Q27 -> 0.0 | R42: =IF(Formelhilfe!O34=0,0,'Übersicht Schützen'!R27) -> 307.38 | S42: 1,229.5 | T42: ='Übersicht Schützen'!U27 -> 307.34 | U42: 2,458.7 | V42: -337.3
A43: 27 | B43: ='Übersicht Schützen'!A28 -> Gerdes Willi | C43: ='Übersicht Schützen'!B28 -> Lorup IV | D43: ='Übersicht Schützen'!C28 -> 0.0 | E43: ='Übersicht Schützen'!D28 -> 0.0 | F43: ='Übersicht Schützen'!E28 -> 303.0 | G43: ='Übersicht Schützen'!F28 -> 0.0 | H43: ='Übersicht Schützen'!G28 -> 0.0 | I43: ='Übersicht Schützen'!H28 -> 0.0 | J43: ='Übersicht Schützen'!I28 -> 303.00 | K43: 303.0 | L43: ='Übersicht Schützen'!L28 -> 0.0 | M43: ='Übersicht Schützen'!M28 -> 0.0 | N43: ='Übersicht Schützen'!N28 -> 0.0 | O43: ='Übersicht Schützen'!O28 -> 0.0 | P43: ='Übersicht Schützen'!P28 -> 0.0 | Q43: ='Übersicht Schützen'!Q28 -> 0.0 | R43: 0.00 | S43: 0.0 | T43: ='Übersicht Schützen'!U28 -> 303.00 | U43: 303.0 | V43: -2,155.7
A44: 28 | B44: ='Übersicht Schützen'!A29 -> Schütze 5 | C44: ='Übersicht Schützen'!B29 -> Lahn II | D44: ='Übersicht Schützen'!C29 -> 0.0 | E44: ='Übersicht Schützen'!D29 -> 0.0 | F44: ='Übersicht Schützen'!E29 -> 0.0 | G44: ='Übersicht Schützen'!F29 -> 0.0 | H44: ='Übersicht Schützen'!G29 -> 0.0 | I44: ='Übersicht Schützen'!H29 -> 0.0 | J44: 0.00 | K44: 0.0 | L44: ='Übersicht Schützen'!L29 -> 0.0 | M44: ='Übersicht Schützen'!M29 -> 0.0 | N44: ='Übersicht Schützen'!N29 -> 0.0 | O44: ='Übersicht Schützen'!O29 -> 0.0 | P44: ='Übersicht Schützen'!P29 -> 0.0 | Q44: ='Übersicht Schützen'!Q29 -> 0.0 | R44: 0.00 | S44: 0.0 | T44: 0.00 | U44: 0.0 | V44: 0.0
A45: 29 | B45: ='Übersicht Schützen'!A30 -> Schütze 6 | C45: ='Übersicht Schützen'!B30 -> Lahn II | D45: ='Übersicht Schützen'!C30 -> 0.0 | E45: ='Übersicht Schützen'!D30 -> 0.0 | F45: ='Übersicht Schützen'!E30 -> 0.0 | G45: ='Übersicht Schützen'!F30 -> 0.0 | H45: ='Übersicht Schützen'!G30 -> 0.0 | I45: ='Übersicht Schützen'!H30 -> 0.0 | J45: 0.00 | K45: 0.0 | L45: ='Übersicht Schützen'!L30 -> 0.0 | M45: ='Übersicht Schützen'!M30 -> 0.0 | N45: ='Übersicht Schützen'!N30 -> 0.0 | O45: ='Übersicht Schützen'!O30 -> 0.0 | P45: ='Übersicht Schützen'!P30 -> 0.0 | Q45: ='Übersicht Schützen'!Q30 -> 0.0 | R45: 0.00 | S45: 0.0 | T45: 0.00 | U45: 0.0 | V45: 0.0
A46: 30 | B46: ='Übersicht Schützen'!A31 -> Schütze 12 | C46: ='Übersicht Schützen'!B31 -> Lorup IV | D46: ='Übersicht Schützen'!C31 -> 0.0 | E46: ='Übersicht Schützen'!D31 -> 0.0 | F46: ='Übersicht Schützen'!E31 -> 0.0 | G46: ='Übersicht Schützen'!F31 -> 0.0 | H46: ='Übersicht Schützen'!G31 -> 0.0 | I46: ='Übersicht Schützen'!H31 -> 0.0 | J46: 0.00 | K46: 0.0 | L46: ='Übersicht Schützen'!L31 -> 0.0 | M46: ='Übersicht Schützen'!M31 -> 0.0 | N46: ='Übersicht Schützen'!N31 -> 0.0 | O46: ='Übersicht Schützen'!O31 -> 0.0 | P46: ='Übersicht Schützen'!P31 -> 0.0 | Q46: ='Übersicht Schützen'!Q31 -> 0.0 | R46: =IF(Formelhilfe!O38=0,0,'Übersicht Schützen'!R31) -> 0.00 | S46: 0.0 | T46: 0.00 | U46: 0.0 | V46: 0.0
A47: 31 | B47: ='Übersicht Schützen'!A32 -> Schütze 18 | C47: ='Übersicht Schützen'!B32 -> Sögel I | D47: ='Übersicht Schützen'!C32 -> 0.0 | E47: ='Übersicht Schützen'!D32 -> 0.0 | F47: ='Übersicht Schützen'!E32 -> 0.0 | G47: ='Übersicht Schützen'!F32 -> 0.0 | H47: ='Übersicht Schützen'!G32 -> 0.0 | I47: ='Übersicht Schützen'!H32 -> 0.0 | J47: 0.00 | K47: 0.0 | L47: ='Übersicht Schützen'!L32 -> 0.0 | M47: ='Übersicht Schützen'!M32 -> 0.0 | N47: ='Übersicht Schützen'!N32 -> 0.0 | O47: ='Übersicht Schützen'!O32 -> 0.0 | P47: ='Übersicht Schützen'!P32 -> 0.0 | Q47: ='Übersicht Schützen'!Q32 -> 0.0 | R47: 0.00 | S47: 0.0 | T47: 0.00 | U47: 0.0 | V47: =(U46-U47)*-1 -> 0.0
A48: 32 | B48: ='Übersicht Schützen'!A33 -> Schütze 24 | C48: ='Übersicht Schützen'!B33 -> Neubörger I | D48: ='Übersicht Schützen'!C33 -> 0.0 | E48: ='Übersicht Schützen'!D33 -> 0.0 | F48: ='Übersicht Schützen'!E33 -> 0.0 | G48: ='Übersicht Schützen'!F33 -> 0.0 | H48: ='Übersicht Schützen'!G33 -> 0.0 | I48: ='Übersicht Schützen'!H33 -> 0.0 | J48: 0.00 | K48: 0.0 | L48: ='Übersicht Schützen'!L33 -> 0.0 | M48: ='Übersicht Schützen'!M33 -> 0.0 | N48: ='Übersicht Schützen'!N33 -> 0.0 | O48: ='Übersicht Schützen'!O33 -> 0.0 | P48: ='Übersicht Schützen'!P33 -> 0.0 | Q48: ='Übersicht Schützen'!Q33 -> 0.0 | R48: 0.00 | S48: 0.0 | T48: 0.00 | U48: 0.0 | V48: 0.0
A49: 33 | B49: ='Übersicht Schützen'!A34 -> Schütze 29 | C49: ='Übersicht Schützen'!B34 -> Börgermoor I | D49: ='Übersicht Schützen'!C34 -> 0.0 | E49: ='Übersicht Schützen'!D34 -> 0.0 | F49: ='Übersicht Schützen'!E34 -> 0.0 | G49: ='Übersicht Schützen'!F34 -> 0.0 | H49: ='Übersicht Schützen'!G34 -> 0.0 | I49: ='Übersicht Schützen'!H34 -> 0.0 | J49: 0.00 | K49: 0.0 | L49: ='Übersicht Schützen'!L34 -> 0.0 | M49: ='Übersicht Schützen'!M34 -> 0.0 | N49: ='Übersicht Schützen'!N34 -> 0.0 | O49: ='Übersicht Schützen'!O34 -> 0.0 | P49: ='Übersicht Schützen'!P34 -> 0.0 | Q49: ='Übersicht Schützen'!Q34 -> 0.0 | R49: 0.00 | S49: 0.0 | T49: 0.00 | U49: 0.0 | V49: 0.0
A50: 34 | B50: ='Übersicht Schützen'!A35 -> Schütze 30 | C50: ='Übersicht Schützen'!B35 -> Börgermoor I | D50: ='Übersicht Schützen'!C35 -> 0.0 | E50: ='Übersicht Schützen'!D35 -> 0.0 | F50: ='Übersicht Schützen'!E35 -> 0.0 | G50: ='Übersicht Schützen'!F35 -> 0.0 | H50: ='Übersicht Schützen'!G35 -> 0.0 | I50: ='Übersicht Schützen'!H35 -> 0.0 | J50: 0.00 | K50: 0.0 | L50: ='Übersicht Schützen'!L35 -> 0.0 | M50: ='Übersicht Schützen'!M35 -> 0.0 | N50: ='Übersicht Schützen'!N35 -> 0.0 | O50: ='Übersicht Schützen'!O35 -> 0.0 | P50: ='Übersicht Schützen'!P35 -> 0.0 | Q50: ='Übersicht Schützen'!Q35 -> 0.0 | R50: 0.00 | S50: 0.0 | T50: 0.00 | U50: 0.0 | V50: 0.0
A51: 35 | B51: ='Übersicht Schützen'!A36 -> Schütze 35 | C51: ='Übersicht Schützen'!B36 -> Esterwegen I | D51: ='Übersicht Schützen'!C36 -> 0.0 | E51: ='Übersicht Schützen'!D36 -> 0.0 | F51: ='Übersicht Schützen'!E36 -> 0.0 | G51: ='Übersicht Schützen'!F36 -> 0.0 | H51: ='Übersicht Schützen'!G36 -> 0.0 | I51: ='Übersicht Schützen'!H36 -> 0.0 | J51: 0.00 | K51: 0.0 | L51: ='Übersicht Schützen'!L36 -> 0.0 | M51: ='Übersicht Schützen'!M36 -> 0.0 | N51: ='Übersicht Schützen'!N36 -> 0.0 | O51: ='Übersicht Schützen'!O36 -> 0.0 | P51: ='Übersicht Schützen'!P36 -> 0.0 | Q51: ='Übersicht Schützen'!Q36 -> 0.0 | R51: =IF(Formelhilfe!O43=0,0,'Übersicht Schützen'!R36) -> 0.00 | S51: 0.0 | T51: 0.00 | U51: 0.0 | V51: 0.0
A52: 36 | B52: ='Übersicht Schützen'!A37 -> Schütze 36 | C52: ='Übersicht Schützen'!B37 -> Esterwegen I | D52: ='Übersicht Schützen'!C37 -> 0.0 | E52: ='Übersicht Schützen'!D37 -> 0.0 | F52: ='Übersicht Schützen'!E37 -> 0.0 | G52: ='Übersicht Schützen'!F37 -> 0.0 | H52: ='Übersicht Schützen'!G37 -> 0.0 | I52: ='Übersicht Schützen'!H37 -> 0.0 | J52: 0.00 | K52: 0.0 | L52: ='Übersicht Schützen'!L37 -> 0.0 | M52: ='Übersicht Schützen'!M37 -> 0.0 | N52: ='Übersicht Schützen'!N37 -> 0.0 | O52: ='Übersicht Schützen'!O37 -> 0.0 | P52: ='Übersicht Schützen'!P37 -> 0.0 | Q52: ='Übersicht Schützen'!Q37 -> 0.0 | R52: =IF(Formelhilfe!O44=0,0,'Übersicht Schützen'!R37) -> 0.00 | S52: 0.0 | T52: 0.00 | U52: 0.0 | V52: 0.0
C54: Schnitt: | D54: =SUM(D17:D52)/Formelhilfe!B45 -> 311.4 | E54: =SUM(E17:E52)/Formelhilfe!C45 -> 311.3 | F54: =SUM(F17:F52)/Formelhilfe!D45 -> 311.2 | G54: =SUM(G17:G52)/Formelhilfe!E45 -> 311.3 | H54: =SUM(H17:H52)/Formelhilfe!F45 -> 311.3 | I54: =SUM(I17:I52)/Formelhilfe!G45 -> 311.2 | J54: =AVERAGE(J17:J53) -> 233.23 | K54: =AVERAGE(K17:K52) -> 1322.89 | L54: =SUM(L17:L52)/Formelhilfe!I45 -> 312.2 | M54: =SUM(M17:M52)/Formelhilfe!J45 -> 311.0 | N54: =SUM(N17:N52)/Formelhilfe!K45 -> 312.3 | O54: =SUM(O17:O52)/Formelhilfe!L45 -> 311.8 | P54: =SUM(P17:P52)/Formelhilfe!M45 -> 311.6 | Q54: =SUM(Q17:Q52)/Formelhilfe!N45 ->  | R54: =AVERAGE(R17:R52) -> 225.13 | S54: =AVERAGE(S17:S52) -> 1099.85 | T54: =AVERAGE(T17:T52) -> 233.38 | U54: =(K54+S54) -> 2,422.74

Sheet Wettkampf 1
B1: Verein / Gruppe | D1: Ergebnisse | X1: Austragungsort: | Y1: =Übersicht!D4 -> Lahn
A2: 1 | B2: Lahn II | D2: =G46 -> 939.5 | E2: =IF(H46>4,"Es sind zu viele Schützen in Wertung!"," ") ->  | X2: Wettkampftag: | Y2: =Übersicht!D3 -> 15.09.
A3: 2 | B3: Lorup IV | D3: =I46 -> 935.2 | E3: =IF(J46>4,"Es sind zu viele Schützen in Wertung!"," ") -> 
A4: 3 | B4: Sögel I | D4: =K46 -> 937.5 | E4: =IF(L46>4,"Es sind zu viele Schützen in Wertung!"," ") ->  | Z4: Ansprechpartner für Rückfragen:
A5: 4 | B5: Neubörger I | D5: =M46 -> 942.3 | E5: =IF(N46>4,"Es sind zu viele Schützen in Wertung!"," ") ->  | X5: Name: | Y5: Udo Thyen
A6: 5 | B6: Börgermoor I | D6: =O46 -> 931.7 | E6: =IF(P46>4,"Es sind zu viele Schützen in Wertung!"," ") ->  | X6: Tel: | Y6: 05951 3834
A7: 6 | B7: Esterwegen I | D7: =Q46 -> 934.4 | E7: =IF(R46>4,"Es sind zu viele Schützen in Wertung!"," ") ->  | X7: Standaufsicht: | Y7: Markus Thien
B9: Einzelergebnisse: | C9: Verein/Gruppe (per Dropdown-Feld einzutragen) | D9: Ergebnisse | E9: AW? Dann x eintippen | G9: Verein 1 | I9: Verein 2 | K9: Verein 3 | M9: Verein 4 | O9: Verein 5 | Q9: Verein 6 | U9: Geburtsdatum | W9: Proberechnung bei Streifen:
A10: 1 | B10: Thyen Udo | C10: =B2 -> Lahn II | D10: 310.9 | F10: =IF(E10="x","0",D10) -> 310.9 | G10: =IF(C10=$B$2,F10,0) -> 310.9 | H10: =(IF(AND($E10="",$C10=$B$2),1,0)) -> 1 | I10: =IF($C10=$B$3,F10,0) -> 0 | J10: =(IF(AND($E10="",$C10=$B$3),1,0)) -> 0 | K10: =IF($C10=$B$4,F10,0) -> 0 | L10: =(IF(AND($E10="",$C10=$B$4),1,0)) -> 0 | M10: =IF($C10=$B$5,F10,0) -> 0 | N10: =(IF(AND($E10="",$C10=$B$5),1,0)) -> 0 | O10: =IF($C10=$B$6,F10,0) -> 0 | P10: =(IF(AND($E10="",$C10=$B$6),1,0)) -> 0 | Q10: =IF($C10=$B$7,F10,0) -> 0 | R10: =(IF(AND($E10="",$C10=$B$7),1,0)) -> 0 | W10: 104.3 | X10: 103.4 | Y10: 103.2 | Z10: =W10+X10+Y10 -> 310.9 | AA10: =IF(Z10=D10,1,0) -> 1 | AB10: =IF(Z10=0,0,1) -> 1 | AC10: =IF(AA10+AB10=2,"Korrekt","") -> Korrekt
A11: 2 | B11: Banedt Olaf | C11: =B2 -> Lahn II | D11: 310.1 | F11: =IF(E11="x","0",D11) -> 310.1 | G11: =IF(C11=$B$2,F11,0) -> 310.1 | H11: =(IF(AND($E11="",$C11=$B$2),1,0)) -> 1 | I11: =IF($C11=$B$3,F11,0) -> 0 | J11: =(IF(AND($E11="",$C11=$B$3),1,0)) -> 0 | K11: =IF($C11=$B$4,F11,0) -> 0 | L11: =(IF(AND($E11="",$C11=$B$4),1,0)) -> 0 | M11: =IF($C11=$B$5,F11,0) -> 0 | N11: =(IF(AND($E11="",$C11=$B$5),1,0)) -> 0 | O11: =IF($C11=$B$6,F11,0) -> 0 | P11: =(IF(AND($E11="",$C11=$B$6),1,0)) -> 0 | Q11: =IF($C11=$B$7,F11,0) -> 0 | R11: =(IF(AND($E11="",$C11=$B$7),1,0)) -> 0 | W11: 102.8 | X11: 104.4 | Y11: 102.9 | Z11: =W11+X11+Y11 -> 310.1 | AA11: =IF(Z11=D11,1,0) -> 1 | AB11: =IF(Z11=0,0,1) -> 1 | AC11: =IF(AA11+AB11=2,"Korrekt","") -> Korrekt
A12: 3 | B12: Thien Markus | C12: =B2 -> Lahn II | D12: 312.6 | F12: 312.6 | G12: 312.6 | H12: 1 | I12: 0 | J12: 0 | K12: 0 | L12: 0 | M12: 0 | N12: 0 | O12: 0 | P12: 0 | Q12: 0 | R12: 0 | W12: 104.0 | X12: 103.3 | Y12: 105.3 | Z12: 312.6 | AA12: 1 | AB12: 1 | AC12: Korrekt
A13: 4 | B13: Robben-Schlagge Ralf | C13: =B2 -> Lahn II | D13: 316.0 | F13: 316 | G13: 316 | H13: 1 | I13: 0 | J13: 0 | K13: 0 | L13: 0 | M13: 0 | N13: 0 | O13: 0 | P13: 0 | Q13: 0 | R13: 0 | W13: 105.4 | X13: 105.6 | Y13: 105.0 | Z13: 316.0 | AA13: 1 | AB13: 1 | AC13: Korrekt
A14: 5 | B14: Schütze 5 | C14: =B2 -> Lahn II | E14: x | F14: 0 | G14: 0 | H14: 0 | I14: 0 | J14: 0 | K14: 0 | L14: 0 | M14: 0 | N14: 0 | O14: 0 | P14: 0 | Q14: 0 | R14: 0 | Z14: 0.0 | AA14: 1 | AB14: 0
A15: 6 | B15: Schütze 6 | C15: =B2 -> Lahn II | E15: x | F15: 0 | G15: 0 | H15: 0 | I15: 0 | J15: 0 | K15: 0 | L15: 0 | M15: 0 | N15: 0 | O15: 0 | P15: 0 | Q15: 0 | R15: 0 | Z15: 0.0 | AA15: 1 | AB15: 0
A16: 7 | B16: Pölking Thomas | C16: =B3 -> Lorup IV | D16: 314.2 | F16: 314.2 | G16: 0 | H16: 0 | I16: 314.2 | J16: 1 | K16: 0 | L16: 0 | M16: 0 | N16: 0 | O16: 0 | P16: 0 | Q16: 0 | R16: 0 | W16: 105.8 | X16: 104.3 | Y16: 104.1 | Z16: 314.2 | AA16: 1 | AB16: 1 | AC16: Korrekt
A17: 8 | B17: Klawitter Gerd | C17: =B3 -> Lorup IV | D17: 309.4 | F17: 309.4 | G17: 0 | H17: 0 | I17: 309.4 | J17: 1 | K17: 0 | L17: 0 | M17: 0 | N17: 0 | O17: 0 | P17: 0 | Q17: 0 | R17: 0 | W17: 102.8 | X17: 101.8 | Y17: 104.8 | Z17: 309.4 | AA17: 1 | AB17: 1 | AC17: Korrekt
A18: 9 | B18: Albers Helmut | C18: =B3 -> Lorup IV | D18: 310.4 | F18: 310.4 | G18: 0 | H18: 0 | I18: 310.4 | J18: 1 | K18: 0 | L18: 0 | M18: 0 | N18: 0 | O18: 0 | P18: 0 | Q18: 0 | R18: 0 | W18: 104.7 | X18: 103.5 | Y18: 102.2 | Z18: 310.4 | AA18: 1 | AB18: 1 | AC18: Korrekt
A19: 10 | B19: Olliges Jürgen | C19: =B3 -> Lorup IV | D19: 310.6 | F19: 310.6 | G19: 0 | H19: 0 | I19: 310.6 | J19: 1 | K19: 0 | L19: 0 | M19: 0 | N19: 0 | O19: 0 | P19: 0 | Q19: 0 | R19: 0 | W19: 103.5 | X19: 102.6 | Y19: 104.5 | Z19: 310.6 | AA19: 1 | AB19: 1 | AC19: Korrekt
A20: 11 | B20: Gerdes Willi | C20: =B3 -> Lorup IV | E20: x | F20: 0 | G20: 0 | H20: 0 | I20: 0 | J20: 0 | K20: 0 | L20: 0 | M20: 0 | N20: 0 | O20: 0 | P20: 0 | Q20: 0 | R20: 0 | Z20: 0.0 | AA20: 1 | AB20: 0
A21: 12 | B21: Schütze 12 | C21: =B3 -> Lorup IV | E21: x | F21: 0 | G21: 0 | H21: 0 | I21: 0 | J21: 0 | K21: 0 | L21: 0 | M21: 0 | N21: 0 | O21: 0 | P21: 0 | Q21: 0 | R21: 0 | Z21: 0.0 | AA21: 1 | AB21: 0
A22: 13 | B22: Terborg Michael | C22: =B4 -> Sögel I | D22: 309.2 | F22: 309.2 | G22: 0 | H22: 0 | I22: 0 | J22: 0 | K22: 309.2 | L22: 1 | M22: 0 | N22: 0 | O22: 0 | P22: 0 | Q22: 0 | R22: 0 | W22: 102.4 | X22: 103.6 | Y22: 103.2 | Z22: 309.2 | AA22: 1 | AB22: 1 | AC22: Korrekt
A23: 14 | B23: Wester Markus | C23: =B4 -> Sögel I | D23: 315.7 | F23: 315.7 | G23: 0 | H23: 0 | I23: 0 | J23: 0 | K23: 315.7 | L23: 1 | M23: 0 | N23: 0 | O23: 0 | P23: 0 | Q23: 0 | R23: 0 | W23: 104.5 | X23: 106.2 | Y23: 105.0 | Z23: 315.7 | AA23: 1 | AB23: 1 | AC23: Korrekt
A24: 15 | B24: Dödtmann Ludger | C24: =B4 -> Sögel I | D24: 308.8 | F24: 308.8 | G24: 0 | H24: 0 | I24: 0 | J24: 0 | K24: 308.8 | L24: 1 | M24: 0 | N24: 0 | O24: 0 | P24: 0 | Q24: 0 | R24: 0 | W24: 102.3 | X24: 104.0 | Y24: 102.5 | Z24: 308.8 | AA24: 1 | AB24: 1 | AC24: Korrekt
A25: 16 | B25: Tharner Karl-Heinz | C25: =B4 -> Sögel I | D25: 312.6 | F25: 312.6 | G25: 0 | H25: 0 | I25: 0 | J25: 0 | K25: 312.6 | L25: 1 | M25: 0 | N25: 0 | O25: 0 | P25: 0 | Q25: 0 | R25: 0 | W25: 103.8 | X25: 106.1 | Y25: 102.7 | Z25: 312.6 | AA25: 1 | AB25: 1 | AC25: Korrekt
A26: 17 | B26: Sunder Ferdi | C26: =B4 -> Sögel I | E26: x | F26: 0 | G26: 0 | H26: 0 | I26: 0 | J26: 0 | K26: 0 | L26: 0 | M26: 0 | N26: 0 | O26: 0 | P26: 0 | Q26: 0 | R26: 0 | Z26: 0.0 | AA26: 1 | AB26: 0
A27: 18 | B27: Schütze 18 | C27: =B4 -> Sögel I | E27: x | F27: 0 | G27: 0 | H27: 0 | I27: 0 | J27: 0 | K27: 0 | L27: 0 | M27: 0 | N27: 0 | O27: 0 | P27: 0 | Q27: 0 | R27: 0 | Z27: 0.0 | AA27: 1 | AB27: 0
A28: 19 | B28: Runde Norbert | C28: =B5 -> Neubörger I | D28: 316.3 | F28: 316.3 | G28: 0 | H28: 0 | I28: 0 | J28: 0 | K28: 0 | L28: 0 | M28: 316.3 | N28: 1 | O28: 0 | P28: 0 | Q28: 0 | R28: 0 | W28: 104.7 | X28: 104.4 | Y28: 107.2 | Z28: 316.3 | AA28: 1 | AB28: 1 | AC28: Korrekt
A29: 20 | B29: Hunfeld Anton | C29: =B5 -> Neubörger I | D29: 309.6 | F29: 309.6 | G29: 0 | H29: 0 | I29: 0 | J29: 0 | K29: 0 | L29: 0 | M29: 309.6 | N29: 1 | O29: 0 | P29: 0 | Q29: 0 | R29: 0 | W29: 103.3 | X29: 103.1 | Y29: 103.2 | Z29: 309.6 | AA29: 1 | AB29: 1 | AC29: Korrekt
A30: 21 | B30: Schnieders Willi | C30: =B5 -> Neubörger I | D30: 311.0 | F30: 311 | G30: 0 | H30: 0 | I30: 0 | J30: 0 | K30: 0 | L30: 0 | M30: 311 | N30: 1 | O30: 0 | P30: 0 | Q30: 0 | R30: 0 | W30: 104.8 | X30: 103.9 | Y30: 102.3 | Z30: 311.0 | AA30: 1 | AB30: 1 | AC30: Korrekt
A31: 22 | B31: Antons Klaus | C31: =B5 -> Neubörger I | D31: 315.0 | F31: 315 | G31: 0 | H31: 0 | I31: 0 | J31: 0 | K31: 0 | L31: 0 | M31: 315 | N31: 1 | O31: 0 | P31: 0 | Q31: 0 | R31: 0 | W31: 105.3 | X31: 104.2 | Y31: 105.5 | Z31: 315.0 | AA31: 1 | AB31: 1 | AC31: Korrekt
A32: 23 | B32: Voss Helmut | C32: =B5 -> Neubörger I | D32: 309.9 | E32: x | F32: 0 | G32: 0 | H32: 0 | I32: 0 | J32: 0 | K32: 0 | L32: 0 | M32: 0 | N32: 0 | O32: 0 | P32: 0 | Q32: 0 | R32: 0 | W32: 102.8 | X32: 102.8 | Y32: 104.3 | Z32: 309.9 | AA32: 1 | AB32: 1 | AC32: Korrekt
A33: 24 | B33: Schütze 24 | C33: =B5 -> Neubörger I | E33: x | F33: 0 | G33: 0 | H33: 0 | I33: 0 | J33: 0 | K33: 0 | L33: 0 | M33: 0 | N33: 0 | O33: 0 | P33: 0 | Q33: 0 | R33: 0 | Z33: 0.0 | AA33: 1 | AB33: 0
A34: 25 | B34: Großmann Martin | C34: =B6 -> Börgermoor I | D34: 309.0 | F34: 309 | G34: 0 | H34: 0 | I34: 0 | J34: 0 | K34: 0 | L34: 0 | M34: 0 | N34: 0 | O34: 309 | P34: 1 | Q34: 0 | R34: 0 | W34: 102.0 | X34: 104.8 | Y34: 102.2 | Z34: 309.0 | AA34: 1 | AB34: 1 | AC34: Korrekt
A35: 26 | B35: Segbers Bernard | C35: =B6 -> Börgermoor I | D35: 307.9 | F35: 307.9 | G35: 0 | H35: 0 | I35: 0 | J35: 0 | K35: 0 | L35: 0 | M35: 0 | N35: 0 | O35: 307.9 | P35: 1 | Q35: 0 | R35: 0 | W35: 102.4 | X35: 102.3 | Y35: 103.2 | Z35: 307.9 | AA35: 1 | AB35: 1 | AC35: Korrekt
A36: 27 | B36: Dobelmann Werner | C36: =B6 -> Börgermoor I | D36: 311.1 | F36: 311.1 | G36: 0 | H36: 0 | I36: 0 | J36: 0 | K36: 0 | L36: 0 | M36: 0 | N36: 0 | O36: 311.1 | P36: 1 | Q36: 0 | R36: 0 | W36: 103.2 | X36: 104.0 | Y36: 103.9 | Z36: 311.1 | AA36: 1 | AB36: 1 | AC36: Korrekt
A37: 28 | B37: Kohnen Stefan | C37: =B6 -> Börgermoor I | D37: 311.6 | F37: 311.6 | G37: 0 | H37: 0 | I37: 0 | J37: 0 | K37: 0 | L37: 0 | M37: 0 | N37: 0 | O37: 311.6 | P37: 1 | Q37: 0 | R37: 0 | W37: 103.5 | X37: 104.5 | Y37: 103.6 | Z37: 311.6 | AA37: 1 | AB37: 1 | AC37: Korrekt
A38: 29 | B38: Schütze 29 | C38: =B6 -> Börgermoor I | E38: x | F38: 0 | G38: 0 | H38: 0 | I38: 0 | J38: 0 | K38: 0 | L38: 0 | M38: 0 | N38: 0 | O38: 0 | P38: 0 | Q38: 0 | R38: 0 | Z38: 0.0 | AA38: 1 | AB38: 0
A39: 30 | B39: Schütze 30 | C39: =B6 -> Börgermoor I | E39: x | F39: 0 | G39: 0 | H39: 0 | I39: 0 | J39: 0 | K39: 0 | L39: 0 | M39: 0 | N39: 0 | O39: 0 | P39: 0 | Q39: 0 | R39: 0 | Z39: 0.0 | AA39: 1 | AB39: 0
A40: 31 | B40: Schulte Matthias | C40: =B7 -> Esterwegen I | D40: 308.0 | F40: 308 | G40: 0 | H40: 0 | I40: 0 | J40: 0 | K40: 0 | L40: 0 | M40: 0 | N40: 0 | O40: 0 | P40: 0 | Q40: 308 | R40: 1 | W40: 102.9 | X40: 101.6 | Y40: 103.5 | Z40: =W40+X40+Y40 -> 308.0 | AA40: =IF(Z40=D40,1,0) -> 1 | AB40: =IF(Z40=0,0,1) -> 1 | AC40: =IF(AA40+AB40=2,"Korrekt","") -> Korrekt
A41: 32 | B41: Middendorf Peter | C41: =B7 -> Esterwegen I | D41: 313.4 | F41: 313.4 | G41: 0 | H41: 0 | I41: 0 | J41: 0 | K41: 0 | L41: 0 | M41: 0 | N41: 0 | O41: 0 | P41: 0 | Q41: 313.4 | R41: 1 | W41: 105.9 | X41: 102.6 | Y41: 104.9 | Z41: 313.4 | AA41: 1 | AB41: 1 | AC41: Korrekt
A42: 33 | B42: Thomes Bernhard | C42: =B7 -> Esterwegen I | D42: 308.1 | F42: 308.1 | G42: 0 | H42: 0 | I42: 0 | J42: 0 | K42: 0 | L42: 0 | M42: 0 | N42: 0 | O42: 0 | P42: 0 | Q42: 308.1 | R42: 1 | W42: 103.4 | X42: 103.0 | Y42: 101.7 | Z42: 308.1 | AA42: 1 | AB42: 1 | AC42: Korrekt
A43: 34 | B43: Lindemann Marco | C43: =B7 -> Esterwegen I | D43: 312.9 | F43: 312.9 | G43: 0 | H43: 0 | I43: 0 | J43: 0 | K43: 0 | L43: 0 | M43: 0 | N43: 0 | O43: 0 | P43: 0 | Q43: 312.9 | R43: 1 | W43: 104.6 | X43: 104.6 | Y43: 103.7 | Z43: 312.9 | AA43: 1 | AB43: 1 | AC43: Korrekt
A44: 35 | B44: Schütze 35 | C44: =B7 -> Esterwegen I | E44: x | F44: 0 | G44: 0 | H44: 0 | I44: 0 | J44: 0 | K44: 0 | L44: 0 | M44: 0 | N44: 0 | O44: 0 | P44: 0 | Q44: 0 | R44: 0 | Z44: 0.0 | AA44: 1 | AB44: 0
A45: 36 | B45: Schütze 36 | C45: =B7 -> Esterwegen I | E45: x | F45: 0 | G45: 0 | H45: 0 | I45: 0 | J45: 0 | K45: 0 | L45: 0 | M45: 0 | N45: 0 | O45: 0 | P45: 0 | Q45: 0 | R45: 0 | Z45: 0.0 | AA45: 1 | AB45: 0
G46: =LARGE(G10:G45,1)+LARGE(G10:G45,2)+LARGE(G10:G45,3) -> 939.5 | H46: =SUM(H10:H45) -> 4 | I46: =LARGE(I10:I45,1)+LARGE(I10:I45,2)+LARGE(I10:I45,3) -> 935.2 | J46: =SUM(J10:J45) -> 4 | K46: =LARGE(K10:K45,1)+LARGE(K10:K45,2)+LARGE(K10:K45,3) -> 937.5 | L46: =SUM(L10:L45) -> 4 | M46: =LARGE(M10:M45,1)+LARGE(M10:M45,2)+LARGE(M10:M45,3) -> 942.3 | N46: =SUM(N10:N45) -> 4 | O46: =LARGE(O10:O45,1)+LARGE(O10:O45,2)+LARGE(O10:O45,3) -> 931.7 | P46: =SUM(P10:P45) -> 4 | Q46: =LARGE(Q10:Q45,1)+LARGE(Q10:Q45,2)+LARGE(Q10:Q45,3) -> 934.4 | R46: =SUM(R10:S45) -> 4
C47: per Email an: sk-huemmling@gmx.de

Sheet 2
B1: Verein / Gruppe | D1: Ergebnisse | V1: Austragungsort: | W1: =Übersicht!E4 -> Lorup
A2: 1 | B2: ='Wettkampf 1'!B2 -> Lahn II | D2: =G46 -> 942.2 | E2: =IF(H46>4,"Es sind zu viele Schützen in Wertung!"," ") ->  | V2: Wettkampftag: | W2: =Übersicht!E3 -> 06.10.
A3: 2 | B3: ='Wettkampf 1'!B3 -> Lorup IV | D3: =I46 -> 931.1 | E3: =IF(J46>4,"Es sind zu viele Schützen in Wertung!"," ") -> 
A4: 3 | B4: ='Wettkampf 1'!B4 -> Sögel I | D4: =K46 -> 941.2 | E4: =IF(L46>4,"Es sind zu viele Schützen in Wertung!"," ") ->  | X4: Ansprechpartner für Rückfragen:
A5: 4 | B5: ='Wettkampf 1'!B5 -> Neubörger I | D5: =M46 -> 931.1 | E5: =IF(N46>4,"Es sind zu viele Schützen in Wertung!"," ") ->  | V5: Name:
A6: 5 | B6: ='Wettkampf 1'!B6 -> Börgermoor I | D6: =O46 -> 944.5 | E6: =IF(P46>4,"Es sind zu viele Schützen in Wertung!"," ") ->  | V6: Tel:
A7: 6 | B7: ='Wettkampf 1'!B7 -> Esterwegen I | D7: =Q46 -> 933.4 | E7: =IF(R46>4,"Es sind zu viele Schützen in Wertung!"," ") ->  | V7: Standaufsicht: | W7: Olliges Jürgen
B9: Einzelergebnisse: | C9: Verein / Gruppe | D9: Ergebnisse (mindestens 0 eintragen) | E9: AW? Dann x eintippen | G9: Verein 1 | I9: Verein 2 | K9: Verein 3 | M9: Verein 4 | O9: Verein 5 | Q9: Verein 6 | U9: Proberechnung bei Streifen:
A10: 1 | B10: ='Wettkampf 1'!B10 -> Thyen Udo | C10: ='Wettkampf 1'!C10 -> Lahn II | D10: 314.0 | F10: =IF(E10="x","0",D10) -> 314.0 | G10: =IF(C10=$B$2,F10,0) -> 314 | H10: =(IF(AND($E10="",$C10=$B$2),1,0)) -> 1 | I10: =IF($C10=$B$3,F10,0) -> 0 | J10: =(IF(AND($E10="",$C10=$B$3),1,0)) -> 0 | K10: =IF($C10=$B$4,F10,0) -> 0 | L10: =(IF(AND($E10="",$C10=$B$4),1,0)) -> 0 | M10: =IF($C10=$B$5,F10,0) -> 0 | N10: =(IF(AND($E10="",$C10=$B$5),1,0)) -> 0 | O10: =IF($C10=$B$6,F10,0) -> 0 | P10: =(IF(AND($E10="",$C10=$B$6),1,0)) -> 0 | Q10: =IF($C10=$B$7,F10,0) -> 0 | R10: =(IF(AND($E10="",$C10=$B$7),1,0)) -> 0 | U10: 104.4 | V10: 105.7 | W10: 103.9 | X10: =U10+V10+W10 -> 314.0 | Y10: =IF(X10=D10,1,0) -> 1 | Z10: =IF(X10=0,0,1) -> 1 | AA10: =IF(Y10+Z10=2,"Korrekt","") -> Korrekt
A11: 2 | B11: ='Wettkampf 1'!B11 -> Banedt Olaf | C11: ='Wettkampf 1'!C11 -> Lahn II | D11: 314.1 | F11: =IF(E11="x","0",D11) -> 314.1 | G11: =IF(C11=$B$2,F11,0) -> 314.1 | H11: =(IF(AND($E11="",$C11=$B$2),1,0)) -> 1 | I11: =IF($C11=$B$3,F11,0) -> 0 | J11: =(IF(AND($E11="",$C11=$B$3),1,0)) -> 0 | K11: =IF($C11=$B$4,F11,0) -> 0 | L11: =(IF(AND($E11="",$C11=$B$4),1,0)) -> 0 | M11: =IF($C11=$B$5,F11,0) -> 0 | N11: =(IF(AND($E11="",$C11=$B$5),1,0)) -> 0 | O11: =IF($C11=$B$6,F11,0) -> 0 | P11: =(IF(AND($E11="",$C11=$B$6),1,0)) -> 0 | Q11: =IF($C11=$B$7,F11,0) -> 0 | R11: =(IF(AND($E11="",$C11=$B$7),1,0)) -> 0 | U11: 106.1 | V11: 104.5 | W11: 103.5 | X11: =U11+V11+W11 -> 314.1 | Y11: =IF(X11=D11,1,0) -> 1 | Z11: =IF(X11=0,0,1) -> 1 | AA11: =IF(Y11+Z11=2,"Korrekt","") -> Korrekt
A12: 3 | B12: ='Wettkampf 1'!B12 -> Thien Markus | C12: ='Wettkampf 1'!C12 -> Lahn II | D12: 313.0 | F12: 313.0 | G12: 313 | H12: 1 | I12: 0 | J12: 0 | K12: 0 | L12: 0 | M12: 0 | N12: 0 | O12: 0 | P12: 0 | Q12: 0 | R12: 0 | U12: 103.7 | V12: 104.4 | W12: 104.9 | X12: 313.0 | Y12: 1 | Z12: 1 | AA12: Korrekt
A13: 4 | B13: ='Wettkampf 1'!B13 -> Robben-Schlagge Ralf | C13: ='Wettkampf 1'!C13 -> Lahn II | D13: 314.1 | F13: 314.1 | G13: 314.1 | H13: 1 | I13: 0 | J13: 0 | K13: 0 | L13: 0 | M13: 0 | N13: 0 | O13: 0 | P13: 0 | Q13: 0 | R13: 0 | U13: 105.5 | V13: 105.4 | W13: 103.2 | X13: 314.1 | Y13: 1 | Z13: 1 | AA13: Korrekt
A14: 5 | B14: ='Wettkampf 1'!B14 -> Schütze 5 | C14: ='Wettkampf 1'!C14 -> Lahn II | E14: x | F14: 0 | G14: 0 | H14: 0 | I14: 0 | J14: 0 | K14: 0 | L14: 0 | M14: 0 | N14: 0 | O14: 0 | P14: 0 | Q14: 0 | R14: 0 | X14: 0.0 | Y14: 1 | Z14: 0
A15: 6 | B15: ='Wettkampf 1'!B15 -> Schütze 6 | C15: ='Wettkampf 1'!C15 -> Lahn II | E15: x | F15: 0 | G15: 0 | H15: 0 | I15: 0 | J15: 0 | K15: 0 | L15: 0 | M15: 0 | N15: 0 | O15: 0 | P15: 0 | Q15: 0 | R15: 0 | X15: 0.0 | Y15: 1 | Z15: 0
A16: 7 | B16: ='Wettkampf 1'!B16 -> Pölking Thomas | C16: ='Wettkampf 1'!C16 -> Lorup IV | D16: 307.4 | F16: 307.4 | G16: 0 | H16: 0 | I16: 307.4 | J16: 1 | K16: 0 | L16: 0 | M16: 0 | N16: 0 | O16: 0 | P16: 0 | Q16: 0 | R16: 0 | U16: 104.1 | V16: 101.5 | W16: 101.8 | X16: 307.4 | Y16: 1 | Z16: 1 | AA16: Korrekt
A17: 8 | B17: ='Wettkampf 1'!B17 -> Klawitter Gerd | C17: ='Wettkampf 1'!C17 -> Lorup IV | D17: 309.0 | F17: 309.0 | G17: 0 | H17: 0 | I17: 309 | J17: 1 | K17: 0 | L17: 0 | M17: 0 | N17: 0 | O17: 0 | P17: 0 | Q17: 0 | R17: 0 | U17: 103.0 | V17: 102.6 | W17: 103.4 | X17: 309.0 | Y17: 1 | Z17: 1 | AA17: Korrekt
A18: 9 | B18: ='Wettkampf 1'!B18 -> Albers Helmut | C18: ='Wettkampf 1'!C18 -> Lorup IV | D18: 309.5 | F18: 309.5 | G18: 0 | H18: 0 | I18: 309.5 | J18: 1 | K18: 0 | L18: 0 | M18: 0 | N18: 0 | O18: 0 | P18: 0 | Q18: 0 | R18: 0 | U18: 103.4 | V18: 104.0 | W18: 102.1 | X18: 309.5 | Y18: 1 | Z18: 1 | AA18: Korrekt
A19: 10 | B19: ='Wettkampf 1'!B19 -> Olliges Jürgen | C19: ='Wettkampf 1'!C19 -> Lorup IV | D19: 312.6 | F19: 312.6 | G19: 0 | H19: 0 | I19: 312.6 | J19: 1 | K19: 0 | L19: 0 | M19: 0 | N19: 0 | O19: 0 | P19: 0 | Q19: 0 | R19: 0 | U19: 104.7 | V19: 103.9 | W19: 104.0 | X19: 312.6 | Y19: 1 | Z19: 1 | AA19: Korrekt
A20: 11 | B20: ='Wettkampf 1'!B20 -> Gerdes Willi | C20: ='Wettkampf 1'!C20 -> Lorup IV | E20: x | F20: 0 | G20: 0 | H20: 0 | I20: 0 | J20: 0 | K20: 0 | L20: 0 | M20: 0 | N20: 0 | O20: 0 | P20: 0 | Q20: 0 | R20: 0 | X20: 0.0 | Y20: 1 | Z20: 0
A21: 12 | B21: ='Wettkampf 1'!B21 -> Schütze 12 | C21: ='Wettkampf 1'!C21 -> Lorup IV | E21: x | F21: 0 | G21: 0 | H21: 0 | I21: 0 | J21: 0 | K21: 0 | L21: 0 | M21: 0 | N21: 0 | O21: 0 | P21: 0 | Q21: 0 | R21: 0 | X21: 0.0 | Y21: 1 | Z21: 0
A22: 13 | B22: ='Wettkampf 1'!B22 -> Terborg Michael | C22: ='Wettkampf 1'!C22 -> Sögel I | D22: 311.4 | F22: 311.4 | G22: 0 | H22: 0 | I22: 0 | J22: 0 | K22: 311.4 | L22: 1 | M22: 0 | N22: 0 | O22: 0 | P22: 0 | Q22: 0 | R22: 0 | U22: 104.3 | V22: 103.3 | W22: 103.8 | X22: 311.4 | Y22: 1 | Z22: 1 | AA22: Korrekt
A23: 14 | B23: ='Wettkampf 1'!B23 -> Wester Markus | C23: ='Wettkampf 1'!C23 -> Sögel I | D23: 316.0 | F23: 316.0 | G23: 0 | H23: 0 | I23: 0 | J23: 0 | K23: 316 | L23: 1 | M23: 0 | N23: 0 | O23: 0 | P23: 0 | Q23: 0 | R23: 0 | U23: 105.8 | V23: 105.6 | W23: 104.6 | X23: 316.0 | Y23: 1 | Z23: 1 | AA23: Korrekt
A24: 15 | B24: ='Wettkampf 1'!B24 -> Dödtmann Ludger | C24: ='Wettkampf 1'!C24 -> Sögel I | D24: 308.7 | E24: x | F24: 0 | G24: 0 | H24: 0 | I24: 0 | J24: 0 | K24: 0 | L24: 0 | M24: 0 | N24: 0 | O24: 0 | P24: 0 | Q24: 0 | R24: 0 | U24: 103.0 | V24: 103.2 | W24: 102.5 | X24: 308.7 | Y24: 1 | Z24: 1 | AA24: Korrekt
A25: 16 | B25: ='Wettkampf 1'!B25 -> Tharner Karl-Heinz | C25: ='Wettkampf 1'!C25 -> Sögel I | D25: 313.8 | F25: 313.8 | G25: 0 | H25: 0 | I25: 0 | J25: 0 | K25: 313.8 | L25: 1 | M25: 0 | N25: 0 | O25: 0 | P25: 0 | Q25: 0 | R25: 0 | U25: 104.3 | V25: 103.2 | W25: 106.3 | X25: 313.8 | Y25: 1 | Z25: 1 | AA25: Korrekt
A26: 17 | B26: ='Wettkampf 1'!B26 -> Sunder Ferdi | C26: ='Wettkampf 1'!C26 -> Sögel I | D26: 309.1 | F26: 309.1 | G26: 0 | H26: 0 | I26: 0 | J26: 0 | K26: 309.1 | L26: 1 | M26: 0 | N26: 0 | O26: 0 | P26: 0 | Q26: 0 | R26: 0 | U26: 103.1 | V26: 103.3 | W26: 102.7 | X26: 309.1 | Y26: 1 | Z26: 1 | AA26: Korrekt
A27: 18 | B27: ='Wettkampf 1'!B27 -> Schütze 18 | C27: ='Wettkampf 1'!C27 -> Sögel I | E27: x | F27: 0 | G27: 0 | H27: 0 | I27: 0 | J27: 0 | K27: 0 | L27: 0 | M27: 0 | N27: 0 | O27: 0 | P27: 0 | Q27: 0 | R27: 0 | X27: 0.0 | Y27: 1 | Z27: 0
A28: 19 | B28: ='Wettkampf 1'!B28 -> Runde Norbert | C28: ='Wettkampf 1'!C28 -> Neubörger I | D28: 311.6 | F28: 311.6 | G28: 0 | H28: 0 | I28: 0 | J28: 0 | K28: 0 | L28: 0 | M28: 311.6 | N28: 1 | O28: 0 | P28: 0 | Q28: 0 | R28: 0 | U28: 104.7 | V28: 104.3 | W28: 102.6 | X28: 311.6 | Y28: 1 | Z28: 1 | AA28: Korrekt
A29: 20 | B29: ='Wettkampf 1'!B29 -> Hunfeld Anton | C29: ='Wettkampf 1'!C29 -> Neubörger I | D29: 304.4 | F29: 304.4 | G29: 0 | H29: 0 | I29: 0 | J29: 0 | K29: 0 | L29: 0 | M29: 304.4 | N29: 1 | O29: 0 | P29: 0 | Q29: 0 | R29: 0 | U29: 100.2 | V29: 102.0 | W29: 102.2 | X29: 304.4 | Y29: 1 | Z29: 1 | AA29: Korrekt
A30: 21 | B30: ='Wettkampf 1'!B30 -> Schnieders Willi | C30: ='Wettkampf 1'!C30 -> Neubörger I | D30: 307.1 | F30: 307.1 | G30: 0 | H30: 0 | I30: 0 | J30: 0 | K30: 0 | L30: 0 | M30: 307.1 | N30: 1 | O30: 0 | P30: 0 | Q30: 0 | R30: 0 | U30: 102.9 | V30: 103.1 | W30: 101.1 | X30: 307.1 | Y30: 1 | Z30: 1 | AA30: Korrekt
A31: 22 | B31: ='Wettkampf 1'!B31 -> Antons Klaus | C31: ='Wettkampf 1'!C31 -> Neubörger I | D31: 312.4 | F31: 312.4 | G31: 0 | H31: 0 | I31: 0 | J31: 0 | K31: 0 | L31: 0 | M31: 312.4 | N31: 1 | O31: 0 | P31: 0 | Q31: 0 | R31: 0 | U31: 103.5 | V31: 104.4 | W31: 104.5 | X31: 312.4 | Y31: 1 | Z31: 1 | AA31: Korrekt
A32: 23 | B32: ='Wettkampf 1'!B32 -> Voss Helmut | C32: ='Wettkampf 1'!C32 -> Neubörger I | D32: 308.4 | E32: x | F32: 0 | G32: 0 | H32: 0 | I32: 0 | J32: 0 | K32: 0 | L32: 0 | M32: 0 | N32: 0 | O32: 0 | P32: 0 | Q32: 0 | R32: 0 | U32: 100.2 | V32: 103.8 | W32: 104.4 | X32: 308.4 | Y32: 1 | Z32: 1 | AA32: Korrekt
A33: 24 | B33: ='Wettkampf 1'!B33 -> Schütze 24 | C33: ='Wettkampf 1'!C33 -> Neubörger I | E33: x | F33: 0 | G33: 0 | H33: 0 | I33: 0 | J33: 0 | K33: 0 | L33: 0 | M33: 0 | N33: 0 | O33: 0 | P33: 0 | Q33: 0 | R33: 0 | X33: 0.0 | Y33: 1 | Z33: 0
A34: 25 | B34: ='Wettkampf 1'!B34 -> Großmann Martin | C34: ='Wettkampf 1'!C34 -> Börgermoor I | D34: 313.8 | F34: 313.8 | G34: 0 | H34: 0 | I34: 0 | J34: 0 | K34: 0 | L34: 0 | M34: 0 | N34: 0 | O34: 313.8 | P34: 1 | Q34: 0 | R34: 0 | U34: 104.0 | V34: 105.1 | W34: 104.7 | X34: 313.8 | Y34: 1 | Z34: 1 | AA34: Korrekt
A35: 26 | B35: ='Wettkampf 1'!B35 -> Segbers Bernard | C35: ='Wettkampf 1'!C35 -> Börgermoor I | D35: 311.3 | F35: 311.3 | G35: 0 | H35: 0 | I35: 0 | J35: 0 | K35: 0 | L35: 0 | M35: 0 | N35: 0 | O35: 311.3 | P35: 1 | Q35: 0 | R35: 0 | U35: 102.6 | V35: 104.0 | W35: 104.7 | X35: 311.3 | Y35: 1 | Z35: 1 | AA35: Korrekt
A36: 27 | B36: ='Wettkampf 1'!B36 -> Dobelmann Werner | C36: ='Wettkampf 1'!C36 -> Börgermoor I | D36: 315.1 | F36: 315.1 | G36: 0 | H36: 0 | I36: 0 | J36: 0 | K36: 0 | L36: 0 | M36: 0 | N36: 0 | O36: 315.1 | P36: 1 | Q36: 0 | R36: 0 | U36: 105.3 | V36: 106.5 | W36: 103.3 | X36: 315.1 | Y36: 1 | Z36: 1 | AA36: Korrekt
A37: 28 | B37: ='Wettkampf 1'!B37 -> Kohnen Stefan | C37: ='Wettkampf 1'!C37 -> Börgermoor I | D37: 315.6 | F37: 315.6 | G37: 0 | H37: 0 | I37: 0 | J37: 0 | K37: 0 | L37: 0 | M37: 0 | N37: 0 | O37: 315.6 | P37: 1 | Q37: 0 | R37: 0 | U37: 104.7 | V37: 106.4 | W37: 104.5 | X37: 315.6 | Y37: 1 | Z37: 1 | AA37: Korrekt
A38: 29 | B38: ='Wettkampf 1'!B38 -> Schütze 29 | C38: ='Wettkampf 1'!C38 -> Börgermoor I | E38: x | F38: 0 | G38: 0 | H38: 0 | I38: 0 | J38: 0 | K38: 0 | L38: 0 | M38: 0 | N38: 0 | O38: 0 | P38: 0 | Q38: 0 | R38: 0 | X38: 0.0 | Y38: 1 | Z38: 0
A39: 30 | B39: ='Wettkampf 1'!B39 -> Schütze 30 | C39: ='Wettkampf 1'!C39 -> Börgermoor I | E39: x | F39: 0 | G39: 0 | H39: 0 | I39: 0 | J39: 0 | K39: 0 | L39: 0 | M39: 0 | N39: 0 | O39: 0 | P39: 0 | Q39: 0 | R39: 0 | X39: 0.0 | Y39: 1 | Z39: 0
A40: 31 | B40: ='Wettkampf 1'!B40 -> Schulte Matthias | C40: ='Wettkampf 1'!C40 -> Esterwegen I | D40: 308.9 | F40: 308.9 | G40: 0 | H40: 0 | I40: 0 | J40: 0 | K40: 0 | L40: 0 | M40: 0 | N40: 0 | O40: 0 | P40: 0 | Q40: 308.9 | R40: 1 | U40: 102.4 | V40: 103.8 | W40: 102.7 | X40: =U40+V40+W40 -> 308.9 | Y40: =IF(X40=D40,1,0) -> 1 | Z40: =IF(X40=0,0,1) -> 1 | AA40: =IF(Y40+Z40=2,"Korrekt","") -> Korrekt
A41: 32 | B41: ='Wettkampf 1'!B41 -> Middendorf Peter | C41: ='Wettkampf 1'!C41 -> Esterwegen I | D41: 309.7 | F41: 309.7 | G41: 0 | H41: 0 | I41: 0 | J41: 0 | K41: 0 | L41: 0 | M41: 0 | N41: 0 | O41: 0 | P41: 0 | Q41: 309.7 | R41: 1 | U41: 102.1 | V41: 103.3 | W41: 104.3 | X41: 309.7 | Y41: 1 | Z41: 1 | AA41: Korrekt
A42: 33 | B42: ='Wettkampf 1'!B42 -> Thomes Bernhard | C42: ='Wettkampf 1'!C42 -> Esterwegen I | D42: 314.4 | F42: 314.4 | G42: 0 | H42: 0 | I42: 0 | J42: 0 | K42: 0 | L42: 0 | M42: 0 | N42: 0 | O42: 0 | P42: 0 | Q42: 314.4 | R42: 1 | U42: 104.8 | V42: 104.8 | W42: 104.8 | X42: 314.4 | Y42: 1 | Z42: 1 | AA42: Korrekt
A43: 34 | B43: ='Wettkampf 1'!B43 -> Lindemann Marco | C43: ='Wettkampf 1'!C43 -> Esterwegen I | D43: 309.3 | F43: 309.3 | G43: 0 | H43: 0 | I43: 0 | J43: 0 | K43: 0 | L43: 0 | M43: 0 | N43: 0 | O43: 0 | P43: 0 | Q43: 309.3 | R43: 1 | U43: 102.1 | V43: 105.5 | W43: 101.7 | X43: 309.3 | Y43: 1 | Z43: 1 | AA43: Korrekt
A44: 35 | B44: ='Wettkampf 1'!B44 -> Schütze 35 | C44: ='Wettkampf 1'!C44 -> Esterwegen I | E44: x | F44: 0 | G44: 0 | H44: 0 | I44: 0 | J44: 0 | K44: 0 | L44: 0 | M44: 0 | N44: 0 | O44: 0 | P44: 0 | Q44: 0 | R44: 0 | X44: 0.0 | Y44: 1 | Z44: 0
A45: 36 | B45: ='Wettkampf 1'!B45 -> Schütze 36 | C45: ='Wettkampf 1'!C45 -> Esterwegen I | E45: x | F45: 0 | G45: 0 | H45: 0 | I45: 0 | J45: 0 | K45: 0 | L45: 0 | M45: 0 | N45: 0 | O45: 0 | P45: 0 | Q45: 0 | R45: 0 | X45: 0.0 | Y45: 1 | Z45: 0
G46: =LARGE(G10:G45,1)+LARGE(G10:G45,2)+LARGE(G10:G45,3) -> 942.2 | H46: =SUM(H10:H45) -> 4 | I46: =LARGE(I10:I45,1)+LARGE(I10:I45,2)+LARGE(I10:I45,3) -> 931.1 | J46: =SUM(J10:J45) -> 4 | K46: =LARGE(K10:K45,1)+LARGE(K10:K45,2)+LARGE(K10:K45,3) -> 941.2 | L46: =SUM(L10:L45) -> 4 | M46: =LARGE(M10:M45,1)+LARGE(M10:M45,2)+LARGE(M10:M45,3) -> 931.1 | N46: =SUM(N10:N45) -> 4 | O46: =LARGE(O10:O45,1)+LARGE(O10:O45,2)+LARGE(O10:O45,3) -> 944.5 | P46: =SUM(P10:P45) -> 4 | Q46: =LARGE(Q10:Q45,1)+LARGE(Q10:Q45,2)+LARGE(Q10:Q45,3) -> 933.4 | R46: =SUM(R10:S45) -> 4
C47: per Email an: sk-huemmling@gmx.de

Sheet 3
B1: Verein / Gruppe | D1: Ergebnisse | V1: Austragungsort: | W1: =Übersicht!F4 -> Sögel
A2: 1 | B2: ='Wettkampf 1'!B2 -> Lahn II | D2: =G46 -> 939.1 | E2: =IF(H46>4,"Es sind zu viele Schützen in Wertung!"," ") ->  | V2: Wettkampftag: | W2: =Übersicht!F3 -> 20.10.
A3: 2 | B3: ='Wettkampf 1'!B3 -> Lorup IV | D3: =I46 -> 932.3 | E3: =IF(J46>4,"Es sind zu viele Schützen in Wertung!"," ") -> 
A4: 3 | B4: ='Wettkampf 1'!B4 -> Sögel I | D4: =K46 -> 943.4 | E4: =IF(L46>4,"Es sind zu viele Schützen in Wertung!"," ") ->  | X4: Ansprechpartner für Rückfragen:
A5: 4 | B5: ='Wettkampf 1'!B5 -> Neubörger I | D5: =M46 -> 939.5 | E5: =IF(N46>4,"Es sind zu viele Schützen in Wertung!"," ") ->  | V5: Name: | W5: Dödtmann Ludger
A6: 5 | B6: ='Wettkampf 1'!B6 -> Börgermoor I | D6: =O46 -> 943.4 | E6: =IF(P46>4,"Es sind zu viele Schützen in Wertung!"," ") ->  | V6: Tel:
A7: 6 | B7: ='Wettkampf 1'!B7 -> Esterwegen I | D7: =Q46 -> 925.2 | E7: =IF(R46>4,"Es sind zu viele Schützen in Wertung!"," ") ->  | V7: Standaufsicht: | W7: Dödtmann Ludger
B9: Einzelergebnisse: | C9: Verein / Gruppe | D9: Ergebnisse (mindestens 0 eintragen) | E9: AW? Dann x eintippen | G9: Verein 1 | I9: Verein 2 | K9: Verein 3 | M9: Verein 4 | O9: Verein 5 | Q9: Verein 6 | U9: Proberechnung bei Streifen:
A10: 1 | B10: ='Wettkampf 1'!B10 -> Thyen Udo | C10: ='Wettkampf 1'!C10 -> Lahn II | D10: 311.5 | F10: =IF(E10="x","0",D10) -> 311.5 | G10: =IF(C10=$B$2,F10,0) -> 311.5 | H10: =(IF(AND($E10="",$C10=$B$2),1,0)) -> 1 | I10: =IF($C10=$B$3,F10,0) -> 0 | J10: =(IF(AND($E10="",$C10=$B$3),1,0)) -> 0 | K10: =IF($C10=$B$4,F10,0) -> 0 | L10: =(IF(AND($E10="",$C10=$B$4),1,0)) -> 0 | M10: =IF($C10=$B$5,F10,0) -> 0 | N10: =(IF(AND($E10="",$C10=$B$5),1,0)) -> 0 | O10: =IF($C10=$B$6,F10,0) -> 0 | P10: =(IF(AND($E10="",$C10=$B$6),1,0)) -> 0 | Q10: =IF($C10=$B$7,F10,0) -> 0 | R10: =(IF(AND($E10="",$C10=$B$7),1,0)) -> 0 | X10: =U10+V10+W10 -> 0.0 | Y10: =IF(X10=D10,1,0) -> 0 | Z10: =IF(X10=0,0,1) -> 0 | AA10: =IF(Y10+Z10=2,"Korrekt","") -> 
A11: 2 | B11: ='Wettkampf 1'!B11 -> Banedt Olaf | C11: ='Wettkampf 1'!C11 -> Lahn II | D11: 309.5 | F11: =IF(E11="x","0",D11) -> 309.5 | G11: =IF(C11=$B$2,F11,0) -> 309.5 | H11: =(IF(AND($E11="",$C11=$B$2),1,0)) -> 1 | I11: =IF($C11=$B$3,F11,0) -> 0 | J11: =(IF(AND($E11="",$C11=$B$3),1,0)) -> 0 | K11: =IF($C11=$B$4,F11,0) -> 0 | L11: =(IF(AND($E11="",$C11=$B$4),1,0)) -> 0 | M11: =IF($C11=$B$5,F11,0) -> 0 | N11: =(IF(AND($E11="",$C11=$B$5),1,0)) -> 0 | O11: =IF($C11=$B$6,F11,0) -> 0 | P11: =(IF(AND($E11="",$C11=$B$6),1,0)) -> 0 | Q11: =IF($C11=$B$7,F11,0) -> 0 | R11: =(IF(AND($E11="",$C11=$B$7),1,0)) -> 0 | X11: =U11+V11+W11 -> 0.0 | Y11: =IF(X11=D11,1,0) -> 0 | Z11: =IF(X11=0,0,1) -> 0 | AA11: =IF(Y11+Z11=2,"Korrekt","") -> 
A12: 3 | B12: ='Wettkampf 1'!B12 -> Thien Markus | C12: ='Wettkampf 1'!C12 -> Lahn II | D12: 313.3 | F12: 313.3 | G12: 313.3 | H12: 1 | I12: 0 | J12: 0 | K12: 0 | L12: 0 | M12: 0 | N12: 0 | O12: 0 | P12: 0 | Q12: 0 | R12: 0 | X12: 0.0 | Y12: 0 | Z12: 0
A13: 4 | B13: ='Wettkampf 1'!B13 -> Robben-Schlagge Ralf | C13: ='Wettkampf 1'!C13 -> Lahn II | D13: 314.3 | F13: 314.3 | G13: 314.3 | H13: 1 | I13: 0 | J13: 0 | K13: 0 | L13: 0 | M13: 0 | N13: 0 | O13: 0 | P13: 0 | Q13: 0 | R13: 0 | X13: 0.0 | Y13: 0 | Z13: 0
A14: 5 | B14: ='Wettkampf 1'!B14 -> Schütze 5 | C14: ='Wettkampf 1'!C14 -> Lahn II | E14: x | F14: 0 | G14: 0 | H14: 0 | I14: 0 | J14: 0 | K14: 0 | L14: 0 | M14: 0 | N14: 0 | O14: 0 | P14: 0 | Q14: 0 | R14: 0 | X14: 0.0 | Y14: 1 | Z14: 0
A15: 6 | B15: ='Wettkampf 1'!B15 -> Schütze 6 | C15: ='Wettkampf 1'!C15 -> Lahn II | E15: x | F15: 0 | G15: 0 | H15: 0 | I15: 0 | J15: 0 | K15: 0 | L15: 0 | M15: 0 | N15: 0 | O15: 0 | P15: 0 | Q15: 0 | R15: 0 | X15: 0.0 | Y15: 1 | Z15: 0
A16: 7 | B16: ='Wettkampf 1'!B16 -> Pölking Thomas | C16: ='Wettkampf 1'!C16 -> Lorup IV | D16: 312.9 | F16: 312.9 | G16: 0 | H16: 0 | I16: 312.9 | J16: 1 | K16: 0 | L16: 0 | M16: 0 | N16: 0 | O16: 0 | P16: 0 | Q16: 0 | R16: 0 | X16: 0.0 | Y16: 0 | Z16: 0
A17: 8 | B17: ='Wettkampf 1'!B17 -> Klawitter Gerd | C17: ='Wettkampf 1'!C17 -> Lorup IV | D17: 308.6 | F17: 308.6 | G17: 0 | H17: 0 | I17: 308.6 | J17: 1 | K17: 0 | L17: 0 | M17: 0 | N17: 0 | O17: 0 | P17: 0 | Q17: 0 | R17: 0 | X17: 0.0 | Y17: 0 | Z17: 0
A18: 9 | B18: ='Wettkampf 1'!B18 -> Albers Helmut | C18: ='Wettkampf 1'!C18 -> Lorup IV | D18: 307.1 | F18: 307.1 | G18: 0 | H18: 0 | I18: 307.1 | J18: 1 | K18: 0 | L18: 0 | M18: 0 | N18: 0 | O18: 0 | P18: 0 | Q18: 0 | R18: 0 | X18: 0.0 | Y18: 0 | Z18: 0
A19: 10 | B19: ='Wettkampf 1'!B19 -> Olliges Jürgen | C19: ='Wettkampf 1'!C19 -> Lorup IV | D19: 310.8 | F19: 310.8 | G19: 0 | H19: 0 | I19: 310.8 | J19: 1 | K19: 0 | L19: 0 | M19: 0 | N19: 0 | O19: 0 | P19: 0 | Q19: 0 | R19: 0 | X19: 0.0 | Y19: 0 | Z19: 0
A20: 11 | B20: ='Wettkampf 1'!B20 -> Gerdes Willi | C20: ='Wettkampf 1'!C20 -> Lorup IV | D20: 303.0 | E20: x | F20: 0 | G20: 0 | H20: 0 | I20: 0 | J20: 0 | K20: 0 | L20: 0 | M20: 0 | N20: 0 | O20: 0 | P20: 0 | Q20: 0 | R20: 0 | X20: 0.0 | Y20: 0 | Z20: 0
A21: 12 | B21: ='Wettkampf 1'!B21 -> Schütze 12 | C21: ='Wettkampf 1'!C21 -> Lorup IV | E21: x | F21: 0 | G21: 0 | H21: 0 | I21: 0 | J21: 0 | K21: 0 | L21: 0 | M21: 0 | N21: 0 | O21: 0 | P21: 0 | Q21: 0 | R21: 0 | X21: 0.0 | Y21: 1 | Z21: 0
A22: 13 | B22: ='Wettkampf 1'!B22 -> Terborg Michael | C22: ='Wettkampf 1'!C22 -> Sögel I | D22: 310.1 | F22: 310.1 | G22: 0 | H22: 0 | I22: 0 | J22: 0 | K22: 310.1 | L22: 1 | M22: 0 | N22: 0 | O22: 0 | P22: 0 | Q22: 0 | R22: 0 | X22: 0.0 | Y22: 0 | Z22: 0
A23: 14 | B23: ='Wettkampf 1'!B23 -> Wester Markus | C23: ='Wettkampf 1'!C23 -> Sögel I | D23: 314.0 | F23: 314.0 | G23: 0 | H23: 0 | I23: 0 | J23: 0 | K23: 314 | L23: 1 | M23: 0 | N23: 0 | O23: 0 | P23: 0 | Q23: 0 | R23: 0 | X23: 0.0 | Y23: 0 | Z23: 0
A24: 15 | B24: ='Wettkampf 1'!B24 -> Dödtmann Ludger | C24: ='Wettkampf 1'!C24 -> Sögel I | D24: 311.5 | E24: x | F24: 0 | G24: 0 | H24: 0 | I24: 0 | J24: 0 | K24: 0 | L24: 0 | M24: 0 | N24: 0 | O24: 0 | P24: 0 | Q24: 0 | R24: 0 | X24: 0.0 | Y24: 0 | Z24: 0
A25: 16 | B25: ='Wettkampf 1'!B25 -> Tharner Karl-Heinz | C25: ='Wettkampf 1'!C25 -> Sögel I | D25: 317.4 | F25: 317.4 | G25: 0 | H25: 0 | I25: 0 | J25: 0 | K25: 317.4 | L25: 1 | M25: 0 | N25: 0 | O25: 0 | P25: 0 | Q25: 0 | R25: 0 | X25: 0.0 | Y25: 0 | Z25: 0
A26: 17 | B26: ='Wettkampf 1'!B26 -> Sunder Ferdi | C26: ='Wettkampf 1'!C26 -> Sögel I | D26: 312.0 | F26: 312.0 | G26: 0 | H26: 0 | I26: 0 | J26: 0 | K26: 312 | L26: 1 | M26: 0 | N26: 0 | O26: 0 | P26: 0 | Q26: 0 | R26: 0 | X26: 0.0 | Y26: 0 | Z26: 0
A27: 18 | B27: ='Wettkampf 1'!B27 -> Schütze 18 | C27: ='Wettkampf 1'!C27 -> Sögel I | E27: x | F27: 0 | G27: 0 | H27: 0 | I27: 0 | J27: 0 | K27: 0 | L27: 0 | M27: 0 | N27: 0 | O27: 0 | P27: 0 | Q27: 0 | R27: 0 | X27: 0.0 | Y27: 1 | Z27: 0
A28: 19 | B28: ='Wettkampf 1'!B28 -> Runde Norbert | C28: ='Wettkampf 1'!C28 -> Neubörger I | D28: 313.3 | F28: 313.3 | G28: 0 | H28: 0 | I28: 0 | J28: 0 | K28: 0 | L28: 0 | M28: 313.3 | N28: 1 | O28: 0 | P28: 0 | Q28: 0 | R28: 0 | X28: 0.0 | Y28: 0 | Z28: 0
A29: 20 | B29: ='Wettkampf 1'!B29 -> Hunfeld Anton | C29: ='Wettkampf 1'!C29 -> Neubörger I | D29: 312.3 | F29: 312.3 | G29: 0 | H29: 0 | I29: 0 | J29: 0 | K29: 0 | L29: 0 | M29: 312.3 | N29: 1 | O29: 0 | P29: 0 | Q29: 0 | R29: 0 | X29: 0.0 | Y29: 0 | Z29: 0
A30: 21 | B30: ='Wettkampf 1'!B30 -> Schnieders Willi | C30: ='Wettkampf 1'!C30 -> Neubörger I | D30: 306.6 | F30: 306.6 | G30: 0 | H30: 0 | I30: 0 | J30: 0 | K30: 0 | L30: 0 | M30: 306.6 | N30: 1 | O30: 0 | P30: 0 | Q30: 0 | R30: 0 | X30: 0.0 | Y30: 0 | Z30: 0
A31: 22 | B31: ='Wettkampf 1'!B31 -> Antons Klaus | C31: ='Wettkampf 1'!C31 -> Neubörger I | D31: 313.9 | F31: 313.9 | G31: 0 | H31: 0 | I31: 0 | J31: 0 | K31: 0 | L31: 0 | M31: 313.9 | N31: 1 | O31: 0 | P31: 0 | Q31: 0 | R31: 0 | X31: 0.0 | Y31: 0 | Z31: 0
A32: 23 | B32: ='Wettkampf 1'!B32 -> Voss Helmut | C32: ='Wettkampf 1'!C32 -> Neubörger I | D32: 307.7 | E32: x | F32: 0 | G32: 0 | H32: 0 | I32: 0 | J32: 0 | K32: 0 | L32: 0 | M32: 0 | N32: 0 | O32: 0 | P32: 0 | Q32: 0 | R32: 0 | X32: 0.0 | Y32: 0 | Z32: 0
A33: 24 | B33: ='Wettkampf 1'!B33 -> Schütze 24 | C33: ='Wettkampf 1'!C33 -> Neubörger I | E33: x | F33: 0 | G33: 0 | H33: 0 | I33: 0 | J33: 0 | K33: 0 | L33: 0 | M33: 0 | N33: 0 | O33: 0 | P33: 0 | Q33: 0 | R33: 0 | X33: 0.0 | Y33: 1 | Z33: 0
A34: 25 | B34: ='Wettkampf 1'!B34 -> Großmann Martin | C34: ='Wettkampf 1'!C34 -> Börgermoor I | D34: 312.9 | F34: 312.9 | G34: 0 | H34: 0 | I34: 0 | J34: 0 | K34: 0 | L34: 0 | M34: 0 | N34: 0 | O34: 312.9 | P34: 1 | Q34: 0 | R34: 0 | X34: 0.0 | Y34: 0 | Z34: 0
A35: 26 | B35: ='Wettkampf 1'!B35 -> Segbers Bernard | C35: ='Wettkampf 1'!C35 -> Börgermoor I | D35: 311.7 | F35: 311.7 | G35: 0 | H35: 0 | I35: 0 | J35: 0 | K35: 0 | L35: 0 | M35: 0 | N35: 0 | O35: 311.7 | P35: 1 | Q35: 0 | R35: 0 | X35: 0.0 | Y35: 0 | Z35: 0
A36: 27 | B36: ='Wettkampf 1'!B36 -> Dobelmann Werner | C36: ='Wettkampf 1'!C36 -> Börgermoor I | D36: 311.9 | F36: 311.9 | G36: 0 | H36: 0 | I36: 0 | J36: 0 | K36: 0 | L36: 0 | M36: 0 | N36: 0 | O36: 311.9 | P36: 1 | Q36: 0 | R36: 0 | X36: 0.0 | Y36: 0 | Z36: 0
A37: 28 | B37: ='Wettkampf 1'!B37 -> Kohnen Stefan | C37: ='Wettkampf 1'!C37 -> Börgermoor I | D37: 318.6 | F37: 318.6 | G37: 0 | H37: 0 | I37: 0 | J37: 0 | K37: 0 | L37: 0 | M37: 0 | N37: 0 | O37: 318.6 | P37: 1 | Q37: 0 | R37: 0 | X37: 0.0 | Y37: 0 | Z37: 0
A38: 29 | B38: ='Wettkampf 1'!B38 -> Schütze 29 | C38: ='Wettkampf 1'!C38 -> Börgermoor I | E38: x | F38: 0 | G38: 0 | H38: 0 | I38: 0 | J38: 0 | K38: 0 | L38: 0 | M38: 0 | N38: 0 | O38: 0 | P38: 0 | Q38: 0 | R38: 0 | X38: 0.0 | Y38: 1 | Z38: 0
A39: 30 | B39: ='Wettkampf 1'!B39 -> Schütze 30 | C39: ='Wettkampf 1'!C39 -> Börgermoor I | E39: x | F39: 0 | G39: 0 | H39: 0 | I39: 0 | J39: 0 | K39: 0 | L39: 0 | M39: 0 | N39: 0 | O39: 0 | P39: 0 | Q39: 0 | R39: 0 | X39: 0.0 | Y39: 1 | Z39: 0
A40: 31 | B40: ='Wettkampf 1'!B40 -> Schulte Matthias | C40: ='Wettkampf 1'!C40 -> Esterwegen I | D40: 307.9 | F40: 307.9 | G40: 0 | H40: 0 | I40: 0 | J40: 0 | K40: 0 | L40: 0 | M40: 0 | N40: 0 | O40: 0 | P40: 0 | Q40: 307.9 | R40: 1 | X40: 0.0 | Y40: 0 | Z40: 0
A41: 32 | B41: ='Wettkampf 1'!B41 -> Middendorf Peter | C41: ='Wettkampf 1'!C41 -> Esterwegen I | F41: 0.0 | G41: 0 | H41: 0 | I41: 0 | J41: 0 | K41: 0 | L41: 0 | M41: 0 | N41: 0 | O41: 0 | P41: 0 | Q41: 0 | R41: 1 | X41: 0.0 | Y41: 1 | Z41: 0
A42: 33 | B42: ='Wettkampf 1'!B42 -> Thomes Bernhard | C42: ='Wettkampf 1'!C42 -> Esterwegen I | D42: 311.0 | F42: 311.0 | G42: 0 | H42: 0 | I42: 0 | J42: 0 | K42: 0 | L42: 0 | M42: 0 | N42: 0 | O42: 0 | P42: 0 | Q42: 311 | R42: 1 | X42: 0.0 | Y42: 0 | Z42: 0
A43: 34 | B43: ='Wettkampf 1'!B43 -> Lindemann Marco | C43: ='Wettkampf 1'!C43 -> Esterwegen I | D43: 306.3 | F43: 306.3 | G43: 0 | H43: 0 | I43: 0 | J43: 0 | K43: 0 | L43: 0 | M43: 0 | N43: 0 | O43: 0 | P43: 0 | Q43: 306.3 | R43: 1 | X43: 0.0 | Y43: 0 | Z43: 0
A44: 35 | B44: ='Wettkampf 1'!B44 -> Schütze 35 | C44: ='Wettkampf 1'!C44 -> Esterwegen I | E44: x | F44: 0 | G44: 0 | H44: 0 | I44: 0 | J44: 0 | K44: 0 | L44: 0 | M44: 0 | N44: 0 | O44: 0 | P44: 0 | Q44: 0 | R44: 0 | X44: 0.0 | Y44: 1 | Z44: 0
A45: 36 | B45: ='Wettkampf 1'!B45 -> Schütze 36 | C45: ='Wettkampf 1'!C45 -> Esterwegen I | E45: x | F45: 0 | G45: 0 | H45: 0 | I45: 0 | J45: 0 | K45: 0 | L45: 0 | M45: 0 | N45: 0 | O45: 0 | P45: 0 | Q45: 0 | R45: 0 | X45: 0.0 | Y45: 1 | Z45: 0
G46: =LARGE(G10:G45,1)+LARGE(G10:G45,2)+LARGE(G10:G45,3) -> 939.1 | H46: =SUM(H10:H45) -> 4 | I46: =LARGE(I10:I45,1)+LARGE(I10:I45,2)+LARGE(I10:I45,3) -> 932.3 | J46: =SUM(J10:J45) -> 4 | K46: =LARGE(K10:K45,1)+LARGE(K10:K45,2)+LARGE(K10:K45,3) -> 943.4 | L46: =SUM(L10:L45) -> 4 | M46: =LARGE(M10:M45,1)+LARGE(M10:M45,2)+LARGE(M10:M45,3) -> 939.5 | N46: =SUM(N10:N45) -> 4 | O46: =LARGE(O10:O45,1)+LARGE(O10:O45,2)+LARGE(O10:O45,3) -> 943.4 | P46: =SUM(P10:P45) -> 4 | Q46: =LARGE(Q10:Q45,1)+LARGE(Q10:Q45,2)+LARGE(Q10:Q45,3) -> 925.2 | R46: =SUM(R10:S45) -> 4
C47: per Email an: sk-huemmling@gmx.de

Sheet 4
B1: Verein / Gruppe | D1: Ergebnisse | V1: Austragungsort: | W1: =Übersicht!G4 -> Neubörger
A2: 1 | B2: ='Wettkampf 1'!B2 -> Lahn II | D2: =G46 -> 938.5 | E2: =IF(H46>4,"Es sind zu viele Schützen in Wertung!"," ") ->  | V2: Wettkampftag: | W2: =Übersicht!G3 -> 10.11.
A3: 2 | B3: ='Wettkampf 1'!B3 -> Lorup IV | D3: =I46 -> 933.8 | E3: =IF(J46>4,"Es sind zu viele Schützen in Wertung!"," ") -> 
A4: 3 | B4: ='Wettkampf 1'!B4 -> Sögel I | D4: =K46 -> 942.5 | E4: =IF(L46>4,"Es sind zu viele Schützen in Wertung!"," ") ->  | X4: Ansprechpartner für Rückfragen:
A5: 4 | B5: ='Wettkampf 1'!B5 -> Neubörger I | D5: =M46 -> 933.6 | E5: =IF(N46>4,"Es sind zu viele Schützen in Wertung!"," ") ->  | V5: Name: | W5: Norbert Runde
A6: 5 | B6: ='Wettkampf 1'!B6 -> Börgermoor I | D6: =O46 -> 944.5 | E6: =IF(P46>4,"Es sind zu viele Schützen in Wertung!"," ") ->  | V6: Tel: | W6: 04966-969062
A7: 6 | B7: ='Wettkampf 1'!B7 -> Esterwegen I | D7: =Q46 -> 933.3 | E7: =IF(R46>4,"Es sind zu viele Schützen in Wertung!"," ") ->  | V7: Standaufsicht: | W7: Norbert Runde
B9: Einzelergebnisse: | C9: Verein / Gruppe | D9: Ergebnisse (mindestens 0 eintragen) | E9: AW? Dann x eintippen | G9: Verein 1 | I9: Verein 2 | K9: Verein 3 | M9: Verein 4 | O9: Verein 5 | Q9: Verein 6 | U9: Proberechnung bei Streifen:
A10: 1 | B10: ='Wettkampf 1'!B10 -> Thyen Udo | C10: ='Wettkampf 1'!C10 -> Lahn II | D10: 311.6 | F10: =IF(E10="x","0",D10) -> 311.6 | G10: =IF(C10=$B$2,F10,0) -> 311.6 | H10: =(IF(AND($E10="",$C10=$B$2),1,0)) -> 1 | I10: =IF($C10=$B$3,F10,0) -> 0 | J10: =(IF(AND($E10="",$C10=$B$3),1,0)) -> 0 | K10: =IF($C10=$B$4,F10,0) -> 0 | L10: =(IF(AND($E10="",$C10=$B$4),1,0)) -> 0 | M10: =IF($C10=$B$5,F10,0) -> 0 | N10: =(IF(AND($E10="",$C10=$B$5),1,0)) -> 0 | O10: =IF($C10=$B$6,F10,0) -> 0 | P10: =(IF(AND($E10="",$C10=$B$6),1,0)) -> 0 | Q10: =IF($C10=$B$7,F10,0) -> 0 | R10: =(IF(AND($E10="",$C10=$B$7),1,0)) -> 0 | X10: =U10+V10+W10 -> 0.0 | Y10: =IF(X10=D10,1,0) -> 0 | Z10: =IF(X10=0,0,1) -> 0 | AA10: =IF(Y10+Z10=2,"Korrekt","") -> 
A11: 2 | B11: ='Wettkampf 1'!B11 -> Banedt Olaf | C11: ='Wettkampf 1'!C11 -> Lahn II | D11: 307.9 | F11: =IF(E11="x","0",D11) -> 307.9 | G11: =IF(C11=$B$2,F11,0) -> 307.9 | H11: =(IF(AND($E11="",$C11=$B$2),1,0)) -> 1 | I11: =IF($C11=$B$3,F11,0) -> 0 | J11: =(IF(AND($E11="",$C11=$B$3),1,0)) -> 0 | K11: =IF($C11=$B$4,F11,0) -> 0 | L11: =(IF(AND($E11="",$C11=$B$4),1,0)) -> 0 | M11: =IF($C11=$B$5,F11,0) -> 0 | N11: =(IF(AND($E11="",$C11=$B$5),1,0)) -> 0 | O11: =IF($C11=$B$6,F11,0) -> 0 | P11: =(IF(AND($E11="",$C11=$B$6),1,0)) -> 0 | Q11: =IF($C11=$B$7,F11,0) -> 0 | R11: =(IF(AND($E11="",$C11=$B$7),1,0)) -> 0 | X11: =U11+V11+W11 -> 0.0 | Y11: =IF(X11=D11,1,0) -> 0 | Z11: =IF(X11=0,0,1) -> 0 | AA11: =IF(Y11+Z11=2,"Korrekt","") -> 
A12: 3 | B12: ='Wettkampf 1'!B12 -> Thien Markus | C12: ='Wettkampf 1'!C12 -> Lahn II | D12: 311.7 | F12: 311.7 | G12: 311.7 | H12: 1 | I12: 0 | J12: 0 | K12: 0 | L12: 0 | M12: 0 | N12: 0 | O12: 0 | P12: 0 | Q12: 0 | R12: 0 | X12: 0.0 | Y12: 0 | Z12: 0
A13: 4 | B13: ='Wettkampf 1'!B13 -> Robben-Schlagge Ralf | C13: ='Wettkampf 1'!C13 -> Lahn II | D13: 315.2 | F13: 315.2 | G13: 315.2 | H13: 1 | I13: 0 | J13: 0 | K13: 0 | L13: 0 | M13: 0 | N13: 0 | O13: 0 | P13: 0 | Q13: 0 | R13: 0 | X13: 0.0 | Y13: 0 | Z13: 0
A14: 5 | B14: ='Wettkampf 1'!B14 -> Schütze 5 | C14: ='Wettkampf 1'!C14 -> Lahn II | E14: x | F14: 0 | G14: 0 | H14: 0 | I14: 0 | J14: 0 | K14: 0 | L14: 0 | M14: 0 | N14: 0 | O14: 0 | P14: 0 | Q14: 0 | R14: 0 | X14: 0.0 | Y14: 1 | Z14: 0
A15: 6 | B15: ='Wettkampf 1'!B15 -> Schütze 6 | C15: ='Wettkampf 1'!C15 -> Lahn II | E15: x | F15: 0 | G15: 0 | H15: 0 | I15: 0 | J15: 0 | K15: 0 | L15: 0 | M15: 0 | N15: 0 | O15: 0 | P15: 0 | Q15: 0 | R15: 0 | X15: 0.0 | Y15: 1 | Z15: 0
A16: 7 | B16: ='Wettkampf 1'!B16 -> Pölking Thomas | C16: ='Wettkampf 1'!C16 -> Lorup IV | D16: 313.1 | F16: 313.1 | G16: 0 | H16: 0 | I16: 313.1 | J16: 1 | K16: 0 | L16: 0 | M16: 0 | N16: 0 | O16: 0 | P16: 0 | Q16: 0 | R16: 0 | X16: 0.0 | Y16: 0 | Z16: 0
A17: 8 | B17: ='Wettkampf 1'!B17 -> Klawitter Gerd | C17: ='Wettkampf 1'!C17 -> Lorup IV | D17: 312.2 | F17: 312.2 | G17: 0 | H17: 0 | I17: 312.2 | J17: 1 | K17: 0 | L17: 0 | M17: 0 | N17: 0 | O17: 0 | P17: 0 | Q17: 0 | R17: 0 | X17: 0.0 | Y17: 0 | Z17: 0
A18: 9 | B18: ='Wettkampf 1'!B18 -> Albers Helmut | C18: ='Wettkampf 1'!C18 -> Lorup IV | D18: 308.5 | F18: 308.5 | G18: 0 | H18: 0 | I18: 308.5 | J18: 1 | K18: 0 | L18: 0 | M18: 0 | N18: 0 | O18: 0 | P18: 0 | Q18: 0 | R18: 0 | X18: 0.0 | Y18: 0 | Z18: 0
A19: 10 | B19: ='Wettkampf 1'!B19 -> Olliges Jürgen | C19: ='Wettkampf 1'!C19 -> Lorup IV | D19: 308.4 | F19: 308.4 | G19: 0 | H19: 0 | I19: 308.4 | J19: 1 | K19: 0 | L19: 0 | M19: 0 | N19: 0 | O19: 0 | P19: 0 | Q19: 0 | R19: 0 | X19: 0.0 | Y19: 0 | Z19: 0
A20: 11 | B20: ='Wettkampf 1'!B20 -> Gerdes Willi | C20: ='Wettkampf 1'!C20 -> Lorup IV | E20: x | F20: 0 | G20: 0 | H20: 0 | I20: 0 | J20: 0 | K20: 0 | L20: 0 | M20: 0 | N20: 0 | O20: 0 | P20: 0 | Q20: 0 | R20: 0 | X20: 0.0 | Y20: 1 | Z20: 0
A21: 12 | B21: ='Wettkampf 1'!B21 -> Schütze 12 | C21: ='Wettkampf 1'!C21 -> Lorup IV | E21: x | F21: 0 | G21: 0 | H21: 0 | I21: 0 | J21: 0 | K21: 0 | L21: 0 | M21: 0 | N21: 0 | O21: 0 | P21: 0 | Q21: 0 | R21: 0 | X21: 0.0 | Y21: 1 | Z21: 0
A22: 13 | B22: ='Wettkampf 1'!B22 -> Terborg Michael | C22: ='Wettkampf 1'!C22 -> Sögel I | D22: 311.4 | F22: 311.4 | G22: 0 | H22: 0 | I22: 0 | J22: 0 | K22: 311.4 | L22: 1 | M22: 0 | N22: 0 | O22: 0 | P22: 0 | Q22: 0 | R22: 0 | X22: 0.0 | Y22: 0 | Z22: 0
A23: 14 | B23: ='Wettkampf 1'!B23 -> Wester Markus | C23: ='Wettkampf 1'!C23 -> Sögel I | D23: 312.5 | F23: 312.5 | G23: 0 | H23: 0 | I23: 0 | J23: 0 | K23: 312.5 | L23: 1 | M23: 0 | N23: 0 | O23: 0 | P23: 0 | Q23: 0 | R23: 0 | X23: 0.0 | Y23: 0 | Z23: 0
A24: 15 | B24: ='Wettkampf 1'!B24 -> Dödtmann Ludger | C24: ='Wettkampf 1'!C24 -> Sögel I | D24: 310.4 | E24: x | F24: 0 | G24: 0 | H24: 0 | I24: 0 | J24: 0 | K24: 0 | L24: 0 | M24: 0 | N24: 0 | O24: 0 | P24: 0 | Q24: 0 | R24: 0 | X24: 0.0 | Y24: 0 | Z24: 0
A25: 16 | B25: ='Wettkampf 1'!B25 -> Tharner Karl-Heinz | C25: ='Wettkampf 1'!C25 -> Sögel I | D25: 315.0 | F25: 315.0 | G25: 0 | H25: 0 | I25: 0 | J25: 0 | K25: 315 | L25: 1 | M25: 0 | N25: 0 | O25: 0 | P25: 0 | Q25: 0 | R25: 0 | X25: 0.0 | Y25: 0 | Z25: 0
A26: 17 | B26: ='Wettkampf 1'!B26 -> Sunder Ferdi | C26: ='Wettkampf 1'!C26 -> Sögel I | D26: 315.0 | F26: 315.0 | G26: 0 | H26: 0 | I26: 0 | J26: 0 | K26: 315 | L26: 1 | M26: 0 | N26: 0 | O26: 0 | P26: 0 | Q26: 0 | R26: 0 | X26: 0.0 | Y26: 0 | Z26: 0
A27: 18 | B27: ='Wettkampf 1'!B27 -> Schütze 18 | C27: ='Wettkampf 1'!C27 -> Sögel I | E27: x | F27: 0 | G27: 0 | H27: 0 | I27: 0 | J27: 0 | K27: 0 | L27: 0 | M27: 0 | N27: 0 | O27: 0 | P27: 0 | Q27: 0 | R27: 0 | X27: 0.0 | Y27: 1 | Z27: 0
A28: 19 | B28: ='Wettkampf 1'!B28 -> Runde Norbert | C28: ='Wettkampf 1'!C28 -> Neubörger I | D28: 313.9 | F28: 313.9 | G28: 0 | H28: 0 | I28: 0 | J28: 0 | K28: 0 | L28: 0 | M28: 313.9 | N28: 1 | O28: 0 | P28: 0 | Q28: 0 | R28: 0 | X28: 0.0 | Y28: 0 | Z28: 0
A29: 20 | B29: ='Wettkampf 1'!B29 -> Hunfeld Anton | C29: ='Wettkampf 1'!C29 -> Neubörger I | D29: 305.5 | F29: 305.5 | G29: 0 | H29: 0 | I29: 0 | J29: 0 | K29: 0 | L29: 0 | M29: 305.5 | N29: 1 | O29: 0 | P29: 0 | Q29: 0 | R29: 0 | X29: 0.0 | Y29: 0 | Z29: 0
A30: 21 | B30: ='Wettkampf 1'!B30 -> Schnieders Willi | C30: ='Wettkampf 1'!C30 -> Neubörger I | D30: 303.5 | F30: 303.5 | G30: 0 | H30: 0 | I30: 0 | J30: 0 | K30: 0 | L30: 0 | M30: 303.5 | N30: 1 | O30: 0 | P30: 0 | Q30: 0 | R30: 0 | X30: 0.0 | Y30: 0 | Z30: 0
A31: 22 | B31: ='Wettkampf 1'!B31 -> Antons Klaus | C31: ='Wettkampf 1'!C31 -> Neubörger I | D31: 314.2 | F31: 314.2 | G31: 0 | H31: 0 | I31: 0 | J31: 0 | K31: 0 | L31: 0 | M31: 314.2 | N31: 1 | O31: 0 | P31: 0 | Q31: 0 | R31: 0 | X31: 0.0 | Y31: 0 | Z31: 0
A32: 23 | B32: ='Wettkampf 1'!B32 -> Voss Helmut | C32: ='Wettkampf 1'!C32 -> Neubörger I | E32: x | F32: 0 | G32: 0 | H32: 0 | I32: 0 | J32: 0 | K32: 0 | L32: 0 | M32: 0 | N32: 0 | O32: 0 | P32: 0 | Q32: 0 | R32: 0 | X32: 0.0 | Y32: 1 | Z32: 0
A33: 24 | B33: ='Wettkampf 1'!B33 -> Schütze 24 | C33: ='Wettkampf 1'!C33 -> Neubörger I | E33: x | F33: 0 | G33: 0 | H33: 0 | I33: 0 | J33: 0 | K33: 0 | L33: 0 | M33: 0 | N33: 0 | O33: 0 | P33: 0 | Q33: 0 | R33: 0 | X33: 0.0 | Y33: 1 | Z33: 0
A34: 25 | B34: ='Wettkampf 1'!B34 -> Großmann Martin | C34: ='Wettkampf 1'!C34 -> Börgermoor I | D34: 311.6 | F34: 311.6 | G34: 0 | H34: 0 | I34: 0 | J34: 0 | K34: 0 | L34: 0 | M34: 0 | N34: 0 | O34: 311.6 | P34: 1 | Q34: 0 | R34: 0 | X34: 0.0 | Y34: 0 | Z34: 0
A35: 26 | B35: ='Wettkampf 1'!B35 -> Segbers Bernard | C35: ='Wettkampf 1'!C35 -> Börgermoor I | D35: 315.7 | F35: 315.7 | G35: 0 | H35: 0 | I35: 0 | J35: 0 | K35: 0 | L35: 0 | M35: 0 | N35: 0 | O35: 315.7 | P35: 1 | Q35: 0 | R35: 0 | X35: 0.0 | Y35: 0 | Z35: 0
A36: 27 | B36: ='Wettkampf 1'!B36 -> Dobelmann Werner | C36: ='Wettkampf 1'!C36 -> Börgermoor I | D36: 308.1 | F36: 308.1 | G36: 0 | H36: 0 | I36: 0 | J36: 0 | K36: 0 | L36: 0 | M36: 0 | N36: 0 | O36: 308.1 | P36: 1 | Q36: 0 | R36: 0 | X36: 0.0 | Y36: 0 | Z36: 0
A37: 28 | B37: ='Wettkampf 1'!B37 -> Kohnen Stefan | C37: ='Wettkampf 1'!C37 -> Börgermoor I | D37: 317.2 | F37: 317.2 | G37: 0 | H37: 0 | I37: 0 | J37: 0 | K37: 0 | L37: 0 | M37: 0 | N37: 0 | O37: 317.2 | P37: 1 | Q37: 0 | R37: 0 | X37: 0.0 | Y37: 0 | Z37: 0
A38: 29 | B38: ='Wettkampf 1'!B38 -> Schütze 29 | C38: ='Wettkampf 1'!C38 -> Börgermoor I | E38: x | F38: 0 | G38: 0 | H38: 0 | I38: 0 | J38: 0 | K38: 0 | L38: 0 | M38: 0 | N38: 0 | O38: 0 | P38: 0 | Q38: 0 | R38: 0 | X38: 0.0 | Y38: 1 | Z38: 0
A39: 30 | B39: ='Wettkampf 1'!B39 -> Schütze 30 | C39: ='Wettkampf 1'!C39 -> Börgermoor I | E39: x | F39: 0 | G39: 0 | H39: 0 | I39: 0 | J39: 0 | K39: 0 | L39: 0 | M39: 0 | N39: 0 | O39: 0 | P39: 0 | Q39: 0 | R39: 0 | X39: 0.0 | Y39: 1 | Z39: 0
A40: 31 | B40: ='Wettkampf 1'!B40 -> Schulte Matthias | C40: ='Wettkampf 1'!C40 -> Esterwegen I | D40: 306.6 | F40: 306.6 | G40: 0 | H40: 0 | I40: 0 | J40: 0 | K40: 0 | L40: 0 | M40: 0 | N40: 0 | O40: 0 | P40: 0 | Q40: 306.6 | R40: 1 | X40: 0.0 | Y40: 0 | Z40: 0
A41: 32 | B41: ='Wettkampf 1'!B41 -> Middendorf Peter | C41: ='Wettkampf 1'!C41 -> Esterwegen I | D41: 312.5 | F41: 312.5 | G41: 0 | H41: 0 | I41: 0 | J41: 0 | K41: 0 | L41: 0 | M41: 0 | N41: 0 | O41: 0 | P41: 0 | Q41: 312.5 | R41: 1 | X41: 0.0 | Y41: 0 | Z41: 0
A42: 33 | B42: ='Wettkampf 1'!B42 -> Thomes Bernhard | C42: ='Wettkampf 1'!C42 -> Esterwegen I | D42: 310.3 | F42: 310.3 | G42: 0 | H42: 0 | I42: 0 | J42: 0 | K42: 0 | L42: 0 | M42: 0 | N42: 0 | O42: 0 | P42: 0 | Q42: 310.3 | R42: 1 | X42: 0.0 | Y42: 0 | Z42: 0
A43: 34 | B43: ='Wettkampf 1'!B43 -> Lindemann Marco | C43: ='Wettkampf 1'!C43 -> Esterwegen I | D43: 310.5 | F43: 310.5 | G43: 0 | H43: 0 | I43: 0 | J43: 0 | K43: 0 | L43: 0 | M43: 0 | N43: 0 | O43: 0 | P43: 0 | Q43: 310.5 | R43: 1 | X43: 0.0 | Y43: 0 | Z43: 0
A44: 35 | B44: ='Wettkampf 1'!B44 -> Schütze 35 | C44: ='Wettkampf 1'!C44 -> Esterwegen I | E44: x | F44: 0 | G44: 0 | H44: 0 | I44: 0 | J44: 0 | K44: 0 | L44: 0 | M44: 0 | N44: 0 | O44: 0 | P44: 0 | Q44: 0 | R44: 0 | X44: 0.0 | Y44: 1 | Z44: 0
A45: 36 | B45: ='Wettkampf 1'!B45 -> Schütze 36 | C45: ='Wettkampf 1'!C45 -> Esterwegen I | E45: x | F45: 0 | G45: 0 | H45: 0 | I45: 0 | J45: 0 | K45: 0 | L45: 0 | M45: 0 | N45: 0 | O45: 0 | P45: 0 | Q45: 0 | R45: 0 | X45: 0.0 | Y45: 1 | Z45: 0
G46: =LARGE(G10:G45,1)+LARGE(G10:G45,2)+LARGE(G10:G45,3) -> 938.5 | H46: =SUM(H10:H45) -> 4 | I46: =LARGE(I10:I45,1)+LARGE(I10:I45,2)+LARGE(I10:I45,3) -> 933.8 | J46: =SUM(J10:J45) -> 4 | K46: =LARGE(K10:K45,1)+LARGE(K10:K45,2)+LARGE(K10:K45,3) -> 942.5 | L46: =SUM(L10:L45) -> 4 | M46: =LARGE(M10:M45,1)+LARGE(M10:M45,2)+LARGE(M10:M45,3) -> 933.6 | N46: =SUM(N10:N45) -> 4 | O46: =LARGE(O10:O45,1)+LARGE(O10:O45,2)+LARGE(O10:O45,3) -> 944.5 | P46: =SUM(P10:P45) -> 4 | Q46: =LARGE(Q10:Q45,1)+LARGE(Q10:Q45,2)+LARGE(Q10:Q45,3) -> 933.3 | R46: =SUM(R10:S45) -> 4
C47: per Email an: sk-huemmling@gmx.de

Sheet 5
B1: Verein / Gruppe | D1: Ergebnisse | V1: Austragungsort: | W1: =Übersicht!H4 -> Börgermoor
A2: 1 | B2: ='Wettkampf 1'!B2 -> Lahn II | D2: =G46 -> 943.7 | E2: =IF(H46>4,"Es sind zu viele Schützen in Wertung!"," ") ->  | V2: Wettkampftag: | W2: =Übersicht!H3 -> 24.11.
A3: 2 | B3: ='Wettkampf 1'!B3 -> Lorup IV | D3: =I46 -> 937.7 | E3: =IF(J46>4,"Es sind zu viele Schützen in Wertung!"," ") -> 
A4: 3 | B4: ='Wettkampf 1'!B4 -> Sögel I | D4: =K46 -> 945.7 | E4: =IF(L46>4,"Es sind zu viele Schützen in Wertung!"," ") ->  | X4: Ansprechpartner für Rückfragen:
A5: 4 | B5: ='Wettkampf 1'!B5 -> Neubörger I | D5: =M46 -> 939.6 | E5: =IF(N46>4,"Es sind zu viele Schützen in Wertung!"," ") ->  | V5: Name: | W5: Stefan Kohnen
A6: 5 | B6: ='Wettkampf 1'!B6 -> Börgermoor I | D6: =O46 -> 943.2 | E6: =IF(P46>4,"Es sind zu viele Schützen in Wertung!"," ") ->  | V6: Tel:
A7: 6 | B7: ='Wettkampf 1'!B7 -> Esterwegen I | D7: =Q46 -> 934.3 | E7: =IF(R46>4,"Es sind zu viele Schützen in Wertung!"," ") ->  | V7: Standaufsicht: | W7: Stefan Kohnen
B9: Einzelergebnisse: | C9: Verein / Gruppe | D9: Ergebnisse (mindestens 0 eintragen) | E9: AW? Dann x eintippen | G9: Verein 1 | I9: Verein 2 | K9: Verein 3 | M9: Verein 4 | O9: Verein 5 | Q9: Verein 6 | U9: Proberechnung bei Streifen:
A10: 1 | B10: ='Wettkampf 1'!B10 -> Thyen Udo | C10: ='Wettkampf 1'!C10 -> Lahn II | D10: 313.5 | F10: =IF(E10="x","0",D10) -> 313.5 | G10: =IF(C10=$B$2,F10,0) -> 313.5 | H10: =(IF(AND($E10="",$C10=$B$2),1,0)) -> 1 | I10: =IF($C10=$B$3,F10,0) -> 0 | J10: =(IF(AND($E10="",$C10=$B$3),1,0)) -> 0 | K10: =IF($C10=$B$4,F10,0) -> 0 | L10: =(IF(AND($E10="",$C10=$B$4),1,0)) -> 0 | M10: =IF($C10=$B$5,F10,0) -> 0 | N10: =(IF(AND($E10="",$C10=$B$5),1,0)) -> 0 | O10: =IF($C10=$B$6,F10,0) -> 0 | P10: =(IF(AND($E10="",$C10=$B$6),1,0)) -> 0 | Q10: =IF($C10=$B$7,F10,0) -> 0 | R10: =(IF(AND($E10="",$C10=$B$7),1,0)) -> 0 | X10: =U10+V10+W10 -> 0.0 | Y10: =IF(X10=D10,1,0) -> 0 | Z10: =IF(X10=0,0,1) -> 0 | AA10: =IF(Y10+Z10=2,"Korrekt","") -> 
A11: 2 | B11: ='Wettkampf 1'!B11 -> Banedt Olaf | C11: ='Wettkampf 1'!C11 -> Lahn II | D11: 307.9 | F11: =IF(E11="x","0",D11) -> 307.9 | G11: =IF(C11=$B$2,F11,0) -> 307.9 | H11: =(IF(AND($E11="",$C11=$B$2),1,0)) -> 1 | I11: =IF($C11=$B$3,F11,0) -> 0 | J11: =(IF(AND($E11="",$C11=$B$3),1,0)) -> 0 | K11: =IF($C11=$B$4,F11,0) -> 0 | L11: =(IF(AND($E11="",$C11=$B$4),1,0)) -> 0 | M11: =IF($C11=$B$5,F11,0) -> 0 | N11: =(IF(AND($E11="",$C11=$B$5),1,0)) -> 0 | O11: =IF($C11=$B$6,F11,0) -> 0 | P11: =(IF(AND($E11="",$C11=$B$6),1,0)) -> 0 | Q11: =IF($C11=$B$7,F11,0) -> 0 | R11: =(IF(AND($E11="",$C11=$B$7),1,0)) -> 0 | X11: =U11+V11+W11 -> 0.0 | Y11: =IF(X11=D11,1,0) -> 0 | Z11: =IF(X11=0,0,1) -> 0 | AA11: =IF(Y11+Z11=2,"Korrekt","") -> 
A12: 3 | B12: ='Wettkampf 1'!B12 -> Thien Markus | C12: ='Wettkampf 1'!C12 -> Lahn II | D12: 315.9 | F12: 315.9 | G12: 315.9 | H12: 1 | I12: 0 | J12: 0 | K12: 0 | L12: 0 | M12: 0 | N12: 0 | O12: 0 | P12: 0 | Q12: 0 | R12: 0 | X12: 0.0 | Y12: 0 | Z12: 0
A13: 4 | B13: ='Wettkampf 1'!B13 -> Robben-Schlagge Ralf | C13: ='Wettkampf 1'!C13 -> Lahn II | D13: 314.3 | F13: 314.3 | G13: 314.3 | H13: 1 | I13: 0 | J13: 0 | K13: 0 | L13: 0 | M13: 0 | N13: 0 | O13: 0 | P13: 0 | Q13: 0 | R13: 0 | X13: 0.0 | Y13: 0 | Z13: 0
A14: 5 | B14: ='Wettkampf 1'!B14 -> Schütze 5 | C14: ='Wettkampf 1'!C14 -> Lahn II | E14: x | F14: 0 | G14: 0 | H14: 0 | I14: 0 | J14: 0 | K14: 0 | L14: 0 | M14: 0 | N14: 0 | O14: 0 | P14: 0 | Q14: 0 | R14: 0 | X14: 0.0 | Y14: 1 | Z14: 0
A15: 6 | B15: ='Wettkampf 1'!B15 -> Schütze 6 | C15: ='Wettkampf 1'!C15 -> Lahn II | E15: x | F15: 0 | G15: 0 | H15: 0 | I15: 0 | J15: 0 | K15: 0 | L15: 0 | M15: 0 | N15: 0 | O15: 0 | P15: 0 | Q15: 0 | R15: 0 | X15: 0.0 | Y15: 1 | Z15: 0
A16: 7 | B16: ='Wettkampf 1'!B16 -> Pölking Thomas | C16: ='Wettkampf 1'!C16 -> Lorup IV | D16: 314.9 | F16: 314.9 | G16: 0 | H16: 0 | I16: 314.9 | J16: 1 | K16: 0 | L16: 0 | M16: 0 | N16: 0 | O16: 0 | P16: 0 | Q16: 0 | R16: 0 | X16: 0.0 | Y16: 0 | Z16: 0
A17: 8 | B17: ='Wettkampf 1'!B17 -> Klawitter Gerd | C17: ='Wettkampf 1'!C17 -> Lorup IV | D17: 308.3 | F17: 308.3 | G17: 0 | H17: 0 | I17: 308.3 | J17: 1 | K17: 0 | L17: 0 | M17: 0 | N17: 0 | O17: 0 | P17: 0 | Q17: 0 | R17: 0 | X17: 0.0 | Y17: 0 | Z17: 0
A18: 9 | B18: ='Wettkampf 1'!B18 -> Albers Helmut | C18: ='Wettkampf 1'!C18 -> Lorup IV | D18: 309.7 | F18: 309.7 | G18: 0 | H18: 0 | I18: 309.7 | J18: 1 | K18: 0 | L18: 0 | M18: 0 | N18: 0 | O18: 0 | P18: 0 | Q18: 0 | R18: 0 | X18: 0.0 | Y18: 0 | Z18: 0
A19: 10 | B19: ='Wettkampf 1'!B19 -> Olliges Jürgen | C19: ='Wettkampf 1'!C19 -> Lorup IV | D19: 313.1 | F19: 313.1 | G19: 0 | H19: 0 | I19: 313.1 | J19: 1 | K19: 0 | L19: 0 | M19: 0 | N19: 0 | O19: 0 | P19: 0 | Q19: 0 | R19: 0 | X19: 0.0 | Y19: 0 | Z19: 0
A20: 11 | B20: ='Wettkampf 1'!B20 -> Gerdes Willi | C20: ='Wettkampf 1'!C20 -> Lorup IV | E20: x | F20: 0 | G20: 0 | H20: 0 | I20: 0 | J20: 0 | K20: 0 | L20: 0 | M20: 0 | N20: 0 | O20: 0 | P20: 0 | Q20: 0 | R20: 0 | X20: 0.0 | Y20: 1 | Z20: 0
A21: 12 | B21: ='Wettkampf 1'!B21 -> Schütze 12 | C21: ='Wettkampf 1'!C21 -> Lorup IV | E21: x | F21: 0 | G21: 0 | H21: 0 | I21: 0 | J21: 0 | K21: 0 | L21: 0 | M21: 0 | N21: 0 | O21: 0 | P21: 0 | Q21: 0 | R21: 0 | X21: 0.0 | Y21: 1 | Z21: 0
A22: 13 | B22: ='Wettkampf 1'!B22 -> Terborg Michael | C22: ='Wettkampf 1'!C22 -> Sögel I | D22: 302.3 | F22: 302.3 | G22: 0 | H22: 0 | I22: 0 | J22: 0 | K22: 302.3 | L22: 1 | M22: 0 | N22: 0 | O22: 0 | P22: 0 | Q22: 0 | R22: 0 | X22: 0.0 | Y22: 0 | Z22: 0
A23: 14 | B23: ='Wettkampf 1'!B23 -> Wester Markus | C23: ='Wettkampf 1'!C23 -> Sögel I | D23: 313.9 | F23: 313.9 | G23: 0 | H23: 0 | I23: 0 | J23: 0 | K23: 313.9 | L23: 1 | M23: 0 | N23: 0 | O23: 0 | P23: 0 | Q23: 0 | R23: 0 | X23: 0.0 | Y23: 0 | Z23: 0
A24: 15 | B24: ='Wettkampf 1'!B24 -> Dödtmann Ludger | C24: ='Wettkampf 1'!C24 -> Sögel I | D24: 311.9 | E24: x | F24: 0 | G24: 0 | H24: 0 | I24: 0 | J24: 0 | K24: 0 | L24: 0 | M24: 0 | N24: 0 | O24: 0 | P24: 0 | Q24: 0 | R24: 0 | X24: 0.0 | Y24: 0 | Z24: 0
A25: 16 | B25: ='Wettkampf 1'!B25 -> Tharner Karl-Heinz | C25: ='Wettkampf 1'!C25 -> Sögel I | D25: 316.7 | F25: 316.7 | G25: 0 | H25: 0 | I25: 0 | J25: 0 | K25: 316.7 | L25: 1 | M25: 0 | N25: 0 | O25: 0 | P25: 0 | Q25: 0 | R25: 0 | X25: 0.0 | Y25: 0 | Z25: 0
A26: 17 | B26: ='Wettkampf 1'!B26 -> Sunder Ferdi | C26: ='Wettkampf 1'!C26 -> Sögel I | D26: 315.1 | F26: 315.1 | G26: 0 | H26: 0 | I26: 0 | J26: 0 | K26: 315.1 | L26: 1 | M26: 0 | N26: 0 | O26: 0 | P26: 0 | Q26: 0 | R26: 0 | X26: 0.0 | Y26: 0 | Z26: 0
A27: 18 | B27: ='Wettkampf 1'!B27 -> Schütze 18 | C27: ='Wettkampf 1'!C27 -> Sögel I | E27: x | F27: 0 | G27: 0 | H27: 0 | I27: 0 | J27: 0 | K27: 0 | L27: 0 | M27: 0 | N27: 0 | O27: 0 | P27: 0 | Q27: 0 | R27: 0 | X27: 0.0 | Y27: 1 | Z27: 0
A28: 19 | B28: ='Wettkampf 1'!B28 -> Runde Norbert | C28: ='Wettkampf 1'!C28 -> Neubörger I | D28: 314.2 | F28: 314.2 | G28: 0 | H28: 0 | I28: 0 | J28: 0 | K28: 0 | L28: 0 | M28: 314.2 | N28: 1 | O28: 0 | P28: 0 | Q28: 0 | R28: 0 | X28: 0.0 | Y28: 0 | Z28: 0
A29: 20 | B29: ='Wettkampf 1'!B29 -> Hunfeld Anton | C29: ='Wettkampf 1'!C29 -> Neubörger I | D29: 312.3 | F29: 312.3 | G29: 0 | H29: 0 | I29: 0 | J29: 0 | K29: 0 | L29: 0 | M29: 312.3 | N29: 1 | O29: 0 | P29: 0 | Q29: 0 | R29: 0 | X29: 0.0 | Y29: 0 | Z29: 0
A30: 21 | B30: ='Wettkampf 1'!B30 -> Schnieders Willi | C30: ='Wettkampf 1'!C30 -> Neubörger I | D30: 300.7 | F30: 300.7 | G30: 0 | H30: 0 | I30: 0 | J30: 0 | K30: 0 | L30: 0 | M30: 300.7 | N30: 1 | O30: 0 | P30: 0 | Q30: 0 | R30: 0 | X30: 0.0 | Y30: 0 | Z30: 0
A31: 22 | B31: ='Wettkampf 1'!B31 -> Antons Klaus | C31: ='Wettkampf 1'!C31 -> Neubörger I | D31: 313.1 | F31: 313.1 | G31: 0 | H31: 0 | I31: 0 | J31: 0 | K31: 0 | L31: 0 | M31: 313.1 | N31: 1 | O31: 0 | P31: 0 | Q31: 0 | R31: 0 | X31: 0.0 | Y31: 0 | Z31: 0
A32: 23 | B32: ='Wettkampf 1'!B32 -> Voss Helmut | C32: ='Wettkampf 1'!C32 -> Neubörger I | D32: 303.2 | E32: x | F32: 0 | G32: 0 | H32: 0 | I32: 0 | J32: 0 | K32: 0 | L32: 0 | M32: 0 | N32: 0 | O32: 0 | P32: 0 | Q32: 0 | R32: 0 | X32: 0.0 | Y32: 0 | Z32: 0
A33: 24 | B33: ='Wettkampf 1'!B33 -> Schütze 24 | C33: ='Wettkampf 1'!C33 -> Neubörger I | E33: x | F33: 0 | G33: 0 | H33: 0 | I33: 0 | J33: 0 | K33: 0 | L33: 0 | M33: 0 | N33: 0 | O33: 0 | P33: 0 | Q33: 0 | R33: 0 | X33: 0.0 | Y33: 1 | Z33: 0
A34: 25 | B34: ='Wettkampf 1'!B34 -> Großmann Martin | C34: ='Wettkampf 1'!C34 -> Börgermoor I | D34: 308.2 | F34: 308.2 | G34: 0 | H34: 0 | I34: 0 | J34: 0 | K34: 0 | L34: 0 | M34: 0 | N34: 0 | O34: 308.2 | P34: 1 | Q34: 0 | R34: 0 | X34: 0.0 | Y34: 0 | Z34: 0
A35: 26 | B35: ='Wettkampf 1'!B35 -> Segbers Bernard | C35: ='Wettkampf 1'!C35 -> Börgermoor I | D35: 314.4 | F35: 314.4 | G35: 0 | H35: 0 | I35: 0 | J35: 0 | K35: 0 | L35: 0 | M35: 0 | N35: 0 | O35: 314.4 | P35: 1 | Q35: 0 | R35: 0 | X35: 0.0 | Y35: 0 | Z35: 0
A36: 27 | B36: ='Wettkampf 1'!B36 -> Dobelmann Werner | C36: ='Wettkampf 1'!C36 -> Börgermoor I | D36: 312.2 | F36: 312.2 | G36: 0 | H36: 0 | I36: 0 | J36: 0 | K36: 0 | L36: 0 | M36: 0 | N36: 0 | O36: 312.2 | P36: 1 | Q36: 0 | R36: 0 | X36: 0.0 | Y36: 0 | Z36: 0
A37: 28 | B37: ='Wettkampf 1'!B37 -> Kohnen Stefan | C37: ='Wettkampf 1'!C37 -> Börgermoor I | D37: 316.6 | F37: 316.6 | G37: 0 | H37: 0 | I37: 0 | J37: 0 | K37: 0 | L37: 0 | M37: 0 | N37: 0 | O37: 316.6 | P37: 1 | Q37: 0 | R37: 0 | X37: 0.0 | Y37: 0 | Z37: 0
A38: 29 | B38: ='Wettkampf 1'!B38 -> Schütze 29 | C38: ='Wettkampf 1'!C38 -> Börgermoor I | E38: x | F38: 0 | G38: 0 | H38: 0 | I38: 0 | J38: 0 | K38: 0 | L38: 0 | M38: 0 | N38: 0 | O38: 0 | P38: 0 | Q38: 0 | R38: 0 | X38: 0.0 | Y38: 1 | Z38: 0
A39: 30 | B39: ='Wettkampf 1'!B39 -> Schütze 30 | C39: ='Wettkampf 1'!C39 -> Börgermoor I | E39: x | F39: 0 | G39: 0 | H39: 0 | I39: 0 | J39: 0 | K39: 0 | L39: 0 | M39: 0 | N39: 0 | O39: 0 | P39: 0 | Q39: 0 | R39: 0 | X39: 0.0 | Y39: 1 | Z39: 0
A40: 31 | B40: ='Wettkampf 1'!B40 -> Schulte Matthias | C40: ='Wettkampf 1'!C40 -> Esterwegen I | D40: 306.3 | F40: 306.3 | G40: 0 | H40: 0 | I40: 0 | J40: 0 | K40: 0 | L40: 0 | M40: 0 | N40: 0 | O40: 0 | P40: 0 | Q40: 306.3 | R40: 1 | X40: 0.0 | Y40: 0 | Z40: 0
A41: 32 | B41: ='Wettkampf 1'!B41 -> Middendorf Peter | C41: ='Wettkampf 1'!C41 -> Esterwegen I | D41: 308.5 | F41: 308.5 | G41: 0 | H41: 0 | I41: 0 | J41: 0 | K41: 0 | L41: 0 | M41: 0 | N41: 0 | O41: 0 | P41: 0 | Q41: 308.5 | R41: 1 | X41: 0.0 | Y41: 0 | Z41: 0
A42: 33 | B42: ='Wettkampf 1'!B42 -> Thomes Bernhard | C42: ='Wettkampf 1'!C42 -> Esterwegen I | D42: 314.3 | F42: 314.3 | G42: 0 | H42: 0 | I42: 0 | J42: 0 | K42: 0 | L42: 0 | M42: 0 | N42: 0 | O42: 0 | P42: 0 | Q42: 314.3 | R42: 1 | X42: 0.0 | Y42: 0 | Z42: 0
A43: 34 | B43: ='Wettkampf 1'!B43 -> Lindemann Marco | C43: ='Wettkampf 1'!C43 -> Esterwegen I | D43: 311.5 | F43: 311.5 | G43: 0 | H43: 0 | I43: 0 | J43: 0 | K43: 0 | L43: 0 | M43: 0 | N43: 0 | O43: 0 | P43: 0 | Q43: 311.5 | R43: 1 | X43: 0.0 | Y43: 0 | Z43: 0
A44: 35 | B44: ='Wettkampf 1'!B44 -> Schütze 35 | C44: ='Wettkampf 1'!C44 -> Esterwegen I | E44: x | F44: 0 | G44: 0 | H44: 0 | I44: 0 | J44: 0 | K44: 0 | L44: 0 | M44: 0 | N44: 0 | O44: 0 | P44: 0 | Q44: 0 | R44: 0 | X44: 0.0 | Y44: 1 | Z44: 0
A45: 36 | B45: ='Wettkampf 1'!B45 -> Schütze 36 | C45: ='Wettkampf 1'!C45 -> Esterwegen I | E45: x | F45: 0 | G45: 0 | H45: 0 | I45: 0 | J45: 0 | K45: 0 | L45: 0 | M45: 0 | N45: 0 | O45: 0 | P45: 0 | Q45: 0 | R45: 0 | X45: 0.0 | Y45: 1 | Z45: 0
G46: =LARGE(G10:G45,1)+LARGE(G10:G45,2)+LARGE(G10:G45,3) -> 943.7 | H46: =SUM(H10:H45) -> 4 | I46: =LARGE(I10:I45,1)+LARGE(I10:I45,2)+LARGE(I10:I45,3) -> 937.7 | J46: =SUM(J10:J45) -> 4 | K46: =LARGE(K10:K45,1)+LARGE(K10:K45,2)+LARGE(K10:K45,3) -> 945.7 | L46: =SUM(L10:L45) -> 4 | M46: =LARGE(M10:M45,1)+LARGE(M10:M45,2)+LARGE(M10:M45,3) -> 939.6 | N46: =SUM(N10:N45) -> 4 | O46: =LARGE(O10:O45,1)+LARGE(O10:O45,2)+LARGE(O10:O45,3) -> 943.2 | P46: =SUM(P10:P45) -> 4 | Q46: =LARGE(Q10:Q45,1)+LARGE(Q10:Q45,2)+LARGE(Q10:Q45,3) -> 934.3 | R46: =SUM(R10:S45) -> 4
C47: per Email an: sk-huemmling@gmx.de

Sheet 6
B1: Verein / Gruppe | D1: Ergebnisse | V1: Austragungsort: | W1: =Übersicht!I4 -> Esterwegne
A2: 1 | B2: ='Wettkampf 1'!B2 -> Lahn II | D2: =G46 -> 939.5 | E2: =IF(H46>4,"Es sind zu viele Schützen in Wertung!"," ") ->  | V2: Wettkampftag: | W2: =Übersicht!I3 -> 08.12.
A3: 2 | B3: ='Wettkampf 1'!B3 -> Lorup IV | D3: =I46 -> 939.1 | E3: =IF(J46>4,"Es sind zu viele Schützen in Wertung!"," ") -> 
A4: 3 | B4: ='Wettkampf 1'!B4 -> Sögel I | D4: =K46 -> 944.8 | E4: =IF(L46>4,"Es sind zu viele Schützen in Wertung!"," ") ->  | X4: Ansprechpartner für Rückfragen:
A5: 4 | B5: ='Wettkampf 1'!B5 -> Neubörger I | D5: =M46 -> 936.7 | E5: =IF(N46>4,"Es sind zu viele Schützen in Wertung!"," ") ->  | V5: Name: | W5: Lindemann, Marco
A6: 5 | B6: ='Wettkampf 1'!B6 -> Börgermoor I | D6: =O46 -> 938.6 | E6: =IF(P46>4,"Es sind zu viele Schützen in Wertung!"," ") ->  | V6: Tel:
A7: 6 | B7: ='Wettkampf 1'!B7 -> Esterwegen I | D7: =Q46 -> 931.7 | E7: =IF(R46>4,"Es sind zu viele Schützen in Wertung!"," ") ->  | V7: Standaufsicht: | W7: Schulte Matthias
B9: Einzelergebnisse: | C9: Verein / Gruppe | D9: Ergebnisse (mindestens 0 eintragen) | E9: AW? Dann x eintippen | G9: Verein 1 | I9: Verein 2 | K9: Verein 3 | M9: Verein 4 | O9: Verein 5 | Q9: Verein 6 | U9: Proberechnung bei Streifen:
A10: 1 | B10: ='Wettkampf 1'!B10 -> Thyen Udo | C10: ='Wettkampf 1'!C10 -> Lahn II | D10: 310.6 | F10: =IF(E10="x","0",D10) -> 310.6 | G10: =IF(C10=$B$2,F10,0) -> 310.6 | H10: =(IF(AND($E10="",$C10=$B$2),1,0)) -> 1 | I10: =IF($C10=$B$3,F10,0) -> 0 | J10: =(IF(AND($E10="",$C10=$B$3),1,0)) -> 0 | K10: =IF($C10=$B$4,F10,0) -> 0 | L10: =(IF(AND($E10="",$C10=$B$4),1,0)) -> 0 | M10: =IF($C10=$B$5,F10,0) -> 0 | N10: =(IF(AND($E10="",$C10=$B$5),1,0)) -> 0 | O10: =IF($C10=$B$6,F10,0) -> 0 | P10: =(IF(AND($E10="",$C10=$B$6),1,0)) -> 0 | Q10: =IF($C10=$B$7,F10,0) -> 0 | R10: =(IF(AND($E10="",$C10=$B$7),1,0)) -> 0 | X10: =U10+V10+W10 -> 0.0 | Y10: =IF(X10=D10,1,0) -> 0 | Z10: =IF(X10=0,0,1) -> 0 | AA10: =IF(Y10+Z10=2,"Korrekt","") -> 
A11: 2 | B11: ='Wettkampf 1'!B11 -> Banedt Olaf | C11: ='Wettkampf 1'!C11 -> Lahn II | D11: 308.5 | F11: =IF(E11="x","0",D11) -> 308.5 | G11: =IF(C11=$B$2,F11,0) -> 308.5 | H11: =(IF(AND($E11="",$C11=$B$2),1,0)) -> 1 | I11: =IF($C11=$B$3,F11,0) -> 0 | J11: =(IF(AND($E11="",$C11=$B$3),1,0)) -> 0 | K11: =IF($C11=$B$4,F11,0) -> 0 | L11: =(IF(AND($E11="",$C11=$B$4),1,0)) -> 0 | M11: =IF($C11=$B$5,F11,0) -> 0 | N11: =(IF(AND($E11="",$C11=$B$5),1,0)) -> 0 | O11: =IF($C11=$B$6,F11,0) -> 0 | P11: =(IF(AND($E11="",$C11=$B$6),1,0)) -> 0 | Q11: =IF($C11=$B$7,F11,0) -> 0 | R11: =(IF(AND($E11="",$C11=$B$7),1,0)) -> 0 | X11: =U11+V11+W11 -> 0.0 | Y11: =IF(X11=D11,1,0) -> 0 | Z11: =IF(X11=0,0,1) -> 0 | AA11: =IF(Y11+Z11=2,"Korrekt","") -> 
A12: 3 | B12: ='Wettkampf 1'!B12 -> Thien Markus | C12: ='Wettkampf 1'!C12 -> Lahn II | D12: 311.2 | F12: 311.2 | G12: 311.2 | H12: 1 | I12: 0 | J12: 0 | K12: 0 | L12: 0 | M12: 0 | N12: 0 | O12: 0 | P12: 0 | Q12: 0 | R12: 0 | X12: 0.0 | Y12: 0 | Z12: 0
A13: 4 | B13: ='Wettkampf 1'!B13 -> Robben-Schlagge Ralf | C13: ='Wettkampf 1'!C13 -> Lahn II | D13: 317.7 | F13: 317.7 | G13: 317.7 | H13: 1 | I13: 0 | J13: 0 | K13: 0 | L13: 0 | M13: 0 | N13: 0 | O13: 0 | P13: 0 | Q13: 0 | R13: 0 | X13: 0.0 | Y13: 0 | Z13: 0
A14: 5 | B14: ='Wettkampf 1'!B14 -> Schütze 5 | C14: ='Wettkampf 1'!C14 -> Lahn II | E14: x | F14: 0 | G14: 0 | H14: 0 | I14: 0 | J14: 0 | K14: 0 | L14: 0 | M14: 0 | N14: 0 | O14: 0 | P14: 0 | Q14: 0 | R14: 0 | X14: 0.0 | Y14: 1 | Z14: 0
A15: 6 | B15: ='Wettkampf 1'!B15 -> Schütze 6 | C15: ='Wettkampf 1'!C15 -> Lahn II | E15: x | F15: 0 | G15: 0 | H15: 0 | I15: 0 | J15: 0 | K15: 0 | L15: 0 | M15: 0 | N15: 0 | O15: 0 | P15: 0 | Q15: 0 | R15: 0 | X15: 0.0 | Y15: 1 | Z15: 0
A16: 7 | B16: ='Wettkampf 1'!B16 -> Pölking Thomas | C16: ='Wettkampf 1'!C16 -> Lorup IV | D16: 311.8 | F16: 311.8 | G16: 0 | H16: 0 | I16: 311.8 | J16: 1 | K16: 0 | L16: 0 | M16: 0 | N16: 0 | O16: 0 | P16: 0 | Q16: 0 | R16: 0 | X16: 0.0 | Y16: 0 | Z16: 0
A17: 8 | B17: ='Wettkampf 1'!B17 -> Klawitter Gerd | C17: ='Wettkampf 1'!C17 -> Lorup IV | D17: 314.6 | F17: 314.6 | G17: 0 | H17: 0 | I17: 314.6 | J17: 1 | K17: 0 | L17: 0 | M17: 0 | N17: 0 | O17: 0 | P17: 0 | Q17: 0 | R17: 0 | X17: 0.0 | Y17: 0 | Z17: 0
A18: 9 | B18: ='Wettkampf 1'!B18 -> Albers Helmut | C18: ='Wettkampf 1'!C18 -> Lorup IV | D18: 310.2 | F18: 310.2 | G18: 0 | H18: 0 | I18: 310.2 | J18: 1 | K18: 0 | L18: 0 | M18: 0 | N18: 0 | O18: 0 | P18: 0 | Q18: 0 | R18: 0 | X18: 0.0 | Y18: 0 | Z18: 0
A19: 10 | B19: ='Wettkampf 1'!B19 -> Olliges Jürgen | C19: ='Wettkampf 1'!C19 -> Lorup IV | D19: 312.7 | F19: 312.7 | G19: 0 | H19: 0 | I19: 312.7 | J19: 1 | K19: 0 | L19: 0 | M19: 0 | N19: 0 | O19: 0 | P19: 0 | Q19: 0 | R19: 0 | X19: 0.0 | Y19: 0 | Z19: 0
A20: 11 | B20: ='Wettkampf 1'!B20 -> Gerdes Willi | C20: ='Wettkampf 1'!C20 -> Lorup IV | E20: x | F20: 0 | G20: 0 | H20: 0 | I20: 0 | J20: 0 | K20: 0 | L20: 0 | M20: 0 | N20: 0 | O20: 0 | P20: 0 | Q20: 0 | R20: 0 | X20: 0.0 | Y20: 1 | Z20: 0
A21: 12 | B21: ='Wettkampf 1'!B21 -> Schütze 12 | C21: ='Wettkampf 1'!C21 -> Lorup IV | E21: x | F21: 0 | G21: 0 | H21: 0 | I21: 0 | J21: 0 | K21: 0 | L21: 0 | M21: 0 | N21: 0 | O21: 0 | P21: 0 | Q21: 0 | R21: 0 | X21: 0.0 | Y21: 1 | Z21: 0
A22: 13 | B22: ='Wettkampf 1'!B22 -> Terborg Michael | C22: ='Wettkampf 1'!C22 -> Sögel I | D22: 308.7 | F22: 308.7 | G22: 0 | H22: 0 | I22: 0 | J22: 0 | K22: 308.7 | L22: 1 | M22: 0 | N22: 0 | O22: 0 | P22: 0 | Q22: 0 | R22: 0 | X22: 0.0 | Y22: 0 | Z22: 0
A23: 14 | B23: ='Wettkampf 1'!B23 -> Wester Markus | C23: ='Wettkampf 1'!C23 -> Sögel I | D23: 316.8 | F23: 316.8 | G23: 0 | H23: 0 | I23: 0 | J23: 0 | K23: 316.8 | L23: 1 | M23: 0 | N23: 0 | O23: 0 | P23: 0 | Q23: 0 | R23: 0 | X23: 0.0 | Y23: 0 | Z23: 0
A24: 15 | B24: ='Wettkampf 1'!B24 -> Dödtmann Ludger | C24: ='Wettkampf 1'!C24 -> Sögel I | D24: 310.0 | E24: x | F24: 0 | G24: 0 | H24: 0 | I24: 0 | J24: 0 | K24: 0 | L24: 0 | M24: 0 | N24: 0 | O24: 0 | P24: 0 | Q24: 0 | R24: 0 | X24: 0.0 | Y24: 0 | Z24: 0
A25: 16 | B25: ='Wettkampf 1'!B25 -> Tharner Karl-Heinz | C25: ='Wettkampf 1'!C25 -> Sögel I | D25: 310.8 | F25: 310.8 | G25: 0 | H25: 0 | I25: 0 | J25: 0 | K25: 310.8 | L25: 1 | M25: 0 | N25: 0 | O25: 0 | P25: 0 | Q25: 0 | R25: 0 | X25: 0.0 | Y25: 0 | Z25: 0
A26: 17 | B26: ='Wettkampf 1'!B26 -> Sunder Ferdi | C26: ='Wettkampf 1'!C26 -> Sögel I | D26: 317.2 | F26: 317.2 | G26: 0 | H26: 0 | I26: 0 | J26: 0 | K26: 317.2 | L26: 1 | M26: 0 | N26: 0 | O26: 0 | P26: 0 | Q26: 0 | R26: 0 | X26: 0.0 | Y26: 0 | Z26: 0
A27: 18 | B27: ='Wettkampf 1'!B27 -> Schütze 18 | C27: ='Wettkampf 1'!C27 -> Sögel I | E27: x | F27: 0 | G27: 0 | H27: 0 | I27: 0 | J27: 0 | K27: 0 | L27: 0 | M27: 0 | N27: 0 | O27: 0 | P27: 0 | Q27: 0 | R27: 0 | X27: 0.0 | Y27: 1 | Z27: 0
A28: 19 | B28: ='Wettkampf 1'!B28 -> Runde Norbert | C28: ='Wettkampf 1'!C28 -> Neubörger I | D28: 312.7 | F28: 312.7 | G28: 0 | H28: 0 | I28: 0 | J28: 0 | K28: 0 | L28: 0 | M28: 312.7 | N28: 1 | O28: 0 | P28: 0 | Q28: 0 | R28: 0 | X28: 0.0 | Y28: 0 | Z28: 0
A29: 20 | B29: ='Wettkampf 1'!B29 -> Hunfeld Anton | C29: ='Wettkampf 1'!C29 -> Neubörger I | D29: 311.2 | F29: 311.2 | G29: 0 | H29: 0 | I29: 0 | J29: 0 | K29: 0 | L29: 0 | M29: 311.2 | N29: 1 | O29: 0 | P29: 0 | Q29: 0 | R29: 0 | X29: 0.0 | Y29: 0 | Z29: 0
A30: 21 | B30: ='Wettkampf 1'!B30 -> Schnieders Willi | C30: ='Wettkampf 1'!C30 -> Neubörger I | D30: 298.4 | F30: 298.4 | G30: 0 | H30: 0 | I30: 0 | J30: 0 | K30: 0 | L30: 0 | M30: 298.4 | N30: 1 | O30: 0 | P30: 0 | Q30: 0 | R30: 0 | X30: 0.0 | Y30: 0 | Z30: 0
A31: 22 | B31: ='Wettkampf 1'!B31 -> Antons Klaus | C31: ='Wettkampf 1'!C31 -> Neubörger I | D31: 312.8 | F31: 312.8 | G31: 0 | H31: 0 | I31: 0 | J31: 0 | K31: 0 | L31: 0 | M31: 312.8 | N31: 1 | O31: 0 | P31: 0 | Q31: 0 | R31: 0 | X31: 0.0 | Y31: 0 | Z31: 0
A32: 23 | B32: ='Wettkampf 1'!B32 -> Voss Helmut | C32: ='Wettkampf 1'!C32 -> Neubörger I | E32: x | F32: 0 | G32: 0 | H32: 0 | I32: 0 | J32: 0 | K32: 0 | L32: 0 | M32: 0 | N32: 0 | O32: 0 | P32: 0 | Q32: 0 | R32: 0 | X32: 0.0 | Y32: 1 | Z32: 0
A33: 24 | B33: ='Wettkampf 1'!B33 -> Schütze 24 | C33: ='Wettkampf 1'!C33 -> Neubörger I | E33: x | F33: 0 | G33: 0 | H33: 0 | I33: 0 | J33: 0 | K33: 0 | L33: 0 | M33: 0 | N33: 0 | O33: 0 | P33: 0 | Q33: 0 | R33: 0 | X33: 0.0 | Y33: 1 | Z33: 0
A34: 25 | B34: ='Wettkampf 1'!B34 -> Großmann Martin | C34: ='Wettkampf 1'!C34 -> Börgermoor I | D34: 309.7 | F34: 309.7 | G34: 0 | H34: 0 | I34: 0 | J34: 0 | K34: 0 | L34: 0 | M34: 0 | N34: 0 | O34: 309.7 | P34: 1 | Q34: 0 | R34: 0 | X34: 0.0 | Y34: 0 | Z34: 0
A35: 26 | B35: ='Wettkampf 1'!B35 -> Segbers Bernard | C35: ='Wettkampf 1'!C35 -> Börgermoor I | D35: 313.4 | F35: 313.4 | G35: 0 | H35: 0 | I35: 0 | J35: 0 | K35: 0 | L35: 0 | M35: 0 | N35: 0 | O35: 313.4 | P35: 1 | Q35: 0 | R35: 0 | X35: 0.0 | Y35: 0 | Z35: 0
A36: 27 | B36: ='Wettkampf 1'!B36 -> Dobelmann Werner | C36: ='Wettkampf 1'!C36 -> Börgermoor I | D36: 309.4 | F36: 309.4 | G36: 0 | H36: 0 | I36: 0 | J36: 0 | K36: 0 | L36: 0 | M36: 0 | N36: 0 | O36: 309.4 | P36: 1 | Q36: 0 | R36: 0 | X36: 0.0 | Y36: 0 | Z36: 0
A37: 28 | B37: ='Wettkampf 1'!B37 -> Kohnen Stefan | C37: ='Wettkampf 1'!C37 -> Börgermoor I | D37: 315.5 | F37: 315.5 | G37: 0 | H37: 0 | I37: 0 | J37: 0 | K37: 0 | L37: 0 | M37: 0 | N37: 0 | O37: 315.5 | P37: 1 | Q37: 0 | R37: 0 | X37: 0.0 | Y37: 0 | Z37: 0
A38: 29 | B38: ='Wettkampf 1'!B38 -> Schütze 29 | C38: ='Wettkampf 1'!C38 -> Börgermoor I | E38: x | F38: 0 | G38: 0 | H38: 0 | I38: 0 | J38: 0 | K38: 0 | L38: 0 | M38: 0 | N38: 0 | O38: 0 | P38: 0 | Q38: 0 | R38: 0 | X38: 0.0 | Y38: 1 | Z38: 0
A39: 30 | B39: ='Wettkampf 1'!B39 -> Schütze 30 | C39: ='Wettkampf 1'!C39 -> Börgermoor I | E39: x | F39: 0 | G39: 0 | H39: 0 | I39: 0 | J39: 0 | K39: 0 | L39: 0 | M39: 0 | N39: 0 | O39: 0 | P39: 0 | Q39: 0 | R39: 0 | X39: 0.0 | Y39: 1 | Z39: 0
A40: 31 | B40: ='Wettkampf 1'!B40 -> Schulte Matthias | C40: ='Wettkampf 1'!C40 -> Esterwegen I | D40: 308.0 | F40: 308.0 | G40: 0 | H40: 0 | I40: 0 | J40: 0 | K40: 0 | L40: 0 | M40: 0 | N40: 0 | O40: 0 | P40: 0 | Q40: 308 | R40: 1 | X40: 0.0 | Y40: 0 | Z40: 0
A41: 32 | B41: ='Wettkampf 1'!B41 -> Middendorf Peter | C41: ='Wettkampf 1'!C41 -> Esterwegen I | D41: 303.8 | F41: 303.8 | G41: 0 | H41: 0 | I41: 0 | J41: 0 | K41: 0 | L41: 0 | M41: 0 | N41: 0 | O41: 0 | P41: 0 | Q41: 303.8 | R41: 1 | X41: 0.0 | Y41: 0 | Z41: 0
A42: 33 | B42: ='Wettkampf 1'!B42 -> Thomes Bernhard | C42: ='Wettkampf 1'!C42 -> Esterwegen I | D42: 312.4 | F42: 312.4 | G42: 0 | H42: 0 | I42: 0 | J42: 0 | K42: 0 | L42: 0 | M42: 0 | N42: 0 | O42: 0 | P42: 0 | Q42: 312.4 | R42: 1 | X42: 0.0 | Y42: 0 | Z42: 0
A43: 34 | B43: ='Wettkampf 1'!B43 -> Lindemann Marco | C43: ='Wettkampf 1'!C43 -> Esterwegen I | D43: 311.3 | F43: 311.3 | G43: 0 | H43: 0 | I43: 0 | J43: 0 | K43: 0 | L43: 0 | M43: 0 | N43: 0 | O43: 0 | P43: 0 | Q43: 311.3 | R43: 1 | X43: 0.0 | Y43: 0 | Z43: 0
A44: 35 | B44: ='Wettkampf 1'!B44 -> Schütze 35 | C44: ='Wettkampf 1'!C44 -> Esterwegen I | E44: x | F44: 0 | G44: 0 | H44: 0 | I44: 0 | J44: 0 | K44: 0 | L44: 0 | M44: 0 | N44: 0 | O44: 0 | P44: 0 | Q44: 0 | R44: 0 | X44: 0.0 | Y44: 1 | Z44: 0
A45: 36 | B45: ='Wettkampf 1'!B45 -> Schütze 36 | C45: ='Wettkampf 1'!C45 -> Esterwegen I | E45: x | F45: 0 | G45: 0 | H45: 0 | I45: 0 | J45: 0 | K45: 0 | L45: 0 | M45: 0 | N45: 0 | O45: 0 | P45: 0 | Q45: 0 | R45: 0 | X45: 0.0 | Y45: 1 | Z45: 0
G46: =LARGE(G10:G45,1)+LARGE(G10:G45,2)+LARGE(G10:G45,3) -> 939.5 | H46: =SUM(H10:H45) -> 4 | I46: =LARGE(I10:I45,1)+LARGE(I10:I45,2)+LARGE(I10:I45,3) -> 939.1 | J46: =SUM(J10:J45) -> 4 | K46: =LARGE(K10:K45,1)+LARGE(K10:K45,2)+LARGE(K10:K45,3) -> 944.8 | L46: =SUM(L10:L45) -> 4 | M46: =LARGE(M10:M45,1)+LARGE(M10:M45,2)+LARGE(M10:M45,3) -> 936.7 | N46: =SUM(N10:N45) -> 4 | O46: =LARGE(O10:O45,1)+LARGE(O10:O45,2)+LARGE(O10:O45,3) -> 938.6 | P46: =SUM(P10:P45) -> 4 | Q46: =LARGE(Q10:Q45,1)+LARGE(Q10:Q45,2)+LARGE(Q10:Q45,3) -> 931.7 | R46: =SUM(R10:S45) -> 4
C47: per Email an: sk-huemmling@gmx.de

Sheet 7
B1: Verein / Gruppe | D1: Ergebnisse | V1: Austragungsort: | W1: =Übersicht!L4 -> Lahn
A2: 1 | B2: ='Wettkampf 1'!B2 -> Lahn II | D2: =G46 -> 941.9 | E2: =IF(H46>4,"Es sind zu viele Schützen in Wertung!"," ") ->  | V2: Wettkampftag: | W2: =Übersicht!L3 -> 19.01.
A3: 2 | B3: ='Wettkampf 1'!B3 -> Lorup IV | D3: =I46 -> 938.0 | E3: =IF(J46>4,"Es sind zu viele Schützen in Wertung!"," ") -> 
A4: 3 | B4: ='Wettkampf 1'!B4 -> Sögel I | D4: =K46 -> 945.2 | E4: =IF(L46>4,"Es sind zu viele Schützen in Wertung!"," ") ->  | X4: Ansprechpartner für Rückfragen:
A5: 4 | B5: ='Wettkampf 1'!B5 -> Neubörger I | D5: =M46 -> 941.6 | E5: =IF(N46>4,"Es sind zu viele Schützen in Wertung!"," ") ->  | V5: Name: | W5: Banedt
A6: 5 | B6: ='Wettkampf 1'!B6 -> Börgermoor I | D6: =O46 -> 943.1 | E6: =IF(P46>4,"Es sind zu viele Schützen in Wertung!"," ") ->  | V6: Tel: | W6: 05951 994558
A7: 6 | B7: ='Wettkampf 1'!B7 -> Esterwegen I | D7: =Q46 -> 939.7 | E7: =IF(R46>4,"Es sind zu viele Schützen in Wertung!"," ") ->  | V7: Standaufsicht: | W7: Banedt
B9: Einzelergebnisse: | C9: Verein / Gruppe | D9: Ergebnisse (mindestens 0 eintragen) | E9: AW? Dann x eintippen | G9: Verein 1 | I9: Verein 2 | K9: Verein 3 | M9: Verein 4 | O9: Verein 5 | Q9: Verein 6 | U9: Proberechnung bei Streifen:
A10: 1 | B10: ='Wettkampf 1'!B10 -> Thyen Udo | C10: ='Wettkampf 1'!C10 -> Lahn II | D10: 311.4 | F10: =IF(E10="x","0",D10) -> 311.4 | G10: =IF(C10=$B$2,F10,0) -> 311.4 | H10: =(IF(AND($E10="",$C10=$B$2),1,0)) -> 1 | I10: =IF($C10=$B$3,F10,0) -> 0 | J10: =(IF(AND($E10="",$C10=$B$3),1,0)) -> 0 | K10: =IF($C10=$B$4,F10,0) -> 0 | L10: =(IF(AND($E10="",$C10=$B$4),1,0)) -> 0 | M10: =IF($C10=$B$5,F10,0) -> 0 | N10: =(IF(AND($E10="",$C10=$B$5),1,0)) -> 0 | O10: =IF($C10=$B$6,F10,0) -> 0 | P10: =(IF(AND($E10="",$C10=$B$6),1,0)) -> 0 | Q10: =IF($C10=$B$7,F10,0) -> 0 | R10: =(IF(AND($E10="",$C10=$B$7),1,0)) -> 0 | X10: =U10+V10+W10 -> 0.0 | Y10: =IF(X10=D10,1,0) -> 0 | Z10: =IF(X10=0,0,1) -> 0 | AA10: =IF(Y10+Z10=2,"Korrekt","") -> 
A11: 2 | B11: ='Wettkampf 1'!B11 -> Banedt Olaf | C11: ='Wettkampf 1'!C11 -> Lahn II | D11: 311.8 | F11: =IF(E11="x","0",D11) -> 311.8 | G11: =IF(C11=$B$2,F11,0) -> 311.8 | H11: =(IF(AND($E11="",$C11=$B$2),1,0)) -> 1 | I11: =IF($C11=$B$3,F11,0) -> 0 | J11: =(IF(AND($E11="",$C11=$B$3),1,0)) -> 0 | K11: =IF($C11=$B$4,F11,0) -> 0 | L11: =(IF(AND($E11="",$C11=$B$4),1,0)) -> 0 | M11: =IF($C11=$B$5,F11,0) -> 0 | N11: =(IF(AND($E11="",$C11=$B$5),1,0)) -> 0 | O11: =IF($C11=$B$6,F11,0) -> 0 | P11: =(IF(AND($E11="",$C11=$B$6),1,0)) -> 0 | Q11: =IF($C11=$B$7,F11,0) -> 0 | R11: =(IF(AND($E11="",$C11=$B$7),1,0)) -> 0 | X11: =U11+V11+W11 -> 0.0 | Y11: =IF(X11=D11,1,0) -> 0 | Z11: =IF(X11=0,0,1) -> 0 | AA11: =IF(Y11+Z11=2,"Korrekt","") -> 
A12: 3 | B12: ='Wettkampf 1'!B12 -> Thien Markus | C12: ='Wettkampf 1'!C12 -> Lahn II | D12: 314.6 | F12: 314.6 | G12: 314.6 | H12: 1 | I12: 0 | J12: 0 | K12: 0 | L12: 0 | M12: 0 | N12: 0 | O12: 0 | P12: 0 | Q12: 0 | R12: 0 | X12: 0.0 | Y12: 0 | Z12: 0
A13: 4 | B13: ='Wettkampf 1'!B13 -> Robben-Schlagge Ralf | C13: ='Wettkampf 1'!C13 -> Lahn II | D13: 315.5 | F13: 315.5 | G13: 315.5 | H13: 1 | I13: 0 | J13: 0 | K13: 0 | L13: 0 | M13: 0 | N13: 0 | O13: 0 | P13: 0 | Q13: 0 | R13: 0 | X13: 0.0 | Y13: 0 | Z13: 0
A14: 5 | B14: ='Wettkampf 1'!B14 -> Schütze 5 | C14: ='Wettkampf 1'!C14 -> Lahn II | D14: 0.0 | E14: x | F14: 0 | G14: 0 | H14: 0 | I14: 0 | J14: 0 | K14: 0 | L14: 0 | M14: 0 | N14: 0 | O14: 0 | P14: 0 | Q14: 0 | R14: 0 | X14: 0.0 | Y14: 1 | Z14: 0
A15: 6 | B15: ='Wettkampf 1'!B15 -> Schütze 6 | C15: ='Wettkampf 1'!C15 -> Lahn II | D15: 0.0 | E15: x | F15: 0 | G15: 0 | H15: 0 | I15: 0 | J15: 0 | K15: 0 | L15: 0 | M15: 0 | N15: 0 | O15: 0 | P15: 0 | Q15: 0 | R15: 0 | X15: 0.0 | Y15: 1 | Z15: 0
A16: 7 | B16: ='Wettkampf 1'!B16 -> Pölking Thomas | C16: ='Wettkampf 1'!C16 -> Lorup IV | D16: 310.8 | F16: 310.8 | G16: 0 | H16: 0 | I16: 310.8 | J16: 1 | K16: 0 | L16: 0 | M16: 0 | N16: 0 | O16: 0 | P16: 0 | Q16: 0 | R16: 0 | X16: 0.0 | Y16: 0 | Z16: 0
A17: 8 | B17: ='Wettkampf 1'!B17 -> Klawitter Gerd | C17: ='Wettkampf 1'!C17 -> Lorup IV | D17: 314.0 | F17: 314.0 | G17: 0 | H17: 0 | I17: 314 | J17: 1 | K17: 0 | L17: 0 | M17: 0 | N17: 0 | O17: 0 | P17: 0 | Q17: 0 | R17: 0 | X17: 0.0 | Y17: 0 | Z17: 0
A18: 9 | B18: ='Wettkampf 1'!B18 -> Albers Helmut | C18: ='Wettkampf 1'!C18 -> Lorup IV | D18: 306.2 | F18: 306.2 | G18: 0 | H18: 0 | I18: 306.2 | J18: 1 | K18: 0 | L18: 0 | M18: 0 | N18: 0 | O18: 0 | P18: 0 | Q18: 0 | R18: 0 | X18: 0.0 | Y18: 0 | Z18: 0
A19: 10 | B19: ='Wettkampf 1'!B19 -> Olliges Jürgen | C19: ='Wettkampf 1'!C19 -> Lorup IV | D19: 313.2 | F19: 313.2 | G19: 0 | H19: 0 | I19: 313.2 | J19: 1 | K19: 0 | L19: 0 | M19: 0 | N19: 0 | O19: 0 | P19: 0 | Q19: 0 | R19: 0 | X19: 0.0 | Y19: 0 | Z19: 0
A20: 11 | B20: ='Wettkampf 1'!B20 -> Gerdes Willi | C20: ='Wettkampf 1'!C20 -> Lorup IV | D20: 0.0 | E20: x | F20: 0 | G20: 0 | H20: 0 | I20: 0 | J20: 0 | K20: 0 | L20: 0 | M20: 0 | N20: 0 | O20: 0 | P20: 0 | Q20: 0 | R20: 0 | X20: 0.0 | Y20: 1 | Z20: 0
A21: 12 | B21: ='Wettkampf 1'!B21 -> Schütze 12 | C21: ='Wettkampf 1'!C21 -> Lorup IV | D21: 0.0 | E21: x | F21: 0 | G21: 0 | H21: 0 | I21: 0 | J21: 0 | K21: 0 | L21: 0 | M21: 0 | N21: 0 | O21: 0 | P21: 0 | Q21: 0 | R21: 0 | X21: 0.0 | Y21: 1 | Z21: 0
A22: 13 | B22: ='Wettkampf 1'!B22 -> Terborg Michael | C22: ='Wettkampf 1'!C22 -> Sögel I | D22: 307.1 | F22: 307.1 | G22: 0 | H22: 0 | I22: 0 | J22: 0 | K22: 307.1 | L22: 1 | M22: 0 | N22: 0 | O22: 0 | P22: 0 | Q22: 0 | R22: 0 | X22: 0.0 | Y22: 0 | Z22: 0
A23: 14 | B23: ='Wettkampf 1'!B23 -> Wester Markus | C23: ='Wettkampf 1'!C23 -> Sögel I | D23: 314.2 | F23: 314.2 | G23: 0 | H23: 0 | I23: 0 | J23: 0 | K23: 314.2 | L23: 1 | M23: 0 | N23: 0 | O23: 0 | P23: 0 | Q23: 0 | R23: 0 | X23: 0.0 | Y23: 0 | Z23: 0
A24: 15 | B24: ='Wettkampf 1'!B24 -> Dödtmann Ludger | C24: ='Wettkampf 1'!C24 -> Sögel I | D24: 311.6 | E24: x | F24: 0 | G24: 0 | H24: 0 | I24: 0 | J24: 0 | K24: 0 | L24: 0 | M24: 0 | N24: 0 | O24: 0 | P24: 0 | Q24: 0 | R24: 0 | X24: 0.0 | Y24: 0 | Z24: 0
A25: 16 | B25: ='Wettkampf 1'!B25 -> Tharner Karl-Heinz | C25: ='Wettkampf 1'!C25 -> Sögel I | D25: 315.0 | F25: 315.0 | G25: 0 | H25: 0 | I25: 0 | J25: 0 | K25: 315 | L25: 1 | M25: 0 | N25: 0 | O25: 0 | P25: 0 | Q25: 0 | R25: 0 | X25: 0.0 | Y25: 0 | Z25: 0
A26: 17 | B26: ='Wettkampf 1'!B26 -> Sunder Ferdi | C26: ='Wettkampf 1'!C26 -> Sögel I | D26: 316.0 | F26: 316.0 | G26: 0 | H26: 0 | I26: 0 | J26: 0 | K26: 316 | L26: 1 | M26: 0 | N26: 0 | O26: 0 | P26: 0 | Q26: 0 | R26: 0 | X26: 0.0 | Y26: 0 | Z26: 0
A27: 18 | B27: ='Wettkampf 1'!B27 -> Schütze 18 | C27: ='Wettkampf 1'!C27 -> Sögel I | D27: 0.0 | E27: x | F27: 0 | G27: 0 | H27: 0 | I27: 0 | J27: 0 | K27: 0 | L27: 0 | M27: 0 | N27: 0 | O27: 0 | P27: 0 | Q27: 0 | R27: 0 | X27: 0.0 | Y27: 1 | Z27: 0
A28: 19 | B28: ='Wettkampf 1'!B28 -> Runde Norbert | C28: ='Wettkampf 1'!C28 -> Neubörger I | D28: 314.4 | F28: 314.4 | G28: 0 | H28: 0 | I28: 0 | J28: 0 | K28: 0 | L28: 0 | M28: 314.4 | N28: 1 | O28: 0 | P28: 0 | Q28: 0 | R28: 0 | X28: 0.0 | Y28: 0 | Z28: 0
A29: 20 | B29: ='Wettkampf 1'!B29 -> Hunfeld Anton | C29: ='Wettkampf 1'!C29 -> Neubörger I | D29: 308.5 | F29: 308.5 | G29: 0 | H29: 0 | I29: 0 | J29: 0 | K29: 0 | L29: 0 | M29: 308.5 | N29: 1 | O29: 0 | P29: 0 | Q29: 0 | R29: 0 | X29: 0.0 | Y29: 0 | Z29: 0
A30: 21 | B30: ='Wettkampf 1'!B30 -> Schnieders Willi | C30: ='Wettkampf 1'!C30 -> Neubörger I | D30: 299.9 | E30: x | F30: 0 | G30: 0 | H30: 0 | I30: 0 | J30: 0 | K30: 0 | L30: 0 | M30: 0 | N30: 0 | O30: 0 | P30: 0 | Q30: 0 | R30: 0 | X30: 0.0 | Y30: 0 | Z30: 0
A31: 22 | B31: ='Wettkampf 1'!B31 -> Antons Klaus | C31: ='Wettkampf 1'!C31 -> Neubörger I | D31: 317.0 | F31: 317.0 | G31: 0 | H31: 0 | I31: 0 | J31: 0 | K31: 0 | L31: 0 | M31: 317 | N31: 1 | O31: 0 | P31: 0 | Q31: 0 | R31: 0 | X31: 0.0 | Y31: 0 | Z31: 0
A32: 23 | B32: ='Wettkampf 1'!B32 -> Voss Helmut | C32: ='Wettkampf 1'!C32 -> Neubörger I | D32: 310.2 | F32: 310.2 | G32: 0 | H32: 0 | I32: 0 | J32: 0 | K32: 0 | L32: 0 | M32: 310.2 | N32: 1 | O32: 0 | P32: 0 | Q32: 0 | R32: 0 | X32: 0.0 | Y32: 0 | Z32: 0
A33: 24 | B33: ='Wettkampf 1'!B33 -> Schütze 24 | C33: ='Wettkampf 1'!C33 -> Neubörger I | D33: 0.0 | E33: x | F33: 0 | G33: 0 | H33: 0 | I33: 0 | J33: 0 | K33: 0 | L33: 0 | M33: 0 | N33: 0 | O33: 0 | P33: 0 | Q33: 0 | R33: 0 | X33: 0.0 | Y33: 1 | Z33: 0
A34: 25 | B34: ='Wettkampf 1'!B34 -> Großmann Martin | C34: ='Wettkampf 1'!C34 -> Börgermoor I | D34: 312.6 | F34: 312.6 | G34: 0 | H34: 0 | I34: 0 | J34: 0 | K34: 0 | L34: 0 | M34: 0 | N34: 0 | O34: 312.6 | P34: 1 | Q34: 0 | R34: 0 | X34: 0.0 | Y34: 0 | Z34: 0
A35: 26 | B35: ='Wettkampf 1'!B35 -> Segbers Bernard | C35: ='Wettkampf 1'!C35 -> Börgermoor I | D35: 312.8 | F35: 312.8 | G35: 0 | H35: 0 | I35: 0 | J35: 0 | K35: 0 | L35: 0 | M35: 0 | N35: 0 | O35: 312.8 | P35: 1 | Q35: 0 | R35: 0 | X35: 0.0 | Y35: 0 | Z35: 0
A36: 27 | B36: ='Wettkampf 1'!B36 -> Dobelmann Werner | C36: ='Wettkampf 1'!C36 -> Börgermoor I | D36: 311.0 | F36: 311.0 | G36: 0 | H36: 0 | I36: 0 | J36: 0 | K36: 0 | L36: 0 | M36: 0 | N36: 0 | O36: 311 | P36: 1 | Q36: 0 | R36: 0 | X36: 0.0 | Y36: 0 | Z36: 0
A37: 28 | B37: ='Wettkampf 1'!B37 -> Kohnen Stefan | C37: ='Wettkampf 1'!C37 -> Börgermoor I | D37: 317.7 | F37: 317.7 | G37: 0 | H37: 0 | I37: 0 | J37: 0 | K37: 0 | L37: 0 | M37: 0 | N37: 0 | O37: 317.7 | P37: 1 | Q37: 0 | R37: 0 | X37: 0.0 | Y37: 0 | Z37: 0
A38: 29 | B38: ='Wettkampf 1'!B38 -> Schütze 29 | C38: ='Wettkampf 1'!C38 -> Börgermoor I | D38: 0.0 | E38: x | F38: 0 | G38: 0 | H38: 0 | I38: 0 | J38: 0 | K38: 0 | L38: 0 | M38: 0 | N38: 0 | O38: 0 | P38: 0 | Q38: 0 | R38: 0 | X38: 0.0 | Y38: 1 | Z38: 0
A39: 30 | B39: ='Wettkampf 1'!B39 -> Schütze 30 | C39: ='Wettkampf 1'!C39 -> Börgermoor I | D39: 0.0 | E39: x | F39: 0 | G39: 0 | H39: 0 | I39: 0 | J39: 0 | K39: 0 | L39: 0 | M39: 0 | N39: 0 | O39: 0 | P39: 0 | Q39: 0 | R39: 0 | X39: 0.0 | Y39: 1 | Z39: 0
A40: 31 | B40: ='Wettkampf 1'!B40 -> Schulte Matthias | C40: ='Wettkampf 1'!C40 -> Esterwegen I | D40: 311.5 | F40: 311.5 | G40: 0 | H40: 0 | I40: 0 | J40: 0 | K40: 0 | L40: 0 | M40: 0 | N40: 0 | O40: 0 | P40: 0 | Q40: 311.5 | R40: 1 | X40: 0.0 | Y40: 0 | Z40: 0
A41: 32 | B41: ='Wettkampf 1'!B41 -> Middendorf Peter | C41: ='Wettkampf 1'!C41 -> Esterwegen I | D41: 312.7 | F41: 312.7 | G41: 0 | H41: 0 | I41: 0 | J41: 0 | K41: 0 | L41: 0 | M41: 0 | N41: 0 | O41: 0 | P41: 0 | Q41: 312.7 | R41: 1 | X41: 0.0 | Y41: 0 | Z41: 0
A42: 33 | B42: ='Wettkampf 1'!B42 -> Thomes Bernhard | C42: ='Wettkampf 1'!C42 -> Esterwegen I | D42: 314.9 | F42: 314.9 | G42: 0 | H42: 0 | I42: 0 | J42: 0 | K42: 0 | L42: 0 | M42: 0 | N42: 0 | O42: 0 | P42: 0 | Q42: 314.9 | R42: 1 | X42: 0.0 | Y42: 0 | Z42: 0
A43: 34 | B43: ='Wettkampf 1'!B43 -> Lindemann Marco | C43: ='Wettkampf 1'!C43 -> Esterwegen I | D43: 312.1 | F43: 312.1 | G43: 0 | H43: 0 | I43: 0 | J43: 0 | K43: 0 | L43: 0 | M43: 0 | N43: 0 | O43: 0 | P43: 0 | Q43: 312.1 | R43: 1 | X43: 0.0 | Y43: 0 | Z43: 0
A44: 35 | B44: ='Wettkampf 1'!B44 -> Schütze 35 | C44: ='Wettkampf 1'!C44 -> Esterwegen I | D44: 0.0 | E44: x | F44: 0 | G44: 0 | H44: 0 | I44: 0 | J44: 0 | K44: 0 | L44: 0 | M44: 0 | N44: 0 | O44: 0 | P44: 0 | Q44: 0 | R44: 0 | X44: 0.0 | Y44: 1 | Z44: 0
A45: 36 | B45: ='Wettkampf 1'!B45 -> Schütze 36 | C45: ='Wettkampf 1'!C45 -> Esterwegen I | D45: 0.0 | E45: x | F45: 0 | G45: 0 | H45: 0 | I45: 0 | J45: 0 | K45: 0 | L45: 0 | M45: 0 | N45: 0 | O45: 0 | P45: 0 | Q45: 0 | R45: 0 | X45: 0.0 | Y45: 1 | Z45: 0
G46: =LARGE(G10:G45,1)+LARGE(G10:G45,2)+LARGE(G10:G45,3) -> 941.9 | H46: =SUM(H10:H45) -> 4 | I46: =LARGE(I10:I45,1)+LARGE(I10:I45,2)+LARGE(I10:I45,3) -> 938 | J46: =SUM(J10:J45) -> 4 | K46: =LARGE(K10:K45,1)+LARGE(K10:K45,2)+LARGE(K10:K45,3) -> 945.2 | L46: =SUM(L10:L45) -> 4 | M46: =LARGE(M10:M45,1)+LARGE(M10:M45,2)+LARGE(M10:M45,3) -> 941.6 | N46: =SUM(N10:N45) -> 4 | O46: =LARGE(O10:O45,1)+LARGE(O10:O45,2)+LARGE(O10:O45,3) -> 943.1 | P46: =SUM(P10:P45) -> 4 | Q46: =LARGE(Q10:Q45,1)+LARGE(Q10:Q45,2)+LARGE(Q10:Q45,3) -> 939.7 | R46: =SUM(R10:S45) -> 4
C47: per Email an: sk-huemmling@gmx.de

Sheet 8
B1: Verein / Gruppe | D1: Ergebnisse | V1: Austragungsort: | W1: =Übersicht!M4 -> Lorup
A2: 1 | B2: ='Wettkampf 1'!B2 -> Lahn II | D2: =G46 -> 938.9 | E2: =IF(H46>4,"Es sind zu viele Schützen in Wertung!"," ") ->  | V2: Wettkampftag: | W2: =Übersicht!M3 -> 02.02.
A3: 2 | B3: ='Wettkampf 1'!B3 -> Lorup IV | D3: =I46 -> 936.2 | E3: =IF(J46>4,"Es sind zu viele Schützen in Wertung!"," ") -> 
A4: 3 | B4: ='Wettkampf 1'!B4 -> Sögel I | D4: =K46 -> 944.7 | E4: =IF(L46>4,"Es sind zu viele Schützen in Wertung!"," ") ->  | X4: Ansprechpartner für Rückfragen:
A5: 4 | B5: ='Wettkampf 1'!B5 -> Neubörger I | D5: =M46 -> 940.2 | E5: =IF(N46>4,"Es sind zu viele Schützen in Wertung!"," ") ->  | V5: Name: | W5: Gerdes
A6: 5 | B6: ='Wettkampf 1'!B6 -> Börgermoor I | D6: =O46 -> 941.1 | E6: =IF(P46>4,"Es sind zu viele Schützen in Wertung!"," ") ->  | V6: Tel:
A7: 6 | B7: ='Wettkampf 1'!B7 -> Esterwegen I | D7: =Q46 -> 933.2 | E7: =IF(R46>4,"Es sind zu viele Schützen in Wertung!"," ") ->  | V7: Standaufsicht: | W7: Gerdes
B9: Einzelergebnisse: | C9: Verein / Gruppe | D9: Ergebnisse (mindestens 0 eintragen) | E9: AW? Dann x eintippen | G9: Verein 1 | I9: Verein 2 | K9: Verein 3 | M9: Verein 4 | O9: Verein 5 | Q9: Verein 6 | U9: Proberechnung bei Streifen:
A10: 1 | B10: ='Wettkampf 1'!B10 -> Thyen Udo | C10: ='Wettkampf 1'!C10 -> Lahn II | D10: 312.1 | F10: =IF(E10="x","0",D10) -> 312.1 | G10: =IF(C10=$B$2,F10,0) -> 312.1 | H10: =(IF(AND($E10="",$C10=$B$2),1,0)) -> 1 | I10: =IF($C10=$B$3,F10,0) -> 0 | J10: =(IF(AND($E10="",$C10=$B$3),1,0)) -> 0 | K10: =IF($C10=$B$4,F10,0) -> 0 | L10: =(IF(AND($E10="",$C10=$B$4),1,0)) -> 0 | M10: =IF($C10=$B$5,F10,0) -> 0 | N10: =(IF(AND($E10="",$C10=$B$5),1,0)) -> 0 | O10: =IF($C10=$B$6,F10,0) -> 0 | P10: =(IF(AND($E10="",$C10=$B$6),1,0)) -> 0 | Q10: =IF($C10=$B$7,F10,0) -> 0 | R10: =(IF(AND($E10="",$C10=$B$7),1,0)) -> 0 | U10: 103.6 | V10: 104.2 | W10: 104.3 | X10: =U10+V10+W10 -> 312.1 | Y10: =IF(X10=D10,1,0) -> 1 | Z10: =IF(X10=0,0,1) -> 1 | AA10: =IF(Y10+Z10=2,"Korrekt","") -> Korrekt
A11: 2 | B11: ='Wettkampf 1'!B11 -> Banedt Olaf | C11: ='Wettkampf 1'!C11 -> Lahn II | D11: 308.2 | F11: =IF(E11="x","0",D11) -> 308.2 | G11: =IF(C11=$B$2,F11,0) -> 308.2 | H11: =(IF(AND($E11="",$C11=$B$2),1,0)) -> 1 | I11: =IF($C11=$B$3,F11,0) -> 0 | J11: =(IF(AND($E11="",$C11=$B$3),1,0)) -> 0 | K11: =IF($C11=$B$4,F11,0) -> 0 | L11: =(IF(AND($E11="",$C11=$B$4),1,0)) -> 0 | M11: =IF($C11=$B$5,F11,0) -> 0 | N11: =(IF(AND($E11="",$C11=$B$5),1,0)) -> 0 | O11: =IF($C11=$B$6,F11,0) -> 0 | P11: =(IF(AND($E11="",$C11=$B$6),1,0)) -> 0 | Q11: =IF($C11=$B$7,F11,0) -> 0 | R11: =(IF(AND($E11="",$C11=$B$7),1,0)) -> 0 | U11: 102.9 | V11: 103.7 | W11: 101.6 | X11: =U11+V11+W11 -> 308.2 | Y11: =IF(X11=D11,1,0) -> 1 | Z11: =IF(X11=0,0,1) -> 1 | AA11: =IF(Y11+Z11=2,"Korrekt","") -> Korrekt
A12: 3 | B12: ='Wettkampf 1'!B12 -> Thien Markus | C12: ='Wettkampf 1'!C12 -> Lahn II | D12: 313.0 | F12: 313.0 | G12: 313 | H12: 1 | I12: 0 | J12: 0 | K12: 0 | L12: 0 | M12: 0 | N12: 0 | O12: 0 | P12: 0 | Q12: 0 | R12: 0 | U12: 105.3 | V12: 103.3 | W12: 104.4 | X12: 313.0 | Y12: 1 | Z12: 1 | AA12: Korrekt
A13: 4 | B13: ='Wettkampf 1'!B13 -> Robben-Schlagge Ralf | C13: ='Wettkampf 1'!C13 -> Lahn II | D13: 313.8 | F13: 313.8 | G13: 313.8 | H13: 1 | I13: 0 | J13: 0 | K13: 0 | L13: 0 | M13: 0 | N13: 0 | O13: 0 | P13: 0 | Q13: 0 | R13: 0 | U13: 104.0 | V13: 105.0 | W13: 104.8 | X13: 313.8 | Y13: 1 | Z13: 1 | AA13: Korrekt
A14: 5 | B14: ='Wettkampf 1'!B14 -> Schütze 5 | C14: ='Wettkampf 1'!C14 -> Lahn II | E14: x | F14: 0 | G14: 0 | H14: 0 | I14: 0 | J14: 0 | K14: 0 | L14: 0 | M14: 0 | N14: 0 | O14: 0 | P14: 0 | Q14: 0 | R14: 0 | X14: 0.0 | Y14: 1 | Z14: 0
A15: 6 | B15: ='Wettkampf 1'!B15 -> Schütze 6 | C15: ='Wettkampf 1'!C15 -> Lahn II | E15: x | F15: 0 | G15: 0 | H15: 0 | I15: 0 | J15: 0 | K15: 0 | L15: 0 | M15: 0 | N15: 0 | O15: 0 | P15: 0 | Q15: 0 | R15: 0 | X15: 0.0 | Y15: 1 | Z15: 0
A16: 7 | B16: ='Wettkampf 1'!B16 -> Pölking Thomas | C16: ='Wettkampf 1'!C16 -> Lorup IV | D16: 312.3 | F16: 312.3 | G16: 0 | H16: 0 | I16: 312.3 | J16: 1 | K16: 0 | L16: 0 | M16: 0 | N16: 0 | O16: 0 | P16: 0 | Q16: 0 | R16: 0 | U16: 104.5 | V16: 103.0 | W16: 104.8 | X16: 312.3 | Y16: 1 | Z16: 1 | AA16: Korrekt
A17: 8 | B17: ='Wettkampf 1'!B17 -> Klawitter Gerd | C17: ='Wettkampf 1'!C17 -> Lorup IV | D17: 310.4 | F17: 310.4 | G17: 0 | H17: 0 | I17: 310.4 | J17: 1 | K17: 0 | L17: 0 | M17: 0 | N17: 0 | O17: 0 | P17: 0 | Q17: 0 | R17: 0 | U17: 101.4 | V17: 103.5 | W17: 105.5 | X17: 310.4 | Y17: 1 | Z17: 1 | AA17: Korrekt
A18: 9 | B18: ='Wettkampf 1'!B18 -> Albers Helmut | C18: ='Wettkampf 1'!C18 -> Lorup IV | D18: 306.2 | F18: 306.2 | G18: 0 | H18: 0 | I18: 306.2 | J18: 1 | K18: 0 | L18: 0 | M18: 0 | N18: 0 | O18: 0 | P18: 0 | Q18: 0 | R18: 0 | U18: 102.1 | V18: 101.7 | W18: 102.4 | X18: 306.2 | Y18: 1 | Z18: 1 | AA18: Korrekt
A19: 10 | B19: ='Wettkampf 1'!B19 -> Olliges Jürgen | C19: ='Wettkampf 1'!C19 -> Lorup IV | D19: 313.5 | F19: 313.5 | G19: 0 | H19: 0 | I19: 313.5 | J19: 1 | K19: 0 | L19: 0 | M19: 0 | N19: 0 | O19: 0 | P19: 0 | Q19: 0 | R19: 0 | U19: 103.0 | V19: 104.3 | W19: 106.2 | X19: 313.5 | Y19: 1 | Z19: 1 | AA19: Korrekt
A20: 11 | B20: ='Wettkampf 1'!B20 -> Gerdes Willi | C20: ='Wettkampf 1'!C20 -> Lorup IV | E20: x | F20: 0 | G20: 0 | H20: 0 | I20: 0 | J20: 0 | K20: 0 | L20: 0 | M20: 0 | N20: 0 | O20: 0 | P20: 0 | Q20: 0 | R20: 0 | X20: 0.0 | Y20: 1 | Z20: 0
A21: 12 | B21: ='Wettkampf 1'!B21 -> Schütze 12 | C21: ='Wettkampf 1'!C21 -> Lorup IV | E21: x | F21: 0 | G21: 0 | H21: 0 | I21: 0 | J21: 0 | K21: 0 | L21: 0 | M21: 0 | N21: 0 | O21: 0 | P21: 0 | Q21: 0 | R21: 0 | X21: 0.0 | Y21: 1 | Z21: 0
A22: 13 | B22: ='Wettkampf 1'!B22 -> Terborg Michael | C22: ='Wettkampf 1'!C22 -> Sögel I | D22: 312.0 | F22: 312.0 | G22: 0 | H22: 0 | I22: 0 | J22: 0 | K22: 312 | L22: 1 | M22: 0 | N22: 0 | O22: 0 | P22: 0 | Q22: 0 | R22: 0 | U22: 102.5 | V22: 104.4 | W22: 105.1 | X22: 312.0 | Y22: 1 | Z22: 1 | AA22: Korrekt
A23: 14 | B23: ='Wettkampf 1'!B23 -> Wester Markus | C23: ='Wettkampf 1'!C23 -> Sögel I | D23: 301.9 | F23: 301.9 | G23: 0 | H23: 0 | I23: 0 | J23: 0 | K23: 301.9 | L23: 1 | M23: 0 | N23: 0 | O23: 0 | P23: 0 | Q23: 0 | R23: 0 | U23: 92.4 | V23: 105.3 | W23: 104.2 | X23: 301.9 | Y23: 1 | Z23: 1 | AA23: Korrekt
A24: 15 | B24: ='Wettkampf 1'!B24 -> Dödtmann Ludger | C24: ='Wettkampf 1'!C24 -> Sögel I | D24: 312.2 | E24: x | F24: 0 | G24: 0 | H24: 0 | I24: 0 | J24: 0 | K24: 0 | L24: 0 | M24: 0 | N24: 0 | O24: 0 | P24: 0 | Q24: 0 | R24: 0 | U24: 103.4 | V24: 105.6 | W24: 103.2 | X24: 312.2 | Y24: 1 | Z24: 1 | AA24: Korrekt
A25: 16 | B25: ='Wettkampf 1'!B25 -> Tharner Karl-Heinz | C25: ='Wettkampf 1'!C25 -> Sögel I | D25: 316.5 | F25: 316.5 | G25: 0 | H25: 0 | I25: 0 | J25: 0 | K25: 316.5 | L25: 1 | M25: 0 | N25: 0 | O25: 0 | P25: 0 | Q25: 0 | R25: 0 | U25: 105.0 | V25: 104.9 | W25: 106.6 | X25: 316.5 | Y25: 1 | Z25: 1 | AA25: Korrekt
A26: 17 | B26: ='Wettkampf 1'!B26 -> Sunder Ferdi | C26: ='Wettkampf 1'!C26 -> Sögel I | D26: 316.2 | F26: 316.2 | G26: 0 | H26: 0 | I26: 0 | J26: 0 | K26: 316.2 | L26: 1 | M26: 0 | N26: 0 | O26: 0 | P26: 0 | Q26: 0 | R26: 0 | U26: 104.8 | V26: 105.6 | W26: 105.8 | X26: 316.2 | Y26: 1 | Z26: 1 | AA26: Korrekt
A27: 18 | B27: ='Wettkampf 1'!B27 -> Schütze 18 | C27: ='Wettkampf 1'!C27 -> Sögel I | E27: x | F27: 0 | G27: 0 | H27: 0 | I27: 0 | J27: 0 | K27: 0 | L27: 0 | M27: 0 | N27: 0 | O27: 0 | P27: 0 | Q27: 0 | R27: 0 | X27: 0.0 | Y27: 1 | Z27: 0
A28: 19 | B28: ='Wettkampf 1'!B28 -> Runde Norbert | C28: ='Wettkampf 1'!C28 -> Neubörger I | D28: 314.3 | F28: 314.3 | G28: 0 | H28: 0 | I28: 0 | J28: 0 | K28: 0 | L28: 0 | M28: 314.3 | N28: 1 | O28: 0 | P28: 0 | Q28: 0 | R28: 0 | U28: 104.2 | V28: 105.5 | W28: 104.6 | X28: 314.3 | Y28: 1 | Z28: 1 | AA28: Korrekt
A29: 20 | B29: ='Wettkampf 1'!B29 -> Hunfeld Anton | C29: ='Wettkampf 1'!C29 -> Neubörger I | D29: 311.3 | F29: 311.3 | G29: 0 | H29: 0 | I29: 0 | J29: 0 | K29: 0 | L29: 0 | M29: 311.3 | N29: 1 | O29: 0 | P29: 0 | Q29: 0 | R29: 0 | U29: 103.5 | V29: 104.3 | W29: 103.5 | X29: 311.3 | Y29: 1 | Z29: 1 | AA29: Korrekt
A30: 21 | B30: ='Wettkampf 1'!B30 -> Schnieders Willi | C30: ='Wettkampf 1'!C30 -> Neubörger I | D30: 301.3 | E30: x | F30: 0 | G30: 0 | H30: 0 | I30: 0 | J30: 0 | K30: 0 | L30: 0 | M30: 0 | N30: 0 | O30: 0 | P30: 0 | Q30: 0 | R30: 0 | U30: 100.4 | V30: 102.3 | W30: 98.6 | X30: 301.3 | Y30: 1 | Z30: 1 | AA30: Korrekt
A31: 22 | B31: ='Wettkampf 1'!B31 -> Antons Klaus | C31: ='Wettkampf 1'!C31 -> Neubörger I | D31: 314.6 | F31: 314.6 | G31: 0 | H31: 0 | I31: 0 | J31: 0 | K31: 0 | L31: 0 | M31: 314.6 | N31: 1 | O31: 0 | P31: 0 | Q31: 0 | R31: 0 | U31: 104.6 | V31: 105.0 | W31: 105.0 | X31: 314.6 | Y31: 1 | Z31: 1 | AA31: Korrekt
A32: 23 | B32: ='Wettkampf 1'!B32 -> Voss Helmut | C32: ='Wettkampf 1'!C32 -> Neubörger I | D32: 303.8 | F32: 303.8 | G32: 0 | H32: 0 | I32: 0 | J32: 0 | K32: 0 | L32: 0 | M32: 303.8 | N32: 1 | O32: 0 | P32: 0 | Q32: 0 | R32: 0 | U32: 101.2 | V32: 102.5 | W32: 100.1 | X32: 303.8 | Y32: 1 | Z32: 1 | AA32: Korrekt
A33: 24 | B33: ='Wettkampf 1'!B33 -> Schütze 24 | C33: ='Wettkampf 1'!C33 -> Neubörger I | E33: x | F33: 0 | G33: 0 | H33: 0 | I33: 0 | J33: 0 | K33: 0 | L33: 0 | M33: 0 | N33: 0 | O33: 0 | P33: 0 | Q33: 0 | R33: 0 | X33: 0.0 | Y33: 1 | Z33: 0
A34: 25 | B34: ='Wettkampf 1'!B34 -> Großmann Martin | C34: ='Wettkampf 1'!C34 -> Börgermoor I | F34: 0.0 | G34: 0 | H34: 0 | I34: 0 | J34: 0 | K34: 0 | L34: 0 | M34: 0 | N34: 0 | O34: 0 | P34: 1 | Q34: 0 | R34: 0 | X34: 0.0 | Y34: 1 | Z34: 0
A35: 26 | B35: ='Wettkampf 1'!B35 -> Segbers Bernard | C35: ='Wettkampf 1'!C35 -> Börgermoor I | D35: 312.4 | F35: 312.4 | G35: 0 | H35: 0 | I35: 0 | J35: 0 | K35: 0 | L35: 0 | M35: 0 | N35: 0 | O35: 312.4 | P35: 1 | Q35: 0 | R35: 0 | U35: 103.6 | V35: 103.8 | W35: 105.0 | X35: 312.4 | Y35: 1 | Z35: 1 | AA35: Korrekt
A36: 27 | B36: ='Wettkampf 1'!B36 -> Dobelmann Werner | C36: ='Wettkampf 1'!C36 -> Börgermoor I | D36: 312.5 | F36: 312.5 | G36: 0 | H36: 0 | I36: 0 | J36: 0 | K36: 0 | L36: 0 | M36: 0 | N36: 0 | O36: 312.5 | P36: 1 | Q36: 0 | R36: 0 | U36: 104.9 | V36: 103.6 | W36: 104.0 | X36: 312.5 | Y36: 1 | Z36: 1 | AA36: Korrekt
A37: 28 | B37: ='Wettkampf 1'!B37 -> Kohnen Stefan | C37: ='Wettkampf 1'!C37 -> Börgermoor I | D37: 316.2 | F37: 316.2 | G37: 0 | H37: 0 | I37: 0 | J37: 0 | K37: 0 | L37: 0 | M37: 0 | N37: 0 | O37: 316.2 | P37: 1 | Q37: 0 | R37: 0 | U37: 104.8 | V37: 105.7 | W37: 105.7 | X37: 316.2 | Y37: 1 | Z37: 1 | AA37: Korrekt
A38: 29 | B38: ='Wettkampf 1'!B38 -> Schütze 29 | C38: ='Wettkampf 1'!C38 -> Börgermoor I | E38: x | F38: 0 | G38: 0 | H38: 0 | I38: 0 | J38: 0 | K38: 0 | L38: 0 | M38: 0 | N38: 0 | O38: 0 | P38: 0 | Q38: 0 | R38: 0 | X38: 0.0 | Y38: 1 | Z38: 0
A39: 30 | B39: ='Wettkampf 1'!B39 -> Schütze 30 | C39: ='Wettkampf 1'!C39 -> Börgermoor I | E39: x | F39: 0 | G39: 0 | H39: 0 | I39: 0 | J39: 0 | K39: 0 | L39: 0 | M39: 0 | N39: 0 | O39: 0 | P39: 0 | Q39: 0 | R39: 0 | X39: 0.0 | Y39: 1 | Z39: 0
A40: 31 | B40: ='Wettkampf 1'!B40 -> Schulte Matthias | C40: ='Wettkampf 1'!C40 -> Esterwegen I | D40: 307.0 | F40: 307.0 | G40: 0 | H40: 0 | I40: 0 | J40: 0 | K40: 0 | L40: 0 | M40: 0 | N40: 0 | O40: 0 | P40: 0 | Q40: 307 | R40: 1 | U40: 104.1 | V40: 99.0 | W40: 103.9 | X40: 307.0 | Y40: 1 | Z40: 1 | AA40: Korrekt
A41: 32 | B41: ='Wettkampf 1'!B41 -> Middendorf Peter | C41: ='Wettkampf 1'!C41 -> Esterwegen I | D41: 312.6 | F41: 312.6 | G41: 0 | H41: 0 | I41: 0 | J41: 0 | K41: 0 | L41: 0 | M41: 0 | N41: 0 | O41: 0 | P41: 0 | Q41: 312.6 | R41: 1 | U41: 104.7 | V41: 103.9 | W41: 104.0 | X41: 312.6 | Y41: 1 | Z41: 1 | AA41: Korrekt
A42: 33 | B42: ='Wettkampf 1'!B42 -> Thomes Bernhard | C42: ='Wettkampf 1'!C42 -> Esterwegen I | D42: 313.6 | F42: 313.6 | G42: 0 | H42: 0 | I42: 0 | J42: 0 | K42: 0 | L42: 0 | M42: 0 | N42: 0 | O42: 0 | P42: 0 | Q42: 313.6 | R42: 1 | U42: 104.5 | V42: 104.7 | W42: 104.4 | X42: 313.6 | Y42: 1 | Z42: 1 | AA42: Korrekt
A43: 34 | B43: ='Wettkampf 1'!B43 -> Lindemann Marco | C43: ='Wettkampf 1'!C43 -> Esterwegen I | D43: 306.4 | F43: 306.4 | G43: 0 | H43: 0 | I43: 0 | J43: 0 | K43: 0 | L43: 0 | M43: 0 | N43: 0 | O43: 0 | P43: 0 | Q43: 306.4 | R43: 1 | U43: 103.8 | V43: 102.5 | W43: 100.1 | X43: 306.4 | Y43: 1 | Z43: 1 | AA43: Korrekt
A44: 35 | B44: ='Wettkampf 1'!B44 -> Schütze 35 | C44: ='Wettkampf 1'!C44 -> Esterwegen I | E44: x | F44: 0 | G44: 0 | H44: 0 | I44: 0 | J44: 0 | K44: 0 | L44: 0 | M44: 0 | N44: 0 | O44: 0 | P44: 0 | Q44: 0 | R44: 0 | X44: 0.0 | Y44: 1 | Z44: 0
A45: 36 | B45: ='Wettkampf 1'!B45 -> Schütze 36 | C45: ='Wettkampf 1'!C45 -> Esterwegen I | E45: x | F45: 0 | G45: 0 | H45: 0 | I45: 0 | J45: 0 | K45: 0 | L45: 0 | M45: 0 | N45: 0 | O45: 0 | P45: 0 | Q45: 0 | R45: 0 | X45: 0.0 | Y45: 1 | Z45: 0
G46: =LARGE(G10:G45,1)+LARGE(G10:G45,2)+LARGE(G10:G45,3) -> 938.9 | H46: =SUM(H10:H45) -> 4 | I46: =LARGE(I10:I45,1)+LARGE(I10:I45,2)+LARGE(I10:I45,3) -> 936.2 | J46: =SUM(J10:J45) -> 4 | K46: =LARGE(K10:K45,1)+LARGE(K10:K45,2)+LARGE(K10:K45,3) -> 944.7 | L46: =SUM(L10:L45) -> 4 | M46: =LARGE(M10:M45,1)+LARGE(M10:M45,2)+LARGE(M10:M45,3) -> 940.2 | N46: =SUM(N10:N45) -> 4 | O46: =LARGE(O10:O45,1)+LARGE(O10:O45,2)+LARGE(O10:O45,3) -> 941.1 | P46: =SUM(P10:P45) -> 4 | Q46: =LARGE(Q10:Q45,1)+LARGE(Q10:Q45,2)+LARGE(Q10:Q45,3) -> 933.2 | R46: =SUM(R10:S45) -> 4
C47: per Email an: sk-huemmling@gmx.de

Sheet 9
B1: Verein / Gruppe | D1: Ergebnisse | V1: Austragungsort: | W1: =Übersicht!N4 -> Sögel
A2: 1 | B2: ='Wettkampf 1'!B2 -> Lahn II | D2: =G46 -> 946.1 | E2: =IF(H46>4,"Es sind zu viele Schützen in Wertung!"," ") ->  | V2: Wettkampftag: | W2: =Übersicht!N3 -> 16.02.
A3: 2 | B3: ='Wettkampf 1'!B3 -> Lorup IV | D3: =I46 -> 934.8 | E3: =IF(J46>4,"Es sind zu viele Schützen in Wertung!"," ") -> 
A4: 3 | B4: ='Wettkampf 1'!B4 -> Sögel I | D4: =K46 -> 946.7 | E4: =IF(L46>4,"Es sind zu viele Schützen in Wertung!"," ") ->  | X4: Ansprechpartner für Rückfragen:
A5: 4 | B5: ='Wettkampf 1'!B5 -> Neubörger I | D5: =M46 -> 944.1 | E5: =IF(N46>4,"Es sind zu viele Schützen in Wertung!"," ") ->  | V5: Name: | W5: Ludger Dödtmann
A6: 5 | B6: ='Wettkampf 1'!B6 -> Börgermoor I | D6: =O46 -> 944.3 | E6: =IF(P46>4,"Es sind zu viele Schützen in Wertung!"," ") ->  | V6: Tel:
A7: 6 | B7: ='Wettkampf 1'!B7 -> Esterwegen I | D7: =Q46 -> 933.2 | E7: =IF(R46>4,"Es sind zu viele Schützen in Wertung!"," ") ->  | V7: Standaufsicht: | W7: Ludger Dödtmann
B9: Einzelergebnisse: | C9: Verein / Gruppe | D9: Ergebnisse (mindestens 0 eintragen) | E9: AW? Dann x eintippen | G9: Verein 1 | I9: Verein 2 | K9: Verein 3 | M9: Verein 4 | O9: Verein 5 | Q9: Verein 6 | U9: Proberechnung bei Streifen:
A10: 1 | B10: ='Wettkampf 1'!B10 -> Thyen Udo | C10: ='Wettkampf 1'!C10 -> Lahn II | D10: 313.5 | F10: =IF(E10="x","0",D10) -> 313.5 | G10: =IF(C10=$B$2,F10,0) -> 313.5 | H10: =(IF(AND($E10="",$C10=$B$2),1,0)) -> 1 | I10: =IF($C10=$B$3,F10,0) -> 0 | J10: =(IF(AND($E10="",$C10=$B$3),1,0)) -> 0 | K10: =IF($C10=$B$4,F10,0) -> 0 | L10: =(IF(AND($E10="",$C10=$B$4),1,0)) -> 0 | M10: =IF($C10=$B$5,F10,0) -> 0 | N10: =(IF(AND($E10="",$C10=$B$5),1,0)) -> 0 | O10: =IF($C10=$B$6,F10,0) -> 0 | P10: =(IF(AND($E10="",$C10=$B$6),1,0)) -> 0 | Q10: =IF($C10=$B$7,F10,0) -> 0 | R10: =(IF(AND($E10="",$C10=$B$7),1,0)) -> 0 | X10: =U10+V10+W10 -> 0.0 | Y10: =IF(X10=D10,1,0) -> 0 | Z10: =IF(X10=0,0,1) -> 0 | AA10: =IF(Y10+Z10=2,"Korrekt","") -> 
A11: 2 | B11: ='Wettkampf 1'!B11 -> Banedt Olaf | C11: ='Wettkampf 1'!C11 -> Lahn II | D11: 309.3 | F11: =IF(E11="x","0",D11) -> 309.3 | G11: =IF(C11=$B$2,F11,0) -> 309.3 | H11: =(IF(AND($E11="",$C11=$B$2),1,0)) -> 1 | I11: =IF($C11=$B$3,F11,0) -> 0 | J11: =(IF(AND($E11="",$C11=$B$3),1,0)) -> 0 | K11: =IF($C11=$B$4,F11,0) -> 0 | L11: =(IF(AND($E11="",$C11=$B$4),1,0)) -> 0 | M11: =IF($C11=$B$5,F11,0) -> 0 | N11: =(IF(AND($E11="",$C11=$B$5),1,0)) -> 0 | O11: =IF($C11=$B$6,F11,0) -> 0 | P11: =(IF(AND($E11="",$C11=$B$6),1,0)) -> 0 | Q11: =IF($C11=$B$7,F11,0) -> 0 | R11: =(IF(AND($E11="",$C11=$B$7),1,0)) -> 0 | X11: =U11+V11+W11 -> 0.0 | Y11: =IF(X11=D11,1,0) -> 0 | Z11: =IF(X11=0,0,1) -> 0 | AA11: =IF(Y11+Z11=2,"Korrekt","") -> 
A12: 3 | B12: ='Wettkampf 1'!B12 -> Thien Markus | C12: ='Wettkampf 1'!C12 -> Lahn II | D12: 316.6 | F12: 316.6 | G12: 316.6 | H12: 1 | I12: 0 | J12: 0 | K12: 0 | L12: 0 | M12: 0 | N12: 0 | O12: 0 | P12: 0 | Q12: 0 | R12: 0 | X12: 0.0 | Y12: 0 | Z12: 0
A13: 4 | B13: ='Wettkampf 1'!B13 -> Robben-Schlagge Ralf | C13: ='Wettkampf 1'!C13 -> Lahn II | D13: 316.0 | F13: 316.0 | G13: 316 | H13: 1 | I13: 0 | J13: 0 | K13: 0 | L13: 0 | M13: 0 | N13: 0 | O13: 0 | P13: 0 | Q13: 0 | R13: 0 | X13: 0.0 | Y13: 0 | Z13: 0
A14: 5 | B14: ='Wettkampf 1'!B14 -> Schütze 5 | C14: ='Wettkampf 1'!C14 -> Lahn II | E14: x | F14: 0 | G14: 0 | H14: 0 | I14: 0 | J14: 0 | K14: 0 | L14: 0 | M14: 0 | N14: 0 | O14: 0 | P14: 0 | Q14: 0 | R14: 0 | X14: 0.0 | Y14: 1 | Z14: 0
A15: 6 | B15: ='Wettkampf 1'!B15 -> Schütze 6 | C15: ='Wettkampf 1'!C15 -> Lahn II | E15: x | F15: 0 | G15: 0 | H15: 0 | I15: 0 | J15: 0 | K15: 0 | L15: 0 | M15: 0 | N15: 0 | O15: 0 | P15: 0 | Q15: 0 | R15: 0 | X15: 0.0 | Y15: 1 | Z15: 0
A16: 7 | B16: ='Wettkampf 1'!B16 -> Pölking Thomas | C16: ='Wettkampf 1'!C16 -> Lorup IV | D16: 312.3 | F16: 312.3 | G16: 0 | H16: 0 | I16: 312.3 | J16: 1 | K16: 0 | L16: 0 | M16: 0 | N16: 0 | O16: 0 | P16: 0 | Q16: 0 | R16: 0 | X16: 0.0 | Y16: 0 | Z16: 0
A17: 8 | B17: ='Wettkampf 1'!B17 -> Klawitter Gerd | C17: ='Wettkampf 1'!C17 -> Lorup IV | D17: 312.1 | F17: 312.1 | G17: 0 | H17: 0 | I17: 312.1 | J17: 1 | K17: 0 | L17: 0 | M17: 0 | N17: 0 | O17: 0 | P17: 0 | Q17: 0 | R17: 0 | X17: 0.0 | Y17: 0 | Z17: 0
A18: 9 | B18: ='Wettkampf 1'!B18 -> Albers Helmut | C18: ='Wettkampf 1'!C18 -> Lorup IV | D18: 310.0 | F18: 310.0 | G18: 0 | H18: 0 | I18: 310 | J18: 1 | K18: 0 | L18: 0 | M18: 0 | N18: 0 | O18: 0 | P18: 0 | Q18: 0 | R18: 0 | X18: 0.0 | Y18: 0 | Z18: 0
A19: 10 | B19: ='Wettkampf 1'!B19 -> Olliges Jürgen | C19: ='Wettkampf 1'!C19 -> Lorup IV | D19: 310.4 | F19: 310.4 | G19: 0 | H19: 0 | I19: 310.4 | J19: 1 | K19: 0 | L19: 0 | M19: 0 | N19: 0 | O19: 0 | P19: 0 | Q19: 0 | R19: 0 | X19: 0.0 | Y19: 0 | Z19: 0
A20: 11 | B20: ='Wettkampf 1'!B20 -> Gerdes Willi | C20: ='Wettkampf 1'!C20 -> Lorup IV | E20: x | F20: 0 | G20: 0 | H20: 0 | I20: 0 | J20: 0 | K20: 0 | L20: 0 | M20: 0 | N20: 0 | O20: 0 | P20: 0 | Q20: 0 | R20: 0 | X20: 0.0 | Y20: 1 | Z20: 0
A21: 12 | B21: ='Wettkampf 1'!B21 -> Schütze 12 | C21: ='Wettkampf 1'!C21 -> Lorup IV | E21: x | F21: 0 | G21: 0 | H21: 0 | I21: 0 | J21: 0 | K21: 0 | L21: 0 | M21: 0 | N21: 0 | O21: 0 | P21: 0 | Q21: 0 | R21: 0 | X21: 0.0 | Y21: 1 | Z21: 0
A22: 13 | B22: ='Wettkampf 1'!B22 -> Terborg Michael | C22: ='Wettkampf 1'!C22 -> Sögel I | D22: 309.1 | F22: 309.1 | G22: 0 | H22: 0 | I22: 0 | J22: 0 | K22: 309.1 | L22: 1 | M22: 0 | N22: 0 | O22: 0 | P22: 0 | Q22: 0 | R22: 0 | X22: 0.0 | Y22: 0 | Z22: 0
A23: 14 | B23: ='Wettkampf 1'!B23 -> Wester Markus | C23: ='Wettkampf 1'!C23 -> Sögel I | D23: 311.9 | F23: 311.9 | G23: 0 | H23: 0 | I23: 0 | J23: 0 | K23: 311.9 | L23: 1 | M23: 0 | N23: 0 | O23: 0 | P23: 0 | Q23: 0 | R23: 0 | X23: 0.0 | Y23: 0 | Z23: 0
A24: 15 | B24: ='Wettkampf 1'!B24 -> Dödtmann Ludger | C24: ='Wettkampf 1'!C24 -> Sögel I | D24: 308.8 | E24: x | F24: 0 | G24: 0 | H24: 0 | I24: 0 | J24: 0 | K24: 0 | L24: 0 | M24: 0 | N24: 0 | O24: 0 | P24: 0 | Q24: 0 | R24: 0 | X24: 0.0 | Y24: 0 | Z24: 0
A25: 16 | B25: ='Wettkampf 1'!B25 -> Tharner Karl-Heinz | C25: ='Wettkampf 1'!C25 -> Sögel I | D25: 317.7 | F25: 317.7 | G25: 0 | H25: 0 | I25: 0 | J25: 0 | K25: 317.7 | L25: 1 | M25: 0 | N25: 0 | O25: 0 | P25: 0 | Q25: 0 | R25: 0 | X25: 0.0 | Y25: 0 | Z25: 0
A26: 17 | B26: ='Wettkampf 1'!B26 -> Sunder Ferdi | C26: ='Wettkampf 1'!C26 -> Sögel I | D26: 317.1 | F26: 317.1 | G26: 0 | H26: 0 | I26: 0 | J26: 0 | K26: 317.1 | L26: 1 | M26: 0 | N26: 0 | O26: 0 | P26: 0 | Q26: 0 | R26: 0 | X26: 0.0 | Y26: 0 | Z26: 0
A27: 18 | B27: ='Wettkampf 1'!B27 -> Schütze 18 | C27: ='Wettkampf 1'!C27 -> Sögel I | E27: x | F27: 0 | G27: 0 | H27: 0 | I27: 0 | J27: 0 | K27: 0 | L27: 0 | M27: 0 | N27: 0 | O27: 0 | P27: 0 | Q27: 0 | R27: 0 | X27: 0.0 | Y27: 1 | Z27: 0
A28: 19 | B28: ='Wettkampf 1'!B28 -> Runde Norbert | C28: ='Wettkampf 1'!C28 -> Neubörger I | D28: 313.4 | F28: 313.4 | G28: 0 | H28: 0 | I28: 0 | J28: 0 | K28: 0 | L28: 0 | M28: 313.4 | N28: 1 | O28: 0 | P28: 0 | Q28: 0 | R28: 0 | X28: 0.0 | Y28: 0 | Z28: 0
A29: 20 | B29: ='Wettkampf 1'!B29 -> Hunfeld Anton | C29: ='Wettkampf 1'!C29 -> Neubörger I | D29: 315.0 | F29: 315.0 | G29: 0 | H29: 0 | I29: 0 | J29: 0 | K29: 0 | L29: 0 | M29: 315 | N29: 1 | O29: 0 | P29: 0 | Q29: 0 | R29: 0 | X29: 0.0 | Y29: 0 | Z29: 0
A30: 21 | B30: ='Wettkampf 1'!B30 -> Schnieders Willi | C30: ='Wettkampf 1'!C30 -> Neubörger I | D30: 302.8 | F30: 302.8 | G30: 0 | H30: 0 | I30: 0 | J30: 0 | K30: 0 | L30: 0 | M30: 302.8 | N30: 1 | O30: 0 | P30: 0 | Q30: 0 | R30: 0 | X30: 0.0 | Y30: 0 | Z30: 0
A31: 22 | B31: ='Wettkampf 1'!B31 -> Antons Klaus | C31: ='Wettkampf 1'!C31 -> Neubörger I | D31: 315.7 | F31: 315.7 | G31: 0 | H31: 0 | I31: 0 | J31: 0 | K31: 0 | L31: 0 | M31: 315.7 | N31: 1 | O31: 0 | P31: 0 | Q31: 0 | R31: 0 | X31: 0.0 | Y31: 0 | Z31: 0
A32: 23 | B32: ='Wettkampf 1'!B32 -> Voss Helmut | C32: ='Wettkampf 1'!C32 -> Neubörger I | E32: x | F32: 0 | G32: 0 | H32: 0 | I32: 0 | J32: 0 | K32: 0 | L32: 0 | M32: 0 | N32: 0 | O32: 0 | P32: 0 | Q32: 0 | R32: 0 | X32: 0.0 | Y32: 1 | Z32: 0
A33: 24 | B33: ='Wettkampf 1'!B33 -> Schütze 24 | C33: ='Wettkampf 1'!C33 -> Neubörger I | E33: x | F33: 0 | G33: 0 | H33: 0 | I33: 0 | J33: 0 | K33: 0 | L33: 0 | M33: 0 | N33: 0 | O33: 0 | P33: 0 | Q33: 0 | R33: 0 | X33: 0.0 | Y33: 1 | Z33: 0
A34: 25 | B34: ='Wettkampf 1'!B34 -> Großmann Martin | C34: ='Wettkampf 1'!C34 -> Börgermoor I | F34: 0.0 | G34: 0 | H34: 0 | I34: 0 | J34: 0 | K34: 0 | L34: 0 | M34: 0 | N34: 0 | O34: 0 | P34: 1 | Q34: 0 | R34: 0 | X34: 0.0 | Y34: 1 | Z34: 0
A35: 26 | B35: ='Wettkampf 1'!B35 -> Segbers Bernard | C35: ='Wettkampf 1'!C35 -> Börgermoor I | D35: 314.5 | F35: 314.5 | G35: 0 | H35: 0 | I35: 0 | J35: 0 | K35: 0 | L35: 0 | M35: 0 | N35: 0 | O35: 314.5 | P35: 1 | Q35: 0 | R35: 0 | X35: 0.0 | Y35: 0 | Z35: 0
A36: 27 | B36: ='Wettkampf 1'!B36 -> Dobelmann Werner | C36: ='Wettkampf 1'!C36 -> Börgermoor I | D36: 313.5 | F36: 313.5 | G36: 0 | H36: 0 | I36: 0 | J36: 0 | K36: 0 | L36: 0 | M36: 0 | N36: 0 | O36: 313.5 | P36: 1 | Q36: 0 | R36: 0 | X36: 0.0 | Y36: 0 | Z36: 0
A37: 28 | B37: ='Wettkampf 1'!B37 -> Kohnen Stefan | C37: ='Wettkampf 1'!C37 -> Börgermoor I | D37: 316.3 | F37: 316.3 | G37: 0 | H37: 0 | I37: 0 | J37: 0 | K37: 0 | L37: 0 | M37: 0 | N37: 0 | O37: 316.3 | P37: 1 | Q37: 0 | R37: 0 | X37: 0.0 | Y37: 0 | Z37: 0
A38: 29 | B38: ='Wettkampf 1'!B38 -> Schütze 29 | C38: ='Wettkampf 1'!C38 -> Börgermoor I | E38: x | F38: 0 | G38: 0 | H38: 0 | I38: 0 | J38: 0 | K38: 0 | L38: 0 | M38: 0 | N38: 0 | O38: 0 | P38: 0 | Q38: 0 | R38: 0 | X38: 0.0 | Y38: 1 | Z38: 0
A39: 30 | B39: ='Wettkampf 1'!B39 -> Schütze 30 | C39: ='Wettkampf 1'!C39 -> Börgermoor I | E39: x | F39: 0 | G39: 0 | H39: 0 | I39: 0 | J39: 0 | K39: 0 | L39: 0 | M39: 0 | N39: 0 | O39: 0 | P39: 0 | Q39: 0 | R39: 0 | X39: 0.0 | Y39: 1 | Z39: 0
A40: 31 | B40: ='Wettkampf 1'!B40 -> Schulte Matthias | C40: ='Wettkampf 1'!C40 -> Esterwegen I | D40: 312.2 | F40: 312.2 | G40: 0 | H40: 0 | I40: 0 | J40: 0 | K40: 0 | L40: 0 | M40: 0 | N40: 0 | O40: 0 | P40: 0 | Q40: 312.2 | R40: 1 | X40: 0.0 | Y40: 0 | Z40: 0
A41: 32 | B41: ='Wettkampf 1'!B41 -> Middendorf Peter | C41: ='Wettkampf 1'!C41 -> Esterwegen I | D41: 311.1 | F41: 311.1 | G41: 0 | H41: 0 | I41: 0 | J41: 0 | K41: 0 | L41: 0 | M41: 0 | N41: 0 | O41: 0 | P41: 0 | Q41: 311.1 | R41: 1 | X41: 0.0 | Y41: 0 | Z41: 0
A42: 33 | B42: ='Wettkampf 1'!B42 -> Thomes Bernhard | C42: ='Wettkampf 1'!C42 -> Esterwegen I | D42: 309.9 | F42: 309.9 | G42: 0 | H42: 0 | I42: 0 | J42: 0 | K42: 0 | L42: 0 | M42: 0 | N42: 0 | O42: 0 | P42: 0 | Q42: 309.9 | R42: 1 | X42: 0.0 | Y42: 0 | Z42: 0
A43: 34 | B43: ='Wettkampf 1'!B43 -> Lindemann Marco | C43: ='Wettkampf 1'!C43 -> Esterwegen I | D43: 306.0 | F43: 306.0 | G43: 0 | H43: 0 | I43: 0 | J43: 0 | K43: 0 | L43: 0 | M43: 0 | N43: 0 | O43: 0 | P43: 0 | Q43: 306 | R43: 1 | X43: 0.0 | Y43: 0 | Z43: 0
A44: 35 | B44: ='Wettkampf 1'!B44 -> Schütze 35 | C44: ='Wettkampf 1'!C44 -> Esterwegen I | E44: x | F44: 0 | G44: 0 | H44: 0 | I44: 0 | J44: 0 | K44: 0 | L44: 0 | M44: 0 | N44: 0 | O44: 0 | P44: 0 | Q44: 0 | R44: 0 | X44: 0.0 | Y44: 1 | Z44: 0
A45: 36 | B45: ='Wettkampf 1'!B45 -> Schütze 36 | C45: ='Wettkampf 1'!C45 -> Esterwegen I | E45: x | F45: 0 | G45: 0 | H45: 0 | I45: 0 | J45: 0 | K45: 0 | L45: 0 | M45: 0 | N45: 0 | O45: 0 | P45: 0 | Q45: 0 | R45: 0 | X45: 0.0 | Y45: 1 | Z45: 0
G46: =LARGE(G10:G45,1)+LARGE(G10:G45,2)+LARGE(G10:G45,3) -> 946.1 | H46: =SUM(H10:H45) -> 4 | I46: =LARGE(I10:I45,1)+LARGE(I10:I45,2)+LARGE(I10:I45,3) -> 934.8 | J46: =SUM(J10:J45) -> 4 | K46: =LARGE(K10:K45,1)+LARGE(K10:K45,2)+LARGE(K10:K45,3) -> 946.7 | L46: =SUM(L10:L45) -> 4 | M46: =LARGE(M10:M45,1)+LARGE(M10:M45,2)+LARGE(M10:M45,3) -> 944.1 | N46: =SUM(N10:N45) -> 4 | O46: =LARGE(O10:O45,1)+LARGE(O10:O45,2)+LARGE(O10:O45,3) -> 944.3 | P46: =SUM(P10:P45) -> 4 | Q46: =LARGE(Q10:Q45,1)+LARGE(Q10:Q45,2)+LARGE(Q10:Q45,3) -> 933.2 | R46: =SUM(R10:S45) -> 4
C47: per Email an: sk-huemmling@gmx.de

Sheet 10
B1: Verein / Gruppe | D1: Ergebnisse | V1: Austragungsort: | W1: =Übersicht!O4 -> Neubörger
A2: 1 | B2: ='Wettkampf 1'!B2 -> Lahn II | D2: =G46 -> 943.6 | E2: =IF(H46>4,"Es sind zu viele Schützen in Wertung!"," ") ->  | V2: Wettkampftag: | W2: =Übersicht!O3 -> 01.03.
A3: 2 | B3: ='Wettkampf 1'!B3 -> Lorup IV | D3: =I46 -> 938.6 | E3: =IF(J46>4,"Es sind zu viele Schützen in Wertung!"," ") -> 
A4: 3 | B4: ='Wettkampf 1'!B4 -> Sögel I | D4: =K46 -> 943.9 | E4: =IF(L46>4,"Es sind zu viele Schützen in Wertung!"," ") ->  | X4: Ansprechpartner für Rückfragen:
A5: 4 | B5: ='Wettkampf 1'!B5 -> Neubörger I | D5: =M46 -> 942.2 | E5: =IF(N46>4,"Es sind zu viele Schützen in Wertung!"," ") ->  | V5: Name: | W5: Norbert Runde
A6: 5 | B6: ='Wettkampf 1'!B6 -> Börgermoor I | D6: =O46 -> 940.1 | E6: =IF(P46>4,"Es sind zu viele Schützen in Wertung!"," ") ->  | V6: Tel: | W6: 04966-969062
A7: 6 | B7: ='Wettkampf 1'!B7 -> Esterwegen I | D7: =Q46 -> 939.9 | E7: =IF(R46>4,"Es sind zu viele Schützen in Wertung!"," ") ->  | V7: Standaufsicht: | W7: Klaus Antons
B9: Einzelergebnisse: | C9: Verein / Gruppe | D9: Ergebnisse (mindestens 0 eintragen) | E9: AW? Dann x eintippen | G9: Verein 1 | I9: Verein 2 | K9: Verein 3 | M9: Verein 4 | O9: Verein 5 | Q9: Verein 6 | U9: Proberechnung bei Streifen:
A10: 1 | B10: ='Wettkampf 1'!B10 -> Thyen Udo | C10: ='Wettkampf 1'!C10 -> Lahn II | D10: 306.0 | F10: =IF(E10="x","0",D10) -> 306.0 | G10: =IF(C10=$B$2,F10,0) -> 306 | H10: =(IF(AND($E10="",$C10=$B$2),1,0)) -> 1 | I10: =IF($C10=$B$3,F10,0) -> 0 | J10: =(IF(AND($E10="",$C10=$B$3),1,0)) -> 0 | K10: =IF($C10=$B$4,F10,0) -> 0 | L10: =(IF(AND($E10="",$C10=$B$4),1,0)) -> 0 | M10: =IF($C10=$B$5,F10,0) -> 0 | N10: =(IF(AND($E10="",$C10=$B$5),1,0)) -> 0 | O10: =IF($C10=$B$6,F10,0) -> 0 | P10: =(IF(AND($E10="",$C10=$B$6),1,0)) -> 0 | Q10: =IF($C10=$B$7,F10,0) -> 0 | R10: =(IF(AND($E10="",$C10=$B$7),1,0)) -> 0 | U10: 101.0 | V10: 103.8 | W10: 101.2 | X10: =U10+V10+W10 -> 306.0 | Y10: =IF(X10=D10,1,0) -> 1 | Z10: =IF(X10=0,0,1) -> 1 | AA10: =IF(Y10+Z10=2,"Korrekt","") -> Korrekt
A11: 2 | B11: ='Wettkampf 1'!B11 -> Banedt Olaf | C11: ='Wettkampf 1'!C11 -> Lahn II | D11: 312.9 | F11: =IF(E11="x","0",D11) -> 312.9 | G11: =IF(C11=$B$2,F11,0) -> 312.9 | H11: =(IF(AND($E11="",$C11=$B$2),1,0)) -> 1 | I11: =IF($C11=$B$3,F11,0) -> 0 | J11: =(IF(AND($E11="",$C11=$B$3),1,0)) -> 0 | K11: =IF($C11=$B$4,F11,0) -> 0 | L11: =(IF(AND($E11="",$C11=$B$4),1,0)) -> 0 | M11: =IF($C11=$B$5,F11,0) -> 0 | N11: =(IF(AND($E11="",$C11=$B$5),1,0)) -> 0 | O11: =IF($C11=$B$6,F11,0) -> 0 | P11: =(IF(AND($E11="",$C11=$B$6),1,0)) -> 0 | Q11: =IF($C11=$B$7,F11,0) -> 0 | R11: =(IF(AND($E11="",$C11=$B$7),1,0)) -> 0 | U11: 104.6 | V11: 102.8 | W11: 105.5 | X11: =U11+V11+W11 -> 312.9 | Y11: =IF(X11=D11,1,0) -> 1 | Z11: =IF(X11=0,0,1) -> 1 | AA11: =IF(Y11+Z11=2,"Korrekt","") -> Korrekt
A12: 3 | B12: ='Wettkampf 1'!B12 -> Thien Markus | C12: ='Wettkampf 1'!C12 -> Lahn II | D12: 315.5 | F12: 315.5 | G12: 315.5 | H12: 1 | I12: 0 | J12: 0 | K12: 0 | L12: 0 | M12: 0 | N12: 0 | O12: 0 | P12: 0 | Q12: 0 | R12: 0 | U12: 105.2 | V12: 104.4 | W12: 105.9 | X12: 315.5 | Y12: 1 | Z12: 1 | AA12: Korrekt
A13: 4 | B13: ='Wettkampf 1'!B13 -> Robben-Schlagge Ralf | C13: ='Wettkampf 1'!C13 -> Lahn II | D13: 315.2 | F13: 315.2 | G13: 315.2 | H13: 1 | I13: 0 | J13: 0 | K13: 0 | L13: 0 | M13: 0 | N13: 0 | O13: 0 | P13: 0 | Q13: 0 | R13: 0 | U13: 105.1 | V13: 104.4 | W13: 105.7 | X13: 315.2 | Y13: 1 | Z13: 1 | AA13: Korrekt
A14: 5 | B14: ='Wettkampf 1'!B14 -> Schütze 5 | C14: ='Wettkampf 1'!C14 -> Lahn II | E14: x | F14: 0 | G14: 0 | H14: 0 | I14: 0 | J14: 0 | K14: 0 | L14: 0 | M14: 0 | N14: 0 | O14: 0 | P14: 0 | Q14: 0 | R14: 0 | X14: 0.0 | Y14: 1 | Z14: 0
A15: 6 | B15: ='Wettkampf 1'!B15 -> Schütze 6 | C15: ='Wettkampf 1'!C15 -> Lahn II | E15: x | F15: 0 | G15: 0 | H15: 0 | I15: 0 | J15: 0 | K15: 0 | L15: 0 | M15: 0 | N15: 0 | O15: 0 | P15: 0 | Q15: 0 | R15: 0 | X15: 0.0 | Y15: 1 | Z15: 0
A16: 7 | B16: ='Wettkampf 1'!B16 -> Pölking Thomas | C16: ='Wettkampf 1'!C16 -> Lorup IV | D16: 313.7 | F16: 313.7 | G16: 0 | H16: 0 | I16: 313.7 | J16: 1 | K16: 0 | L16: 0 | M16: 0 | N16: 0 | O16: 0 | P16: 0 | Q16: 0 | R16: 0 | U16: 106.5 | V16: 104.4 | W16: 102.8 | X16: 313.7 | Y16: 1 | Z16: 1 | AA16: Korrekt
A17: 8 | B17: ='Wettkampf 1'!B17 -> Klawitter Gerd | C17: ='Wettkampf 1'!C17 -> Lorup IV | D17: 310.9 | F17: 310.9 | G17: 0 | H17: 0 | I17: 310.9 | J17: 1 | K17: 0 | L17: 0 | M17: 0 | N17: 0 | O17: 0 | P17: 0 | Q17: 0 | R17: 0 | U17: 103.6 | V17: 104.2 | W17: 103.1 | X17: 310.9 | Y17: 1 | Z17: 1 | AA17: Korrekt
A18: 9 | B18: ='Wettkampf 1'!B18 -> Albers Helmut | C18: ='Wettkampf 1'!C18 -> Lorup IV | D18: 307.2 | F18: 307.2 | G18: 0 | H18: 0 | I18: 307.2 | J18: 1 | K18: 0 | L18: 0 | M18: 0 | N18: 0 | O18: 0 | P18: 0 | Q18: 0 | R18: 0 | U18: 104.0 | V18: 102.5 | W18: 100.7 | X18: 307.2 | Y18: 1 | Z18: 1 | AA18: Korrekt
A19: 10 | B19: ='Wettkampf 1'!B19 -> Olliges Jürgen | C19: ='Wettkampf 1'!C19 -> Lorup IV | D19: 314.0 | F19: 314.0 | G19: 0 | H19: 0 | I19: 314 | J19: 1 | K19: 0 | L19: 0 | M19: 0 | N19: 0 | O19: 0 | P19: 0 | Q19: 0 | R19: 0 | U19: 103.9 | V19: 104.8 | W19: 105.3 | X19: 314.0 | Y19: 1 | Z19: 1 | AA19: Korrekt
A20: 11 | B20: ='Wettkampf 1'!B20 -> Gerdes Willi | C20: ='Wettkampf 1'!C20 -> Lorup IV | E20: x | F20: 0 | G20: 0 | H20: 0 | I20: 0 | J20: 0 | K20: 0 | L20: 0 | M20: 0 | N20: 0 | O20: 0 | P20: 0 | Q20: 0 | R20: 0 | X20: 0.0 | Y20: 1 | Z20: 0
A21: 12 | B21: ='Wettkampf 1'!B21 -> Schütze 12 | C21: ='Wettkampf 1'!C21 -> Lorup IV | E21: x | F21: 0 | G21: 0 | H21: 0 | I21: 0 | J21: 0 | K21: 0 | L21: 0 | M21: 0 | N21: 0 | O21: 0 | P21: 0 | Q21: 0 | R21: 0 | X21: 0.0 | Y21: 1 | Z21: 0
A22: 13 | B22: ='Wettkampf 1'!B22 -> Terborg Michael | C22: ='Wettkampf 1'!C22 -> Sögel I | D22: 308.7 | F22: 308.7 | G22: 0 | H22: 0 | I22: 0 | J22: 0 | K22: 308.7 | L22: 1 | M22: 0 | N22: 0 | O22: 0 | P22: 0 | Q22: 0 | R22: 0 | U22: 102.2 | V22: 102.6 | W22: 103.9 | X22: 308.7 | Y22: 1 | Z22: 1 | AA22: Korrekt
A23: 14 | B23: ='Wettkampf 1'!B23 -> Wester Markus | C23: ='Wettkampf 1'!C23 -> Sögel I | D23: 316.8 | F23: 316.8 | G23: 0 | H23: 0 | I23: 0 | J23: 0 | K23: 316.8 | L23: 1 | M23: 0 | N23: 0 | O23: 0 | P23: 0 | Q23: 0 | R23: 0 | U23: 105.2 | V23: 106.0 | W23: 105.6 | X23: 316.8 | Y23: 1 | Z23: 1 | AA23: Korrekt
A24: 15 | B24: ='Wettkampf 1'!B24 -> Dödtmann Ludger | C24: ='Wettkampf 1'!C24 -> Sögel I | D24: 309.8 | E24: x | F24: 0 | G24: 0 | H24: 0 | I24: 0 | J24: 0 | K24: 0 | L24: 0 | M24: 0 | N24: 0 | O24: 0 | P24: 0 | Q24: 0 | R24: 0 | U24: 103.1 | V24: 103.5 | W24: 103.2 | X24: 309.8 | Y24: 1 | Z24: 1 | AA24: Korrekt
A25: 16 | B25: ='Wettkampf 1'!B25 -> Tharner Karl-Heinz | C25: ='Wettkampf 1'!C25 -> Sögel I | D25: 316.1 | F25: 316.1 | G25: 0 | H25: 0 | I25: 0 | J25: 0 | K25: 316.1 | L25: 1 | M25: 0 | N25: 0 | O25: 0 | P25: 0 | Q25: 0 | R25: 0 | U25: 105.3 | V25: 106.2 | W25: 104.6 | X25: 316.1 | Y25: 1 | Z25: 1 | AA25: Korrekt
A26: 17 | B26: ='Wettkampf 1'!B26 -> Sunder Ferdi | C26: ='Wettkampf 1'!C26 -> Sögel I | D26: 311.0 | F26: 311.0 | G26: 0 | H26: 0 | I26: 0 | J26: 0 | K26: 311 | L26: 1 | M26: 0 | N26: 0 | O26: 0 | P26: 0 | Q26: 0 | R26: 0 | U26: 104.0 | V26: 103.5 | W26: 103.5 | X26: 311.0 | Y26: 1 | Z26: 1 | AA26: Korrekt
A27: 18 | B27: ='Wettkampf 1'!B27 -> Schütze 18 | C27: ='Wettkampf 1'!C27 -> Sögel I | E27: x | F27: 0 | G27: 0 | H27: 0 | I27: 0 | J27: 0 | K27: 0 | L27: 0 | M27: 0 | N27: 0 | O27: 0 | P27: 0 | Q27: 0 | R27: 0 | X27: 0.0 | Y27: 1 | Z27: 0
A28: 19 | B28: ='Wettkampf 1'!B28 -> Runde Norbert | C28: ='Wettkampf 1'!C28 -> Neubörger I | D28: 313.9 | F28: 313.9 | G28: 0 | H28: 0 | I28: 0 | J28: 0 | K28: 0 | L28: 0 | M28: 313.9 | N28: 1 | O28: 0 | P28: 0 | Q28: 0 | R28: 0 | U28: 104.1 | V28: 105.2 | W28: 104.6 | X28: 313.9 | Y28: 1 | Z28: 1 | AA28: Korrekt
A29: 20 | B29: ='Wettkampf 1'!B29 -> Hunfeld Anton | C29: ='Wettkampf 1'!C29 -> Neubörger I | D29: 314.1 | F29: 314.1 | G29: 0 | H29: 0 | I29: 0 | J29: 0 | K29: 0 | L29: 0 | M29: 314.1 | N29: 1 | O29: 0 | P29: 0 | Q29: 0 | R29: 0 | U29: 103.7 | V29: 105.5 | W29: 104.9 | X29: 314.1 | Y29: 1 | Z29: 1 | AA29: Korrekt
A30: 21 | B30: ='Wettkampf 1'!B30 -> Schnieders Willi | C30: ='Wettkampf 1'!C30 -> Neubörger I | D30: 297.0 | E30: x | F30: 0 | G30: 0 | H30: 0 | I30: 0 | J30: 0 | K30: 0 | L30: 0 | M30: 0 | N30: 0 | O30: 0 | P30: 0 | Q30: 0 | R30: 0 | U30: 98.1 | V30: 101.2 | W30: 97.7 | X30: 297.0 | Y30: 1 | Z30: 1 | AA30: Korrekt
A31: 22 | B31: ='Wettkampf 1'!B31 -> Antons Klaus | C31: ='Wettkampf 1'!C31 -> Neubörger I | D31: 314.2 | F31: 314.2 | G31: 0 | H31: 0 | I31: 0 | J31: 0 | K31: 0 | L31: 0 | M31: 314.2 | N31: 1 | O31: 0 | P31: 0 | Q31: 0 | R31: 0 | U31: 104.7 | V31: 105.3 | W31: 104.2 | X31: 314.2 | Y31: 1 | Z31: 1 | AA31: Korrekt
A32: 23 | B32: ='Wettkampf 1'!B32 -> Voss Helmut | C32: ='Wettkampf 1'!C32 -> Neubörger I | D32: 309.0 | F32: 309.0 | G32: 0 | H32: 0 | I32: 0 | J32: 0 | K32: 0 | L32: 0 | M32: 309 | N32: 1 | O32: 0 | P32: 0 | Q32: 0 | R32: 0 | U32: 101.7 | V32: 105.1 | W32: 102.2 | X32: 309.0 | Y32: 1 | Z32: 1 | AA32: Korrekt
A33: 24 | B33: ='Wettkampf 1'!B33 -> Schütze 24 | C33: ='Wettkampf 1'!C33 -> Neubörger I | E33: x | F33: 0 | G33: 0 | H33: 0 | I33: 0 | J33: 0 | K33: 0 | L33: 0 | M33: 0 | N33: 0 | O33: 0 | P33: 0 | Q33: 0 | R33: 0 | X33: 0.0 | Y33: 1 | Z33: 0
A34: 25 | B34: ='Wettkampf 1'!B34 -> Großmann Martin | C34: ='Wettkampf 1'!C34 -> Börgermoor I | D34: 309.5 | F34: 309.5 | G34: 0 | H34: 0 | I34: 0 | J34: 0 | K34: 0 | L34: 0 | M34: 0 | N34: 0 | O34: 309.5 | P34: 1 | Q34: 0 | R34: 0 | U34: 102.4 | V34: 103.5 | W34: 103.6 | X34: 309.5 | Y34: 1 | Z34: 1 | AA34: Korrekt
A35: 26 | B35: ='Wettkampf 1'!B35 -> Segbers Bernard | C35: ='Wettkampf 1'!C35 -> Börgermoor I | D35: 312.1 | F35: 312.1 | G35: 0 | H35: 0 | I35: 0 | J35: 0 | K35: 0 | L35: 0 | M35: 0 | N35: 0 | O35: 312.1 | P35: 1 | Q35: 0 | R35: 0 | U35: 103.5 | V35: 104.8 | W35: 103.8 | X35: 312.1 | Y35: 1 | Z35: 1 | AA35: Korrekt
A36: 27 | B36: ='Wettkampf 1'!B36 -> Dobelmann Werner | C36: ='Wettkampf 1'!C36 -> Börgermoor I | D36: 310.6 | F36: 310.6 | G36: 0 | H36: 0 | I36: 0 | J36: 0 | K36: 0 | L36: 0 | M36: 0 | N36: 0 | O36: 310.6 | P36: 1 | Q36: 0 | R36: 0 | U36: 104.6 | V36: 103.3 | W36: 102.7 | X36: 310.6 | Y36: 1 | Z36: 1 | AA36: Korrekt
A37: 28 | B37: ='Wettkampf 1'!B37 -> Kohnen Stefan | C37: ='Wettkampf 1'!C37 -> Börgermoor I | D37: 317.4 | F37: 317.4 | G37: 0 | H37: 0 | I37: 0 | J37: 0 | K37: 0 | L37: 0 | M37: 0 | N37: 0 | O37: 317.4 | P37: 1 | Q37: 0 | R37: 0 | U37: 106.0 | V37: 106.2 | W37: 105.2 | X37: 317.4 | Y37: 1 | Z37: 1 | AA37: Korrekt
A38: 29 | B38: ='Wettkampf 1'!B38 -> Schütze 29 | C38: ='Wettkampf 1'!C38 -> Börgermoor I | E38: x | F38: 0 | G38: 0 | H38: 0 | I38: 0 | J38: 0 | K38: 0 | L38: 0 | M38: 0 | N38: 0 | O38: 0 | P38: 0 | Q38: 0 | R38: 0 | X38: 0.0 | Y38: 1 | Z38: 0
A39: 30 | B39: ='Wettkampf 1'!B39 -> Schütze 30 | C39: ='Wettkampf 1'!C39 -> Börgermoor I | E39: x | F39: 0 | G39: 0 | H39: 0 | I39: 0 | J39: 0 | K39: 0 | L39: 0 | M39: 0 | N39: 0 | O39: 0 | P39: 0 | Q39: 0 | R39: 0 | X39: 0.0 | Y39: 1 | Z39: 0
A40: 31 | B40: ='Wettkampf 1'!B40 -> Schulte Matthias | C40: ='Wettkampf 1'!C40 -> Esterwegen I | D40: 313.8 | F40: 313.8 | G40: 0 | H40: 0 | I40: 0 | J40: 0 | K40: 0 | L40: 0 | M40: 0 | N40: 0 | O40: 0 | P40: 0 | Q40: 313.8 | R40: 1 | U40: 103.4 | V40: 104.5 | W40: 105.9 | X40: 313.8 | Y40: 1 | Z40: 1 | AA40: Korrekt
A41: 32 | B41: ='Wettkampf 1'!B41 -> Middendorf Peter | C41: ='Wettkampf 1'!C41 -> Esterwegen I | D41: 311.9 | F41: 311.9 | G41: 0 | H41: 0 | I41: 0 | J41: 0 | K41: 0 | L41: 0 | M41: 0 | N41: 0 | O41: 0 | P41: 0 | Q41: 311.9 | R41: 1 | U41: 102.6 | V41: 105.6 | W41: 103.7 | X41: 311.9 | Y41: 1 | Z41: 1 | AA41: Korrekt
A42: 33 | B42: ='Wettkampf 1'!B42 -> Thomes Bernhard | C42: ='Wettkampf 1'!C42 -> Esterwegen I | D42: 314.2 | F42: 314.2 | G42: 0 | H42: 0 | I42: 0 | J42: 0 | K42: 0 | L42: 0 | M42: 0 | N42: 0 | O42: 0 | P42: 0 | Q42: 314.2 | R42: 1 | U42: 106.1 | V42: 104.4 | W42: 103.7 | X42: 314.2 | Y42: 1 | Z42: 1 | AA42: Korrekt
A43: 34 | B43: ='Wettkampf 1'!B43 -> Lindemann Marco | C43: ='Wettkampf 1'!C43 -> Esterwegen I | D43: 311.9 | F43: 311.9 | G43: 0 | H43: 0 | I43: 0 | J43: 0 | K43: 0 | L43: 0 | M43: 0 | N43: 0 | O43: 0 | P43: 0 | Q43: 311.9 | R43: 1 | U43: 103.3 | V43: 104.8 | W43: 103.8 | X43: 311.9 | Y43: 1 | Z43: 1 | AA43: Korrekt
A44: 35 | B44: ='Wettkampf 1'!B44 -> Schütze 35 | C44: ='Wettkampf 1'!C44 -> Esterwegen I | E44: x | F44: 0 | G44: 0 | H44: 0 | I44: 0 | J44: 0 | K44: 0 | L44: 0 | M44: 0 | N44: 0 | O44: 0 | P44: 0 | Q44: 0 | R44: 0 | X44: 0.0 | Y44: 1 | Z44: 0
A45: 36 | B45: ='Wettkampf 1'!B45 -> Schütze 36 | C45: ='Wettkampf 1'!C45 -> Esterwegen I | E45: x | F45: 0 | G45: 0 | H45: 0 | I45: 0 | J45: 0 | K45: 0 | L45: 0 | M45: 0 | N45: 0 | O45: 0 | P45: 0 | Q45: 0 | R45: 0 | X45: 0.0 | Y45: 1 | Z45: 0
G46: =LARGE(G10:G45,1)+LARGE(G10:G45,2)+LARGE(G10:G45,3) -> 943.6 | H46: =SUM(H10:H45) -> 4 | I46: =LARGE(I10:I45,1)+LARGE(I10:I45,2)+LARGE(I10:I45,3) -> 938.6 | J46: =SUM(J10:J45) -> 4 | K46: =LARGE(K10:K45,1)+LARGE(K10:K45,2)+LARGE(K10:K45,3) -> 943.9 | L46: =SUM(L10:L45) -> 4 | M46: =LARGE(M10:M45,1)+LARGE(M10:M45,2)+LARGE(M10:M45,3) -> 942.2 | N46: =SUM(N10:N45) -> 4 | O46: =LARGE(O10:O45,1)+LARGE(O10:O45,2)+LARGE(O10:O45,3) -> 940.1 | P46: =SUM(P10:P45) -> 4 | Q46: =LARGE(Q10:Q45,1)+LARGE(Q10:Q45,2)+LARGE(Q10:Q45,3) -> 939.9 | R46: =SUM(R10:S45) -> 4
C47: per Email an: sk-huemmling@gmx.de

Sheet 11
B1: Verein / Gruppe | D1: Ergebnisse | V1: Austragungsort: | W1: =Übersicht!P4 -> Börgermoor
A2: 1 | B2: ='Wettkampf 1'!B2 -> Lahn II | D2: =G46 -> 944.8 | E2: =IF(H46>4,"Es sind zu viele Schützen in Wertung!"," ") ->  | V2: Wettkampftag: | W2: =Übersicht!P3 -> 15.03.
A3: 2 | B3: ='Wettkampf 1'!B3 -> Lorup IV | D3: =I46 -> 940.3 | E3: =IF(J46>4,"Es sind zu viele Schützen in Wertung!"," ") -> 
A4: 3 | B4: ='Wettkampf 1'!B4 -> Sögel I | D4: =K46 -> 939.3 | E4: =IF(L46>4,"Es sind zu viele Schützen in Wertung!"," ") ->  | X4: Ansprechpartner für Rückfragen:
A5: 4 | B5: ='Wettkampf 1'!B5 -> Neubörger I | D5: =M46 -> 937.3 | E5: =IF(N46>4,"Es sind zu viele Schützen in Wertung!"," ") ->  | V5: Name: | W5: Stefan Kohnen
A6: 5 | B6: ='Wettkampf 1'!B6 -> Börgermoor I | D6: =O46 -> 942.8 | E6: =IF(P46>4,"Es sind zu viele Schützen in Wertung!"," ") ->  | V6: Tel: | W6: 0173- 5248299
A7: 6 | B7: ='Wettkampf 1'!B7 -> Esterwegen I | D7: =Q46 -> 937.8 | E7: =IF(R46>4,"Es sind zu viele Schützen in Wertung!"," ") ->  | V7: Standaufsicht: | W7: Großmann
B9: Einzelergebnisse: | C9: Verein / Gruppe | D9: Ergebnisse (mindestens 0 eintragen) | E9: AW? Dann x eintippen | G9: Verein 1 | I9: Verein 2 | K9: Verein 3 | M9: Verein 4 | O9: Verein 5 | Q9: Verein 6 | U9: Proberechnung bei Streifen:
A10: 1 | B10: ='Wettkampf 1'!B10 -> Thyen Udo | C10: ='Wettkampf 1'!C10 -> Lahn II | D10: 307.1 | F10: =IF(E10="x","0",D10) -> 307.1 | G10: =IF(C10=$B$2,F10,0) -> 307.1 | H10: =(IF(AND($E10="",$C10=$B$2),1,0)) -> 1 | I10: =IF($C10=$B$3,F10,0) -> 0 | J10: =(IF(AND($E10="",$C10=$B$3),1,0)) -> 0 | K10: =IF($C10=$B$4,F10,0) -> 0 | L10: =(IF(AND($E10="",$C10=$B$4),1,0)) -> 0 | M10: =IF($C10=$B$5,F10,0) -> 0 | N10: =(IF(AND($E10="",$C10=$B$5),1,0)) -> 0 | O10: =IF($C10=$B$6,F10,0) -> 0 | P10: =(IF(AND($E10="",$C10=$B$6),1,0)) -> 0 | Q10: =IF($C10=$B$7,F10,0) -> 0 | R10: =(IF(AND($E10="",$C10=$B$7),1,0)) -> 0 | X10: =U10+V10+W10 -> 0.0 | Y10: =IF(X10=D10,1,0) -> 0 | Z10: =IF(X10=0,0,1) -> 0 | AA10: =IF(Y10+Z10=2,"Korrekt","") -> 
A11: 2 | B11: ='Wettkampf 1'!B11 -> Banedt Olaf | C11: ='Wettkampf 1'!C11 -> Lahn II | D11: 313.0 | F11: =IF(E11="x","0",D11) -> 313.0 | G11: =IF(C11=$B$2,F11,0) -> 313 | H11: =(IF(AND($E11="",$C11=$B$2),1,0)) -> 1 | I11: =IF($C11=$B$3,F11,0) -> 0 | J11: =(IF(AND($E11="",$C11=$B$3),1,0)) -> 0 | K11: =IF($C11=$B$4,F11,0) -> 0 | L11: =(IF(AND($E11="",$C11=$B$4),1,0)) -> 0 | M11: =IF($C11=$B$5,F11,0) -> 0 | N11: =(IF(AND($E11="",$C11=$B$5),1,0)) -> 0 | O11: =IF($C11=$B$6,F11,0) -> 0 | P11: =(IF(AND($E11="",$C11=$B$6),1,0)) -> 0 | Q11: =IF($C11=$B$7,F11,0) -> 0 | R11: =(IF(AND($E11="",$C11=$B$7),1,0)) -> 0 | X11: =U11+V11+W11 -> 0.0 | Y11: =IF(X11=D11,1,0) -> 0 | Z11: =IF(X11=0,0,1) -> 0 | AA11: =IF(Y11+Z11=2,"Korrekt","") -> 
A12: 3 | B12: ='Wettkampf 1'!B12 -> Thien Markus | C12: ='Wettkampf 1'!C12 -> Lahn II | D12: 314.9 | F12: 314.9 | G12: 314.9 | H12: 1 | I12: 0 | J12: 0 | K12: 0 | L12: 0 | M12: 0 | N12: 0 | O12: 0 | P12: 0 | Q12: 0 | R12: 0 | X12: 0.0 | Y12: 0 | Z12: 0
A13: 4 | B13: ='Wettkampf 1'!B13 -> Robben-Schlagge Ralf | C13: ='Wettkampf 1'!C13 -> Lahn II | D13: 316.9 | F13: 316.9 | G13: 316.9 | H13: 1 | I13: 0 | J13: 0 | K13: 0 | L13: 0 | M13: 0 | N13: 0 | O13: 0 | P13: 0 | Q13: 0 | R13: 0 | X13: 0.0 | Y13: 0 | Z13: 0
A14: 5 | B14: ='Wettkampf 1'!B14 -> Schütze 5 | C14: ='Wettkampf 1'!C14 -> Lahn II | E14: x | F14: 0 | G14: 0 | H14: 0 | I14: 0 | J14: 0 | K14: 0 | L14: 0 | M14: 0 | N14: 0 | O14: 0 | P14: 0 | Q14: 0 | R14: 0 | X14: 0.0 | Y14: 1 | Z14: 0
A15: 6 | B15: ='Wettkampf 1'!B15 -> Schütze 6 | C15: ='Wettkampf 1'!C15 -> Lahn II | E15: x | F15: 0 | G15: 0 | H15: 0 | I15: 0 | J15: 0 | K15: 0 | L15: 0 | M15: 0 | N15: 0 | O15: 0 | P15: 0 | Q15: 0 | R15: 0 | X15: 0.0 | Y15: 1 | Z15: 0
A16: 7 | B16: ='Wettkampf 1'!B16 -> Pölking Thomas | C16: ='Wettkampf 1'!C16 -> Lorup IV | D16: 315.2 | F16: 315.2 | G16: 0 | H16: 0 | I16: 315.2 | J16: 1 | K16: 0 | L16: 0 | M16: 0 | N16: 0 | O16: 0 | P16: 0 | Q16: 0 | R16: 0 | X16: 0.0 | Y16: 0 | Z16: 0
A17: 8 | B17: ='Wettkampf 1'!B17 -> Klawitter Gerd | C17: ='Wettkampf 1'!C17 -> Lorup IV | D17: 313.7 | F17: 313.7 | G17: 0 | H17: 0 | I17: 313.7 | J17: 1 | K17: 0 | L17: 0 | M17: 0 | N17: 0 | O17: 0 | P17: 0 | Q17: 0 | R17: 0 | X17: 0.0 | Y17: 0 | Z17: 0
A18: 9 | B18: ='Wettkampf 1'!B18 -> Albers Helmut | C18: ='Wettkampf 1'!C18 -> Lorup IV | D18: 310.4 | F18: 310.4 | G18: 0 | H18: 0 | I18: 310.4 | J18: 1 | K18: 0 | L18: 0 | M18: 0 | N18: 0 | O18: 0 | P18: 0 | Q18: 0 | R18: 0 | X18: 0.0 | Y18: 0 | Z18: 0
A19: 10 | B19: ='Wettkampf 1'!B19 -> Olliges Jürgen | C19: ='Wettkampf 1'!C19 -> Lorup IV | D19: 311.4 | F19: 311.4 | G19: 0 | H19: 0 | I19: 311.4 | J19: 1 | K19: 0 | L19: 0 | M19: 0 | N19: 0 | O19: 0 | P19: 0 | Q19: 0 | R19: 0 | X19: 0.0 | Y19: 0 | Z19: 0
A20: 11 | B20: ='Wettkampf 1'!B20 -> Gerdes Willi | C20: ='Wettkampf 1'!C20 -> Lorup IV | E20: x | F20: 0 | G20: 0 | H20: 0 | I20: 0 | J20: 0 | K20: 0 | L20: 0 | M20: 0 | N20: 0 | O20: 0 | P20: 0 | Q20: 0 | R20: 0 | X20: 0.0 | Y20: 1 | Z20: 0
A21: 12 | B21: ='Wettkampf 1'!B21 -> Schütze 12 | C21: ='Wettkampf 1'!C21 -> Lorup IV | E21: x | F21: 0 | G21: 0 | H21: 0 | I21: 0 | J21: 0 | K21: 0 | L21: 0 | M21: 0 | N21: 0 | O21: 0 | P21: 0 | Q21: 0 | R21: 0 | X21: 0.0 | Y21: 1 | Z21: 0
A22: 13 | B22: ='Wettkampf 1'!B22 -> Terborg Michael | C22: ='Wettkampf 1'!C22 -> Sögel I | D22: 310.4 | F22: 310.4 | G22: 0 | H22: 0 | I22: 0 | J22: 0 | K22: 310.4 | L22: 1 | M22: 0 | N22: 0 | O22: 0 | P22: 0 | Q22: 0 | R22: 0 | X22: 0.0 | Y22: 0 | Z22: 0
A23: 14 | B23: ='Wettkampf 1'!B23 -> Wester Markus | C23: ='Wettkampf 1'!C23 -> Sögel I | D23: 314.2 | F23: 314.2 | G23: 0 | H23: 0 | I23: 0 | J23: 0 | K23: 314.2 | L23: 1 | M23: 0 | N23: 0 | O23: 0 | P23: 0 | Q23: 0 | R23: 0 | X23: 0.0 | Y23: 0 | Z23: 0
A24: 15 | B24: ='Wettkampf 1'!B24 -> Dödtmann Ludger | C24: ='Wettkampf 1'!C24 -> Sögel I | D24: 310.8 | E24: X | F24: 0 | G24: 0 | H24: 0 | I24: 0 | J24: 0 | K24: 0 | L24: 0 | M24: 0 | N24: 0 | O24: 0 | P24: 0 | Q24: 0 | R24: 0 | X24: 0.0 | Y24: 0 | Z24: 0
A25: 16 | B25: ='Wettkampf 1'!B25 -> Tharner Karl-Heinz | C25: ='Wettkampf 1'!C25 -> Sögel I | D25: 310.5 | F25: 310.5 | G25: 0 | H25: 0 | I25: 0 | J25: 0 | K25: 310.5 | L25: 1 | M25: 0 | N25: 0 | O25: 0 | P25: 0 | Q25: 0 | R25: 0 | X25: 0.0 | Y25: 0 | Z25: 0
A26: 17 | B26: ='Wettkampf 1'!B26 -> Sunder Ferdi | C26: ='Wettkampf 1'!C26 -> Sögel I | D26: 314.6 | F26: 314.6 | G26: 0 | H26: 0 | I26: 0 | J26: 0 | K26: 314.6 | L26: 1 | M26: 0 | N26: 0 | O26: 0 | P26: 0 | Q26: 0 | R26: 0 | X26: 0.0 | Y26: 0 | Z26: 0
A27: 18 | B27: ='Wettkampf 1'!B27 -> Schütze 18 | C27: ='Wettkampf 1'!C27 -> Sögel I | E27: x | F27: 0 | G27: 0 | H27: 0 | I27: 0 | J27: 0 | K27: 0 | L27: 0 | M27: 0 | N27: 0 | O27: 0 | P27: 0 | Q27: 0 | R27: 0 | X27: 0.0 | Y27: 1 | Z27: 0
A28: 19 | B28: ='Wettkampf 1'!B28 -> Runde Norbert | C28: ='Wettkampf 1'!C28 -> Neubörger I | D28: 313.9 | F28: 313.9 | G28: 0 | H28: 0 | I28: 0 | J28: 0 | K28: 0 | L28: 0 | M28: 313.9 | N28: 1 | O28: 0 | P28: 0 | Q28: 0 | R28: 0 | X28: 0.0 | Y28: 0 | Z28: 0
A29: 20 | B29: ='Wettkampf 1'!B29 -> Hunfeld Anton | C29: ='Wettkampf 1'!C29 -> Neubörger I | D29: 308.3 | F29: 308.3 | G29: 0 | H29: 0 | I29: 0 | J29: 0 | K29: 0 | L29: 0 | M29: 308.3 | N29: 1 | O29: 0 | P29: 0 | Q29: 0 | R29: 0 | X29: 0.0 | Y29: 0 | Z29: 0
A30: 21 | B30: ='Wettkampf 1'!B30 -> Schnieders Willi | C30: ='Wettkampf 1'!C30 -> Neubörger I | D30: 296.4 | E30: X | F30: 0 | G30: 0 | H30: 0 | I30: 0 | J30: 0 | K30: 0 | L30: 0 | M30: 0 | N30: 0 | O30: 0 | P30: 0 | Q30: 0 | R30: 0 | X30: 0.0 | Y30: 0 | Z30: 0
A31: 22 | B31: ='Wettkampf 1'!B31 -> Antons Klaus | C31: ='Wettkampf 1'!C31 -> Neubörger I | D31: 315.1 | F31: 315.1 | G31: 0 | H31: 0 | I31: 0 | J31: 0 | K31: 0 | L31: 0 | M31: 315.1 | N31: 1 | O31: 0 | P31: 0 | Q31: 0 | R31: 0 | X31: 0.0 | Y31: 0 | Z31: 0
A32: 23 | B32: ='Wettkampf 1'!B32 -> Voss Helmut | C32: ='Wettkampf 1'!C32 -> Neubörger I | D32: 306.5 | F32: 306.5 | G32: 0 | H32: 0 | I32: 0 | J32: 0 | K32: 0 | L32: 0 | M32: 306.5 | N32: 1 | O32: 0 | P32: 0 | Q32: 0 | R32: 0 | X32: 0.0 | Y32: 0 | Z32: 0
A33: 24 | B33: ='Wettkampf 1'!B33 -> Schütze 24 | C33: ='Wettkampf 1'!C33 -> Neubörger I | E33: x | F33: 0 | G33: 0 | H33: 0 | I33: 0 | J33: 0 | K33: 0 | L33: 0 | M33: 0 | N33: 0 | O33: 0 | P33: 0 | Q33: 0 | R33: 0 | X33: 0.0 | Y33: 1 | Z33: 0
A34: 25 | B34: ='Wettkampf 1'!B34 -> Großmann Martin | C34: ='Wettkampf 1'!C34 -> Börgermoor I | D34: 308.7 | F34: 308.7 | G34: 0 | H34: 0 | I34: 0 | J34: 0 | K34: 0 | L34: 0 | M34: 0 | N34: 0 | O34: 308.7 | P34: 1 | Q34: 0 | R34: 0 | X34: 0.0 | Y34: 0 | Z34: 0
A35: 26 | B35: ='Wettkampf 1'!B35 -> Segbers Bernard | C35: ='Wettkampf 1'!C35 -> Börgermoor I | D35: 313.2 | F35: 313.2 | G35: 0 | H35: 0 | I35: 0 | J35: 0 | K35: 0 | L35: 0 | M35: 0 | N35: 0 | O35: 313.2 | P35: 1 | Q35: 0 | R35: 0 | X35: 0.0 | Y35: 0 | Z35: 0
A36: 27 | B36: ='Wettkampf 1'!B36 -> Dobelmann Werner | C36: ='Wettkampf 1'!C36 -> Börgermoor I | D36: 312.9 | F36: 312.9 | G36: 0 | H36: 0 | I36: 0 | J36: 0 | K36: 0 | L36: 0 | M36: 0 | N36: 0 | O36: 312.9 | P36: 1 | Q36: 0 | R36: 0 | X36: 0.0 | Y36: 0 | Z36: 0
A37: 28 | B37: ='Wettkampf 1'!B37 -> Kohnen Stefan | C37: ='Wettkampf 1'!C37 -> Börgermoor I | D37: 316.7 | F37: 316.7 | G37: 0 | H37: 0 | I37: 0 | J37: 0 | K37: 0 | L37: 0 | M37: 0 | N37: 0 | O37: 316.7 | P37: 1 | Q37: 0 | R37: 0 | X37: 0.0 | Y37: 0 | Z37: 0
A38: 29 | B38: ='Wettkampf 1'!B38 -> Schütze 29 | C38: ='Wettkampf 1'!C38 -> Börgermoor I | E38: x | F38: 0 | G38: 0 | H38: 0 | I38: 0 | J38: 0 | K38: 0 | L38: 0 | M38: 0 | N38: 0 | O38: 0 | P38: 0 | Q38: 0 | R38: 0 | X38: 0.0 | Y38: 1 | Z38: 0
A39: 30 | B39: ='Wettkampf 1'!B39 -> Schütze 30 | C39: ='Wettkampf 1'!C39 -> Börgermoor I | E39: x | F39: 0 | G39: 0 | H39: 0 | I39: 0 | J39: 0 | K39: 0 | L39: 0 | M39: 0 | N39: 0 | O39: 0 | P39: 0 | Q39: 0 | R39: 0 | X39: 0.0 | Y39: 1 | Z39: 0
A40: 31 | B40: ='Wettkampf 1'!B40 -> Schulte Matthias | C40: ='Wettkampf 1'!C40 -> Esterwegen I | D40: 310.2 | F40: 310.2 | G40: 0 | H40: 0 | I40: 0 | J40: 0 | K40: 0 | L40: 0 | M40: 0 | N40: 0 | O40: 0 | P40: 0 | Q40: 310.2 | R40: 1 | X40: 0.0 | Y40: 0 | Z40: 0
A41: 32 | B41: ='Wettkampf 1'!B41 -> Middendorf Peter | C41: ='Wettkampf 1'!C41 -> Esterwegen I | D41: 308.5 | F41: 308.5 | G41: 0 | H41: 0 | I41: 0 | J41: 0 | K41: 0 | L41: 0 | M41: 0 | N41: 0 | O41: 0 | P41: 0 | Q41: 308.5 | R41: 1 | X41: 0.0 | Y41: 0 | Z41: 0
A42: 33 | B42: ='Wettkampf 1'!B42 -> Thomes Bernhard | C42: ='Wettkampf 1'!C42 -> Esterwegen I | D42: 315.4 | F42: 315.4 | G42: 0 | H42: 0 | I42: 0 | J42: 0 | K42: 0 | L42: 0 | M42: 0 | N42: 0 | O42: 0 | P42: 0 | Q42: 315.4 | R42: 1 | X42: 0.0 | Y42: 0 | Z42: 0
A43: 34 | B43: ='Wettkampf 1'!B43 -> Lindemann Marco | C43: ='Wettkampf 1'!C43 -> Esterwegen I | D43: 312.2 | F43: 312.2 | G43: 0 | H43: 0 | I43: 0 | J43: 0 | K43: 0 | L43: 0 | M43: 0 | N43: 0 | O43: 0 | P43: 0 | Q43: 312.2 | R43: 1 | X43: 0.0 | Y43: 0 | Z43: 0
A44: 35 | B44: ='Wettkampf 1'!B44 -> Schütze 35 | C44: ='Wettkampf 1'!C44 -> Esterwegen I | E44: x | F44: 0 | G44: 0 | H44: 0 | I44: 0 | J44: 0 | K44: 0 | L44: 0 | M44: 0 | N44: 0 | O44: 0 | P44: 0 | Q44: 0 | R44: 0 | X44: 0.0 | Y44: 1 | Z44: 0
A45: 36 | B45: ='Wettkampf 1'!B45 -> Schütze 36 | C45: ='Wettkampf 1'!C45 -> Esterwegen I | E45: x | F45: 0 | G45: 0 | H45: 0 | I45: 0 | J45: 0 | K45: 0 | L45: 0 | M45: 0 | N45: 0 | O45: 0 | P45: 0 | Q45: 0 | R45: 0 | X45: 0.0 | Y45: 1 | Z45: 0
G46: =LARGE(G10:G45,1)+LARGE(G10:G45,2)+LARGE(G10:G45,3) -> 944.8 | H46: =SUM(H10:H45) -> 4 | I46: =LARGE(I10:I45,1)+LARGE(I10:I45,2)+LARGE(I10:I45,3) -> 940.3 | J46: =SUM(J10:J45) -> 4 | K46: =LARGE(K10:K45,1)+LARGE(K10:K45,2)+LARGE(K10:K45,3) -> 939.3 | L46: =SUM(L10:L45) -> 4 | M46: =LARGE(M10:M45,1)+LARGE(M10:M45,2)+LARGE(M10:M45,3) -> 937.3 | N46: =SUM(N10:N45) -> 4 | O46: =LARGE(O10:O45,1)+LARGE(O10:O45,2)+LARGE(O10:O45,3) -> 942.8 | P46: =SUM(P10:P45) -> 4 | Q46: =LARGE(Q10:Q45,1)+LARGE(Q10:Q45,2)+LARGE(Q10:Q45,3) -> 937.8 | R46: =SUM(R10:S45) -> 4
C47: per Email an: sk-huemmling@gmx.de

Sheet 12
B1: Verein / Gruppe | D1: Ergebnisse | V1: Austragungsort: | W1: =Übersicht!Q4 -> Esterwegne
A2: 1 | B2: ='Wettkampf 1'!B2 -> Lahn II | D2: =G46 -> 0.0 | E2: =IF(H46>4,"Es sind zu viele Schützen in Wertung!"," ") ->  | V2: Wettkampftag: | W2: =Übersicht!Q3 -> 29.03.
A3: 2 | B3: ='Wettkampf 1'!B3 -> Lorup IV | D3: =I46 -> 0.0 | E3: =IF(J46>4,"Es sind zu viele Schützen in Wertung!"," ") -> 
A4: 3 | B4: ='Wettkampf 1'!B4 -> Sögel I | D4: =K46 -> 0.0 | E4: =IF(L46>4,"Es sind zu viele Schützen in Wertung!"," ") ->  | X4: Ansprechpartner für Rückfragen:
A5: 4 | B5: ='Wettkampf 1'!B5 -> Neubörger I | D5: =M46 -> 0.0 | E5: =IF(N46>4,"Es sind zu viele Schützen in Wertung!"," ") ->  | V5: Name:
A6: 5 | B6: ='Wettkampf 1'!B6 -> Börgermoor I | D6: =O46 -> 0.0 | E6: =IF(P46>4,"Es sind zu viele Schützen in Wertung!"," ") ->  | V6: Tel:
A7: 6 | B7: ='Wettkampf 1'!B7 -> Esterwegen I | D7: =Q46 -> 0.0 | E7: =IF(R46>4,"Es sind zu viele Schützen in Wertung!"," ") ->  | V7: Standaufsicht:
B9: Einzelergebnisse: | C9: Verein / Gruppe | D9: Ergebnisse (mindestens 0 eintragen) | E9: AW? Dann x eintippen | G9: Verein 1 | I9: Verein 2 | K9: Verein 3 | M9: Verein 4 | O9: Verein 5 | Q9: Verein 6 | U9: Proberechnung bei Streifen:
A10: 1 | B10: ='Wettkampf 1'!B10 -> Thyen Udo | C10: ='Wettkampf 1'!C10 -> Lahn II | F10: =IF(E10="x","0",D10) -> 0.0 | G10: =IF(C10=$B$2,F10,0) -> 0 | H10: =(IF(AND($E10="",$C10=$B$2),1,0)) -> 1 | I10: =IF($C10=$B$3,F10,0) -> 0 | J10: =(IF(AND($E10="",$C10=$B$3),1,0)) -> 0 | K10: =IF($C10=$B$4,F10,0) -> 0 | L10: =(IF(AND($E10="",$C10=$B$4),1,0)) -> 0 | M10: =IF($C10=$B$5,F10,0) -> 0 | N10: =(IF(AND($E10="",$C10=$B$5),1,0)) -> 0 | O10: =IF($C10=$B$6,F10,0) -> 0 | P10: =(IF(AND($E10="",$C10=$B$6),1,0)) -> 0 | Q10: =IF($C10=$B$7,F10,0) -> 0 | R10: =(IF(AND($E10="",$C10=$B$7),1,0)) -> 0 | X10: =U10+V10+W10 -> 0.0 | Y10: =IF(X10=D10,1,0) -> 1 | Z10: =IF(X10=0,0,1) -> 0 | AA10: =IF(Y10+Z10=2,"Korrekt","") -> 
A11: 2 | B11: ='Wettkampf 1'!B11 -> Banedt Olaf | C11: ='Wettkampf 1'!C11 -> Lahn II | F11: =IF(E11="x","0",D11) -> 0.0 | G11: =IF(C11=$B$2,F11,0) -> 0 | H11: =(IF(AND($E11="",$C11=$B$2),1,0)) -> 1 | I11: =IF($C11=$B$3,F11,0) -> 0 | J11: =(IF(AND($E11="",$C11=$B$3),1,0)) -> 0 | K11: =IF($C11=$B$4,F11,0) -> 0 | L11: =(IF(AND($E11="",$C11=$B$4),1,0)) -> 0 | M11: =IF($C11=$B$5,F11,0) -> 0 | N11: =(IF(AND($E11="",$C11=$B$5),1,0)) -> 0 | O11: =IF($C11=$B$6,F11,0) -> 0 | P11: =(IF(AND($E11="",$C11=$B$6),1,0)) -> 0 | Q11: =IF($C11=$B$7,F11,0) -> 0 | R11: =(IF(AND($E11="",$C11=$B$7),1,0)) -> 0 | X11: =U11+V11+W11 -> 0.0 | Y11: =IF(X11=D11,1,0) -> 1 | Z11: =IF(X11=0,0,1) -> 0 | AA11: =IF(Y11+Z11=2,"Korrekt","") -> 
A12: 3 | B12: ='Wettkampf 1'!B12 -> Thien Markus | C12: ='Wettkampf 1'!C12 -> Lahn II | F12: 0.0 | G12: 0 | H12: 1 | I12: 0 | J12: 0 | K12: 0 | L12: 0 | M12: 0 | N12: 0 | O12: 0 | P12: 0 | Q12: 0 | R12: 0 | X12: 0.0 | Y12: 1 | Z12: 0
A13: 4 | B13: ='Wettkampf 1'!B13 -> Robben-Schlagge Ralf | C13: ='Wettkampf 1'!C13 -> Lahn II | F13: 0.0 | G13: 0 | H13: 1 | I13: 0 | J13: 0 | K13: 0 | L13: 0 | M13: 0 | N13: 0 | O13: 0 | P13: 0 | Q13: 0 | R13: 0 | X13: 0.0 | Y13: 1 | Z13: 0
A14: 5 | B14: ='Wettkampf 1'!B14 -> Schütze 5 | C14: ='Wettkampf 1'!C14 -> Lahn II | E14: x | F14: 0 | G14: 0 | H14: 0 | I14: 0 | J14: 0 | K14: 0 | L14: 0 | M14: 0 | N14: 0 | O14: 0 | P14: 0 | Q14: 0 | R14: 0 | X14: 0.0 | Y14: 1 | Z14: 0
A15: 6 | B15: ='Wettkampf 1'!B15 -> Schütze 6 | C15: ='Wettkampf 1'!C15 -> Lahn II | E15: x | F15: 0 | G15: 0 | H15: 0 | I15: 0 | J15: 0 | K15: 0 | L15: 0 | M15: 0 | N15: 0 | O15: 0 | P15: 0 | Q15: 0 | R15: 0 | X15: 0.0 | Y15: 1 | Z15: 0
A16: 7 | B16: ='Wettkampf 1'!B16 -> Pölking Thomas | C16: ='Wettkampf 1'!C16 -> Lorup IV | F16: 0.0 | G16: 0 | H16: 0 | I16: 0 | J16: 1 | K16: 0 | L16: 0 | M16: 0 | N16: 0 | O16: 0 | P16: 0 | Q16: 0 | R16: 0 | X16: 0.0 | Y16: 1 | Z16: 0
A17: 8 | B17: ='Wettkampf 1'!B17 -> Klawitter Gerd | C17: ='Wettkampf 1'!C17 -> Lorup IV | F17: 0.0 | G17: 0 | H17: 0 | I17: 0 | J17: 1 | K17: 0 | L17: 0 | M17: 0 | N17: 0 | O17: 0 | P17: 0 | Q17: 0 | R17: 0 | X17: 0.0 | Y17: 1 | Z17: 0
A18: 9 | B18: ='Wettkampf 1'!B18 -> Albers Helmut | C18: ='Wettkampf 1'!C18 -> Lorup IV | F18: 0.0 | G18: 0 | H18: 0 | I18: 0 | J18: 1 | K18: 0 | L18: 0 | M18: 0 | N18: 0 | O18: 0 | P18: 0 | Q18: 0 | R18: 0 | X18: 0.0 | Y18: 1 | Z18: 0
A19: 10 | B19: ='Wettkampf 1'!B19 -> Olliges Jürgen | C19: ='Wettkampf 1'!C19 -> Lorup IV | F19: 0.0 | G19: 0 | H19: 0 | I19: 0 | J19: 1 | K19: 0 | L19: 0 | M19: 0 | N19: 0 | O19: 0 | P19: 0 | Q19: 0 | R19: 0 | X19: 0.0 | Y19: 1 | Z19: 0
A20: 11 | B20: ='Wettkampf 1'!B20 -> Gerdes Willi | C20: ='Wettkampf 1'!C20 -> Lorup IV | E20: x | F20: 0 | G20: 0 | H20: 0 | I20: 0 | J20: 0 | K20: 0 | L20: 0 | M20: 0 | N20: 0 | O20: 0 | P20: 0 | Q20: 0 | R20: 0 | X20: 0.0 | Y20: 1 | Z20: 0
A21: 12 | B21: ='Wettkampf 1'!B21 -> Schütze 12 | C21: ='Wettkampf 1'!C21 -> Lorup IV | E21: x | F21: 0 | G21: 0 | H21: 0 | I21: 0 | J21: 0 | K21: 0 | L21: 0 | M21: 0 | N21: 0 | O21: 0 | P21: 0 | Q21: 0 | R21: 0 | X21: 0.0 | Y21: 1 | Z21: 0
A22: 13 | B22: ='Wettkampf 1'!B22 -> Terborg Michael | C22: ='Wettkampf 1'!C22 -> Sögel I | F22: 0.0 | G22: 0 | H22: 0 | I22: 0 | J22: 0 | K22: 0 | L22: 1 | M22: 0 | N22: 0 | O22: 0 | P22: 0 | Q22: 0 | R22: 0 | X22: 0.0 | Y22: 1 | Z22: 0
A23: 14 | B23: ='Wettkampf 1'!B23 -> Wester Markus | C23: ='Wettkampf 1'!C23 -> Sögel I | F23: 0.0 | G23: 0 | H23: 0 | I23: 0 | J23: 0 | K23: 0 | L23: 1 | M23: 0 | N23: 0 | O23: 0 | P23: 0 | Q23: 0 | R23: 0 | X23: 0.0 | Y23: 1 | Z23: 0
A24: 15 | B24: ='Wettkampf 1'!B24 -> Dödtmann Ludger | C24: ='Wettkampf 1'!C24 -> Sögel I | F24: 0.0 | G24: 0 | H24: 0 | I24: 0 | J24: 0 | K24: 0 | L24: 1 | M24: 0 | N24: 0 | O24: 0 | P24: 0 | Q24: 0 | R24: 0 | X24: 0.0 | Y24: 1 | Z24: 0
A25: 16 | B25: ='Wettkampf 1'!B25 -> Tharner Karl-Heinz | C25: ='Wettkampf 1'!C25 -> Sögel I | F25: 0.0 | G25: 0 | H25: 0 | I25: 0 | J25: 0 | K25: 0 | L25: 1 | M25: 0 | N25: 0 | O25: 0 | P25: 0 | Q25: 0 | R25: 0 | X25: 0.0 | Y25: 1 | Z25: 0
A26: 17 | B26: ='Wettkampf 1'!B26 -> Sunder Ferdi | C26: ='Wettkampf 1'!C26 -> Sögel I | E26: x | F26: 0 | G26: 0 | H26: 0 | I26: 0 | J26: 0 | K26: 0 | L26: 0 | M26: 0 | N26: 0 | O26: 0 | P26: 0 | Q26: 0 | R26: 0 | X26: 0.0 | Y26: 1 | Z26: 0
A27: 18 | B27: ='Wettkampf 1'!B27 -> Schütze 18 | C27: ='Wettkampf 1'!C27 -> Sögel I | E27: x | F27: 0 | G27: 0 | H27: 0 | I27: 0 | J27: 0 | K27: 0 | L27: 0 | M27: 0 | N27: 0 | O27: 0 | P27: 0 | Q27: 0 | R27: 0 | X27: 0.0 | Y27: 1 | Z27: 0
A28: 19 | B28: ='Wettkampf 1'!B28 -> Runde Norbert | C28: ='Wettkampf 1'!C28 -> Neubörger I | F28: 0.0 | G28: 0 | H28: 0 | I28: 0 | J28: 0 | K28: 0 | L28: 0 | M28: 0 | N28: 1 | O28: 0 | P28: 0 | Q28: 0 | R28: 0 | X28: 0.0 | Y28: 1 | Z28: 0
A29: 20 | B29: ='Wettkampf 1'!B29 -> Hunfeld Anton | C29: ='Wettkampf 1'!C29 -> Neubörger I | F29: 0.0 | G29: 0 | H29: 0 | I29: 0 | J29: 0 | K29: 0 | L29: 0 | M29: 0 | N29: 1 | O29: 0 | P29: 0 | Q29: 0 | R29: 0 | X29: 0.0 | Y29: 1 | Z29: 0
A30: 21 | B30: ='Wettkampf 1'!B30 -> Schnieders Willi | C30: ='Wettkampf 1'!C30 -> Neubörger I | F30: 0.0 | G30: 0 | H30: 0 | I30: 0 | J30: 0 | K30: 0 | L30: 0 | M30: 0 | N30: 1 | O30: 0 | P30: 0 | Q30: 0 | R30: 0 | X30: 0.0 | Y30: 1 | Z30: 0
A31: 22 | B31: ='Wettkampf 1'!B31 -> Antons Klaus | C31: ='Wettkampf 1'!C31 -> Neubörger I | F31: 0.0 | G31: 0 | H31: 0 | I31: 0 | J31: 0 | K31: 0 | L31: 0 | M31: 0 | N31: 1 | O31: 0 | P31: 0 | Q31: 0 | R31: 0 | X31: 0.0 | Y31: 1 | Z31: 0
A32: 23 | B32: ='Wettkampf 1'!B32 -> Voss Helmut | C32: ='Wettkampf 1'!C32 -> Neubörger I | E32: x | F32: 0 | G32: 0 | H32: 0 | I32: 0 | J32: 0 | K32: 0 | L32: 0 | M32: 0 | N32: 0 | O32: 0 | P32: 0 | Q32: 0 | R32: 0 | X32: 0.0 | Y32: 1 | Z32: 0
A33: 24 | B33: ='Wettkampf 1'!B33 -> Schütze 24 | C33: ='Wettkampf 1'!C33 -> Neubörger I | E33: x | F33: 0 | G33: 0 | H33: 0 | I33: 0 | J33: 0 | K33: 0 | L33: 0 | M33: 0 | N33: 0 | O33: 0 | P33: 0 | Q33: 0 | R33: 0 | X33: 0.0 | Y33: 1 | Z33: 0
A34: 25 | B34: ='Wettkampf 1'!B34 -> Großmann Martin | C34: ='Wettkampf 1'!C34 -> Börgermoor I | F34: 0.0 | G34: 0 | H34: 0 | I34: 0 | J34: 0 | K34: 0 | L34: 0 | M34: 0 | N34: 0 | O34: 0 | P34: 1 | Q34: 0 | R34: 0 | X34: 0.0 | Y34: 1 | Z34: 0
A35: 26 | B35: ='Wettkampf 1'!B35 -> Segbers Bernard | C35: ='Wettkampf 1'!C35 -> Börgermoor I | F35: 0.0 | G35: 0 | H35: 0 | I35: 0 | J35: 0 | K35: 0 | L35: 0 | M35: 0 | N35: 0 | O35: 0 | P35: 1 | Q35: 0 | R35: 0 | X35: 0.0 | Y35: 1 | Z35: 0
A36: 27 | B36: ='Wettkampf 1'!B36 -> Dobelmann Werner | C36: ='Wettkampf 1'!C36 -> Börgermoor I | F36: 0.0 | G36: 0 | H36: 0 | I36: 0 | J36: 0 | K36: 0 | L36: 0 | M36: 0 | N36: 0 | O36: 0 | P36: 1 | Q36: 0 | R36: 0 | X36: 0.0 | Y36: 1 | Z36: 0
A37: 28 | B37: ='Wettkampf 1'!B37 -> Kohnen Stefan | C37: ='Wettkampf 1'!C37 -> Börgermoor I | F37: 0.0 | G37: 0 | H37: 0 | I37: 0 | J37: 0 | K37: 0 | L37: 0 | M37: 0 | N37: 0 | O37: 0 | P37: 1 | Q37: 0 | R37: 0 | X37: 0.0 | Y37: 1 | Z37: 0
A38: 29 | B38: ='Wettkampf 1'!B38 -> Schütze 29 | C38: ='Wettkampf 1'!C38 -> Börgermoor I | E38: x | F38: 0 | G38: 0 | H38: 0 | I38: 0 | J38: 0 | K38: 0 | L38: 0 | M38: 0 | N38: 0 | O38: 0 | P38: 0 | Q38: 0 | R38: 0 | X38: 0.0 | Y38: 1 | Z38: 0
A39: 30 | B39: ='Wettkampf 1'!B39 -> Schütze 30 | C39: ='Wettkampf 1'!C39 -> Börgermoor I | E39: x | F39: 0 | G39: 0 | H39: 0 | I39: 0 | J39: 0 | K39: 0 | L39: 0 | M39: 0 | N39: 0 | O39: 0 | P39: 0 | Q39: 0 | R39: 0 | X39: 0.0 | Y39: 1 | Z39: 0
A40: 31 | B40: ='Wettkampf 1'!B40 -> Schulte Matthias | C40: ='Wettkampf 1'!C40 -> Esterwegen I | F40: 0.0 | G40: 0 | H40: 0 | I40: 0 | J40: 0 | K40: 0 | L40: 0 | M40: 0 | N40: 0 | O40: 0 | P40: 0 | Q40: 0 | R40: 1 | X40: 0.0 | Y40: 1 | Z40: 0
A41: 32 | B41: ='Wettkampf 1'!B41 -> Middendorf Peter | C41: ='Wettkampf 1'!C41 -> Esterwegen I | F41: 0.0 | G41: 0 | H41: 0 | I41: 0 | J41: 0 | K41: 0 | L41: 0 | M41: 0 | N41: 0 | O41: 0 | P41: 0 | Q41: 0 | R41: 1 | X41: 0.0 | Y41: 1 | Z41: 0
A42: 33 | B42: ='Wettkampf 1'!B42 -> Thomes Bernhard | C42: ='Wettkampf 1'!C42 -> Esterwegen I | F42: 0.0 | G42: 0 | H42: 0 | I42: 0 | J42: 0 | K42: 0 | L42: 0 | M42: 0 | N42: 0 | O42: 0 | P42: 0 | Q42: 0 | R42: 1 | X42: 0.0 | Y42: 1 | Z42: 0
A43: 34 | B43: ='Wettkampf 1'!B43 -> Lindemann Marco | C43: ='Wettkampf 1'!C43 -> Esterwegen I | F43: 0.0 | G43: 0 | H43: 0 | I43: 0 | J43: 0 | K43: 0 | L43: 0 | M43: 0 | N43: 0 | O43: 0 | P43: 0 | Q43: 0 | R43: 1 | X43: 0.0 | Y43: 1 | Z43: 0
A44: 35 | B44: ='Wettkampf 1'!B44 -> Schütze 35 | C44: ='Wettkampf 1'!C44 -> Esterwegen I | E44: x | F44: 0 | G44: 0 | H44: 0 | I44: 0 | J44: 0 | K44: 0 | L44: 0 | M44: 0 | N44: 0 | O44: 0 | P44: 0 | Q44: 0 | R44: 0 | X44: 0.0 | Y44: 1 | Z44: 0
A45: 36 | B45: ='Wettkampf 1'!B45 -> Schütze 36 | C45: ='Wettkampf 1'!C45 -> Esterwegen I | E45: x | F45: 0 | G45: 0 | H45: 0 | I45: 0 | J45: 0 | K45: 0 | L45: 0 | M45: 0 | N45: 0 | O45: 0 | P45: 0 | Q45: 0 | R45: 0 | X45: 0.0 | Y45: 1 | Z45: 0
G46: =LARGE(G10:G45,1)+LARGE(G10:G45,2)+LARGE(G10:G45,3) -> 0 | H46: =SUM(H10:H45) -> 4 | I46: =LARGE(I10:I45,1)+LARGE(I10:I45,2)+LARGE(I10:I45,3) -> 0 | J46: =SUM(J10:J45) -> 4 | K46: =LARGE(K10:K45,1)+LARGE(K10:K45,2)+LARGE(K10:K45,3) -> 0 | L46: =SUM(L10:L45) -> 4 | M46: =LARGE(M10:M45,1)+LARGE(M10:M45,2)+LARGE(M10:M45,3) -> 0 | N46: =SUM(N10:N45) -> 4 | O46: =LARGE(O10:O45,1)+LARGE(O10:O45,2)+LARGE(O10:O45,3) -> 0 | P46: =SUM(P10:P45) -> 4 | Q46: =LARGE(Q10:Q45,1)+LARGE(Q10:Q45,2)+LARGE(Q10:Q45,3) -> 0 | R46: =SUM(R10:S45) -> 4
C47: per Email an: sk-huemmling@gmx.de

Sheet Ausdruck
B1: Verein / Gruppe | C1: Ergebnisse | D1: =Übersicht!K1 -> 2019/2020 | X1: Austragungsort:
A2: 1 | B2: ='Wettkampf 1'!B2 -> Lahn II | D2: Klasse: | X2: Wettkampftag:
A3: 2 | B3: ='Wettkampf 1'!B3 -> Lorup IV | D3: =Übersicht!M1 -> 1. Kreisliga
A4: 3 | B4: ='Wettkampf 1'!B4 -> Sögel I | D4: =Übersicht!P1 -> Schützen | Z4: Ansprechpartner für Rückfragen:
A5: 4 | B5: ='Wettkampf 1'!B5 -> Neubörger I | X5: Name:
A6: 5 | B6: ='Wettkampf 1'!B6 -> Börgermoor I | X6: Tel:
A7: 6 | B7: ='Wettkampf 1'!B7 -> Esterwegen I | X7: Standaufsicht:
B9: Name Schütze | C9: Verein/Gruppe | D9: Ergebnis | E9: AW? | G9: Verein 1 | I9: Verein 2 | K9: Verein 3 | M9: Verein 4 | O9: Verein 5 | Q9: Verein 6 | U9: Geburts-datum | W9: Proberechnung bei Streifen:
A10: 1 | B10: ='Wettkampf 1'!B10 -> Thyen Udo | C10: ='Wettkampf 1'!C10 -> Lahn II | F10: =IF(E10="x","0",D10) -> 0 | G10: =IF(C10=$B$2,F10,0) -> 0 | H10: =(IF(AND($E10="",$C10=$B$2),1,0)) -> 1 | I10: =IF($C10=$B$3,F10,0) -> 0 | J10: =(IF(AND($E10="",$C10=$B$3),1,0)) -> 0 | K10: =IF($C10=$B$4,F10,0) -> 0 | L10: =(IF(AND($E10="",$C10=$B$4),1,0)) -> 0 | M10: =IF($C10=$B$5,F10,0) -> 0 | N10: =(IF(AND($E10="",$C10=$B$5),1,0)) -> 0 | O10: =IF($C10=$B$6,F10,0) -> 0 | P10: =(IF(AND($E10="",$C10=$B$6),1,0)) -> 0 | Q10: =IF($C10=$B$7,F10,0) -> 0 | R10: =(IF(AND($E10="",$C10=$B$7),1,0)) -> 0 | AA10: =IF(Z10=D10,1,0) -> 1 | AB10: =IF(Z10=0,0,1) -> 0 | AC10: =IF(AA10+AB10=2,"Korrekt","") -> 
A11: 2 | B11: ='Wettkampf 1'!B11 -> Banedt Olaf | C11: ='Wettkampf 1'!C11 -> Lahn II | F11: =IF(E11="x","0",D11) -> 0 | G11: =IF(C11=$B$2,F11,0) -> 0 | H11: =(IF(AND($E11="",$C11=$B$2),1,0)) -> 1 | I11: =IF($C11=$B$3,F11,0) -> 0 | J11: =(IF(AND($E11="",$C11=$B$3),1,0)) -> 0 | K11: =IF($C11=$B$4,F11,0) -> 0 | L11: =(IF(AND($E11="",$C11=$B$4),1,0)) -> 0 | M11: =IF($C11=$B$5,F11,0) -> 0 | N11: =(IF(AND($E11="",$C11=$B$5),1,0)) -> 0 | O11: =IF($C11=$B$6,F11,0) -> 0 | P11: =(IF(AND($E11="",$C11=$B$6),1,0)) -> 0 | Q11: =IF($C11=$B$7,F11,0) -> 0 | R11: =(IF(AND($E11="",$C11=$B$7),1,0)) -> 0 | AA11: =IF(Z11=D11,1,0) -> 1 | AB11: =IF(Z11=0,0,1) -> 0 | AC11: =IF(AA11+AB11=2,"Korrekt","") -> 
A12: 3 | B12: ='Wettkampf 1'!B12 -> Thien Markus | C12: ='Wettkampf 1'!C12 -> Lahn II | F12: 0 | G12: 0 | H12: 1 | I12: 0 | J12: 0 | K12: 0 | L12: 0 | M12: 0 | N12: 0 | O12: 0 | P12: 0 | Q12: 0 | R12: 0 | AA12: 1 | AB12: 0
A13: 4 | B13: ='Wettkampf 1'!B13 -> Robben-Schlagge Ralf | C13: ='Wettkampf 1'!C13 -> Lahn II | F13: 0 | G13: 0 | H13: 1 | I13: 0 | J13: 0 | K13: 0 | L13: 0 | M13: 0 | N13: 0 | O13: 0 | P13: 0 | Q13: 0 | R13: 0 | AA13: 1 | AB13: 0
A14: 5 | B14: ='Wettkampf 1'!B14 -> Schütze 5 | C14: ='Wettkampf 1'!C14 -> Lahn II | F14: 0 | G14: 0 | H14: 1 | I14: 0 | J14: 0 | K14: 0 | L14: 0 | M14: 0 | N14: 0 | O14: 0 | P14: 0 | Q14: 0 | R14: 0 | AA14: 1 | AB14: 0
A15: 6 | B15: ='Wettkampf 1'!B15 -> Schütze 6 | C15: ='Wettkampf 1'!C15 -> Lahn II | F15: 0 | G15: 0 | H15: 1 | I15: 0 | J15: 0 | K15: 0 | L15: 0 | M15: 0 | N15: 0 | O15: 0 | P15: 0 | Q15: 0 | R15: 0 | AA15: 1 | AB15: 0
A16: 7 | B16: ='Wettkampf 1'!B16 -> Pölking Thomas | C16: ='Wettkampf 1'!C16 -> Lorup IV | F16: 0 | G16: 0 | H16: 0 | I16: 0 | J16: 1 | K16: 0 | L16: 0 | M16: 0 | N16: 0 | O16: 0 | P16: 0 | Q16: 0 | R16: 0 | AA16: 1 | AB16: 0
A17: 8 | B17: ='Wettkampf 1'!B17 -> Klawitter Gerd | C17: ='Wettkampf 1'!C17 -> Lorup IV | F17: 0 | G17: 0 | H17: 0 | I17: 0 | J17: 1 | K17: 0 | L17: 0 | M17: 0 | N17: 0 | O17: 0 | P17: 0 | Q17: 0 | R17: 0 | AA17: 1 | AB17: 0
A18: 9 | B18: ='Wettkampf 1'!B18 -> Albers Helmut | C18: ='Wettkampf 1'!C18 -> Lorup IV | F18: 0 | G18: 0 | H18: 0 | I18: 0 | J18: 1 | K18: 0 | L18: 0 | M18: 0 | N18: 0 | O18: 0 | P18: 0 | Q18: 0 | R18: 0 | AA18: 1 | AB18: 0
A19: 10 | B19: ='Wettkampf 1'!B19 -> Olliges Jürgen | C19: ='Wettkampf 1'!C19 -> Lorup IV | F19: 0 | G19: 0 | H19: 0 | I19: 0 | J19: 1 | K19: 0 | L19: 0 | M19: 0 | N19: 0 | O19: 0 | P19: 0 | Q19: 0 | R19: 0 | AA19: 1 | AB19: 0
A20: 11 | B20: ='Wettkampf 1'!B20 -> Gerdes Willi | C20: ='Wettkampf 1'!C20 -> Lorup IV | F20: 0 | G20: 0 | H20: 0 | I20: 0 | J20: 1 | K20: 0 | L20: 0 | M20: 0 | N20: 0 | O20: 0 | P20: 0 | Q20: 0 | R20: 0 | AA20: 1 | AB20: 0
A21: 12 | B21: ='Wettkampf 1'!B21 -> Schütze 12 | C21: ='Wettkampf 1'!C21 -> Lorup IV | F21: 0 | G21: 0 | H21: 0 | I21: 0 | J21: 1 | K21: 0 | L21: 0 | M21: 0 | N21: 0 | O21: 0 | P21: 0 | Q21: 0 | R21: 0 | AA21: 1 | AB21: 0
A22: 13 | B22: ='Wettkampf 1'!B22 -> Terborg Michael | C22: ='Wettkampf 1'!C22 -> Sögel I | F22: 0 | G22: 0 | H22: 0 | I22: 0 | J22: 0 | K22: 0 | L22: 1 | M22: 0 | N22: 0 | O22: 0 | P22: 0 | Q22: 0 | R22: 0 | AA22: 1 | AB22: 0
A23: 14 | B23: ='Wettkampf 1'!B23 -> Wester Markus | C23: ='Wettkampf 1'!C23 -> Sögel I | F23: 0 | G23: 0 | H23: 0 | I23: 0 | J23: 0 | K23: 0 | L23: 1 | M23: 0 | N23: 0 | O23: 0 | P23: 0 | Q23: 0 | R23: 0 | AA23: 1 | AB23: 0
A24: 15 | B24: ='Wettkampf 1'!B24 -> Dödtmann Ludger | C24: ='Wettkampf 1'!C24 -> Sögel I | F24: 0 | G24: 0 | H24: 0 | I24: 0 | J24: 0 | K24: 0 | L24: 1 | M24: 0 | N24: 0 | O24: 0 | P24: 0 | Q24: 0 | R24: 0 | AA24: 1 | AB24: 0
A25: 16 | B25: ='Wettkampf 1'!B25 -> Tharner Karl-Heinz | C25: ='Wettkampf 1'!C25 -> Sögel I | F25: 0 | G25: 0 | H25: 0 | I25: 0 | J25: 0 | K25: 0 | L25: 1 | M25: 0 | N25: 0 | O25: 0 | P25: 0 | Q25: 0 | R25: 0 | AA25: 1 | AB25: 0
A26: 17 | B26: ='Wettkampf 1'!B26 -> Sunder Ferdi | C26: ='Wettkampf 1'!C26 -> Sögel I | F26: 0 | G26: 0 | H26: 0 | I26: 0 | J26: 0 | K26: 0 | L26: 1 | M26: 0 | N26: 0 | O26: 0 | P26: 0 | Q26: 0 | R26: 0 | AA26: 1 | AB26: 0
A27: 18 | B27: ='Wettkampf 1'!B27 -> Schütze 18 | C27: ='Wettkampf 1'!C27 -> Sögel I | F27: 0 | G27: 0 | H27: 0 | I27: 0 | J27: 0 | K27: 0 | L27: 1 | M27: 0 | N27: 0 | O27: 0 | P27: 0 | Q27: 0 | R27: 0 | AA27: 1 | AB27: 0
A28: 19 | B28: ='Wettkampf 1'!B28 -> Runde Norbert | C28: ='Wettkampf 1'!C28 -> Neubörger I | F28: 0 | G28: 0 | H28: 0 | I28: 0 | J28: 0 | K28: 0 | L28: 0 | M28: 0 | N28: 1 | O28: 0 | P28: 0 | Q28: 0 | R28: 0 | AA28: 1 | AB28: 0
A29: 20 | B29: ='Wettkampf 1'!B29 -> Hunfeld Anton | C29: ='Wettkampf 1'!C29 -> Neubörger I | F29: 0 | G29: 0 | H29: 0 | I29: 0 | J29: 0 | K29: 0 | L29: 0 | M29: 0 | N29: 1 | O29: 0 | P29: 0 | Q29: 0 | R29: 0 | AA29: 1 | AB29: 0
A30: 21 | B30: ='Wettkampf 1'!B30 -> Schnieders Willi | C30: ='Wettkampf 1'!C30 -> Neubörger I | F30: 0 | G30: 0 | H30: 0 | I30: 0 | J30: 0 | K30: 0 | L30: 0 | M30: 0 | N30: 1 | O30: 0 | P30: 0 | Q30: 0 | R30: 0 | AA30: 1 | AB30: 0
A31: 22 | B31: ='Wettkampf 1'!B31 -> Antons Klaus | C31: ='Wettkampf 1'!C31 -> Neubörger I | F31: 0 | G31: 0 | H31: 0 | I31: 0 | J31: 0 | K31: 0 | L31: 0 | M31: 0 | N31: 1 | O31: 0 | P31: 0 | Q31: 0 | R31: 0 | AA31: 1 | AB31: 0
A32: 23 | B32: ='Wettkampf 1'!B32 -> Voss Helmut | C32: ='Wettkampf 1'!C32 -> Neubörger I | F32: 0 | G32: 0 | H32: 0 | I32: 0 | J32: 0 | K32: 0 | L32: 0 | M32: 0 | N32: 1 | O32: 0 | P32: 0 | Q32: 0 | R32: 0 | AA32: 1 | AB32: 0
A33: 24 | B33: ='Wettkampf 1'!B33 -> Schütze 24 | C33: ='Wettkampf 1'!C33 -> Neubörger I | F33: 0 | G33: 0 | H33: 0 | I33: 0 | J33: 0 | K33: 0 | L33: 0 | M33: 0 | N33: 1 | O33: 0 | P33: 0 | Q33: 0 | R33: 0 | AA33: 1 | AB33: 0
A34: 25 | B34: ='Wettkampf 1'!B34 -> Großmann Martin | C34: ='Wettkampf 1'!C34 -> Börgermoor I | F34: 0 | G34: 0 | H34: 0 | I34: 0 | J34: 0 | K34: 0 | L34: 0 | M34: 0 | N34: 0 | O34: 0 | P34: 1 | Q34: 0 | R34: 0 | AA34: 1 | AB34: 0
A35: 26 | B35: ='Wettkampf 1'!B35 -> Segbers Bernard | C35: ='Wettkampf 1'!C35 -> Börgermoor I | F35: 0 | G35: 0 | H35: 0 | I35: 0 | J35: 0 | K35: 0 | L35: 0 | M35: 0 | N35: 0 | O35: 0 | P35: 1 | Q35: 0 | R35: 0 | AA35: 1 | AB35: 0
A36: 27 | B36: ='Wettkampf 1'!B36 -> Dobelmann Werner | C36: ='Wettkampf 1'!C36 -> Börgermoor I | F36: 0 | G36: 0 | H36: 0 | I36: 0 | J36: 0 | K36: 0 | L36: 0 | M36: 0 | N36: 0 | O36: 0 | P36: 1 | Q36: 0 | R36: 0 | AA36: 1 | AB36: 0
A37: 28 | B37: ='Wettkampf 1'!B37 -> Kohnen Stefan | C37: ='Wettkampf 1'!C37 -> Börgermoor I | F37: 0 | G37: 0 | H37: 0 | I37: 0 | J37: 0 | K37: 0 | L37: 0 | M37: 0 | N37: 0 | O37: 0 | P37: 1 | Q37: 0 | R37: 0 | AA37: 1 | AB37: 0
A38: 29 | B38: ='Wettkampf 1'!B38 -> Schütze 29 | C38: ='Wettkampf 1'!C38 -> Börgermoor I | F38: 0 | G38: 0 | H38: 0 | I38: 0 | J38: 0 | K38: 0 | L38: 0 | M38: 0 | N38: 0 | O38: 0 | P38: 1 | Q38: 0 | R38: 0 | AA38: 1 | AB38: 0
A39: 30 | B39: ='Wettkampf 1'!B39 -> Schütze 30 | C39: ='Wettkampf 1'!C39 -> Börgermoor I | F39: 0 | G39: 0 | H39: 0 | I39: 0 | J39: 0 | K39: 0 | L39: 0 | M39: 0 | N39: 0 | O39: 0 | P39: 1 | Q39: 0 | R39: 0 | AA39: 1 | AB39: 0
A40: 31 | B40: ='Wettkampf 1'!B40 -> Schulte Matthias | C40: ='Wettkampf 1'!C40 -> Esterwegen I | F40: 0 | G40: 0 | H40: 0 | I40: 0 | J40: 0 | K40: 0 | L40: 0 | M40: 0 | N40: 0 | O40: 0 | P40: 0 | Q40: 0 | R40: 1 | AA40: 1 | AB40: 0
A41: 32 | B41: ='Wettkampf 1'!B41 -> Middendorf Peter | C41: ='Wettkampf 1'!C41 -> Esterwegen I | F41: 0 | G41: 0 | H41: 0 | I41: 0 | J41: 0 | K41: 0 | L41: 0 | M41: 0 | N41: 0 | O41: 0 | P41: 0 | Q41: 0 | R41: 1 | AA41: 1 | AB41: 0
A42: 33 | B42: ='Wettkampf 1'!B42 -> Thomes Bernhard | C42: ='Wettkampf 1'!C42 -> Esterwegen I | F42: 0 | G42: 0 | H42: 0 | I42: 0 | J42: 0 | K42: 0 | L42: 0 | M42: 0 | N42: 0 | O42: 0 | P42: 0 | Q42: 0 | R42: 1 | AA42: 1 | AB42: 0
A43: 34 | B43: ='Wettkampf 1'!B43 -> Lindemann Marco | C43: ='Wettkampf 1'!C43 -> Esterwegen I | F43: 0 | G43: 0 | H43: 0 | I43: 0 | J43: 0 | K43: 0 | L43: 0 | M43: 0 | N43: 0 | O43: 0 | P43: 0 | Q43: 0 | R43: 1 | AA43: 1 | AB43: 0
A44: 35 | B44: ='Wettkampf 1'!B44 -> Schütze 35 | C44: ='Wettkampf 1'!C44 -> Esterwegen I | F44: 0 | G44: 0 | H44: 0 | I44: 0 | J44: 0 | K44: 0 | L44: 0 | M44: 0 | N44: 0 | O44: 0 | P44: 0 | Q44: 0 | R44: 1 | AA44: 1 | AB44: 0
A45: 36 | B45: ='Wettkampf 1'!B45 -> Schütze 36 | C45: ='Wettkampf 1'!C45 -> Esterwegen I | F45: 0 | G45: 0 | H45: 0 | I45: 0 | J45: 0 | K45: 0 | L45: 0 | M45: 0 | N45: 0 | O45: 0 | P45: 0 | Q45: 0 | R45: 1 | AA45: 1 | AB45: 0
G46: =LARGE(G10:G45,1)+LARGE(G10:G45,2)+LARGE(G10:G45,3) -> 0 | H46: =SUM(H10:H45) -> 6 | I46: =LARGE(I10:I45,1)+LARGE(I10:I45,2)+LARGE(I10:I45,3) -> 0 | J46: =SUM(J10:J45) -> 6 | K46: =LARGE(K10:K45,1)+LARGE(K10:K45,2)+LARGE(K10:K45,3) -> 0 | L46: =SUM(L10:L45) -> 6 | M46: =LARGE(M10:M45,1)+LARGE(M10:M45,2)+LARGE(M10:M45,3) -> 0 | N46: =SUM(N10:N45) -> 6 | O46: =LARGE(O10:O45,1)+LARGE(O10:O45,2)+LARGE(O10:O45,3) -> 0 | P46: =SUM(P10:P45) -> 6 | Q46: =LARGE(Q10:Q45,1)+LARGE(Q10:Q45,2)+LARGE(Q10:Q45,3) -> 0 | R46: =SUM(R10:S45) -> 6
B48: Bitte beachtet, dass die Standaufsicht benannt werden muss

Sheet Ausdruck blank
B1: Verein / Gruppe | C1: Ergebnisse | D1: =Übersicht!K1 -> 2019/2020 | X1: Austragungsort:
A2: 1 | D2: Klasse: | X2: Wettkampftag:
A3: 2
A4: 3 | Z4: Ansprechpartner für Rückfragen:
A5: 4 | X5: Name:
A6: 5 | X6: Tel:
A7: 6 | X7: Standaufsicht:
B9: Name Schütze | C9: Verein/Gruppe | D9: Ergebnis | E9: AW? | G9: Verein 1 | I9: Verein 2 | K9: Verein 3 | M9: Verein 4 | O9: Verein 5 | Q9: Verein 6 | U9: Geburts-datum | W9: Proberechnung bei Streifen:
A10: 1 | F10: =IF(E10="x","0",D10) -> 0 | G10: =IF(C10=$B$2,F10,0) -> 0 | H10: =(IF(AND($E10="",$C10=$B$2),1,0)) -> 1 | I10: =IF($C10=$B$3,F10,0) -> 0 | J10: =(IF(AND($E10="",$C10=$B$3),1,0)) -> 1 | K10: =IF($C10=$B$4,F10,0) -> 0 | L10: =(IF(AND($E10="",$C10=$B$4),1,0)) -> 1 | M10: =IF($C10=$B$5,F10,0) -> 0 | N10: =(IF(AND($E10="",$C10=$B$5),1,0)) -> 1 | O10: =IF($C10=$B$6,F10,0) -> 0 | P10: =(IF(AND($E10="",$C10=$B$6),1,0)) -> 1 | Q10: =IF($C10=$B$7,F10,0) -> 0 | R10: =(IF(AND($E10="",$C10=$B$7),1,0)) -> 1 | AA10: =IF(Z10=D10,1,0) -> 1 | AB10: =IF(Z10=0,0,1) -> 0 | AC10: =IF(AA10+AB10=2,"Korrekt","") -> 
A11: 2 | F11: =IF(E11="x","0",D11) -> 0 | G11: =IF(C11=$B$2,F11,0) -> 0 | H11: =(IF(AND($E11="",$C11=$B$2),1,0)) -> 1 | I11: =IF($C11=$B$3,F11,0) -> 0 | J11: =(IF(AND($E11="",$C11=$B$3),1,0)) -> 1 | K11: =IF($C11=$B$4,F11,0) -> 0 | L11: =(IF(AND($E11="",$C11=$B$4),1,0)) -> 1 | M11: =IF($C11=$B$5,F11,0) -> 0 | N11: =(IF(AND($E11="",$C11=$B$5),1,0)) -> 1 | O11: =IF($C11=$B$6,F11,0) -> 0 | P11: =(IF(AND($E11="",$C11=$B$6),1,0)) -> 1 | Q11: =IF($C11=$B$7,F11,0) -> 0 | R11: =(IF(AND($E11="",$C11=$B$7),1,0)) -> 1 | AA11: =IF(Z11=D11,1,0) -> 1 | AB11: =IF(Z11=0,0,1) -> 0 | AC11: =IF(AA11+AB11=2,"Korrekt","") -> 
A12: 3 | F12: 0 | G12: 0 | H12: 1 | I12: 0 | J12: 1 | K12: 0 | L12: 1 | M12: 0 | N12: 1 | O12: 0 | P12: 1 | Q12: 0 | R12: 1 | AA12: 1 | AB12: 0
A13: 4 | F13: 0 | G13: 0 | H13: 1 | I13: 0 | J13: 1 | K13: 0 | L13: 1 | M13: 0 | N13: 1 | O13: 0 | P13: 1 | Q13: 0 | R13: 1 | AA13: 1 | AB13: 0
A14: 5 | F14: 0 | G14: 0 | H14: 1 | I14: 0 | J14: 1 | K14: 0 | L14: 1 | M14: 0 | N14: 1 | O14: 0 | P14: 1 | Q14: 0 | R14: 1 | AA14: 1 | AB14: 0
A15: 6 | F15: 0 | G15: 0 | H15: 1 | I15: 0 | J15: 1 | K15: 0 | L15: 1 | M15: 0 | N15: 1 | O15: 0 | P15: 1 | Q15: 0 | R15: 1 | AA15: 1 | AB15: 0
A16: 7 | F16: 0 | G16: 0 | H16: 1 | I16: 0 | J16: 1 | K16: 0 | L16: 1 | M16: 0 | N16: 1 | O16: 0 | P16: 1 | Q16: 0 | R16: 1 | AA16: 1 | AB16: 0
A17: 8 | F17: 0 | G17: 0 | H17: 1 | I17: 0 | J17: 1 | K17: 0 | L17: 1 | M17: 0 | N17: 1 | O17: 0 | P17: 1 | Q17: 0 | R17: 1 | AA17: 1 | AB17: 0
A18: 9 | F18: 0 | G18: 0 | H18: 1 | I18: 0 | J18: 1 | K18: 0 | L18: 1 | M18: 0 | N18: 1 | O18: 0 | P18: 1 | Q18: 0 | R18: 1 | AA18: 1 | AB18: 0
A19: 10 | F19: 0 | G19: 0 | H19: 1 | I19: 0 | J19: 1 | K19: 0 | L19: 1 | M19: 0 | N19: 1 | O19: 0 | P19: 1 | Q19: 0 | R19: 1 | AA19: 1 | AB19: 0
A20: 11 | F20: 0 | G20: 0 | H20: 1 | I20: 0 | J20: 1 | K20: 0 | L20: 1 | M20: 0 | N20: 1 | O20: 0 | P20: 1 | Q20: 0 | R20: 1 | AA20: 1 | AB20: 0
A21: 12 | F21: 0 | G21: 0 | H21: 1 | I21: 0 | J21: 1 | K21: 0 | L21: 1 | M21: 0 | N21: 1 | O21: 0 | P21: 1 | Q21: 0 | R21: 1 | AA21: 1 | AB21: 0
A22: 13 | F22: 0 | G22: 0 | H22: 1 | I22: 0 | J22: 1 | K22: 0 | L22: 1 | M22: 0 | N22: 1 | O22: 0 | P22: 1 | Q22: 0 | R22: 1 | AA22: 1 | AB22: 0
A23: 14 | F23: 0 | G23: 0 | H23: 1 | I23: 0 | J23: 1 | K23: 0 | L23: 1 | M23: 0 | N23: 1 | O23: 0 | P23: 1 | Q23: 0 | R23: 1 | AA23: 1 | AB23: 0
A24: 15 | F24: 0 | G24: 0 | H24: 1 | I24: 0 | J24: 1 | K24: 0 | L24: 1 | M24: 0 | N24: 1 | O24: 0 | P24: 1 | Q24: 0 | R24: 1 | AA24: 1 | AB24: 0
A25: 16 | F25: 0 | G25: 0 | H25: 1 | I25: 0 | J25: 1 | K25: 0 | L25: 1 | M25: 0 | N25: 1 | O25: 0 | P25: 1 | Q25: 0 | R25: 1 | AA25: 1 | AB25: 0
A26: 17 | F26: 0 | G26: 0 | H26: 1 | I26: 0 | J26: 1 | K26: 0 | L26: 1 | M26: 0 | N26: 1 | O26: 0 | P26: 1 | Q26: 0 | R26: 1 | AA26: 1 | AB26: 0
A27: 18 | F27: 0 | G27: 0 | H27: 1 | I27: 0 | J27: 1 | K27: 0 | L27: 1 | M27: 0 | N27: 1 | O27: 0 | P27: 1 | Q27: 0 | R27: 1 | AA27: 1 | AB27: 0
A28: 19 | F28: 0 | G28: 0 | H28: 1 | I28: 0 | J28: 1 | K28: 0 | L28: 1 | M28: 0 | N28: 1 | O28: 0 | P28: 1 | Q28: 0 | R28: 1 | AA28: 1 | AB28: 0
A29: 20 | F29: 0 | G29: 0 | H29: 1 | I29: 0 | J29: 1 | K29: 0 | L29: 1 | M29: 0 | N29: 1 | O29: 0 | P29: 1 | Q29: 0 | R29: 1 | AA29: 1 | AB29: 0
A30: 21 | F30: 0 | G30: 0 | H30: 1 | I30: 0 | J30: 1 | K30: 0 | L30: 1 | M30: 0 | N30: 1 | O30: 0 | P30: 1 | Q30: 0 | R30: 1 | AA30: 1 | AB30: 0
A31: 22 | F31: 0 | G31: 0 | H31: 1 | I31: 0 | J31: 1 | K31: 0 | L31: 1 | M31: 0 | N31: 1 | O31: 0 | P31: 1 | Q31: 0 | R31: 1 | AA31: 1 | AB31: 0
A32: 23 | F32: 0 | G32: 0 | H32: 1 | I32: 0 | J32: 1 | K32: 0 | L32: 1 | M32: 0 | N32: 1 | O32: 0 | P32: 1 | Q32: 0 | R32: 1 | AA32: 1 | AB32: 0
A33: 24 | F33: 0 | G33: 0 | H33: 1 | I33: 0 | J33: 1 | K33: 0 | L33: 1 | M33: 0 | N33: 1 | O33: 0 | P33: 1 | Q33: 0 | R33: 1 | AA33: 1 | AB33: 0
A34: 25 | F34: 0 | G34: 0 | H34: 1 | I34: 0 | J34: 1 | K34: 0 | L34: 1 | M34: 0 | N34: 1 | O34: 0 | P34: 1 | Q34: 0 | R34: 1 | AA34: 1 | AB34: 0
A35: 26 | F35: 0 | G35: 0 | H35: 1 | I35: 0 | J35: 1 | K35: 0 | L35: 1 | M35: 0 | N35: 1 | O35: 0 | P35: 1 | Q35: 0 | R35: 1 | AA35: 1 | AB35: 0
A36: 27 | F36: 0 | G36: 0 | H36: 1 | I36: 0 | J36: 1 | K36: 0 | L36: 1 | M36: 0 | N36: 1 | O36: 0 | P36: 1 | Q36: 0 | R36: 1 | AA36: 1 | AB36: 0
A37: 28 | F37: 0 | G37: 0 | H37: 1 | I37: 0 | J37: 1 | K37: 0 | L37: 1 | M37: 0 | N37: 1 | O37: 0 | P37: 1 | Q37: 0 | R37: 1 | AA37: 1 | AB37: 0
A38: 29 | F38: 0 | G38: 0 | H38: 1 | I38: 0 | J38: 1 | K38: 0 | L38: 1 | M38: 0 | N38: 1 | O38: 0 | P38: 1 | Q38: 0 | R38: 1 | AA38: 1 | AB38: 0
A39: 30 | F39: 0 | G39: 0 | H39: 1 | I39: 0 | J39: 1 | K39: 0 | L39: 1 | M39: 0 | N39: 1 | O39: 0 | P39: 1 | Q39: 0 | R39: 1 | AA39: 1 | AB39: 0
A40: 31 | F40: 0 | G40: 0 | H40: 1 | I40: 0 | J40: 1 | K40: 0 | L40: 1 | M40: 0 | N40: 1 | O40: 0 | P40: 1 | Q40: 0 | R40: 1 | AA40: 1 | AB40: 0
A41: 32 | F41: 0 | G41: 0 | H41: 1 | I41: 0 | J41: 1 | K41: 0 | L41: 1 | M41: 0 | N41: 1 | O41: 0 | P41: 1 | Q41: 0 | R41: 1 | AA41: 1 | AB41: 0
A42: 33 | F42: 0 | G42: 0 | H42: 1 | I42: 0 | J42: 1 | K42: 0 | L42: 1 | M42: 0 | N42: 1 | O42: 0 | P42: 1 | Q42: 0 | R42: 1 | AA42: 1 | AB42: 0
A43: 34 | F43: 0 | G43: 0 | H43: 1 | I43: 0 | J43: 1 | K43: 0 | L43: 1 | M43: 0 | N43: 1 | O43: 0 | P43: 1 | Q43: 0 | R43: 1 | AA43: 1 | AB43: 0
A44: 35 | F44: 0 | G44: 0 | H44: 1 | I44: 0 | J44: 1 | K44: 0 | L44: 1 | M44: 0 | N44: 1 | O44: 0 | P44: 1 | Q44: 0 | R44: 1 | AA44: 1 | AB44: 0
A45: 36 | F45: 0 | G45: 0 | H45: 1 | I45: 0 | J45: 1 | K45: 0 | L45: 1 | M45: 0 | N45: 1 | O45: 0 | P45: 1 | Q45: 0 | R45: 1 | AA45: 1 | AB45: 0
G46: =LARGE(G10:G45,1)+LARGE(G10:G45,2)+LARGE(G10:G45,3) -> 0 | H46: =SUM(H10:H45) -> 36 | I46: =LARGE(I10:I45,1)+LARGE(I10:I45,2)+LARGE(I10:I45,3) -> 0 | J46: =SUM(J10:J45) -> 36 | K46: =LARGE(K10:K45,1)+LARGE(K10:K45,2)+LARGE(K10:K45,3) -> 0 | L46: =SUM(L10:L45) -> 36 | M46: =LARGE(M10:M45,1)+LARGE(M10:M45,2)+LARGE(M10:M45,3) -> 0 | N46: =SUM(N10:N45) -> 36 | O46: =LARGE(O10:O45,1)+LARGE(O10:O45,2)+LARGE(O10:O45,3) -> 0 | P46: =SUM(P10:P45) -> 36 | Q46: =LARGE(Q10:Q45,1)+LARGE(Q10:Q45,2)+LARGE(Q10:Q45,3) -> 0 | R46: =SUM(R10:S45) -> 36
B48: Bitte beachtet, dass die Standaufsicht benannt werden muss

Sheet Übersicht Schützen (hidden)
C1: 1.0 | D1: 2.0 | E1: 3.0 | F1: 4.0 | G1: 5.0 | H1: 6.0 | L1: 7.0 | M1: 8.0 | N1: 9.0 | O1: 10.0 | P1: 11.0 | Q1: 12.0
A2: Kohnen Stefan | B2: =VLOOKUP(A2,'Wettkampf 1'!$B$10:$C$45,2,FALSE) -> Börgermoor I | C2: =VLOOKUP(A2,'Wettkampf 1'!$B$10:$D$45,3,FALSE) -> 311.6 | D2: =VLOOKUP($A2,'2'!$B$10:$D$45,3,FALSE) -> 315.6 | E2: =VLOOKUP($A2,'3'!$B$10:$D$45,3,FALSE) -> 318.6 | F2: =VLOOKUP($A2,'4'!$B$10:$D$45,3,FALSE) -> 317.2 | G2: =VLOOKUP($A2,'5'!$B$10:$D$45,3,FALSE) -> 316.6 | H2: =VLOOKUP($A2,'6'!$B$10:$D$45,3,FALSE) -> 315.5 | I2: =K2/J2 -> 315.9 | J2: =VLOOKUP(A2,Formelhilfe!$A$9:$H$44,8,FALSE) -> 6.0 | K2: =SUM(C2:H2) -> 1,895.1 | L2: =VLOOKUP($A2,'7'!$B$10:$D$45,3,FALSE) -> 317.7 | M2: =VLOOKUP($A2,'8'!$B$10:$D$45,3,FALSE) -> 316.2 | N2: =VLOOKUP($A2,'9'!$B$10:$D$45,3,FALSE) -> 316.3 | O2: =VLOOKUP($A2,'10'!$B$10:$D$45,3,FALSE) -> 317.4 | P2: =VLOOKUP($A2,'11'!$B$10:$D$45,3,FALSE) -> 316.7 | Q2: =VLOOKUP($A2,'12'!$B$10:$D$45,3,FALSE) -> 0.0 | R2: =T2/S2 -> 316.9 | S2: =VLOOKUP(A2,Formelhilfe!$A$9:$O$44,15,FALSE) -> 5.0 | T2: =SUM(L2:Q2) -> 1,584.3 | U2: =W2/V2 -> 316.3 | V2: =VLOOKUP(A2,Formelhilfe!$A$9:$P$44,16,FALSE) -> 11.0 | W2: =SUM(C2:H2,L2:Q2) -> 3,479.4
A3: Robben-Schlagge Ralf | B3: =VLOOKUP(A3,'Wettkampf 1'!$B$10:$C$45,2,FALSE) -> Lahn II | C3: =VLOOKUP(A3,'Wettkampf 1'!$B$10:$D$45,3,FALSE) -> 316.0 | D3: =VLOOKUP($A3,'2'!$B$10:$D$45,3,FALSE) -> 314.1 | E3: =VLOOKUP($A3,'3'!$B$10:$D$45,3,FALSE) -> 314.3 | F3: =VLOOKUP($A3,'4'!$B$10:$D$45,3,FALSE) -> 315.2 | G3: =VLOOKUP($A3,'5'!$B$10:$D$45,3,FALSE) -> 314.3 | H3: =VLOOKUP($A3,'6'!$B$10:$D$45,3,FALSE) -> 317.7 | I3: =K3/J3 -> 315.3 | J3: =VLOOKUP(A3,Formelhilfe!$A$9:$H$44,8,FALSE) -> 6.0 | K3: =SUM(C3:H3) -> 1,891.6 | L3: =VLOOKUP($A3,'7'!$B$10:$D$45,3,FALSE) -> 315.5 | M3: =VLOOKUP($A3,'8'!$B$10:$D$45,3,FALSE) -> 313.8 | N3: =VLOOKUP($A3,'9'!$B$10:$D$45,3,FALSE) -> 316.0 | O3: =VLOOKUP($A3,'10'!$B$10:$D$45,3,FALSE) -> 315.2 | P3: =VLOOKUP($A3,'11'!$B$10:$D$45,3,FALSE) -> 316.9 | Q3: =VLOOKUP($A3,'12'!$B$10:$D$45,3,FALSE) -> 0.0 | R3: =T3/S3 -> 315.5 | S3: =VLOOKUP(A3,Formelhilfe!$A$9:$O$44,15,FALSE) -> 5.0 | T3: =SUM(L3:Q3) -> 1,577.4 | U3: =W3/V3 -> 315.4 | V3: =VLOOKUP(A3,Formelhilfe!$A$9:$P$44,16,FALSE) -> 11.0 | W3: =SUM(C3:H3,L3:Q3) -> 3,469.0
A4: Tharner Karl-Heinz | B4: =VLOOKUP(A4,'Wettkampf 1'!$B$10:$C$45,2,FALSE) -> Sögel I | C4: =VLOOKUP(A4,'Wettkampf 1'!$B$10:$D$45,3,FALSE) -> 312.6 | D4: =VLOOKUP($A4,'2'!$B$10:$D$45,3,FALSE) -> 313.8 | E4: =VLOOKUP($A4,'3'!$B$10:$D$45,3,FALSE) -> 317.4 | F4: =VLOOKUP($A4,'4'!$B$10:$D$45,3,FALSE) -> 315.0 | G4: =VLOOKUP($A4,'5'!$B$10:$D$45,3,FALSE) -> 316.7 | H4: =VLOOKUP($A4,'6'!$B$10:$D$45,3,FALSE) -> 310.8 | I4: =K4/J4 -> 314.4 | J4: =VLOOKUP(A4,Formelhilfe!$A$9:$H$44,8,FALSE) -> 6.0 | K4: =SUM(C4:H4) -> 1,886.3 | L4: =VLOOKUP($A4,'7'!$B$10:$D$45,3,FALSE) -> 315.0 | M4: =VLOOKUP($A4,'8'!$B$10:$D$45,3,FALSE) -> 316.5 | N4: =VLOOKUP($A4,'9'!$B$10:$D$45,3,FALSE) -> 317.7 | O4: =VLOOKUP($A4,'10'!$B$10:$D$45,3,FALSE) -> 316.1 | P4: =VLOOKUP($A4,'11'!$B$10:$D$45,3,FALSE) -> 310.5 | Q4: =VLOOKUP($A4,'12'!$B$10:$D$45,3,FALSE) -> 0.0 | R4: =T4/S4 -> 315.2 | S4: =VLOOKUP(A4,Formelhilfe!$A$9:$O$44,15,FALSE) -> 5.0 | T4: =SUM(L4:Q4) -> 1,575.8 | U4: =W4/V4 -> 314.7 | V4: =VLOOKUP(A4,Formelhilfe!$A$9:$P$44,16,FALSE) -> 11.0 | W4: =SUM(C4:H4,L4:Q4) -> 3,462.1
A5: Antons Klaus | B5: =VLOOKUP(A5,'Wettkampf 1'!$B$10:$C$45,2,FALSE) -> Neubörger I | C5: =VLOOKUP(A5,'Wettkampf 1'!$B$10:$D$45,3,FALSE) -> 315.0 | D5: =VLOOKUP($A5,'2'!$B$10:$D$45,3,FALSE) -> 312.4 | E5: =VLOOKUP($A5,'3'!$B$10:$D$45,3,FALSE) -> 313.9 | F5: =VLOOKUP($A5,'4'!$B$10:$D$45,3,FALSE) -> 314.2 | G5: =VLOOKUP($A5,'5'!$B$10:$D$45,3,FALSE) -> 313.1 | H5: =VLOOKUP($A5,'6'!$B$10:$D$45,3,FALSE) -> 312.8 | I5: =K5/J5 -> 313.6 | J5: =VLOOKUP(A5,Formelhilfe!$A$9:$H$44,8,FALSE) -> 6.0 | K5: =SUM(C5:H5) -> 1,881.4 | L5: =VLOOKUP($A5,'7'!$B$10:$D$45,3,FALSE) -> 317.0 | M5: =VLOOKUP($A5,'8'!$B$10:$D$45,3,FALSE) -> 314.6 | N5: =VLOOKUP($A5,'9'!$B$10:$D$45,3,FALSE) -> 315.7 | O5: =VLOOKUP($A5,'10'!$B$10:$D$45,3,FALSE) -> 314.2 | P5: =VLOOKUP($A5,'11'!$B$10:$D$45,3,FALSE) -> 315.1 | Q5: =VLOOKUP($A5,'12'!$B$10:$D$45,3,FALSE) -> 0.0 | R5: =T5/S5 -> 315.3 | S5: =VLOOKUP(A5,Formelhilfe!$A$9:$O$44,15,FALSE) -> 5.0 | T5: =SUM(L5:Q5) -> 1,576.6 | U5: =W5/V5 -> 314.4 | V5: =VLOOKUP(A5,Formelhilfe!$A$9:$P$44,16,FALSE) -> 11.0 | W5: =SUM(C5:H5,L5:Q5) -> 3,458.0
A6: Thien Markus | B6: =VLOOKUP(A6,'Wettkampf 1'!$B$10:$C$45,2,FALSE) -> Lahn II | C6: =VLOOKUP(A6,'Wettkampf 1'!$B$10:$D$45,3,FALSE) -> 312.6 | D6: =VLOOKUP($A6,'2'!$B$10:$D$45,3,FALSE) -> 313.0 | E6: =VLOOKUP($A6,'3'!$B$10:$D$45,3,FALSE) -> 313.3 | F6: =VLOOKUP($A6,'4'!$B$10:$D$45,3,FALSE) -> 311.7 | G6: =VLOOKUP($A6,'5'!$B$10:$D$45,3,FALSE) -> 315.9 | H6: =VLOOKUP($A6,'6'!$B$10:$D$45,3,FALSE) -> 311.2 | I6: =K6/J6 -> 313.0 | J6: =VLOOKUP(A6,Formelhilfe!$A$9:$H$44,8,FALSE) -> 6.0 | K6: =SUM(C6:H6) -> 1,877.7 | L6: =VLOOKUP($A6,'7'!$B$10:$D$45,3,FALSE) -> 314.6 | M6: =VLOOKUP($A6,'8'!$B$10:$D$45,3,FALSE) -> 313.0 | N6: =VLOOKUP($A6,'9'!$B$10:$D$45,3,FALSE) -> 316.6 | O6: =VLOOKUP($A6,'10'!$B$10:$D$45,3,FALSE) -> 315.5 | P6: =VLOOKUP($A6,'11'!$B$10:$D$45,3,FALSE) -> 314.9 | Q6: =VLOOKUP($A6,'12'!$B$10:$D$45,3,FALSE) -> 0.0 | R6: =T6/S6 -> 314.9 | S6: =VLOOKUP(A6,Formelhilfe!$A$9:$O$44,15,FALSE) -> 5.0 | T6: =SUM(L6:Q6) -> 1,574.6 | U6: =W6/V6 -> 313.8 | V6: =VLOOKUP(A6,Formelhilfe!$A$9:$P$44,16,FALSE) -> 11.0 | W6: =SUM(C6:H6,L6:Q6) -> 3,452.3
A7: Runde Norbert | B7: =VLOOKUP(A7,'Wettkampf 1'!$B$10:$C$45,2,FALSE) -> Neubörger I | C7: =VLOOKUP(A7,'Wettkampf 1'!$B$10:$D$45,3,FALSE) -> 316.3 | D7: =VLOOKUP($A7,'2'!$B$10:$D$45,3,FALSE) -> 311.6 | E7: =VLOOKUP($A7,'3'!$B$10:$D$45,3,FALSE) -> 313.3 | F7: =VLOOKUP($A7,'4'!$B$10:$D$45,3,FALSE) -> 313.9 | G7: =VLOOKUP($A7,'5'!$B$10:$D$45,3,FALSE) -> 314.2 | H7: =VLOOKUP($A7,'6'!$B$10:$D$45,3,FALSE) -> 312.7 | I7: =K7/J7 -> 313.7 | J7: =VLOOKUP(A7,Formelhilfe!$A$9:$H$44,8,FALSE) -> 6.0 | K7: =SUM(C7:H7) -> 1,882.0 | L7: =VLOOKUP($A7,'7'!$B$10:$D$45,3,FALSE) -> 314.4 | M7: =VLOOKUP($A7,'8'!$B$10:$D$45,3,FALSE) -> 314.3 | N7: =VLOOKUP($A7,'9'!$B$10:$D$45,3,FALSE) -> 313.4 | O7: =VLOOKUP($A7,'10'!$B$10:$D$45,3,FALSE) -> 313.9 | P7: =VLOOKUP($A7,'11'!$B$10:$D$45,3,FALSE) -> 313.9 | Q7: =VLOOKUP($A7,'12'!$B$10:$D$45,3,FALSE) -> 0.0 | R7: =T7/S7 -> 314.0 | S7: =VLOOKUP(A7,Formelhilfe!$A$9:$O$44,15,FALSE) -> 5.0 | T7: =SUM(L7:Q7) -> 1,569.9 | U7: =W7/V7 -> 313.8 | V7: =VLOOKUP(A7,Formelhilfe!$A$9:$P$44,16,FALSE) -> 11.0 | W7: =SUM(C7:H7,L7:Q7) -> 3,451.9
A8: Wester Markus | B8: =VLOOKUP(A8,'Wettkampf 1'!$B$10:$C$45,2,FALSE) -> Sögel I | C8: =VLOOKUP(A8,'Wettkampf 1'!$B$10:$D$45,3,FALSE) -> 315.7 | D8: =VLOOKUP($A8,'2'!$B$10:$D$45,3,FALSE) -> 316.0 | E8: =VLOOKUP($A8,'3'!$B$10:$D$45,3,FALSE) -> 314.0 | F8: =VLOOKUP($A8,'4'!$B$10:$D$45,3,FALSE) -> 312.5 | G8: =VLOOKUP($A8,'5'!$B$10:$D$45,3,FALSE) -> 313.9 | H8: =VLOOKUP($A8,'6'!$B$10:$D$45,3,FALSE) -> 316.8 | I8: =K8/J8 -> 314.8 | J8: =VLOOKUP(A8,Formelhilfe!$A$9:$H$44,8,FALSE) -> 6.0 | K8: =SUM(C8:H8) -> 1,888.9 | L8: =VLOOKUP($A8,'7'!$B$10:$D$45,3,FALSE) -> 314.2 | M8: =VLOOKUP($A8,'8'!$B$10:$D$45,3,FALSE) -> 301.9 | N8: =VLOOKUP($A8,'9'!$B$10:$D$45,3,FALSE) -> 311.9 | O8: =VLOOKUP($A8,'10'!$B$10:$D$45,3,FALSE) -> 316.8 | P8: =VLOOKUP($A8,'11'!$B$10:$D$45,3,FALSE) -> 314.2 | Q8: =VLOOKUP($A8,'12'!$B$10:$D$45,3,FALSE) -> 0.0 | R8: =T8/S8 -> 311.8 | S8: =VLOOKUP(A8,Formelhilfe!$A$9:$O$44,15,FALSE) -> 5.0 | T8: =SUM(L8:Q8) -> 1,559.0 | U8: =W8/V8 -> 313.4 | V8: =VLOOKUP(A8,Formelhilfe!$A$9:$P$44,16,FALSE) -> 11.0 | W8: =SUM(C8:H8,L8:Q8) -> 3,447.9
A9: Segbers Bernard | B9: =VLOOKUP(A9,'Wettkampf 1'!$B$10:$C$45,2,FALSE) -> Börgermoor I | C9: =VLOOKUP(A9,'Wettkampf 1'!$B$10:$D$45,3,FALSE) -> 307.9 | D9: =VLOOKUP($A9,'2'!$B$10:$D$45,3,FALSE) -> 311.3 | E9: =VLOOKUP($A9,'3'!$B$10:$D$45,3,FALSE) -> 311.7 | F9: =VLOOKUP($A9,'4'!$B$10:$D$45,3,FALSE) -> 315.7 | G9: =VLOOKUP($A9,'5'!$B$10:$D$45,3,FALSE) -> 314.4 | H9: =VLOOKUP($A9,'6'!$B$10:$D$45,3,FALSE) -> 313.4 | I9: =K9/J9 -> 312.4 | J9: =VLOOKUP(A9,Formelhilfe!$A$9:$H$44,8,FALSE) -> 6.0 | K9: =SUM(C9:H9) -> 1,874.4 | L9: =VLOOKUP($A9,'7'!$B$10:$D$45,3,FALSE) -> 312.8 | M9: =VLOOKUP($A9,'8'!$B$10:$D$45,3,FALSE) -> 312.4 | N9: =VLOOKUP($A9,'9'!$B$10:$D$45,3,FALSE) -> 314.5 | O9: =VLOOKUP($A9,'10'!$B$10:$D$45,3,FALSE) -> 312.1 | P9: =VLOOKUP($A9,'11'!$B$10:$D$45,3,FALSE) -> 313.2 | Q9: =VLOOKUP($A9,'12'!$B$10:$D$45,3,FALSE) -> 0.0 | R9: =T9/S9 -> 313.0 | S9: =VLOOKUP(A9,Formelhilfe!$A$9:$O$44,15,FALSE) -> 5.0 | T9: =SUM(L9:Q9) -> 1,565.0 | U9: =W9/V9 -> 312.7 | V9: =VLOOKUP(A9,Formelhilfe!$A$9:$P$44,16,FALSE) -> 11.0 | W9: =SUM(C9:H9,L9:Q9) -> 3,439.4
A10: Pölking Thomas | B10: =VLOOKUP(A10,'Wettkampf 1'!$B$10:$C$45,2,FALSE) -> Lorup IV | C10: =VLOOKUP(A10,'Wettkampf 1'!$B$10:$D$45,3,FALSE) -> 314.2 | D10: =VLOOKUP($A10,'2'!$B$10:$D$45,3,FALSE) -> 307.4 | E10: =VLOOKUP($A10,'3'!$B$10:$D$45,3,FALSE) -> 312.9 | F10: =VLOOKUP($A10,'4'!$B$10:$D$45,3,FALSE) -> 313.1 | G10: =VLOOKUP($A10,'5'!$B$10:$D$45,3,FALSE) -> 314.9 | H10: =VLOOKUP($A10,'6'!$B$10:$D$45,3,FALSE) -> 311.8 | I10: =K10/J10 -> 312.4 | J10: =VLOOKUP(A10,Formelhilfe!$A$9:$H$44,8,FALSE) -> 6.0 | K10: =SUM(C10:H10) -> 1,874.3 | L10: =VLOOKUP($A10,'7'!$B$10:$D$45,3,FALSE) -> 310.8 | M10: =VLOOKUP($A10,'8'!$B$10:$D$45,3,FALSE) -> 312.3 | N10: =VLOOKUP($A10,'9'!$B$10:$D$45,3,FALSE) -> 312.3 | O10: =VLOOKUP($A10,'10'!$B$10:$D$45,3,FALSE) -> 313.7 | P10: =VLOOKUP($A10,'11'!$B$10:$D$45,3,FALSE) -> 315.2 | Q10: =VLOOKUP($A10,'12'!$B$10:$D$45,3,FALSE) -> 0.0 | R10: =T10/S10 -> 312.9 | S10: =VLOOKUP(A10,Formelhilfe!$A$9:$O$44,15,FALSE) -> 5.0 | T10: =SUM(L10:Q10) -> 1,564.3 | U10: =W10/V10 -> 312.6 | V10: =VLOOKUP(A10,Formelhilfe!$A$9:$P$44,16,FALSE) -> 11.0 | W10: =SUM(C10:H10,L10:Q10) -> 3,438.6
A11: Thomes Bernhard | B11: =VLOOKUP(A11,'Wettkampf 1'!$B$10:$C$45,2,FALSE) -> Esterwegen I | C11: =VLOOKUP(A11,'Wettkampf 1'!$B$10:$D$45,3,FALSE) -> 308.1 | D11: =VLOOKUP($A11,'2'!$B$10:$D$45,3,FALSE) -> 314.4 | E11: =VLOOKUP($A11,'3'!$B$10:$D$45,3,FALSE) -> 311.0 | F11: =VLOOKUP($A11,'4'!$B$10:$D$45,3,FALSE) -> 310.3 | G11: =VLOOKUP($A11,'5'!$B$10:$D$45,3,FALSE) -> 314.3 | H11: =VLOOKUP($A11,'6'!$B$10:$D$45,3,FALSE) -> 312.4 | I11: =K11/J11 -> 311.8 | J11: =VLOOKUP(A11,Formelhilfe!$A$9:$H$44,8,FALSE) -> 6.0 | K11: =SUM(C11:H11) -> 1,870.5 | L11: =VLOOKUP($A11,'7'!$B$10:$D$45,3,FALSE) -> 314.9 | M11: =VLOOKUP($A11,'8'!$B$10:$D$45,3,FALSE) -> 313.6 | N11: =VLOOKUP($A11,'9'!$B$10:$D$45,3,FALSE) -> 309.9 | O11: =VLOOKUP($A11,'10'!$B$10:$D$45,3,FALSE) -> 314.2 | P11: =VLOOKUP($A11,'11'!$B$10:$D$45,3,FALSE) -> 315.4 | Q11: =VLOOKUP($A11,'12'!$B$10:$D$45,3,FALSE) -> 0.0 | R11: =T11/S11 -> 313.6 | S11: =VLOOKUP(A11,Formelhilfe!$A$9:$O$44,15,FALSE) -> 5.0 | T11: =SUM(L11:Q11) -> 1,568.0 | U11: =W11/V11 -> 312.6 | V11: =VLOOKUP(A11,Formelhilfe!$A$9:$P$44,16,FALSE) -> 11.0 | W11: =SUM(C11:H11,L11:Q11) -> 3,438.5
A12: Olliges Jürgen | B12: =VLOOKUP(A12,'Wettkampf 1'!$B$10:$C$45,2,FALSE) -> Lorup IV | C12: =VLOOKUP(A12,'Wettkampf 1'!$B$10:$D$45,3,FALSE) -> 310.6 | D12: =VLOOKUP($A12,'2'!$B$10:$D$45,3,FALSE) -> 312.6 | E12: =VLOOKUP($A12,'3'!$B$10:$D$45,3,FALSE) -> 310.8 | F12: =VLOOKUP($A12,'4'!$B$10:$D$45,3,FALSE) -> 308.4 | G12: =VLOOKUP($A12,'5'!$B$10:$D$45,3,FALSE) -> 313.1 | H12: =VLOOKUP($A12,'6'!$B$10:$D$45,3,FALSE) -> 312.7 | I12: =K12/J12 -> 311.4 | J12: =VLOOKUP(A12,Formelhilfe!$A$9:$H$44,8,FALSE) -> 6.0 | K12: =SUM(C12:H12) -> 1,868.2 | L12: =VLOOKUP($A12,'7'!$B$10:$D$45,3,FALSE) -> 313.2 | M12: =VLOOKUP($A12,'8'!$B$10:$D$45,3,FALSE) -> 313.5 | N12: =VLOOKUP($A12,'9'!$B$10:$D$45,3,FALSE) -> 310.4 | O12: =VLOOKUP($A12,'10'!$B$10:$D$45,3,FALSE) -> 314.0 | P12: =VLOOKUP($A12,'11'!$B$10:$D$45,3,FALSE) -> 311.4 | Q12: =VLOOKUP($A12,'12'!$B$10:$D$45,3,FALSE) -> 0.0 | R12: =T12/S12 -> 312.5 | S12: =VLOOKUP(A12,Formelhilfe!$A$9:$O$44,15,FALSE) -> 5.0 | T12: =SUM(L12:Q12) -> 1,562.5 | U12: =W12/V12 -> 311.9 | V12: =VLOOKUP(A12,Formelhilfe!$A$9:$P$44,16,FALSE) -> 11.0 | W12: =SUM(C12:H12,L12:Q12) -> 3,430.7
A13: Dobelmann Werner | B13: =VLOOKUP(A13,'Wettkampf 1'!$B$10:$C$45,2,FALSE) -> Börgermoor I | C13: =VLOOKUP(A13,'Wettkampf 1'!$B$10:$D$45,3,FALSE) -> 311.1 | D13: =VLOOKUP($A13,'2'!$B$10:$D$45,3,FALSE) -> 315.1 | E13: =VLOOKUP($A13,'3'!$B$10:$D$45,3,FALSE) -> 311.9 | F13: =VLOOKUP($A13,'4'!$B$10:$D$45,3,FALSE) -> 308.1 | G13: =VLOOKUP($A13,'5'!$B$10:$D$45,3,FALSE) -> 312.2 | H13: =VLOOKUP($A13,'6'!$B$10:$D$45,3,FALSE) -> 309.4 | I13: =K13/J13 -> 311.3 | J13: =VLOOKUP(A13,Formelhilfe!$A$9:$H$44,8,FALSE) -> 6.0 | K13: =SUM(C13:H13) -> 1,867.8 | L13: =VLOOKUP($A13,'7'!$B$10:$D$45,3,FALSE) -> 311.0 | M13: =VLOOKUP($A13,'8'!$B$10:$D$45,3,FALSE) -> 312.5 | N13: =VLOOKUP($A13,'9'!$B$10:$D$45,3,FALSE) -> 313.5 | O13: =VLOOKUP($A13,'10'!$B$10:$D$45,3,FALSE) -> 310.6 | P13: =VLOOKUP($A13,'11'!$B$10:$D$45,3,FALSE) -> 312.9 | Q13: =VLOOKUP($A13,'12'!$B$10:$D$45,3,FALSE) -> 0.0 | R13: =T13/S13 -> 312.1 | S13: =VLOOKUP(A13,Formelhilfe!$A$9:$O$44,15,FALSE) -> 5.0 | T13: =SUM(L13:Q13) -> 1,560.5 | U13: =W13/V13 -> 311.7 | V13: =VLOOKUP(A13,Formelhilfe!$A$9:$P$44,16,FALSE) -> 11.0 | W13: =SUM(C13:H13,L13:Q13) -> 3,428.3
A14: Klawitter Gerd | B14: =VLOOKUP(A14,'Wettkampf 1'!$B$10:$C$45,2,FALSE) -> Lorup IV | C14: =VLOOKUP(A14,'Wettkampf 1'!$B$10:$D$45,3,FALSE) -> 309.4 | D14: =VLOOKUP($A14,'2'!$B$10:$D$45,3,FALSE) -> 309.0 | E14: =VLOOKUP($A14,'3'!$B$10:$D$45,3,FALSE) -> 308.6 | F14: =VLOOKUP($A14,'4'!$B$10:$D$45,3,FALSE) -> 312.2 | G14: =VLOOKUP($A14,'5'!$B$10:$D$45,3,FALSE) -> 308.3 | H14: =VLOOKUP($A14,'6'!$B$10:$D$45,3,FALSE) -> 314.6 | I14: =K14/J14 -> 310.4 | J14: =VLOOKUP(A14,Formelhilfe!$A$9:$H$44,8,FALSE) -> 6.0 | K14: =SUM(C14:H14) -> 1,862.1 | L14: =VLOOKUP($A14,'7'!$B$10:$D$45,3,FALSE) -> 314.0 | M14: =VLOOKUP($A14,'8'!$B$10:$D$45,3,FALSE) -> 310.4 | N14: =VLOOKUP($A14,'9'!$B$10:$D$45,3,FALSE) -> 312.1 | O14: =VLOOKUP($A14,'10'!$B$10:$D$45,3,FALSE) -> 310.9 | P14: =VLOOKUP($A14,'11'!$B$10:$D$45,3,FALSE) -> 313.7 | Q14: =VLOOKUP($A14,'12'!$B$10:$D$45,3,FALSE) -> 0.0 | R14: =T14/S14 -> 312.2 | S14: =VLOOKUP(A14,Formelhilfe!$A$9:$O$44,15,FALSE) -> 5.0 | T14: =SUM(L14:Q14) -> 1,561.1 | U14: =W14/V14 -> 311.2 | V14: =VLOOKUP(A14,Formelhilfe!$A$9:$P$44,16,FALSE) -> 11.0 | W14: =SUM(C14:H14,L14:Q14) -> 3,423.2
A15: Thyen Udo | B15: =VLOOKUP(A15,'Wettkampf 1'!$B$10:$C$45,2,FALSE) -> Lahn II | C15: =VLOOKUP(A15,'Wettkampf 1'!$B$10:$D$45,3,FALSE) -> 310.9 | D15: =VLOOKUP($A15,'2'!$B$10:$D$45,3,FALSE) -> 314.0 | E15: =VLOOKUP($A15,'3'!$B$10:$D$45,3,FALSE) -> 311.5 | F15: =VLOOKUP($A15,'4'!$B$10:$D$45,3,FALSE) -> 311.6 | G15: =VLOOKUP($A15,'5'!$B$10:$D$45,3,FALSE) -> 313.5 | H15: =VLOOKUP($A15,'6'!$B$10:$D$45,3,FALSE) -> 310.6 | I15: =K15/J15 -> 312.0 | J15: =VLOOKUP(A15,Formelhilfe!$A$9:$H$44,8,FALSE) -> 6.0 | K15: =SUM(C15:H15) -> 1,872.1 | L15: =VLOOKUP($A15,'7'!$B$10:$D$45,3,FALSE) -> 311.4 | M15: =VLOOKUP($A15,'8'!$B$10:$D$45,3,FALSE) -> 312.1 | N15: =VLOOKUP($A15,'9'!$B$10:$D$45,3,FALSE) -> 313.5 | O15: =VLOOKUP($A15,'10'!$B$10:$D$45,3,FALSE) -> 306.0 | P15: =VLOOKUP($A15,'11'!$B$10:$D$45,3,FALSE) -> 307.1 | Q15: =VLOOKUP($A15,'12'!$B$10:$D$45,3,FALSE) -> 0.0 | R15: =T15/S15 -> 310.0 | S15: =VLOOKUP(A15,Formelhilfe!$A$9:$O$44,15,FALSE) -> 5.0 | T15: =SUM(L15:Q15) -> 1,550.1 | U15: =W15/V15 -> 311.1 | V15: =VLOOKUP(A15,Formelhilfe!$A$9:$P$44,16,FALSE) -> 11.0 | W15: =SUM(C15:H15,L15:Q15) -> 3,422.2
A16: Dödtmann Ludger | B16: =VLOOKUP(A16,'Wettkampf 1'!$B$10:$C$45,2,FALSE) -> Sögel I | C16: =VLOOKUP(A16,'Wettkampf 1'!$B$10:$D$45,3,FALSE) -> 308.8 | D16: =VLOOKUP($A16,'2'!$B$10:$D$45,3,FALSE) -> 308.7 | E16: =VLOOKUP($A16,'3'!$B$10:$D$45,3,FALSE) -> 311.5 | F16: =VLOOKUP($A16,'4'!$B$10:$D$45,3,FALSE) -> 310.4 | G16: =VLOOKUP($A16,'5'!$B$10:$D$45,3,FALSE) -> 311.9 | H16: =VLOOKUP($A16,'6'!$B$10:$D$45,3,FALSE) -> 310.0 | I16: =K16/J16 -> 310.2 | J16: =VLOOKUP(A16,Formelhilfe!$A$9:$H$44,8,FALSE) -> 6.0 | K16: =SUM(C16:H16) -> 1,861.3 | L16: =VLOOKUP($A16,'7'!$B$10:$D$45,3,FALSE) -> 311.6 | M16: =VLOOKUP($A16,'8'!$B$10:$D$45,3,FALSE) -> 312.2 | N16: =VLOOKUP($A16,'9'!$B$10:$D$45,3,FALSE) -> 308.8 | O16: =VLOOKUP($A16,'10'!$B$10:$D$45,3,FALSE) -> 309.8 | P16: =VLOOKUP($A16,'11'!$B$10:$D$45,3,FALSE) -> 310.8 | Q16: =VLOOKUP($A16,'12'!$B$10:$D$45,3,FALSE) -> 0.0 | R16: =T16/S16 -> 310.6 | S16: =VLOOKUP(A16,Formelhilfe!$A$9:$O$44,15,FALSE) -> 5.0 | T16: =SUM(L16:Q16) -> 1,553.2 | U16: =W16/V16 -> 310.4 | V16: =VLOOKUP(A16,Formelhilfe!$A$9:$P$44,16,FALSE) -> 11.0 | W16: =SUM(C16:H16,L16:Q16) -> 3,414.5
A17: Banedt Olaf | B17: =VLOOKUP(A17,'Wettkampf 1'!$B$10:$C$45,2,FALSE) -> Lahn II | C17: =VLOOKUP(A17,'Wettkampf 1'!$B$10:$D$45,3,FALSE) -> 310.1 | D17: =VLOOKUP($A17,'2'!$B$10:$D$45,3,FALSE) -> 314.1 | E17: =VLOOKUP($A17,'3'!$B$10:$D$45,3,FALSE) -> 309.5 | F17: =VLOOKUP($A17,'4'!$B$10:$D$45,3,FALSE) -> 307.9 | G17: =VLOOKUP($A17,'5'!$B$10:$D$45,3,FALSE) -> 307.9 | H17: =VLOOKUP($A17,'6'!$B$10:$D$45,3,FALSE) -> 308.5 | I17: =K17/J17 -> 309.7 | J17: =VLOOKUP(A17,Formelhilfe!$A$9:$H$44,8,FALSE) -> 6.0 | K17: =SUM(C17:H17) -> 1,858.0 | L17: =VLOOKUP($A17,'7'!$B$10:$D$45,3,FALSE) -> 311.8 | M17: =VLOOKUP($A17,'8'!$B$10:$D$45,3,FALSE) -> 308.2 | N17: =VLOOKUP($A17,'9'!$B$10:$D$45,3,FALSE) -> 309.3 | O17: =VLOOKUP($A17,'10'!$B$10:$D$45,3,FALSE) -> 312.9 | P17: =VLOOKUP($A17,'11'!$B$10:$D$45,3,FALSE) -> 313.0 | Q17: =VLOOKUP($A17,'12'!$B$10:$D$45,3,FALSE) -> 0.0 | R17: =T17/S17 -> 311.0 | S17: =VLOOKUP(A17,Formelhilfe!$A$9:$O$44,15,FALSE) -> 5.0 | T17: =SUM(L17:Q17) -> 1,555.2 | U17: =W17/V17 -> 310.3 | V17: =VLOOKUP(A17,Formelhilfe!$A$9:$P$44,16,FALSE) -> 11.0 | W17: =SUM(C17:H17,L17:Q17) -> 3,413.2
A18: Hunfeld Anton | B18: =VLOOKUP(A18,'Wettkampf 1'!$B$10:$C$45,2,FALSE) -> Neubörger I | C18: =VLOOKUP(A18,'Wettkampf 1'!$B$10:$D$45,3,FALSE) -> 309.6 | D18: =VLOOKUP($A18,'2'!$B$10:$D$45,3,FALSE) -> 304.4 | E18: =VLOOKUP($A18,'3'!$B$10:$D$45,3,FALSE) -> 312.3 | F18: =VLOOKUP($A18,'4'!$B$10:$D$45,3,FALSE) -> 305.5 | G18: =VLOOKUP($A18,'5'!$B$10:$D$45,3,FALSE) -> 312.3 | H18: =VLOOKUP($A18,'6'!$B$10:$D$45,3,FALSE) -> 311.2 | I18: =K18/J18 -> 309.2 | J18: =VLOOKUP(A18,Formelhilfe!$A$9:$H$44,8,FALSE) -> 6.0 | K18: =SUM(C18:H18) -> 1,855.3 | L18: =VLOOKUP($A18,'7'!$B$10:$D$45,3,FALSE) -> 308.5 | M18: =VLOOKUP($A18,'8'!$B$10:$D$45,3,FALSE) -> 311.3 | N18: =VLOOKUP($A18,'9'!$B$10:$D$45,3,FALSE) -> 315.0 | O18: =VLOOKUP($A18,'10'!$B$10:$D$45,3,FALSE) -> 314.1 | P18: =VLOOKUP($A18,'11'!$B$10:$D$45,3,FALSE) -> 308.3 | Q18: =VLOOKUP($A18,'12'!$B$10:$D$45,3,FALSE) -> 0.0 | R18: =T18/S18 -> 311.4 | S18: =VLOOKUP(A18,Formelhilfe!$A$9:$O$44,15,FALSE) -> 5.0 | T18: =SUM(L18:Q18) -> 1,557.2 | U18: =W18/V18 -> 310.2 | V18: =VLOOKUP(A18,Formelhilfe!$A$9:$P$44,16,FALSE) -> 11.0 | W18: =SUM(C18:H18,L18:Q18) -> 3,412.5
A19: Lindemann Marco | B19: =VLOOKUP(A19,'Wettkampf 1'!$B$10:$C$45,2,FALSE) -> Esterwegen I | C19: =VLOOKUP(A19,'Wettkampf 1'!$B$10:$D$45,3,FALSE) -> 312.9 | D19: =VLOOKUP($A19,'2'!$B$10:$D$45,3,FALSE) -> 309.3 | E19: =VLOOKUP($A19,'3'!$B$10:$D$45,3,FALSE) -> 306.3 | F19: =VLOOKUP($A19,'4'!$B$10:$D$45,3,FALSE) -> 310.5 | G19: =VLOOKUP($A19,'5'!$B$10:$D$45,3,FALSE) -> 311.5 | H19: =VLOOKUP($A19,'6'!$B$10:$D$45,3,FALSE) -> 311.3 | I19: =K19/J19 -> 310.3 | J19: =VLOOKUP(A19,Formelhilfe!$A$9:$H$44,8,FALSE) -> 6.0 | K19: =SUM(C19:H19) -> 1,861.8 | L19: =VLOOKUP($A19,'7'!$B$10:$D$45,3,FALSE) -> 312.1 | M19: =VLOOKUP($A19,'8'!$B$10:$D$45,3,FALSE) -> 306.4 | N19: =VLOOKUP($A19,'9'!$B$10:$D$45,3,FALSE) -> 306.0 | O19: =VLOOKUP($A19,'10'!$B$10:$D$45,3,FALSE) -> 311.9 | P19: =VLOOKUP($A19,'11'!$B$10:$D$45,3,FALSE) -> 312.2 | Q19: =VLOOKUP($A19,'12'!$B$10:$D$45,3,FALSE) -> 0.0 | R19: =T19/S19 -> 309.7 | S19: =VLOOKUP(A19,Formelhilfe!$A$9:$O$44,15,FALSE) -> 5.0 | T19: =SUM(L19:Q19) -> 1,548.6 | U19: =W19/V19 -> 310.0 | V19: =VLOOKUP(A19,Formelhilfe!$A$9:$P$44,16,FALSE) -> 11.0 | W19: =SUM(C19:H19,L19:Q19) -> 3,410.4
A20: Terborg Michael | B20: =VLOOKUP(A20,'Wettkampf 1'!$B$10:$C$45,2,FALSE) -> Sögel I | C20: =VLOOKUP(A20,'Wettkampf 1'!$B$10:$D$45,3,FALSE) -> 309.2 | D20: =VLOOKUP($A20,'2'!$B$10:$D$45,3,FALSE) -> 311.4 | E20: =VLOOKUP($A20,'3'!$B$10:$D$45,3,FALSE) -> 310.1 | F20: =VLOOKUP($A20,'4'!$B$10:$D$45,3,FALSE) -> 311.4 | G20: =VLOOKUP($A20,'5'!$B$10:$D$45,3,FALSE) -> 302.3 | H20: =VLOOKUP($A20,'6'!$B$10:$D$45,3,FALSE) -> 308.7 | I20: =K20/J20 -> 308.9 | J20: =VLOOKUP(A20,Formelhilfe!$A$9:$H$44,8,FALSE) -> 6.0 | K20: =SUM(C20:H20) -> 1,853.1 | L20: =VLOOKUP($A20,'7'!$B$10:$D$45,3,FALSE) -> 307.1 | M20: =VLOOKUP($A20,'8'!$B$10:$D$45,3,FALSE) -> 312.0 | N20: =VLOOKUP($A20,'9'!$B$10:$D$45,3,FALSE) -> 309.1 | O20: =VLOOKUP($A20,'10'!$B$10:$D$45,3,FALSE) -> 308.7 | P20: =VLOOKUP($A20,'11'!$B$10:$D$45,3,FALSE) -> 310.4 | Q20: =VLOOKUP($A20,'12'!$B$10:$D$45,3,FALSE) -> 0.0 | R20: =T20/S20 -> 309.5 | S20: =VLOOKUP(A20,Formelhilfe!$A$9:$O$44,15,FALSE) -> 5.0 | T20: =SUM(L20:Q20) -> 1,547.3 | U20: =W20/V20 -> 309.1 | V20: =VLOOKUP(A20,Formelhilfe!$A$9:$P$44,16,FALSE) -> 11.0 | W20: =SUM(C20:H20,L20:Q20) -> 3,400.4
A21: Schulte Matthias | B21: =VLOOKUP(A21,'Wettkampf 1'!$B$10:$C$45,2,FALSE) -> Esterwegen I | C21: =VLOOKUP(A21,'Wettkampf 1'!$B$10:$D$45,3,FALSE) -> 308.0 | D21: =VLOOKUP($A21,'2'!$B$10:$D$45,3,FALSE) -> 308.9 | E21: =VLOOKUP($A21,'3'!$B$10:$D$45,3,FALSE) -> 307.9 | F21: =VLOOKUP($A21,'4'!$B$10:$D$45,3,FALSE) -> 306.6 | G21: =VLOOKUP($A21,'5'!$B$10:$D$45,3,FALSE) -> 306.3 | H21: =VLOOKUP($A21,'6'!$B$10:$D$45,3,FALSE) -> 308.0 | I21: =K21/J21 -> 307.6 | J21: =VLOOKUP(A21,Formelhilfe!$A$9:$H$44,8,FALSE) -> 6.0 | K21: =SUM(C21:H21) -> 1,845.7 | L21: =VLOOKUP($A21,'7'!$B$10:$D$45,3,FALSE) -> 311.5 | M21: =VLOOKUP($A21,'8'!$B$10:$D$45,3,FALSE) -> 307.0 | N21: =VLOOKUP($A21,'9'!$B$10:$D$45,3,FALSE) -> 312.2 | O21: =VLOOKUP($A21,'10'!$B$10:$D$45,3,FALSE) -> 313.8 | P21: =VLOOKUP($A21,'11'!$B$10:$D$45,3,FALSE) -> 310.2 | Q21: =VLOOKUP($A21,'12'!$B$10:$D$45,3,FALSE) -> 0.0 | R21: =T21/S21 -> 310.9 | S21: =VLOOKUP(A21,Formelhilfe!$A$9:$O$44,15,FALSE) -> 5.0 | T21: =SUM(L21:Q21) -> 1,554.7 | U21: =W21/V21 -> 309.1 | V21: =VLOOKUP(A21,Formelhilfe!$A$9:$P$44,16,FALSE) -> 11.0 | W21: =SUM(C21:H21,L21:Q21) -> 3,400.4
A22: Albers Helmut | B22: =VLOOKUP(A22,'Wettkampf 1'!$B$10:$C$45,2,FALSE) -> Lorup IV | C22: =VLOOKUP(A22,'Wettkampf 1'!$B$10:$D$45,3,FALSE) -> 310.4 | D22: =VLOOKUP($A22,'2'!$B$10:$D$45,3,FALSE) -> 309.5 | E22: =VLOOKUP($A22,'3'!$B$10:$D$45,3,FALSE) -> 307.1 | F22: =VLOOKUP($A22,'4'!$B$10:$D$45,3,FALSE) -> 308.5 | G22: =VLOOKUP($A22,'5'!$B$10:$D$45,3,FALSE) -> 309.7 | H22: =VLOOKUP($A22,'6'!$B$10:$D$45,3,FALSE) -> 310.2 | I22: =K22/J22 -> 309.2 | J22: =VLOOKUP(A22,Formelhilfe!$A$9:$H$44,8,FALSE) -> 6.0 | K22: =SUM(C22:H22) -> 1,855.4 | L22: =VLOOKUP($A22,'7'!$B$10:$D$45,3,FALSE) -> 306.2 | M22: =VLOOKUP($A22,'8'!$B$10:$D$45,3,FALSE) -> 306.2 | N22: =VLOOKUP($A22,'9'!$B$10:$D$45,3,FALSE) -> 310.0 | O22: =VLOOKUP($A22,'10'!$B$10:$D$45,3,FALSE) -> 307.2 | P22: =VLOOKUP($A22,'11'!$B$10:$D$45,3,FALSE) -> 310.4 | Q22: =VLOOKUP($A22,'12'!$B$10:$D$45,3,FALSE) -> 0.0 | R22: =T22/S22 -> 308.0 | S22: =VLOOKUP(A22,Formelhilfe!$A$9:$O$44,15,FALSE) -> 5.0 | T22: =SUM(L22:Q22) -> 1,540.0 | U22: =W22/V22 -> 308.7 | V22: =VLOOKUP(A22,Formelhilfe!$A$9:$P$44,16,FALSE) -> 11.0 | W22: =SUM(C22:H22,L22:Q22) -> 3,395.4
A23: Schnieders Willi | B23: =VLOOKUP(A23,'Wettkampf 1'!$B$10:$C$45,2,FALSE) -> Neubörger I | C23: =VLOOKUP(A23,'Wettkampf 1'!$B$10:$D$45,3,FALSE) -> 311.0 | D23: =VLOOKUP($A23,'2'!$B$10:$D$45,3,FALSE) -> 307.1 | E23: =VLOOKUP($A23,'3'!$B$10:$D$45,3,FALSE) -> 306.6 | F23: =VLOOKUP($A23,'4'!$B$10:$D$45,3,FALSE) -> 303.5 | G23: =VLOOKUP($A23,'5'!$B$10:$D$45,3,FALSE) -> 300.7 | H23: =VLOOKUP($A23,'6'!$B$10:$D$45,3,FALSE) -> 298.4 | I23: =K23/J23 -> 304.6 | J23: =VLOOKUP(A23,Formelhilfe!$A$9:$H$44,8,FALSE) -> 6.0 | K23: =SUM(C23:H23) -> 1,827.3 | L23: =VLOOKUP($A23,'7'!$B$10:$D$45,3,FALSE) -> 299.9 | M23: =VLOOKUP($A23,'8'!$B$10:$D$45,3,FALSE) -> 301.3 | N23: =VLOOKUP($A23,'9'!$B$10:$D$45,3,FALSE) -> 302.8 | O23: =VLOOKUP($A23,'10'!$B$10:$D$45,3,FALSE) -> 297.0 | P23: =VLOOKUP($A23,'11'!$B$10:$D$45,3,FALSE) -> 296.4 | Q23: =VLOOKUP($A23,'12'!$B$10:$D$45,3,FALSE) -> 0.0 | R23: =T23/S23 -> 299.5 | S23: =VLOOKUP(A23,Formelhilfe!$A$9:$O$44,15,FALSE) -> 5.0 | T23: =SUM(L23:Q23) -> 1,497.4 | U23: =W23/V23 -> 302.2 | V23: =VLOOKUP(A23,Formelhilfe!$A$9:$P$44,16,FALSE) -> 11.0 | W23: =SUM(C23:H23,L23:Q23) -> 3,324.7
A24: Sunder Ferdi | B24: =VLOOKUP(A24,'Wettkampf 1'!$B$10:$C$45,2,FALSE) -> Sögel I | C24: =VLOOKUP(A24,'Wettkampf 1'!$B$10:$D$45,3,FALSE) -> 0.0 | D24: =VLOOKUP($A24,'2'!$B$10:$D$45,3,FALSE) -> 309.1 | E24: =VLOOKUP($A24,'3'!$B$10:$D$45,3,FALSE) -> 312.0 | F24: =VLOOKUP($A24,'4'!$B$10:$D$45,3,FALSE) -> 315.0 | G24: =VLOOKUP($A24,'5'!$B$10:$D$45,3,FALSE) -> 315.1 | H24: =VLOOKUP($A24,'6'!$B$10:$D$45,3,FALSE) -> 317.2 | I24: =K24/J24 -> 313.7 | J24: =VLOOKUP(A24,Formelhilfe!$A$9:$H$44,8,FALSE) -> 5.0 | K24: =SUM(C24:H24) -> 1,568.4 | L24: =VLOOKUP($A24,'7'!$B$10:$D$45,3,FALSE) -> 316.0 | M24: =VLOOKUP($A24,'8'!$B$10:$D$45,3,FALSE) -> 316.2 | N24: =VLOOKUP($A24,'9'!$B$10:$D$45,3,FALSE) -> 317.1 | O24: =VLOOKUP($A24,'10'!$B$10:$D$45,3,FALSE) -> 311.0 | P24: =VLOOKUP($A24,'11'!$B$10:$D$45,3,FALSE) -> 314.6 | Q24: =VLOOKUP($A24,'12'!$B$10:$D$45,3,FALSE) -> 0.0 | R24: =T24/S24 -> 315.0 | S24: =VLOOKUP(A24,Formelhilfe!$A$9:$O$44,15,FALSE) -> 5.0 | T24: =SUM(L24:Q24) -> 1,574.9 | U24: =W24/V24 -> 314.3 | V24: =VLOOKUP(A24,Formelhilfe!$A$9:$P$44,16,FALSE) -> 10.0 | W24: =SUM(C24:H24,L24:Q24) -> 3,143.3
A25: Middendorf Peter | B25: =VLOOKUP(A25,'Wettkampf 1'!$B$10:$C$45,2,FALSE) -> Esterwegen I | C25: =VLOOKUP(A25,'Wettkampf 1'!$B$10:$D$45,3,FALSE) -> 313.4 | D25: =VLOOKUP($A25,'2'!$B$10:$D$45,3,FALSE) -> 309.7 | E25: =VLOOKUP($A25,'3'!$B$10:$D$45,3,FALSE) -> 0.0 | F25: =VLOOKUP($A25,'4'!$B$10:$D$45,3,FALSE) -> 312.5 | G25: =VLOOKUP($A25,'5'!$B$10:$D$45,3,FALSE) -> 308.5 | H25: =VLOOKUP($A25,'6'!$B$10:$D$45,3,FALSE) -> 303.8 | I25: =K25/J25 -> 309.6 | J25: =VLOOKUP(A25,Formelhilfe!$A$9:$H$44,8,FALSE) -> 5.0 | K25: =SUM(C25:H25) -> 1,547.9 | L25: =VLOOKUP($A25,'7'!$B$10:$D$45,3,FALSE) -> 312.7 | M25: =VLOOKUP($A25,'8'!$B$10:$D$45,3,FALSE) -> 312.6 | N25: =VLOOKUP($A25,'9'!$B$10:$D$45,3,FALSE) -> 311.1 | O25: =VLOOKUP($A25,'10'!$B$10:$D$45,3,FALSE) -> 311.9 | P25: =VLOOKUP($A25,'11'!$B$10:$D$45,3,FALSE) -> 308.5 | Q25: =VLOOKUP($A25,'12'!$B$10:$D$45,3,FALSE) -> 0.0 | R25: =T25/S25 -> 311.4 | S25: =VLOOKUP(A25,Formelhilfe!$A$9:$O$44,15,FALSE) -> 5.0 | T25: =SUM(L25:Q25) -> 1,556.8 | U25: =W25/V25 -> 310.5 | V25: =VLOOKUP(A25,Formelhilfe!$A$9:$P$44,16,FALSE) -> 10.0 | W25: =SUM(C25:H25,L25:Q25) -> 3,104.7
A26: Großmann Martin | B26: =VLOOKUP(A26,'Wettkampf 1'!$B$10:$C$45,2,FALSE) -> Börgermoor I | C26: =VLOOKUP(A26,'Wettkampf 1'!$B$10:$D$45,3,FALSE) -> 309.0 | D26: =VLOOKUP($A26,'2'!$B$10:$D$45,3,FALSE) -> 313.8 | E26: =VLOOKUP($A26,'3'!$B$10:$D$45,3,FALSE) -> 312.9 | F26: =VLOOKUP($A26,'4'!$B$10:$D$45,3,FALSE) -> 311.6 | G26: =VLOOKUP($A26,'5'!$B$10:$D$45,3,FALSE) -> 308.2 | H26: =VLOOKUP($A26,'6'!$B$10:$D$45,3,FALSE) -> 309.7 | I26: =K26/J26 -> 310.9 | J26: =VLOOKUP(A26,Formelhilfe!$A$9:$H$44,8,FALSE) -> 6.0 | K26: =SUM(C26:H26) -> 1,865.2 | L26: =VLOOKUP($A26,'7'!$B$10:$D$45,3,FALSE) -> 312.6 | M26: =VLOOKUP($A26,'8'!$B$10:$D$45,3,FALSE) -> 0.0 | N26: =VLOOKUP($A26,'9'!$B$10:$D$45,3,FALSE) -> 0.0 | O26: =VLOOKUP($A26,'10'!$B$10:$D$45,3,FALSE) -> 309.5 | P26: =VLOOKUP($A26,'11'!$B$10:$D$45,3,FALSE) -> 308.7 | Q26: =VLOOKUP($A26,'12'!$B$10:$D$45,3,FALSE) -> 0.0 | R26: =T26/S26 -> 310.3 | S26: =VLOOKUP(A26,Formelhilfe!$A$9:$O$44,15,FALSE) -> 3.0 | T26: =SUM(L26:Q26) -> 930.8 | U26: =W26/V26 -> 310.7 | V26: =VLOOKUP(A26,Formelhilfe!$A$9:$P$44,16,FALSE) -> 9.0 | W26: =SUM(C26:H26,L26:Q26) -> 2,796.0
A27: Voss Helmut | B27: =VLOOKUP(A27,'Wettkampf 1'!$B$10:$C$45,2,FALSE) -> Neubörger I | C27: =VLOOKUP(A27,'Wettkampf 1'!$B$10:$D$45,3,FALSE) -> 309.9 | D27: =VLOOKUP($A27,'2'!$B$10:$D$45,3,FALSE) -> 308.4 | E27: =VLOOKUP($A27,'3'!$B$10:$D$45,3,FALSE) -> 307.7 | F27: =VLOOKUP($A27,'4'!$B$10:$D$45,3,FALSE) -> 0.0 | G27: =VLOOKUP($A27,'5'!$B$10:$D$45,3,FALSE) -> 303.2 | H27: =VLOOKUP($A27,'6'!$B$10:$D$45,3,FALSE) -> 0.0 | I27: =K27/J27 -> 307.3 | J27: =VLOOKUP(A27,Formelhilfe!$A$9:$H$44,8,FALSE) -> 4.0 | K27: =SUM(C27:H27) -> 1,229.2 | L27: =VLOOKUP($A27,'7'!$B$10:$D$45,3,FALSE) -> 310.2 | M27: =VLOOKUP($A27,'8'!$B$10:$D$45,3,FALSE) -> 303.8 | N27: =VLOOKUP($A27,'9'!$B$10:$D$45,3,FALSE) -> 0.0 | O27: =VLOOKUP($A27,'10'!$B$10:$D$45,3,FALSE) -> 309.0 | P27: =VLOOKUP($A27,'11'!$B$10:$D$45,3,FALSE) -> 306.5 | Q27: =VLOOKUP($A27,'12'!$B$10:$D$45,3,FALSE) -> 0.0 | R27: =T27/S27 -> 307.4 | S27: =VLOOKUP(A27,Formelhilfe!$A$9:$O$44,15,FALSE) -> 4.0 | T27: =SUM(L27:Q27) -> 1,229.5 | U27: =W27/V27 -> 307.3 | V27: =VLOOKUP(A27,Formelhilfe!$A$9:$P$44,16,FALSE) -> 8.0 | W27: =SUM(C27:H27,L27:Q27) -> 2,458.7
A28: Gerdes Willi | B28: =VLOOKUP(A28,'Wettkampf 1'!$B$10:$C$45,2,FALSE) -> Lorup IV | C28: =VLOOKUP(A28,'Wettkampf 1'!$B$10:$D$45,3,FALSE) -> 0.0 | D28: =VLOOKUP($A28,'2'!$B$10:$D$45,3,FALSE) -> 0.0 | E28: =VLOOKUP($A28,'3'!$B$10:$D$45,3,FALSE) -> 303.0 | F28: =VLOOKUP($A28,'4'!$B$10:$D$45,3,FALSE) -> 0.0 | G28: =VLOOKUP($A28,'5'!$B$10:$D$45,3,FALSE) -> 0.0 | H28: =VLOOKUP($A28,'6'!$B$10:$D$45,3,FALSE) -> 0.0 | I28: =K28/J28 -> 303.0 | J28: =VLOOKUP(A28,Formelhilfe!$A$9:$H$44,8,FALSE) -> 1.0 | K28: =SUM(C28:H28) -> 303.0 | L28: =VLOOKUP($A28,'7'!$B$10:$D$45,3,FALSE) -> 0.0 | M28: =VLOOKUP($A28,'8'!$B$10:$D$45,3,FALSE) -> 0.0 | N28: =VLOOKUP($A28,'9'!$B$10:$D$45,3,FALSE) -> 0.0 | O28: =VLOOKUP($A28,'10'!$B$10:$D$45,3,FALSE) -> 0.0 | P28: =VLOOKUP($A28,'11'!$B$10:$D$45,3,FALSE) -> 0.0 | Q28: =VLOOKUP($A28,'12'!$B$10:$D$45,3,FALSE) -> 0.0 | R28: =T28/S28 ->  | S28: =VLOOKUP(A28,Formelhilfe!$A$9:$O$44,15,FALSE) -> 0.0 | T28: =SUM(L28:Q28) -> 0.0 | U28: =W28/V28 -> 303.0 | V28: =VLOOKUP(A28,Formelhilfe!$A$9:$P$44,16,FALSE) -> 1.0 | W28: =SUM(C28:H28,L28:Q28) -> 303.0
A29: Schütze 5 | B29: =VLOOKUP(A29,'Wettkampf 1'!$B$10:$C$45,2,FALSE) -> Lahn II | C29: =VLOOKUP(A29,'Wettkampf 1'!$B$10:$D$45,3,FALSE) -> 0.0 | D29: =VLOOKUP($A29,'2'!$B$10:$D$45,3,FALSE) -> 0.0 | E29: =VLOOKUP($A29,'3'!$B$10:$D$45,3,FALSE) -> 0.0 | F29: =VLOOKUP($A29,'4'!$B$10:$D$45,3,FALSE) -> 0.0 | G29: =VLOOKUP($A29,'5'!$B$10:$D$45,3,FALSE) -> 0.0 | H29: =VLOOKUP($A29,'6'!$B$10:$D$45,3,FALSE) -> 0.0 | I29: =K29/J29 ->  | J29: =VLOOKUP(A29,Formelhilfe!$A$9:$H$44,8,FALSE) -> 0.0 | K29: =SUM(C29:H29) -> 0.0 | L29: =VLOOKUP($A29,'7'!$B$10:$D$45,3,FALSE) -> 0.0 | M29: =VLOOKUP($A29,'8'!$B$10:$D$45,3,FALSE) -> 0.0 | N29: =VLOOKUP($A29,'9'!$B$10:$D$45,3,FALSE) -> 0.0 | O29: =VLOOKUP($A29,'10'!$B$10:$D$45,3,FALSE) -> 0.0 | P29: =VLOOKUP($A29,'11'!$B$10:$D$45,3,FALSE) -> 0.0 | Q29: =VLOOKUP($A29,'12'!$B$10:$D$45,3,FALSE) -> 0.0 | R29: =T29/S29 ->  | S29: =VLOOKUP(A29,Formelhilfe!$A$9:$O$44,15,FALSE) -> 0.0 | T29: =SUM(L29:Q29) -> 0.0 | U29: =W29/V29 ->  | V29: =VLOOKUP(A29,Formelhilfe!$A$9:$P$44,16,FALSE) -> 0.0 | W29: =SUM(C29:H29,L29:Q29) -> 0.0
A30: Schütze 6 | B30: =VLOOKUP(A30,'Wettkampf 1'!$B$10:$C$45,2,FALSE) -> Lahn II | C30: =VLOOKUP(A30,'Wettkampf 1'!$B$10:$D$45,3,FALSE) -> 0.0 | D30: =VLOOKUP($A30,'2'!$B$10:$D$45,3,FALSE) -> 0.0 | E30: =VLOOKUP($A30,'3'!$B$10:$D$45,3,FALSE) -> 0.0 | F30: =VLOOKUP($A30,'4'!$B$10:$D$45,3,FALSE) -> 0.0 | G30: =VLOOKUP($A30,'5'!$B$10:$D$45,3,FALSE) -> 0.0 | H30: =VLOOKUP($A30,'6'!$B$10:$D$45,3,FALSE) -> 0.0 | I30: =K30/J30 ->  | J30: =VLOOKUP(A30,Formelhilfe!$A$9:$H$44,8,FALSE) -> 0.0 | K30: =SUM(C30:H30) -> 0.0 | L30: =VLOOKUP($A30,'7'!$B$10:$D$45,3,FALSE) -> 0.0 | M30: =VLOOKUP($A30,'8'!$B$10:$D$45,3,FALSE) -> 0.0 | N30: =VLOOKUP($A30,'9'!$B$10:$D$45,3,FALSE) -> 0.0 | O30: =VLOOKUP($A30,'10'!$B$10:$D$45,3,FALSE) -> 0.0 | P30: =VLOOKUP($A30,'11'!$B$10:$D$45,3,FALSE) -> 0.0 | Q30: =VLOOKUP($A30,'12'!$B$10:$D$45,3,FALSE) -> 0.0 | R30: =T30/S30 ->  | S30: =VLOOKUP(A30,Formelhilfe!$A$9:$O$44,15,FALSE) -> 0.0 | T30: =SUM(L30:Q30) -> 0.0 | U30: =W30/V30 ->  | V30: =VLOOKUP(A30,Formelhilfe!$A$9:$P$44,16,FALSE) -> 0.0 | W30: =SUM(C30:H30,L30:Q30) -> 0.0
A31: Schütze 12 | B31: =VLOOKUP(A31,'Wettkampf 1'!$B$10:$C$45,2,FALSE) -> Lorup IV | C31: =VLOOKUP(A31,'Wettkampf 1'!$B$10:$D$45,3,FALSE) -> 0.0 | D31: =VLOOKUP($A31,'2'!$B$10:$D$45,3,FALSE) -> 0.0 | E31: =VLOOKUP($A31,'3'!$B$10:$D$45,3,FALSE) -> 0.0 | F31: =VLOOKUP($A31,'4'!$B$10:$D$45,3,FALSE) -> 0.0 | G31: =VLOOKUP($A31,'5'!$B$10:$D$45,3,FALSE) -> 0.0 | H31: =VLOOKUP($A31,'6'!$B$10:$D$45,3,FALSE) -> 0.0 | I31: =K31/J31 ->  | J31: =VLOOKUP(A31,Formelhilfe!$A$9:$H$44,8,FALSE) -> 0.0 | K31: =SUM(C31:H31) -> 0.0 | L31: =VLOOKUP($A31,'7'!$B$10:$D$45,3,FALSE) -> 0.0 | M31: =VLOOKUP($A31,'8'!$B$10:$D$45,3,FALSE) -> 0.0 | N31: =VLOOKUP($A31,'9'!$B$10:$D$45,3,FALSE) -> 0.0 | O31: =VLOOKUP($A31,'10'!$B$10:$D$45,3,FALSE) -> 0.0 | P31: =VLOOKUP($A31,'11'!$B$10:$D$45,3,FALSE) -> 0.0 | Q31: =VLOOKUP($A31,'12'!$B$10:$D$45,3,FALSE) -> 0.0 | R31: =T31/S31 ->  | S31: =VLOOKUP(A31,Formelhilfe!$A$9:$O$44,15,FALSE) -> 0.0 | T31: =SUM(L31:Q31) -> 0.0 | U31: =W31/V31 ->  | V31: =VLOOKUP(A31,Formelhilfe!$A$9:$P$44,16,FALSE) -> 0.0 | W31: =SUM(C31:H31,L31:Q31) -> 0.0
A32: Schütze 18 | B32: =VLOOKUP(A32,'Wettkampf 1'!$B$10:$C$45,2,FALSE) -> Sögel I | C32: =VLOOKUP(A32,'Wettkampf 1'!$B$10:$D$45,3,FALSE) -> 0.0 | D32: =VLOOKUP($A32,'2'!$B$10:$D$45,3,FALSE) -> 0.0 | E32: =VLOOKUP($A32,'3'!$B$10:$D$45,3,FALSE) -> 0.0 | F32: =VLOOKUP($A32,'4'!$B$10:$D$45,3,FALSE) -> 0.0 | G32: =VLOOKUP($A32,'5'!$B$10:$D$45,3,FALSE) -> 0.0 | H32: =VLOOKUP($A32,'6'!$B$10:$D$45,3,FALSE) -> 0.0 | I32: =K32/J32 ->  | J32: =VLOOKUP(A32,Formelhilfe!$A$9:$H$44,8,FALSE) -> 0.0 | K32: =SUM(C32:H32) -> 0.0 | L32: =VLOOKUP($A32,'7'!$B$10:$D$45,3,FALSE) -> 0.0 | M32: =VLOOKUP($A32,'8'!$B$10:$D$45,3,FALSE) -> 0.0 | N32: =VLOOKUP($A32,'9'!$B$10:$D$45,3,FALSE) -> 0.0 | O32: =VLOOKUP($A32,'10'!$B$10:$D$45,3,FALSE) -> 0.0 | P32: =VLOOKUP($A32,'11'!$B$10:$D$45,3,FALSE) -> 0.0 | Q32: =VLOOKUP($A32,'12'!$B$10:$D$45,3,FALSE) -> 0.0 | R32: =T32/S32 ->  | S32: =VLOOKUP(A32,Formelhilfe!$A$9:$O$44,15,FALSE) -> 0.0 | T32: =SUM(L32:Q32) -> 0.0 | U32: =W32/V32 ->  | V32: =VLOOKUP(A32,Formelhilfe!$A$9:$P$44,16,FALSE) -> 0.0 | W32: =SUM(C32:H32,L32:Q32) -> 0.0
A33: Schütze 24 | B33: =VLOOKUP(A33,'Wettkampf 1'!$B$10:$C$45,2,FALSE) -> Neubörger I | C33: =VLOOKUP(A33,'Wettkampf 1'!$B$10:$D$45,3,FALSE) -> 0.0 | D33: =VLOOKUP($A33,'2'!$B$10:$D$45,3,FALSE) -> 0.0 | E33: =VLOOKUP($A33,'3'!$B$10:$D$45,3,FALSE) -> 0.0 | F33: =VLOOKUP($A33,'4'!$B$10:$D$45,3,FALSE) -> 0.0 | G33: =VLOOKUP($A33,'5'!$B$10:$D$45,3,FALSE) -> 0.0 | H33: =VLOOKUP($A33,'6'!$B$10:$D$45,3,FALSE) -> 0.0 | I33: =K33/J33 ->  | J33: =VLOOKUP(A33,Formelhilfe!$A$9:$H$44,8,FALSE) -> 0.0 | K33: =SUM(C33:H33) -> 0.0 | L33: =VLOOKUP($A33,'7'!$B$10:$D$45,3,FALSE) -> 0.0 | M33: =VLOOKUP($A33,'8'!$B$10:$D$45,3,FALSE) -> 0.0 | N33: =VLOOKUP($A33,'9'!$B$10:$D$45,3,FALSE) -> 0.0 | O33: =VLOOKUP($A33,'10'!$B$10:$D$45,3,FALSE) -> 0.0 | P33: =VLOOKUP($A33,'11'!$B$10:$D$45,3,FALSE) -> 0.0 | Q33: =VLOOKUP($A33,'12'!$B$10:$D$45,3,FALSE) -> 0.0 | R33: =T33/S33 ->  | S33: =VLOOKUP(A33,Formelhilfe!$A$9:$O$44,15,FALSE) -> 0.0 | T33: =SUM(L33:Q33) -> 0.0 | U33: =W33/V33 ->  | V33: =VLOOKUP(A33,Formelhilfe!$A$9:$P$44,16,FALSE) -> 0.0 | W33: =SUM(C33:H33,L33:Q33) -> 0.0
A34: Schütze 29 | B34: =VLOOKUP(A34,'Wettkampf 1'!$B$10:$C$45,2,FALSE) -> Börgermoor I | C34: =VLOOKUP(A34,'Wettkampf 1'!$B$10:$D$45,3,FALSE) -> 0.0 | D34: =VLOOKUP($A34,'2'!$B$10:$D$45,3,FALSE) -> 0.0 | E34: =VLOOKUP($A34,'3'!$B$10:$D$45,3,FALSE) -> 0.0 | F34: =VLOOKUP($A34,'4'!$B$10:$D$45,3,FALSE) -> 0.0 | G34: =VLOOKUP($A34,'5'!$B$10:$D$45,3,FALSE) -> 0.0 | H34: =VLOOKUP($A34,'6'!$B$10:$D$45,3,FALSE) -> 0.0 | I34: =K34/J34 ->  | J34: =VLOOKUP(A34,Formelhilfe!$A$9:$H$44,8,FALSE) -> 0.0 | K34: =SUM(C34:H34) -> 0.0 | L34: =VLOOKUP($A34,'7'!$B$10:$D$45,3,FALSE) -> 0.0 | M34: =VLOOKUP($A34,'8'!$B$10:$D$45,3,FALSE) -> 0.0 | N34: =VLOOKUP($A34,'9'!$B$10:$D$45,3,FALSE) -> 0.0 | O34: =VLOOKUP($A34,'10'!$B$10:$D$45,3,FALSE) -> 0.0 | P34: =VLOOKUP($A34,'11'!$B$10:$D$45,3,FALSE) -> 0.0 | Q34: =VLOOKUP($A34,'12'!$B$10:$D$45,3,FALSE) -> 0.0 | R34: =T34/S34 ->  | S34: =VLOOKUP(A34,Formelhilfe!$A$9:$O$44,15,FALSE) -> 0.0 | T34: =SUM(L34:Q34) -> 0.0 | U34: =W34/V34 ->  | V34: =VLOOKUP(A34,Formelhilfe!$A$9:$P$44,16,FALSE) -> 0.0 | W34: =SUM(C34:H34,L34:Q34) -> 0.0
A35: Schütze 30 | B35: =VLOOKUP(A35,'Wettkampf 1'!$B$10:$C$45,2,FALSE) -> Börgermoor I | C35: =VLOOKUP(A35,'Wettkampf 1'!$B$10:$D$45,3,FALSE) -> 0.0 | D35: =VLOOKUP($A35,'2'!$B$10:$D$45,3,FALSE) -> 0.0 | E35: =VLOOKUP($A35,'3'!$B$10:$D$45,3,FALSE) -> 0.0 | F35: =VLOOKUP($A35,'4'!$B$10:$D$45,3,FALSE) -> 0.0 | G35: =VLOOKUP($A35,'5'!$B$10:$D$45,3,FALSE) -> 0.0 | H35: =VLOOKUP($A35,'6'!$B$10:$D$45,3,FALSE) -> 0.0 | I35: =K35/J35 ->  | J35: =VLOOKUP(A35,Formelhilfe!$A$9:$H$44,8,FALSE) -> 0.0 | K35: =SUM(C35:H35) -> 0.0 | L35: =VLOOKUP($A35,'7'!$B$10:$D$45,3,FALSE) -> 0.0 | M35: =VLOOKUP($A35,'8'!$B$10:$D$45,3,FALSE) -> 0.0 | N35: =VLOOKUP($A35,'9'!$B$10:$D$45,3,FALSE) -> 0.0 | O35: =VLOOKUP($A35,'10'!$B$10:$D$45,3,FALSE) -> 0.0 | P35: =VLOOKUP($A35,'11'!$B$10:$D$45,3,FALSE) -> 0.0 | Q35: =VLOOKUP($A35,'12'!$B$10:$D$45,3,FALSE) -> 0.0 | R35: =T35/S35 ->  | S35: =VLOOKUP(A35,Formelhilfe!$A$9:$O$44,15,FALSE) -> 0.0 | T35: =SUM(L35:Q35) -> 0.0 | U35: =W35/V35 ->  | V35: =VLOOKUP(A35,Formelhilfe!$A$9:$P$44,16,FALSE) -> 0.0 | W35: =SUM(C35:H35,L35:Q35) -> 0.0
A36: Schütze 35 | B36: =VLOOKUP(A36,'Wettkampf 1'!$B$10:$C$45,2,FALSE) -> Esterwegen I | C36: =VLOOKUP(A36,'Wettkampf 1'!$B$10:$D$45,3,FALSE) -> 0.0 | D36: =VLOOKUP($A36,'2'!$B$10:$D$45,3,FALSE) -> 0.0 | E36: =VLOOKUP($A36,'3'!$B$10:$D$45,3,FALSE) -> 0.0 | F36: =VLOOKUP($A36,'4'!$B$10:$D$45,3,FALSE) -> 0.0 | G36: =VLOOKUP($A36,'5'!$B$10:$D$45,3,FALSE) -> 0.0 | H36: =VLOOKUP($A36,'6'!$B$10:$D$45,3,FALSE) -> 0.0 | I36: =K36/J36 ->  | J36: =VLOOKUP(A36,Formelhilfe!$A$9:$H$44,8,FALSE) -> 0.0 | K36: =SUM(C36:H36) -> 0.0 | L36: =VLOOKUP($A36,'7'!$B$10:$D$45,3,FALSE) -> 0.0 | M36: =VLOOKUP($A36,'8'!$B$10:$D$45,3,FALSE) -> 0.0 | N36: =VLOOKUP($A36,'9'!$B$10:$D$45,3,FALSE) -> 0.0 | O36: =VLOOKUP($A36,'10'!$B$10:$D$45,3,FALSE) -> 0.0 | P36: =VLOOKUP($A36,'11'!$B$10:$D$45,3,FALSE) -> 0.0 | Q36: =VLOOKUP($A36,'12'!$B$10:$D$45,3,FALSE) -> 0.0 | R36: =T36/S36 ->  | S36: =VLOOKUP(A36,Formelhilfe!$A$9:$O$44,15,FALSE) -> 0.0 | T36: =SUM(L36:Q36) -> 0.0 | U36: =W36/V36 ->  | V36: =VLOOKUP(A36,Formelhilfe!$A$9:$P$44,16,FALSE) -> 0.0 | W36: =SUM(C36:H36,L36:Q36) -> 0.0
A37: Schütze 36 | B37: =VLOOKUP(A37,'Wettkampf 1'!$B$10:$C$45,2,FALSE) -> Esterwegen I | C37: =VLOOKUP(A37,'Wettkampf 1'!$B$10:$D$45,3,FALSE) -> 0.0 | D37: =VLOOKUP($A37,'2'!$B$10:$D$45,3,FALSE) -> 0.0 | E37: =VLOOKUP($A37,'3'!$B$10:$D$45,3,FALSE) -> 0.0 | F37: =VLOOKUP($A37,'4'!$B$10:$D$45,3,FALSE) -> 0.0 | G37: =VLOOKUP($A37,'5'!$B$10:$D$45,3,FALSE) -> 0.0 | H37: =VLOOKUP($A37,'6'!$B$10:$D$45,3,FALSE) -> 0.0 | I37: =K37/J37 ->  | J37: =VLOOKUP(A37,Formelhilfe!$A$9:$H$44,8,FALSE) -> 0.0 | K37: =SUM(C37:H37) -> 0.0 | L37: =VLOOKUP($A37,'7'!$B$10:$D$45,3,FALSE) -> 0.0 | M37: =VLOOKUP($A37,'8'!$B$10:$D$45,3,FALSE) -> 0.0 | N37: =VLOOKUP($A37,'9'!$B$10:$D$45,3,FALSE) -> 0.0 | O37: =VLOOKUP($A37,'10'!$B$10:$D$45,3,FALSE) -> 0.0 | P37: =VLOOKUP($A37,'11'!$B$10:$D$45,3,FALSE) -> 0.0 | Q37: =VLOOKUP($A37,'12'!$B$10:$D$45,3,FALSE) -> 0.0 | R37: =T37/S37 ->  | S37: =VLOOKUP(A37,Formelhilfe!$A$9:$O$44,15,FALSE) -> 0.0 | T37: =SUM(L37:Q37) -> 0.0 | U37: =W37/V37 ->  | V37: =VLOOKUP(A37,Formelhilfe!$A$9:$P$44,16,FALSE) -> 0.0 | W37: =SUM(C37:H37,L37:Q37) -> 0.0

Sheet Formelhilfe (hidden)
B1: 1 | C1: 2 | D1: 3 | E1: 4 | F1: 5 | G1: 6 | H1: Hinrunde Schnitt | I1: 7 | J1: 8 | K1: 9 | L1: 10 | M1: 11 | N1: 12 | O1: Rückrunde Schnitt | P1: Gesamt Schnitt | S1: Kreisoberliga | T1: Schützen | U1: 2019/2020
A2: ='Wettkampf 1'!B2 -> Lahn II | B2: =IF('Wettkampf 1'!D2>0,1,0) -> 1 | C2: =IF('2'!$D2>0,1,0) -> 1 | D2: =IF('3'!$D2>0,1,0) -> 1 | E2: =IF('4'!$D2>0,1,0) -> 1 | F2: =IF('5'!$D2>0,1,0) -> 1 | G2: =IF('6'!$D2>0,1,0) -> 1 | H2: =B2+C2+D2+E2+F2+G2 -> 6 | I2: =IF('7'!$D2>0,1,0) -> 1 | J2: =IF('8'!$D2>0,1,0) -> 1 | K2: =IF('9'!$D2>0,1,0) -> 1 | L2: =IF('10'!$D2>0,1,0) -> 1 | M2: =IF('11'!$D2>0,1,0) -> 1 | N2: =IF('12'!$D2>0,1,0) -> 0 | O2: =I2+J2+K2+L2+M2+N2 -> 5 | P2: =O2+H2 -> 11 | S2: 1. Kreisliga | T2: Damen | U2: 2020/2021
A3: ='Wettkampf 1'!B3 -> Lorup IV | B3: =IF('Wettkampf 1'!D3>0,1,0) -> 1 | C3: =IF('2'!$D3>0,1,0) -> 1 | D3: =IF('3'!$D3>0,1,0) -> 1 | E3: =IF('4'!$D3>0,1,0) -> 1 | F3: =IF('5'!$D3>0,1,0) -> 1 | G3: =IF('6'!$D3>0,1,0) -> 1 | H3: 6 | I3: =IF('7'!$D3>0,1,0) -> 1 | J3: =IF('8'!$D3>0,1,0) -> 1 | K3: =IF('9'!$D3>0,1,0) -> 1 | L3: =IF('10'!$D3>0,1,0) -> 1 | M3: =IF('11'!$D3>0,1,0) -> 1 | N3: =IF('12'!$D3>0,1,0) -> 0 | O3: 5 | P3: 11 | S3: 2. Kreisliga | T3: Altersgruppe | U3: 2021/2022
A4: ='Wettkampf 1'!B4 -> Sögel I | B4: =IF('Wettkampf 1'!D4>0,1,0) -> 1 | C4: =IF('2'!$D4>0,1,0) -> 1 | D4: =IF('3'!$D4>0,1,0) -> 1 | E4: =IF('4'!$D4>0,1,0) -> 1 | F4: =IF('5'!$D4>0,1,0) -> 1 | G4: =IF('6'!$D4>0,1,0) -> 1 | H4: 6 | I4: =IF('7'!$D4>0,1,0) -> 1 | J4: =IF('8'!$D4>0,1,0) -> 1 | K4: =IF('9'!$D4>0,1,0) -> 1 | L4: =IF('10'!$D4>0,1,0) -> 1 | M4: =IF('11'!$D4>0,1,0) -> 1 | N4: =IF('12'!$D4>0,1,0) -> 0 | O4: 5 | P4: 11 | S4: 1. Kreisklasse | T4: Senioren | U4: 2022/2023
A5: ='Wettkampf 1'!B5 -> Neubörger I | B5: =IF('Wettkampf 1'!D5>0,1,0) -> 1 | C5: =IF('2'!$D5>0,1,0) -> 1 | D5: =IF('3'!$D5>0,1,0) -> 1 | E5: =IF('4'!$D5>0,1,0) -> 1 | F5: =IF('5'!$D5>0,1,0) -> 1 | G5: =IF('6'!$D5>0,1,0) -> 1 | H5: 6 | I5: =IF('7'!$D5>0,1,0) -> 1 | J5: =IF('8'!$D5>0,1,0) -> 1 | K5: =IF('9'!$D5>0,1,0) -> 1 | L5: =IF('10'!$D5>0,1,0) -> 1 | M5: =IF('11'!$D5>0,1,0) -> 1 | N5: =IF('12'!$D5>0,1,0) -> 0 | O5: 5 | P5: 11 | S5: 2. Kreisklasse | U5: 2023/2024
A6: ='Wettkampf 1'!B6 -> Börgermoor I | B6: =IF('Wettkampf 1'!D6>0,1,0) -> 1 | C6: =IF('2'!$D6>0,1,0) -> 1 | D6: =IF('3'!$D6>0,1,0) -> 1 | E6: =IF('4'!$D6>0,1,0) -> 1 | F6: =IF('5'!$D6>0,1,0) -> 1 | G6: =IF('6'!$D6>0,1,0) -> 1 | H6: 6 | I6: =IF('7'!$D6>0,1,0) -> 1 | J6: =IF('8'!$D6>0,1,0) -> 1 | K6: =IF('9'!$D6>0,1,0) -> 1 | L6: =IF('10'!$D6>0,1,0) -> 1 | M6: =IF('11'!$D6>0,1,0) -> 1 | N6: =IF('12'!$D6>0,1,0) -> 0 | O6: 5 | P6: 11 | S6: 3. Kreisklasse
A7: ='Wettkampf 1'!B7 -> Esterwegen I | B7: =IF('Wettkampf 1'!D7>0,1,0) -> 1 | C7: =IF('2'!$D7>0,1,0) -> 1 | D7: =IF('3'!$D7>0,1,0) -> 1 | E7: =IF('4'!$D7>0,1,0) -> 1 | F7: =IF('5'!$D7>0,1,0) -> 1 | G7: =IF('6'!$D7>0,1,0) -> 1 | H7: 6 | I7: =IF('7'!$D7>0,1,0) -> 1 | J7: =IF('8'!$D7>0,1,0) -> 1 | K7: =IF('9'!$D7>0,1,0) -> 1 | L7: =IF('10'!$D7>0,1,0) -> 1 | M7: =IF('11'!$D7>0,1,0) -> 1 | N7: =IF('12'!$D7>0,1,0) -> 0 | O7: 5 | P7: 11 | S7: 4. Kreisklasse
S8: 5. Kreisklasse
A9: Thyen Udo | B9: =IF('Wettkampf 1'!D10>0,1,0) -> 1 | C9: =IF('2'!$D10>0,1,0) -> 1 | D9: =IF('3'!$D10>0,1,0) -> 1 | E9: =IF('4'!$D10>0,1,0) -> 1 | F9: =IF('5'!$D10>0,1,0) -> 1 | G9: =IF('6'!$D10>0,1,0) -> 1 | H9: =B9+C9+D9+E9+F9+G9 -> 6 | I9: =IF('7'!$D10>0,1,0) -> 1 | J9: =IF('8'!$D10>0,1,0) -> 1 | K9: =IF('9'!$D10>0,1,0) -> 1 | L9: =IF('10'!$D10>0,1,0) -> 1 | M9: =IF('11'!$D10>0,1,0) -> 1 | N9: =IF('12'!$D10>0,1,0) -> 0 | O9: =I9+J9+K9+L9+M9+N9 -> 5 | P9: =O9+H9 -> 11 | S9: 6. Kreisklasse
A10: Banedt Olaf | B10: =IF('Wettkampf 1'!D11>0,1,0) -> 1 | C10: =IF('2'!$D11>0,1,0) -> 1 | D10: =IF('3'!$D11>0,1,0) -> 1 | E10: =IF('4'!$D11>0,1,0) -> 1 | F10: =IF('5'!$D11>0,1,0) -> 1 | G10: =IF('6'!$D11>0,1,0) -> 1 | H10: =B10+C10+D10+E10+F10+G10 -> 6 | I10: =IF('7'!$D11>0,1,0) -> 1 | J10: =IF('8'!$D11>0,1,0) -> 1 | K10: =IF('9'!$D11>0,1,0) -> 1 | L10: =IF('10'!$D11>0,1,0) -> 1 | M10: =IF('11'!$D11>0,1,0) -> 1 | N10: =IF('12'!$D11>0,1,0) -> 0 | O10: =I10+J10+K10+L10+M10+N10 -> 5 | P10: =O10+H10 -> 11 | S10: 7. Kreisklasse
A11: Thien Markus | B11: =IF('Wettkampf 1'!D12>0,1,0) -> 1 | C11: =IF('2'!$D12>0,1,0) -> 1 | D11: =IF('3'!$D12>0,1,0) -> 1 | E11: =IF('4'!$D12>0,1,0) -> 1 | F11: =IF('5'!$D12>0,1,0) -> 1 | G11: =IF('6'!$D12>0,1,0) -> 1 | H11: 6 | I11: =IF('7'!$D12>0,1,0) -> 1 | J11: =IF('8'!$D12>0,1,0) -> 1 | K11: =IF('9'!$D12>0,1,0) -> 1 | L11: =IF('10'!$D12>0,1,0) -> 1 | M11: =IF('11'!$D12>0,1,0) -> 1 | N11: =IF('12'!$D12>0,1,0) -> 0 | O11: 5 | P11: 11
A12: Robben-Schlagge Ralf | B12: =IF('Wettkampf 1'!D13>0,1,0) -> 1 | C12: =IF('2'!$D13>0,1,0) -> 1 | D12: =IF('3'!$D13>0,1,0) -> 1 | E12: =IF('4'!$D13>0,1,0) -> 1 | F12: =IF('5'!$D13>0,1,0) -> 1 | G12: =IF('6'!$D13>0,1,0) -> 1 | H12: 6 | I12: =IF('7'!$D13>0,1,0) -> 1 | J12: =IF('8'!$D13>0,1,0) -> 1 | K12: =IF('9'!$D13>0,1,0) -> 1 | L12: =IF('10'!$D13>0,1,0) -> 1 | M12: =IF('11'!$D13>0,1,0) -> 1 | N12: =IF('12'!$D13>0,1,0) -> 0 | O12: 5 | P12: 11
A13: Schütze 5 | B13: =IF('Wettkampf 1'!D14>0,1,0) -> 0 | C13: =IF('2'!$D14>0,1,0) -> 0 | D13: =IF('3'!$D14>0,1,0) -> 0 | E13: =IF('4'!$D14>0,1,0) -> 0 | F13: =IF('5'!$D14>0,1,0) -> 0 | G13: =IF('6'!$D14>0,1,0) -> 0 | H13: 0 | I13: =IF('7'!$D14>0,1,0) -> 0 | J13: =IF('8'!$D14>0,1,0) -> 0 | K13: =IF('9'!$D14>0,1,0) -> 0 | L13: =IF('10'!$D14>0,1,0) -> 0 | M13: =IF('11'!$D14>0,1,0) -> 0 | N13: =IF('12'!$D14>0,1,0) -> 0 | O13: 0 | P13: 0
A14: Schütze 6 | B14: =IF('Wettkampf 1'!D15>0,1,0) -> 0 | C14: =IF('2'!$D15>0,1,0) -> 0 | D14: =IF('3'!$D15>0,1,0) -> 0 | E14: =IF('4'!$D15>0,1,0) -> 0 | F14: =IF('5'!$D15>0,1,0) -> 0 | G14: =IF('6'!$D15>0,1,0) -> 0 | H14: 0 | I14: =IF('7'!$D15>0,1,0) -> 0 | J14: =IF('8'!$D15>0,1,0) -> 0 | K14: =IF('9'!$D15>0,1,0) -> 0 | L14: =IF('10'!$D15>0,1,0) -> 0 | M14: =IF('11'!$D15>0,1,0) -> 0 | N14: =IF('12'!$D15>0,1,0) -> 0 | O14: 0 | P14: 0
A15: Pölking Thomas | B15: =IF('Wettkampf 1'!D16>0,1,0) -> 1 | C15: =IF('2'!$D16>0,1,0) -> 1 | D15: =IF('3'!$D16>0,1,0) -> 1 | E15: =IF('4'!$D16>0,1,0) -> 1 | F15: =IF('5'!$D16>0,1,0) -> 1 | G15: =IF('6'!$D16>0,1,0) -> 1 | H15: 6 | I15: =IF('7'!$D16>0,1,0) -> 1 | J15: =IF('8'!$D16>0,1,0) -> 1 | K15: =IF('9'!$D16>0,1,0) -> 1 | L15: =IF('10'!$D16>0,1,0) -> 1 | M15: =IF('11'!$D16>0,1,0) -> 1 | N15: =IF('12'!$D16>0,1,0) -> 0 | O15: 5 | P15: 11
A16: Klawitter Gerd | B16: =IF('Wettkampf 1'!D17>0,1,0) -> 1 | C16: =IF('2'!$D17>0,1,0) -> 1 | D16: =IF('3'!$D17>0,1,0) -> 1 | E16: =IF('4'!$D17>0,1,0) -> 1 | F16: =IF('5'!$D17>0,1,0) -> 1 | G16: =IF('6'!$D17>0,1,0) -> 1 | H16: 6 | I16: =IF('7'!$D17>0,1,0) -> 1 | J16: =IF('8'!$D17>0,1,0) -> 1 | K16: =IF('9'!$D17>0,1,0) -> 1 | L16: =IF('10'!$D17>0,1,0) -> 1 | M16: =IF('11'!$D17>0,1,0) -> 1 | N16: =IF('12'!$D17>0,1,0) -> 0 | O16: 5 | P16: 11
A17: Albers Helmut | B17: =IF('Wettkampf 1'!D18>0,1,0) -> 1 | C17: =IF('2'!$D18>0,1,0) -> 1 | D17: =IF('3'!$D18>0,1,0) -> 1 | E17: =IF('4'!$D18>0,1,0) -> 1 | F17: =IF('5'!$D18>0,1,0) -> 1 | G17: =IF('6'!$D18>0,1,0) -> 1 | H17: 6 | I17: =IF('7'!$D18>0,1,0) -> 1 | J17: =IF('8'!$D18>0,1,0) -> 1 | K17: =IF('9'!$D18>0,1,0) -> 1 | L17: =IF('10'!$D18>0,1,0) -> 1 | M17: =IF('11'!$D18>0,1,0) -> 1 | N17: =IF('12'!$D18>0,1,0) -> 0 | O17: 5 | P17: 11
A18: Olliges Jürgen | B18: =IF('Wettkampf 1'!D19>0,1,0) -> 1 | C18: =IF('2'!$D19>0,1,0) -> 1 | D18: =IF('3'!$D19>0,1,0) -> 1 | E18: =IF('4'!$D19>0,1,0) -> 1 | F18: =IF('5'!$D19>0,1,0) -> 1 | G18: =IF('6'!$D19>0,1,0) -> 1 | H18: 6 | I18: =IF('7'!$D19>0,1,0) -> 1 | J18: =IF('8'!$D19>0,1,0) -> 1 | K18: =IF('9'!$D19>0,1,0) -> 1 | L18: =IF('10'!$D19>0,1,0) -> 1 | M18: =IF('11'!$D19>0,1,0) -> 1 | N18: =IF('12'!$D19>0,1,0) -> 0 | O18: 5 | P18: 11
A19: Gerdes Willi | B19: =IF('Wettkampf 1'!D20>0,1,0) -> 0 | C19: =IF('2'!$D20>0,1,0) -> 0 | D19: =IF('3'!$D20>0,1,0) -> 1 | E19: =IF('4'!$D20>0,1,0) -> 0 | F19: =IF('5'!$D20>0,1,0) -> 0 | G19: =IF('6'!$D20>0,1,0) -> 0 | H19: 1 | I19: =IF('7'!$D20>0,1,0) -> 0 | J19: =IF('8'!$D20>0,1,0) -> 0 | K19: =IF('9'!$D20>0,1,0) -> 0 | L19: =IF('10'!$D20>0,1,0) -> 0 | M19: =IF('11'!$D20>0,1,0) -> 0 | N19: =IF('12'!$D20>0,1,0) -> 0 | O19: 0 | P19: 1
A20: Schütze 12 | B20: =IF('Wettkampf 1'!D21>0,1,0) -> 0 | C20: =IF('2'!$D21>0,1,0) -> 0 | D20: =IF('3'!$D21>0,1,0) -> 0 | E20: =IF('4'!$D21>0,1,0) -> 0 | F20: =IF('5'!$D21>0,1,0) -> 0 | G20: =IF('6'!$D21>0,1,0) -> 0 | H20: 0 | I20: =IF('7'!$D21>0,1,0) -> 0 | J20: =IF('8'!$D21>0,1,0) -> 0 | K20: =IF('9'!$D21>0,1,0) -> 0 | L20: =IF('10'!$D21>0,1,0) -> 0 | M20: =IF('11'!$D21>0,1,0) -> 0 | N20: =IF('12'!$D21>0,1,0) -> 0 | O20: 0 | P20: 0
A21: Terborg Michael | B21: =IF('Wettkampf 1'!D22>0,1,0) -> 1 | C21: =IF('2'!$D22>0,1,0) -> 1 | D21: =IF('3'!$D22>0,1,0) -> 1 | E21: =IF('4'!$D22>0,1,0) -> 1 | F21: =IF('5'!$D22>0,1,0) -> 1 | G21: =IF('6'!$D22>0,1,0) -> 1 | H21: 6 | I21: =IF('7'!$D22>0,1,0) -> 1 | J21: =IF('8'!$D22>0,1,0) -> 1 | K21: =IF('9'!$D22>0,1,0) -> 1 | L21: =IF('10'!$D22>0,1,0) -> 1 | M21: =IF('11'!$D22>0,1,0) -> 1 | N21: =IF('12'!$D22>0,1,0) -> 0 | O21: 5 | P21: 11
A22: Wester Markus | B22: =IF('Wettkampf 1'!D23>0,1,0) -> 1 | C22: =IF('2'!$D23>0,1,0) -> 1 | D22: =IF('3'!$D23>0,1,0) -> 1 | E22: =IF('4'!$D23>0,1,0) -> 1 | F22: =IF('5'!$D23>0,1,0) -> 1 | G22: =IF('6'!$D23>0,1,0) -> 1 | H22: 6 | I22: =IF('7'!$D23>0,1,0) -> 1 | J22: =IF('8'!$D23>0,1,0) -> 1 | K22: =IF('9'!$D23>0,1,0) -> 1 | L22: =IF('10'!$D23>0,1,0) -> 1 | M22: =IF('11'!$D23>0,1,0) -> 1 | N22: =IF('12'!$D23>0,1,0) -> 0 | O22: 5 | P22: 11
A23: Dödtmann Ludger | B23: =IF('Wettkampf 1'!D24>0,1,0) -> 1 | C23: =IF('2'!$D24>0,1,0) -> 1 | D23: =IF('3'!$D24>0,1,0) -> 1 | E23: =IF('4'!$D24>0,1,0) -> 1 | F23: =IF('5'!$D24>0,1,0) -> 1 | G23: =IF('6'!$D24>0,1,0) -> 1 | H23: 6 | I23: =IF('7'!$D24>0,1,0) -> 1 | J23: =IF('8'!$D24>0,1,0) -> 1 | K23: =IF('9'!$D24>0,1,0) -> 1 | L23: =IF('10'!$D24>0,1,0) -> 1 | M23: =IF('11'!$D24>0,1,0) -> 1 | N23: =IF('12'!$D24>0,1,0) -> 0 | O23: 5 | P23: 11
A24: Tharner Karl-Heinz | B24: =IF('Wettkampf 1'!D25>0,1,0) -> 1 | C24: =IF('2'!$D25>0,1,0) -> 1 | D24: =IF('3'!$D25>0,1,0) -> 1 | E24: =IF('4'!$D25>0,1,0) -> 1 | F24: =IF('5'!$D25>0,1,0) -> 1 | G24: =IF('6'!$D25>0,1,0) -> 1 | H24: 6 | I24: =IF('7'!$D25>0,1,0) -> 1 | J24: =IF('8'!$D25>0,1,0) -> 1 | K24: =IF('9'!$D25>0,1,0) -> 1 | L24: =IF('10'!$D25>0,1,0) -> 1 | M24: =IF('11'!$D25>0,1,0) -> 1 | N24: =IF('12'!$D25>0,1,0) -> 0 | O24: 5 | P24: 11
A25: Sunder Ferdi | B25: =IF('Wettkampf 1'!D26>0,1,0) -> 0 | C25: =IF('2'!$D26>0,1,0) -> 1 | D25: =IF('3'!$D26>0,1,0) -> 1 | E25: =IF('4'!$D26>0,1,0) -> 1 | F25: =IF('5'!$D26>0,1,0) -> 1 | G25: =IF('6'!$D26>0,1,0) -> 1 | H25: 5 | I25: =IF('7'!$D26>0,1,0) -> 1 | J25: =IF('8'!$D26>0,1,0) -> 1 | K25: =IF('9'!$D26>0,1,0) -> 1 | L25: =IF('10'!$D26>0,1,0) -> 1 | M25: =IF('11'!$D26>0,1,0) -> 1 | N25: =IF('12'!$D26>0,1,0) -> 0 | O25: 5 | P25: 10
A26: Schütze 18 | B26: =IF('Wettkampf 1'!D27>0,1,0) -> 0 | C26: =IF('2'!$D27>0,1,0) -> 0 | D26: =IF('3'!$D27>0,1,0) -> 0 | E26: =IF('4'!$D27>0,1,0) -> 0 | F26: =IF('5'!$D27>0,1,0) -> 0 | G26: =IF('6'!$D27>0,1,0) -> 0 | H26: 0 | I26: =IF('7'!$D27>0,1,0) -> 0 | J26: =IF('8'!$D27>0,1,0) -> 0 | K26: =IF('9'!$D27>0,1,0) -> 0 | L26: =IF('10'!$D27>0,1,0) -> 0 | M26: =IF('11'!$D27>0,1,0) -> 0 | N26: =IF('12'!$D27>0,1,0) -> 0 | O26: 0 | P26: 0
A27: Runde Norbert | B27: =IF('Wettkampf 1'!D28>0,1,0) -> 1 | C27: =IF('2'!$D28>0,1,0) -> 1 | D27: =IF('3'!$D28>0,1,0) -> 1 | E27: =IF('4'!$D28>0,1,0) -> 1 | F27: =IF('5'!$D28>0,1,0) -> 1 | G27: =IF('6'!$D28>0,1,0) -> 1 | H27: 6 | I27: =IF('7'!$D28>0,1,0) -> 1 | J27: =IF('8'!$D28>0,1,0) -> 1 | K27: =IF('9'!$D28>0,1,0) -> 1 | L27: =IF('10'!$D28>0,1,0) -> 1 | M27: =IF('11'!$D28>0,1,0) -> 1 | N27: =IF('12'!$D28>0,1,0) -> 0 | O27: 5 | P27: 11
A28: Hunfeld Anton | B28: =IF('Wettkampf 1'!D29>0,1,0) -> 1 | C28: =IF('2'!$D29>0,1,0) -> 1 | D28: =IF('3'!$D29>0,1,0) -> 1 | E28: =IF('4'!$D29>0,1,0) -> 1 | F28: =IF('5'!$D29>0,1,0) -> 1 | G28: =IF('6'!$D29>0,1,0) -> 1 | H28: 6 | I28: =IF('7'!$D29>0,1,0) -> 1 | J28: =IF('8'!$D29>0,1,0) -> 1 | K28: =IF('9'!$D29>0,1,0) -> 1 | L28: =IF('10'!$D29>0,1,0) -> 1 | M28: =IF('11'!$D29>0,1,0) -> 1 | N28: =IF('12'!$D29>0,1,0) -> 0 | O28: 5 | P28: 11
A29: Schnieders Willi | B29: =IF('Wettkampf 1'!D30>0,1,0) -> 1 | C29: =IF('2'!$D30>0,1,0) -> 1 | D29: =IF('3'!$D30>0,1,0) -> 1 | E29: =IF('4'!$D30>0,1,0) -> 1 | F29: =IF('5'!$D30>0,1,0) -> 1 | G29: =IF('6'!$D30>0,1,0) -> 1 | H29: 6 | I29: =IF('7'!$D30>0,1,0) -> 1 | J29: =IF('8'!$D30>0,1,0) -> 1 | K29: =IF('9'!$D30>0,1,0) -> 1 | L29: =IF('10'!$D30>0,1,0) -> 1 | M29: =IF('11'!$D30>0,1,0) -> 1 | N29: =IF('12'!$D30>0,1,0) -> 0 | O29: 5 | P29: 11
A30: Antons Klaus | B30: =IF('Wettkampf 1'!D31>0,1,0) -> 1 | C30: =IF('2'!$D31>0,1,0) -> 1 | D30: =IF('3'!$D31>0,1,0) -> 1 | E30: =IF('4'!$D31>0,1,0) -> 1 | F30: =IF('5'!$D31>0,1,0) -> 1 | G30: =IF('6'!$D31>0,1,0) -> 1 | H30: 6 | I30: =IF('7'!$D31>0,1,0) -> 1 | J30: =IF('8'!$D31>0,1,0) -> 1 | K30: =IF('9'!$D31>0,1,0) -> 1 | L30: =IF('10'!$D31>0,1,0) -> 1 | M30: =IF('11'!$D31>0,1,0) -> 1 | N30: =IF('12'!$D31>0,1,0) -> 0 | O30: 5 | P30: 11
A31: Voss Helmut | B31: =IF('Wettkampf 1'!D32>0,1,0) -> 1 | C31: =IF('2'!$D32>0,1,0) -> 1 | D31: =IF('3'!$D32>0,1,0) -> 1 | E31: =IF('4'!$D32>0,1,0) -> 0 | F31: =IF('5'!$D32>0,1,0) -> 1 | G31: =IF('6'!$D32>0,1,0) -> 0 | H31: 4 | I31: =IF('7'!$D32>0,1,0) -> 1 | J31: =IF('8'!$D32>0,1,0) -> 1 | K31: =IF('9'!$D32>0,1,0) -> 0 | L31: =IF('10'!$D32>0,1,0) -> 1 | M31: =IF('11'!$D32>0,1,0) -> 1 | N31: =IF('12'!$D32>0,1,0) -> 0 | O31: 4 | P31: 8
A32: Schütze 24 | B32: =IF('Wettkampf 1'!D33>0,1,0) -> 0 | C32: =IF('2'!$D33>0,1,0) -> 0 | D32: =IF('3'!$D33>0,1,0) -> 0 | E32: =IF('4'!$D33>0,1,0) -> 0 | F32: =IF('5'!$D33>0,1,0) -> 0 | G32: =IF('6'!$D33>0,1,0) -> 0 | H32: 0 | I32: =IF('7'!$D33>0,1,0) -> 0 | J32: =IF('8'!$D33>0,1,0) -> 0 | K32: =IF('9'!$D33>0,1,0) -> 0 | L32: =IF('10'!$D33>0,1,0) -> 0 | M32: =IF('11'!$D33>0,1,0) -> 0 | N32: =IF('12'!$D33>0,1,0) -> 0 | O32: 0 | P32: 0
A33: Großmann Martin | B33: =IF('Wettkampf 1'!D34>0,1,0) -> 1 | C33: =IF('2'!$D34>0,1,0) -> 1 | D33: =IF('3'!$D34>0,1,0) -> 1 | E33: =IF('4'!$D34>0,1,0) -> 1 | F33: =IF('5'!$D34>0,1,0) -> 1 | G33: =IF('6'!$D34>0,1,0) -> 1 | H33: 6 | I33: =IF('7'!$D34>0,1,0) -> 1 | J33: =IF('8'!$D34>0,1,0) -> 0 | K33: =IF('9'!$D34>0,1,0) -> 0 | L33: =IF('10'!$D34>0,1,0) -> 1 | M33: =IF('11'!$D34>0,1,0) -> 1 | N33: =IF('12'!$D34>0,1,0) -> 0 | O33: 3 | P33: 9
A34: Segbers Bernard | B34: =IF('Wettkampf 1'!D35>0,1,0) -> 1 | C34: =IF('2'!$D35>0,1,0) -> 1 | D34: =IF('3'!$D35>0,1,0) -> 1 | E34: =IF('4'!$D35>0,1,0) -> 1 | F34: =IF('5'!$D35>0,1,0) -> 1 | G34: =IF('6'!$D35>0,1,0) -> 1 | H34: 6 | I34: =IF('7'!$D35>0,1,0) -> 1 | J34: =IF('8'!$D35>0,1,0) -> 1 | K34: =IF('9'!$D35>0,1,0) -> 1 | L34: =IF('10'!$D35>0,1,0) -> 1 | M34: =IF('11'!$D35>0,1,0) -> 1 | N34: =IF('12'!$D35>0,1,0) -> 0 | O34: 5 | P34: 11
A35: Dobelmann Werner | B35: =IF('Wettkampf 1'!D36>0,1,0) -> 1 | C35: =IF('2'!$D36>0,1,0) -> 1 | D35: =IF('3'!$D36>0,1,0) -> 1 | E35: =IF('4'!$D36>0,1,0) -> 1 | F35: =IF('5'!$D36>0,1,0) -> 1 | G35: =IF('6'!$D36>0,1,0) -> 1 | H35: 6 | I35: =IF('7'!$D36>0,1,0) -> 1 | J35: =IF('8'!$D36>0,1,0) -> 1 | K35: =IF('9'!$D36>0,1,0) -> 1 | L35: =IF('10'!$D36>0,1,0) -> 1 | M35: =IF('11'!$D36>0,1,0) -> 1 | N35: =IF('12'!$D36>0,1,0) -> 0 | O35: 5 | P35: 11
A36: Kohnen Stefan | B36: =IF('Wettkampf 1'!D37>0,1,0) -> 1 | C36: =IF('2'!$D37>0,1,0) -> 1 | D36: =IF('3'!$D37>0,1,0) -> 1 | E36: =IF('4'!$D37>0,1,0) -> 1 | F36: =IF('5'!$D37>0,1,0) -> 1 | G36: =IF('6'!$D37>0,1,0) -> 1 | H36: 6 | I36: =IF('7'!$D37>0,1,0) -> 1 | J36: =IF('8'!$D37>0,1,0) -> 1 | K36: =IF('9'!$D37>0,1,0) -> 1 | L36: =IF('10'!$D37>0,1,0) -> 1 | M36: =IF('11'!$D37>0,1,0) -> 1 | N36: =IF('12'!$D37>0,1,0) -> 0 | O36: 5 | P36: 11
A37: Schütze 29 | B37: =IF('Wettkampf 1'!D38>0,1,0) -> 0 | C37: =IF('2'!$D38>0,1,0) -> 0 | D37: =IF('3'!$D38>0,1,0) -> 0 | E37: =IF('4'!$D38>0,1,0) -> 0 | F37: =IF('5'!$D38>0,1,0) -> 0 | G37: =IF('6'!$D38>0,1,0) -> 0 | H37: 0 | I37: =IF('7'!$D38>0,1,0) -> 0 | J37: =IF('8'!$D38>0,1,0) -> 0 | K37: =IF('9'!$D38>0,1,0) -> 0 | L37: =IF('10'!$D38>0,1,0) -> 0 | M37: =IF('11'!$D38>0,1,0) -> 0 | N37: =IF('12'!$D38>0,1,0) -> 0 | O37: 0 | P37: 0
A38: Schütze 30 | B38: =IF('Wettkampf 1'!D39>0,1,0) -> 0 | C38: =IF('2'!$D39>0,1,0) -> 0 | D38: =IF('3'!$D39>0,1,0) -> 0 | E38: =IF('4'!$D39>0,1,0) -> 0 | F38: =IF('5'!$D39>0,1,0) -> 0 | G38: =IF('6'!$D39>0,1,0) -> 0 | H38: 0 | I38: =IF('7'!$D39>0,1,0) -> 0 | J38: =IF('8'!$D39>0,1,0) -> 0 | K38: =IF('9'!$D39>0,1,0) -> 0 | L38: =IF('10'!$D39>0,1,0) -> 0 | M38: =IF('11'!$D39>0,1,0) -> 0 | N38: =IF('12'!$D39>0,1,0) -> 0 | O38: 0 | P38: 0
A39: Schulte Matthias | B39: =IF('Wettkampf 1'!D40>0,1,0) -> 1 | C39: =IF('2'!$D40>0,1,0) -> 1 | D39: =IF('3'!$D40>0,1,0) -> 1 | E39: =IF('4'!$D40>0,1,0) -> 1 | F39: =IF('5'!$D40>0,1,0) -> 1 | G39: =IF('6'!$D40>0,1,0) -> 1 | H39: =B39+C39+D39+E39+F39+G39 -> 6 | I39: =IF('7'!$D40>0,1,0) -> 1 | J39: =IF('8'!$D40>0,1,0) -> 1 | K39: =IF('9'!$D40>0,1,0) -> 1 | L39: =IF('10'!$D40>0,1,0) -> 1 | M39: =IF('11'!$D40>0,1,0) -> 1 | N39: =IF('12'!$D40>0,1,0) -> 0 | O39: =I39+J39+K39+L39+M39+N39 -> 5 | P39: =O39+H39 -> 11
A40: Middendorf Peter | B40: =IF('Wettkampf 1'!D41>0,1,0) -> 1 | C40: =IF('2'!$D41>0,1,0) -> 1 | D40: =IF('3'!$D41>0,1,0) -> 0 | E40: =IF('4'!$D41>0,1,0) -> 1 | F40: =IF('5'!$D41>0,1,0) -> 1 | G40: =IF('6'!$D41>0,1,0) -> 1 | H40: 5 | I40: =IF('7'!$D41>0,1,0) -> 1 | J40: =IF('8'!$D41>0,1,0) -> 1 | K40: =IF('9'!$D41>0,1,0) -> 1 | L40: =IF('10'!$D41>0,1,0) -> 1 | M40: =IF('11'!$D41>0,1,0) -> 1 | N40: =IF('12'!$D41>0,1,0) -> 0 | O40: 5 | P40: 10
A41: Thomes Bernhard | B41: =IF('Wettkampf 1'!D42>0,1,0) -> 1 | C41: =IF('2'!$D42>0,1,0) -> 1 | D41: =IF('3'!$D42>0,1,0) -> 1 | E41: =IF('4'!$D42>0,1,0) -> 1 | F41: =IF('5'!$D42>0,1,0) -> 1 | G41: =IF('6'!$D42>0,1,0) -> 1 | H41: 6 | I41: =IF('7'!$D42>0,1,0) -> 1 | J41: =IF('8'!$D42>0,1,0) -> 1 | K41: =IF('9'!$D42>0,1,0) -> 1 | L41: =IF('10'!$D42>0,1,0) -> 1 | M41: =IF('11'!$D42>0,1,0) -> 1 | N41: =IF('12'!$D42>0,1,0) -> 0 | O41: 5 | P41: 11
A42: Lindemann Marco | B42: =IF('Wettkampf 1'!D43>0,1,0) -> 1 | C42: =IF('2'!$D43>0,1,0) -> 1 | D42: =IF('3'!$D43>0,1,0) -> 1 | E42: =IF('4'!$D43>0,1,0) -> 1 | F42: =IF('5'!$D43>0,1,0) -> 1 | G42: =IF('6'!$D43>0,1,0) -> 1 | H42: 6 | I42: =IF('7'!$D43>0,1,0) -> 1 | J42: =IF('8'!$D43>0,1,0) -> 1 | K42: =IF('9'!$D43>0,1,0) -> 1 | L42: =IF('10'!$D43>0,1,0) -> 1 | M42: =IF('11'!$D43>0,1,0) -> 1 | N42: =IF('12'!$D43>0,1,0) -> 0 | O42: 5 | P42: 11
A43: Schütze 35 | B43: =IF('Wettkampf 1'!D44>0,1,0) -> 0 | C43: =IF('2'!$D44>0,1,0) -> 0 | D43: =IF('3'!$D44>0,1,0) -> 0 | E43: =IF('4'!$D44>0,1,0) -> 0 | F43: =IF('5'!$D44>0,1,0) -> 0 | G43: =IF('6'!$D44>0,1,0) -> 0 | H43: 0 | I43: =IF('7'!$D44>0,1,0) -> 0 | J43: =IF('8'!$D44>0,1,0) -> 0 | K43: =IF('9'!$D44>0,1,0) -> 0 | L43: =IF('10'!$D44>0,1,0) -> 0 | M43: =IF('11'!$D44>0,1,0) -> 0 | N43: =IF('12'!$D44>0,1,0) -> 0 | O43: 0 | P43: 0
A44: Schütze 36 | B44: =IF('Wettkampf 1'!D45>0,1,0) -> 0 | C44: =IF('2'!$D45>0,1,0) -> 0 | D44: =IF('3'!$D45>0,1,0) -> 0 | E44: =IF('4'!$D45>0,1,0) -> 0 | F44: =IF('5'!$D45>0,1,0) -> 0 | G44: =IF('6'!$D45>0,1,0) -> 0 | H44: 0 | I44: =IF('7'!$D45>0,1,0) -> 0 | J44: =IF('8'!$D45>0,1,0) -> 0 | K44: =IF('9'!$D45>0,1,0) -> 0 | L44: =IF('10'!$D45>0,1,0) -> 0 | M44: =IF('11'!$D45>0,1,0) -> 0 | N44: =IF('12'!$D45>0,1,0) -> 0 | O44: 0 | P44: 0
B45: =SUM(B9:B44) -> 25.00 | C45: 26.00 | D45: 26.00 | E45: 25.00 | F45: 26.00 | G45: 25.00 | H45: =SUM(H9:H38) -> 130.00 | I45: =SUM(I9:I44) -> 26.00 | J45: 25.00 | K45: 24.00 | L45: 26.00 | M45: 26.00 | N45: 0.00 | O45: 127.00 | P45: 280.00

Sheet Übersicht Gruppen (hidden)
B2: Sögel I | C2: =VLOOKUP($B$2:$B$7,'Wettkampf 1'!$B$2:$D$7,3,FALSE) -> 937.5 | D2: =VLOOKUP($B$2:$B$7,'2'!$B$2:$D$7,3,FALSE) -> 941.2 | E2: =VLOOKUP($B$2:$B$7,'3'!$B$2:$D$7,3,FALSE) -> 943.4 | F2: =VLOOKUP($B$2:$B$7,'4'!$B$2:$D$7,3,FALSE) -> 942.5 | G2: =VLOOKUP($B$2:$B$7,'5'!$B$2:$D$7,3,FALSE) -> 945.7 | H2: =VLOOKUP($B$2:$B$7,'6'!$B$2:$D$7,3,FALSE) -> 944.8 | I2: =J2/Formelhilfe!H2 -> 942.5 | J2: =SUM(C2:H2) -> 5,655.1 | K2: =VLOOKUP($B$2:$B$7,'7'!$B$2:$D$7,3,FALSE) -> 945.2 | L2: =VLOOKUP($B$2:$B$7,'8'!$B$2:$D$7,3,FALSE) -> 944.7 | M2: =VLOOKUP($B$2:$B$7,'9'!$B$2:$D$7,3,FALSE) -> 946.7 | N2: =VLOOKUP($B$2:$B$7,'10'!$B$2:$D$7,3,FALSE) -> 943.9 | O2: =VLOOKUP($B$2:$B$7,'11'!$B$2:$D$7,3,FALSE) -> 939.3 | P2: =VLOOKUP($B$2:$B$7,'12'!$B$2:$D$7,3,FALSE) -> 0.0 | Q2: =R2/Formelhilfe!O2 -> 944.0 | R2: =SUM(K2:P2) -> 4,719.8 | S2: =T2/Formelhilfe!P2 -> 943.2 | T2: =SUM(C2:H2,K2:P2) -> 10,374.9
B3: Lahn II | C3: =VLOOKUP($B$2:$B$7,'Wettkampf 1'!$B$2:$D$7,3,FALSE) -> 939.5 | D3: =VLOOKUP($B$2:$B$7,'2'!$B$2:$D$7,3,FALSE) -> 942.2 | E3: =VLOOKUP($B$2:$B$7,'3'!$B$2:$D$7,3,FALSE) -> 939.1 | F3: =VLOOKUP($B$2:$B$7,'4'!$B$2:$D$7,3,FALSE) -> 938.5 | G3: =VLOOKUP($B$2:$B$7,'5'!$B$2:$D$7,3,FALSE) -> 943.7 | H3: =VLOOKUP($B$2:$B$7,'6'!$B$2:$D$7,3,FALSE) -> 939.5 | I3: =J3/Formelhilfe!H3 -> 940.4 | J3: =SUM(C3:H3) -> 5,642.5 | K3: =VLOOKUP($B$2:$B$7,'7'!$B$2:$D$7,3,FALSE) -> 941.9 | L3: =VLOOKUP($B$2:$B$7,'8'!$B$2:$D$7,3,FALSE) -> 938.9 | M3: =VLOOKUP($B$2:$B$7,'9'!$B$2:$D$7,3,FALSE) -> 946.1 | N3: =VLOOKUP($B$2:$B$7,'10'!$B$2:$D$7,3,FALSE) -> 943.6 | O3: =VLOOKUP($B$2:$B$7,'11'!$B$2:$D$7,3,FALSE) -> 944.8 | P3: =VLOOKUP($B$2:$B$7,'12'!$B$2:$D$7,3,FALSE) -> 0.0 | Q3: =R3/Formelhilfe!O3 -> 943.1 | R3: =SUM(K3:P3) -> 4,715.3 | S3: =T3/Formelhilfe!P3 -> 941.6 | T3: =SUM(C3:H3,K3:P3) -> 10,357.8
B4: Börgermoor I | C4: =VLOOKUP($B$2:$B$7,'Wettkampf 1'!$B$2:$D$7,3,FALSE) -> 931.7 | D4: =VLOOKUP($B$2:$B$7,'2'!$B$2:$D$7,3,FALSE) -> 944.5 | E4: =VLOOKUP($B$2:$B$7,'3'!$B$2:$D$7,3,FALSE) -> 943.4 | F4: =VLOOKUP($B$2:$B$7,'4'!$B$2:$D$7,3,FALSE) -> 944.5 | G4: =VLOOKUP($B$2:$B$7,'5'!$B$2:$D$7,3,FALSE) -> 943.2 | H4: =VLOOKUP($B$2:$B$7,'6'!$B$2:$D$7,3,FALSE) -> 938.6 | I4: =J4/Formelhilfe!H5 -> 941.0 | J4: =SUM(C4:H4) -> 5,645.9 | K4: =VLOOKUP($B$2:$B$7,'7'!$B$2:$D$7,3,FALSE) -> 943.1 | L4: =VLOOKUP($B$2:$B$7,'8'!$B$2:$D$7,3,FALSE) -> 941.1 | M4: =VLOOKUP($B$2:$B$7,'9'!$B$2:$D$7,3,FALSE) -> 944.3 | N4: =VLOOKUP($B$2:$B$7,'10'!$B$2:$D$7,3,FALSE) -> 940.1 | O4: =VLOOKUP($B$2:$B$7,'11'!$B$2:$D$7,3,FALSE) -> 942.8 | P4: =VLOOKUP($B$2:$B$7,'12'!$B$2:$D$7,3,FALSE) -> 0.0 | Q4: =R4/Formelhilfe!O5 -> 942.3 | R4: =SUM(K4:P4) -> 4,711.4 | S4: =T4/Formelhilfe!P5 -> 941.6 | T4: =SUM(C4:H4,K4:P4) -> 10,357.3
B5: Neubörger I | C5: =VLOOKUP($B$2:$B$7,'Wettkampf 1'!$B$2:$D$7,3,FALSE) -> 942.3 | D5: =VLOOKUP($B$2:$B$7,'2'!$B$2:$D$7,3,FALSE) -> 931.1 | E5: =VLOOKUP($B$2:$B$7,'3'!$B$2:$D$7,3,FALSE) -> 939.5 | F5: =VLOOKUP($B$2:$B$7,'4'!$B$2:$D$7,3,FALSE) -> 933.6 | G5: =VLOOKUP($B$2:$B$7,'5'!$B$2:$D$7,3,FALSE) -> 939.6 | H5: =VLOOKUP($B$2:$B$7,'6'!$B$2:$D$7,3,FALSE) -> 936.7 | I5: =J5/Formelhilfe!H7 -> 937.1 | J5: =SUM(C5:H5) -> 5,622.8 | K5: =VLOOKUP($B$2:$B$7,'7'!$B$2:$D$7,3,FALSE) -> 941.6 | L5: =VLOOKUP($B$2:$B$7,'8'!$B$2:$D$7,3,FALSE) -> 940.2 | M5: =VLOOKUP($B$2:$B$7,'9'!$B$2:$D$7,3,FALSE) -> 944.1 | N5: =VLOOKUP($B$2:$B$7,'10'!$B$2:$D$7,3,FALSE) -> 942.2 | O5: =VLOOKUP($B$2:$B$7,'11'!$B$2:$D$7,3,FALSE) -> 937.3 | P5: =VLOOKUP($B$2:$B$7,'12'!$B$2:$D$7,3,FALSE) -> 0.0 | Q5: =R5/Formelhilfe!O7 -> 941.1 | R5: =SUM(K5:P5) -> 4,705.4 | S5: =T5/Formelhilfe!P7 -> 938.9 | T5: =SUM(C5:H5,K5:P5) -> 10,328.2
B6: Lorup IV | C6: =VLOOKUP($B$2:$B$7,'Wettkampf 1'!$B$2:$D$7,3,FALSE) -> 935.2 | D6: =VLOOKUP($B$2:$B$7,'2'!$B$2:$D$7,3,FALSE) -> 931.1 | E6: =VLOOKUP($B$2:$B$7,'3'!$B$2:$D$7,3,FALSE) -> 932.3 | F6: =VLOOKUP($B$2:$B$7,'4'!$B$2:$D$7,3,FALSE) -> 933.8 | G6: =VLOOKUP($B$2:$B$7,'5'!$B$2:$D$7,3,FALSE) -> 937.7 | H6: =VLOOKUP($B$2:$B$7,'6'!$B$2:$D$7,3,FALSE) -> 939.1 | I6: =J6/Formelhilfe!H6 -> 934.9 | J6: =SUM(C6:H6) -> 5,609.2 | K6: =VLOOKUP($B$2:$B$7,'7'!$B$2:$D$7,3,FALSE) -> 938.0 | L6: =VLOOKUP($B$2:$B$7,'8'!$B$2:$D$7,3,FALSE) -> 936.2 | M6: =VLOOKUP($B$2:$B$7,'9'!$B$2:$D$7,3,FALSE) -> 934.8 | N6: =VLOOKUP($B$2:$B$7,'10'!$B$2:$D$7,3,FALSE) -> 938.6 | O6: =VLOOKUP($B$2:$B$7,'11'!$B$2:$D$7,3,FALSE) -> 940.3 | P6: =VLOOKUP($B$2:$B$7,'12'!$B$2:$D$7,3,FALSE) -> 0.0 | Q6: =R6/Formelhilfe!O6 -> 937.6 | R6: =SUM(K6:P6) -> 4,687.9 | S6: =T6/Formelhilfe!P6 -> 936.1 | T6: =SUM(C6:H6,K6:P6) -> 10,297.1
B7: Esterwegen I | C7: =VLOOKUP($B$2:$B$7,'Wettkampf 1'!$B$2:$D$7,3,FALSE) -> 934.4 | D7: =VLOOKUP($B$2:$B$7,'2'!$B$2:$D$7,3,FALSE) -> 933.4 | E7: =VLOOKUP($B$2:$B$7,'3'!$B$2:$D$7,3,FALSE) -> 925.2 | F7: =VLOOKUP($B$2:$B$7,'4'!$B$2:$D$7,3,FALSE) -> 933.3 | G7: =VLOOKUP($B$2:$B$7,'5'!$B$2:$D$7,3,FALSE) -> 934.3 | H7: =VLOOKUP($B$2:$B$7,'6'!$B$2:$D$7,3,FALSE) -> 931.7 | I7: =J7/Formelhilfe!H4 -> 932.1 | J7: =SUM(C7:H7) -> 5,592.3 | K7: =VLOOKUP($B$2:$B$7,'7'!$B$2:$D$7,3,FALSE) -> 939.7 | L7: =VLOOKUP($B$2:$B$7,'8'!$B$2:$D$7,3,FALSE) -> 933.2 | M7: =VLOOKUP($B$2:$B$7,'9'!$B$2:$D$7,3,FALSE) -> 933.2 | N7: =VLOOKUP($B$2:$B$7,'10'!$B$2:$D$7,3,FALSE) -> 939.9 | O7: =VLOOKUP($B$2:$B$7,'11'!$B$2:$D$7,3,FALSE) -> 937.8 | P7: =VLOOKUP($B$2:$B$7,'12'!$B$2:$D$7,3,FALSE) -> 0.0 | Q7: =R7/Formelhilfe!O4 -> 936.8 | R7: =SUM(K7:P7) -> 4,683.8 | S7: =T7/Formelhilfe!P4 -> 934.2 | T7: =SUM(C7:H7,K7:P7) -> 10,276.1
